Workbook

Sheet Cash Flow Proof
A2: Computation of All-Equity or Unlevered Beta
C4: EMRP | D4: =E4/100 -> 0.03 | E4: 3
C5: Rf | D5: =E5/100 -> 0.04 | E5: 4
E7: Percent | G7: Percent
D8: Be | E8: Net Debt | F8: Tax Rate | G8: Equity | H8: Bd | I8: Bu | K8: A =[CF/(Ku-g) - Debt * (1-t)]/ [CF/([(Ku - Kd * ND/NCAP)/(NE/NCAP)] * GE/GCAP + Kd * GD/GCAP-g) - Debt]
C9: Disney | D9: 1.1 | E9: 0.3 | F9: 0.35 | G9: =1-E9 -> 0.7 | H9: 0.2 | I9: =D9*G9+H9*(1-F9)*E9 -> 0.809 | K9: A =Factor 1/ [CF/(factor 2] * GE/GCAP + Kd * GD/GCAP-g) - Debt]
C10: McDonalds | D10: 0.52 | E10: 0.4 | F10: 0.26 | G10: =1-E10 -> 0.6 | H10: 0.3 | I10: =D10*G10+H10*(1-F10)*E10 -> 0.4008 | K10: NCAP =CF/(Ku-g) | O10: =c_f/(ku-gr) -> 2184.653124
C11: Starbucks | D11: 0.6 | E11: 0.3 | F11: 0.2 | G11: 0.7 | H11: 0.4 | I11: 0.516 | K11: GCAP =CF/(Ku-g) + Debt * t | O11: =O10+D99*t -> 2577.890686
C12: Apple | D12: 1.15 | E12: -0.3 | F12: 0.15 | G12: 1.3 | H12: 0.1 | I12: 1.4695 | K12: NE =NCAP - Debt * t | O12: =O10-D99*(1-t) -> 1267.098812
C13: Amazon | D13: 0.87 | E13: 0.6 | F13: 0.24 | G13: 0.4 | H13: 0.2 | I13: 0.4392 | K13: GE =NE + Debt * t | O13: =O12+D99*t -> 1660.336374
C14: Google | D14: 1.3 | E14: -0.2 | F14: 0.3 | G14: 1.2 | H14: 0.1 | I14: 1.546
C15: Microsoft | D15: 0.99 | E15: 0.2 | F15: 0.31 | G15: 0.8 | H15: 0.3 | I15: 0.8334 | K15: Factor 1 =CF/(Ku-g) - Debt * (1-t) | O15: =c_f/(ku-gr)-D99*(1-t) -> 1267.098812
K16: Factor 2 =(Ku-Kd * ND/NCAP)/(NE/NCAP) | O16: =(ku-k_d*D100/O10)/(O12/O10) -> 0.07574802956
C17: Average Bu | I17: =AVERAGE(I9:I15) -> 0.8591285714
C18: All Equity Cost of Capital | I18: =D5+I17*D4 -> 0.06577385714 | K18: Denom = [CF/(factor 2] * GE/GCAP + Kd * GD/GCAP-g) - Debt]
A21: Capital Structure and Reconciled Value
E22: 1 | F22: 2 | G22: 3 | H22: 4 | I22: 5 | J22: 6 | K22: 7 | L22: 8 | M22: 9 | N22: 10 | O22: 11 | P22: 12 | Q22: 13 | R22: 14 | S22: 15 | T22: 16 | U22: 17 | V22: 18 | W22: 19 | X22: 20 | Y22: 21 | Z22: 22 | AA22: 23 | AB22: 24 | AC22: 25 | AD22: 26 | AE22: 27 | AF22: 28 | AG22: 29 | AH22: 30 | AI22: 31 | AJ22: 32 | AK22: 33 | AL22: 34 | AM22: 35 | AN22: 36 | AO22: 37 | AP22: 38 | AQ22: 39 | AR22: 40 | AS22: 41 | AT22: 42 | AU22: 43 | AV22: 44 | AW22: 45 | AX22: 46 | AY22: 47 | AZ22: 48 | BA22: 49 | BB22: 50 | BC22: 51 | BD22: 52 | BE22: 53 | BF22: 54 | BG22: 55 | BH22: 56 | BI22: 57 | BJ22: 58 | BK22: 59 | BL22: 60 | BM22: 61 | BN22: 62 | BO22: 63 | BP22: 64 | BQ22: 65 | BR22: 66 | BS22: 67 | BT22: 68 | BU22: 69 | BV22: 70 | BW22: 71 | BX22: 72 | BY22: 73 | BZ22: 74 | CA22: 75 | CB22: 76 | CC22: 77 | CD22: 78 | CE22: 79 | CF22: 80 | CG22: 81 | CH22: 82 | CI22: 83 | CJ22: 84 | CK22: 85 | CL22: 86 | CM22: 87 | CN22: 88 | CO22: 89 | CP22: 90 | CQ22: 91 | CR22: 92 | CS22: 93 | CT22: 94 | CU22: 95 | CV22: 96 | CW22: 97 | CX22: 98 | CY22: 99 | CZ22: 100 | DA22: 101 | DB22: 102 | DC22: 103 | DD22: 104 | DE22: 105 | DF22: 106 | DG22: 107 | DH22: 108 | DI22: 109 | DJ22: 110 | DK22: 111 | DL22: 112 | DM22: 113 | DN22: 114 | DO22: 115 | DP22: 116 | DQ22: 117 | DR22: 118 | DS22: 119 | DT22: 120 | DU22: 121 | DV22: 122 | DW22: 123 | DX22: 124 | DY22: 125 | DZ22: 126 | EA22: 127 | EB22: 128 | EC22: 129 | ED22: 130 | EE22: 131 | EF22: 132 | EG22: 133 | EH22: 134 | EI22: 135 | EJ22: 136 | EK22: 137 | EL22: 138 | EM22: 139 | EN22: 140 | EO22: 141 | EP22: 142 | EQ22: 143 | ER22: 144 | ES22: 145 | ET22: 146 | EU22: 147 | EV22: 148 | EW22: 149 | EX22: 150 | EY22: 151 | EZ22: 152 | FA22: 153 | FB22: 154 | FC22: 155 | FD22: 156 | FE22: 157 | FF22: 158 | FG22: 159 | FH22: 160 | FI22: 161 | FJ22: 162 | FK22: 163 | FL22: 164 | FM22: 165 | FN22: 166 | FO22: 167 | FP22: 168 | FQ22: 169 | FR22: 170 | FS22: 171 | FT22: 172 | FU22: 173 | FV22: 174 | FW22: 175 | FX22: 176 | FY22: 177 | FZ22: 178 | GA22: 179 | GB22: 180 | GC22: 181 | GD22: 182 | GE22: 183 | GF22: 184 | GG22: 185 | GH22: 186 | GI22: 187 | GJ22: 188 | GK22: 189 | GL22: 190 | GM22: 191 | GN22: 192 | GO22: 193 | GP22: 194 | GQ22: 195 | GR22: 196 | GS22: 197 | GT22: 198 | GU22: 199 | GV22: 200 | GW22: 201 | GX22: 202 | GY22: 203 | GZ22: 204 | HA22: 205 | HB22: 206 | HC22: 207 | HD22: 208 | HE22: 209 | HF22: 210 | HG22: 211 | HH22: 212 | HI22: 213 | HJ22: 214 | HK22: 215 | HL22: 216 | HM22: 217 | HN22: 218 | HO22: 219 | HP22: 220 | HQ22: 221 | HR22: 222 | HS22: 223 | HT22: 224 | HU22: 225 | HV22: 226 | HW22: 227 | HX22: 228 | HY22: 229 | HZ22: 230 | IA22: 231 | IB22: 232 | IC22: 233 | ID22: 234 | IE22: 235 | IF22: 236 | IG22: 237 | IH22: 238 | II22: 239 | IJ22: 240 | IK22: 241 | IL22: 242 | IM22: 243 | IN22: 244 | IO22: 245 | IP22: 246 | IQ22: 247 | IR22: 248 | IS22: 249 | IT22: 250 | IU22: 251 | IV22: 252 | IW22: 253 | IX22: 254 | IY22: 255 | IZ22: 256 | JA22: 257 | JB22: 258 | JC22: 259 | JD22: 260 | JE22: 261 | JF22: 262 | JG22: 263 | JH22: 264 | JI22: 265 | JJ22: 266 | JK22: 267 | JL22: 268 | JM22: 269 | JN22: 270 | JO22: 271 | JP22: 272 | JQ22: 273 | JR22: 274 | JS22: 275 | JT22: 276 | JU22: 277 | JV22: 278 | JW22: 279 | JX22: 280 | JY22: 281 | JZ22: 282 | KA22: 283 | KB22: 284 | KC22: 285 | KD22: 286 | KE22: 287 | KF22: 288 | KG22: 289 | KH22: 290 | KI22: 291 | KJ22: 292 | KK22: 293 | KL22: 294 | KM22: 295 | KN22: 296 | KO22: 297 | KP22: 298 | KQ22: 299 | KR22: 300 | KS22: 301 | KT22: 302 | KU22: 303 | KV22: 304 | KW22: 305 | KX22: 306 | KY22: 307 | KZ22: 308 | LA22: 309 | LB22: 310 | LC22: 311 | LD22: 312 | LE22: 313 | LF22: 314 | LG22: 315 | LH22: 316 | LI22: 317 | LJ22: 318 | LK22: 319 | LL22: 320 | LM22: 321 | LN22: 322 | LO22: 323 | LP22: 324 | LQ22: 325 | LR22: 326 | LS22: 327 | LT22: 328 | LU22: 329 | LV22: 330 | LW22: 331 | LX22: 332 | LY22: 333 | LZ22: 334 | MA22: 335 | MB22: 336 | MC22: 337 | MD22: 338 | ME22: 339 | MF22: 340 | MG22: 341 | MH22: 342 | MI22: 343 | MJ22: 344 | MK22: 345 | ML22: 346 | MM22: 347 | MN22: 348 | MO22: 349 | MP22: 350 | MQ22: 351 | MR22: 352 | MS22: 353 | MT22: 354 | MU22: 355 | MV22: 356 | MW22: 357 | MX22: 358 | MY22: 359 | MZ22: 360 | NA22: 361 | NB22: 362 | NC22: 363 | ND22: 364 | NE22: 365 | NF22: 366 | NG22: 367 | NH22: 368 | NI22: 369 | NJ22: 370 | NK22: 371 | NL22: 372 | NM22: 373 | NN22: 374 | NO22: 375 | NP22: 376 | NQ22: 377 | NR22: 378 | NS22: 379 | NT22: 380 | NU22: 381 | NV22: 382 | NW22: 383 | NX22: 384 | NY22: 385 | NZ22: 386 | OA22: 387 | OB22: 388 | OC22: 389 | OD22: 390 | OE22: 391 | OF22: 392 | OG22: 393 | OH22: 394 | OI22: 395 | OJ22: 396 | OK22: 397 | OL22: 398 | OM22: 399 | ON22: 400 | OO22: 401 | OP22: 402 | OQ22: 403 | OR22: 404 | OS22: 405 | OT22: 406 | OU22: 407 | OV22: 408 | OW22: 409 | OX22: 410 | OY22: 411 | OZ22: 412 | PA22: 413 | PB22: 414 | PC22: 415 | PD22: 416 | PE22: 417 | PF22: 418 | PG22: 419 | PH22: 420 | PI22: 421 | PJ22: 422 | PK22: 423 | PL22: 424 | PM22: 425 | PN22: 426 | PO22: 427 | PP22: 428 | PQ22: 429 | PR22: 430 | PS22: 431 | PT22: 432 | PU22: 433 | PV22: 434 | PW22: 435 | PX22: 436 | PY22: 437 | PZ22: 438 | QA22: 439 | QB22: 440 | QC22: 441 | QD22: 442 | QE22: 443 | QF22: 444 | QG22: 445 | QH22: 446 | QI22: 447 | QJ22: 448 | QK22: 449 | QL22: 450 | QM22: 451 | QN22: 452 | QO22: 453 | QP22: 454 | QQ22: 455 | QR22: 456 | QS22: 457 | QT22: 458 | QU22: 459 | QV22: 460 | QW22: 461 | QX22: 462 | QY22: 463 | QZ22: 464 | RA22: 465 | RB22: 466 | RC22: 467 | RD22: 468 | RE22: 469 | RF22: 470 | RG22: 471 | RH22: 472 | RI22: 473 | RJ22: 474 | RK22: 475 | RL22: 476 | RM22: 477 | RN22: 478 | RO22: 479 | RP22: 480 | RQ22: 481 | RR22: 482 | RS22: 483 | RT22: 484 | RU22: 485 | RV22: 486 | RW22: 487 | RX22: 488 | RY22: 489 | RZ22: 490 | SA22: 491 | SB22: 492 | SC22: 493 | SD22: 494 | SE22: 495 | SF22: 496 | SG22: 497 | SH22: 498 | SI22: 499 | SJ22: 500 | SK22: 501 | SL22: 502 | SM22: 503 | SN22: 504 | SO22: 505 | SP22: 506 | SQ22: 507 | SR22: 508 | SS22: 509 | ST22: 510 | SU22: 511 | SV22: 512 | SW22: 513 | SX22: 514 | SY22: 515 | SZ22: 516 | TA22: 517 | TB22: 518 | TC22: 519 | TD22: 520 | TE22: 521 | TF22: 522 | TG22: 523 | TH22: 524 | TI22: 525 | TJ22: 526 | TK22: 527 | TL22: 528 | TM22: 529 | TN22: 530 | TO22: 531 | TP22: 532 | TQ22: 533 | TR22: 534 | TS22: 535 | TT22: 536 | TU22: 537 | TV22: 538 | TW22: 539 | TX22: 540 | TY22: 541 | TZ22: 542 | UA22: 543 | UB22: 544 | UC22: 545 | UD22: 546 | UE22: 547 | UF22: 548 | UG22: 549 | UH22: 550 | UI22: 551 | UJ22: 552 | UK22: 553 | UL22: 554 | UM22: 555 | UN22: 556 | UO22: 557 | UP22: 558 | UQ22: 559 | UR22: 560 | US22: 561 | UT22: 562 | UU22: 563 | UV22: 564 | UW22: 565 | UX22: 566 | UY22: 567 | UZ22: 568 | VA22: 569 | VB22: 570 | VC22: 571 | VD22: 572 | VE22: 573 | VF22: 574 | VG22: 575 | VH22: 576 | VI22: 577 | VJ22: 578 | VK22: 579 | VL22: 580 | VM22: 581 | VN22: 582 | VO22: 583 | VP22: 584 | VQ22: 585 | VR22: 586 | VS22: 587 | VT22: 588 | VU22: 589 | VV22: 590 | VW22: 591 | VX22: 592 | VY22: 593 | VZ22: 594 | WA22: 595 | WB22: 596 | WC22: 597 | WD22: 598 | WE22: 599 | WF22: 600 | WG22: 601 | WH22: 602 | WI22: 603 | WJ22: 604 | WK22: 605 | WL22: 606 | WM22: 607 | WN22: 608 | WO22: 609 | WP22: 610 | WQ22: 611 | WR22: 612 | WS22: 613 | WT22: 614 | WU22: 615 | WV22: 616 | WW22: 617 | WX22: 618 | WY22: 619 | WZ22: 620 | XA22: 621 | XB22: 622 | XC22: 623 | XD22: 624 | XE22: 625 | XF22: 626 | XG22: 627 | XH22: 628 | XI22: 629 | XJ22: 630 | XK22: 631 | XL22: 632 | XM22: 633 | XN22: 634 | XO22: 635 | XP22: 636 | XQ22: 637 | XR22: 638 | XS22: 639 | XT22: 640 | XU22: 641 | XV22: 642 | XW22: 643 | XX22: 644 | XY22: 645 | XZ22: 646 | YA22: 647 | YB22: 648 | YC22: 649 | YD22: 650 | YE22: 651 | YF22: 652 | YG22: 653 | YH22: 654 | YI22: 655 | YJ22: 656 | YK22: 657 | YL22: 658 | YM22: 659 | YN22: 660 | YO22: 661 | YP22: 662 | YQ22: 663 | YR22: 664 | YS22: 665 | YT22: 666 | YU22: 667 | YV22: 668 | YW22: 669 | YX22: 670 | YY22: 671 | YZ22: 672 | ZA22: 673 | ZB22: 674 | ZC22: 675 | ZD22: 676 | ZE22: 677 | ZF22: 678 | ZG22: 679 | ZH22: 680 | ZI22: 681 | ZJ22: 682 | ZK22: 683 | ZL22: 684 | ZM22: 685 | ZN22: 686 | ZO22: 687 | ZP22: 688 | ZQ22: 689 | ZR22: 690 | ZS22: 691 | ZT22: 692 | ZU22: 693 | ZV22: 694 | ZW22: 695 | ZX22: 696 | ZY22: 697 | ZZ22: 698 | AAA22: 699 | AAB22: 700
C23: FCF | E23: 100 | F23: =E23*(1+$D$67) -> 102 | G23: =F23*(1+$D$67) -> 104.04 | H23: =G23*(1+$D$67) -> 106.1208 | I23: =H23*(1+$D$67) -> 108.243216 | J23: =I23*(1+$D$67) -> 110.4080803 | K23: =J23*(1+$D$67) -> 112.6162419 | L23: =K23*(1+$D$67) -> 114.8685668 | M23: =L23*(1+$D$67) -> 117.1659381 | N23: =M23*(1+$D$67) -> 119.5092569 | O23: =N23*(1+$D$67) -> 121.899442 | P23: =O23*(1+$D$67) -> 124.3374308 | Q23: =P23*(1+$D$67) -> 126.8241795 | R23: =Q23*(1+$D$67) -> 129.360663 | S23: =R23*(1+$D$67) -> 131.9478763 | T23: =S23*(1+$D$67) -> 134.5868338 | U23: =T23*(1+$D$67) -> 137.2785705 | V23: =U23*(1+$D$67) -> 140.0241419 | W23: =V23*(1+$D$67) -> 142.8246248 | X23: =W23*(1+$D$67) -> 145.6811173 | Y23: =X23*(1+$D$67) -> 148.5947396 | Z23: =Y23*(1+$D$67) -> 151.5666344 | AA23: =Z23*(1+$D$67) -> 154.5979671 | AB23: =AA23*(1+$D$67) -> 157.6899264 | AC23: =AB23*(1+$D$67) -> 160.8437249 | AD23: =AC23*(1+$D$67) -> 164.0605994 | AE23: =AD23*(1+$D$67) -> 167.3418114 | AF23: =AE23*(1+$D$67) -> 170.6886477 | AG23: =AF23*(1+$D$67) -> 174.1024206 | AH23: =AG23*(1+$D$67) -> 177.584469 | AI23: =AH23*(1+$D$67) -> 181.1361584 | AJ23: =AI23*(1+$D$67) -> 184.7588816 | AK23: =AJ23*(1+$D$67) -> 188.4540592 | AL23: =AK23*(1+$D$67) -> 192.2231404 | AM23: =AL23*(1+$D$67) -> 196.0676032 | AN23: =AM23*(1+$D$67) -> 199.9889553 | AO23: =AN23*(1+$D$67) -> 203.9887344 | AP23: =AO23*(1+$D$67) -> 208.0685091 | AQ23: =AP23*(1+$D$67) -> 212.2298792 | AR23: =AQ23*(1+$D$67) -> 216.4744768 | AS23: =AR23*(1+$D$67) -> 220.8039664 | AT23: =AS23*(1+$D$67) -> 225.2200457 | AU23: =AT23*(1+$D$67) -> 229.7244466 | AV23: =AU23*(1+$D$67) -> 234.3189355 | AW23: =AV23*(1+$D$67) -> 239.0053142 | AX23: =AW23*(1+$D$67) -> 243.7854205 | AY23: =AX23*(1+$D$67) -> 248.6611289 | AZ23: =AY23*(1+$D$67) -> 253.6343515 | BA23: =AZ23*(1+$D$67) -> 258.7070385 | BB23: =BA23*(1+$D$67) -> 263.8811793 | BC23: =BB23*(1+$D$67) -> 269.1588029 | BD23: =BC23*(1+$D$67) -> 274.541979 | BE23: =BD23*(1+$D$67) -> 280.0328185 | BF23: =BE23*(1+$D$67) -> 285.6334749 | BG23: =BF23*(1+$D$67) -> 291.3461444 | BH23: =BG23*(1+$D$67) -> 297.1730673 | BI23: =BH23*(1+$D$67) -> 303.1165286 | BJ23: =BI23*(1+$D$67) -> 309.1788592 | BK23: =BJ23*(1+$D$67) -> 315.3624364 | BL23: =BK23*(1+$D$67) -> 321.6696851 | BM23: =BL23*(1+$D$67) -> 328.1030788 | BN23: =BM23*(1+$D$67) -> 334.6651404 | BO23: =BN23*(1+$D$67) -> 341.3584432 | BP23: =BO23*(1+$D$67) -> 348.1856121 | BQ23: =BP23*(1+$D$67) -> 355.1493243 | BR23: =BQ23*(1+$D$67) -> 362.2523108 | BS23: =BR23*(1+$D$67) -> 369.497357 | BT23: =BS23*(1+$D$67) -> 376.8873042 | BU23: =BT23*(1+$D$67) -> 384.4250503 | BV23: =BU23*(1+$D$67) -> 392.1135513 | BW23: =BV23*(1+$D$67) -> 399.9558223 | BX23: =BW23*(1+$D$67) -> 407.9549387 | BY23: =BX23*(1+$D$67) -> 416.1140375 | BZ23: =BY23*(1+$D$67) -> 424.4363183 | CA23: =BZ23*(1+$D$67) -> 432.9250446 | CB23: =CA23*(1+$D$67) -> 441.5835455 | CC23: =CB23*(1+$D$67) -> 450.4152164 | CD23: =CC23*(1+$D$67) -> 459.4235208 | CE23: =CD23*(1+$D$67) -> 468.6119912 | CF23: =CE23*(1+$D$67) -> 477.984231 | CG23: =CF23*(1+$D$67) -> 487.5439156 | CH23: =CG23*(1+$D$67) -> 497.2947939 | CI23: =CH23*(1+$D$67) -> 507.2406898 | CJ23: =CI23*(1+$D$67) -> 517.3855036 | CK23: =CJ23*(1+$D$67) -> 527.7332137 | CL23: =CK23*(1+$D$67) -> 538.2878779 | CM23: =CL23*(1+$D$67) -> 549.0536355 | CN23: =CM23*(1+$D$67) -> 560.0347082 | CO23: =CN23*(1+$D$67) -> 571.2354024 | CP23: =CO23*(1+$D$67) -> 582.6601104 | CQ23: =CP23*(1+$D$67) -> 594.3133126 | CR23: =CQ23*(1+$D$67) -> 606.1995789 | CS23: =CR23*(1+$D$67) -> 618.3235705 | CT23: =CS23*(1+$D$67) -> 630.6900419 | CU23: =CT23*(1+$D$67) -> 643.3038427 | CV23: =CU23*(1+$D$67) -> 656.1699196 | CW23: =CV23*(1+$D$67) -> 669.293318 | CX23: =CW23*(1+$D$67) -> 682.6791843 | CY23: =CX23*(1+$D$67) -> 696.332768 | CZ23: =CY23*(1+$D$67) -> 710.2594234 | DA23: =CZ23*(1+$D$67) -> 724.4646118 | DB23: =DA23*(1+$D$67) -> 738.9539041 | DC23: =DB23*(1+$D$67) -> 753.7329821 | DD23: =DC23*(1+$D$67) -> 768.8076418 | DE23: =DD23*(1+$D$67) -> 784.1837946 | DF23: =DE23*(1+$D$67) -> 799.8674705 | DG23: =DF23*(1+$D$67) -> 815.8648199 | DH23: =DG23*(1+$D$67) -> 832.1821163 | DI23: =DH23*(1+$D$67) -> 848.8257586 | DJ23: =DI23*(1+$D$67) -> 865.8022738 | DK23: =DJ23*(1+$D$67) -> 883.1183193 | DL23: =DK23*(1+$D$67) -> 900.7806857 | DM23: =DL23*(1+$D$67) -> 918.7962994 | DN23: =DM23*(1+$D$67) -> 937.1722254 | DO23: =DN23*(1+$D$67) -> 955.9156699 | DP23: =DO23*(1+$D$67) -> 975.0339833 | DQ23: =DP23*(1+$D$67) -> 994.534663 | DR23: =DQ23*(1+$D$67) -> 1014.425356 | DS23: =DR23*(1+$D$67) -> 1034.713863 | DT23: =DS23*(1+$D$67) -> 1055.408141 | DU23: =DT23*(1+$D$67) -> 1076.516303 | DV23: =DU23*(1+$D$67) -> 1098.046629 | DW23: =DV23*(1+$D$67) -> 1120.007562 | DX23: =DW23*(1+$D$67) -> 1142.407713 | DY23: =DX23*(1+$D$67) -> 1165.255868 | DZ23: =DY23*(1+$D$67) -> 1188.560985 | EA23: =DZ23*(1+$D$67) -> 1212.332205 | EB23: =EA23*(1+$D$67) -> 1236.578849 | EC23: =EB23*(1+$D$67) -> 1261.310426 | ED23: =EC23*(1+$D$67) -> 1286.536634 | EE23: =ED23*(1+$D$67) -> 1312.267367 | EF23: =EE23*(1+$D$67) -> 1338.512714 | EG23: =EF23*(1+$D$67) -> 1365.282969 | EH23: =EG23*(1+$D$67) -> 1392.588628 | EI23: =EH23*(1+$D$67) -> 1420.4404 | EJ23: =EI23*(1+$D$67) -> 1448.849208 | EK23: =EJ23*(1+$D$67) -> 1477.826193 | EL23: =EK23*(1+$D$67) -> 1507.382716 | EM23: =EL23*(1+$D$67) -> 1537.530371 | EN23: =EM23*(1+$D$67) -> 1568.280978 | EO23: =EN23*(1+$D$67) -> 1599.646598 | EP23: =EO23*(1+$D$67) -> 1631.63953 | EQ23: =EP23*(1+$D$67) -> 1664.27232 | ER23: =EQ23*(1+$D$67) -> 1697.557767 | ES23: =ER23*(1+$D$67) -> 1731.508922 | ET23: =ES23*(1+$D$67) -> 1766.139101 | EU23: =ET23*(1+$D$67) -> 1801.461883 | EV23: =EU23*(1+$D$67) -> 1837.49112 | EW23: =EV23*(1+$D$67) -> 1874.240943 | EX23: =EW23*(1+$D$67) -> 1911.725761 | EY23: =EX23*(1+$D$67) -> 1949.960277 | EZ23: =EY23*(1+$D$67) -> 1988.959482 | FA23: =EZ23*(1+$D$67) -> 2028.738672 | FB23: =FA23*(1+$D$67) -> 2069.313445 | FC23: =FB23*(1+$D$67) -> 2110.699714 | FD23: =FC23*(1+$D$67) -> 2152.913708 | FE23: =FD23*(1+$D$67) -> 2195.971983 | FF23: =FE23*(1+$D$67) -> 2239.891422 | FG23: =FF23*(1+$D$67) -> 2284.689251 | FH23: =FG23*(1+$D$67) -> 2330.383036 | FI23: =FH23*(1+$D$67) -> 2376.990696 | FJ23: =FI23*(1+$D$67) -> 2424.53051 | FK23: =FJ23*(1+$D$67) -> 2473.021121 | FL23: =FK23*(1+$D$67) -> 2522.481543 | FM23: =FL23*(1+$D$67) -> 2572.931174 | FN23: =FM23*(1+$D$67) -> 2624.389797 | FO23: =FN23*(1+$D$67) -> 2676.877593 | FP23: =FO23*(1+$D$67) -> 2730.415145 | FQ23: =FP23*(1+$D$67) -> 2785.023448 | FR23: =FQ23*(1+$D$67) -> 2840.723917 | FS23: =FR23*(1+$D$67) -> 2897.538395 | FT23: =FS23*(1+$D$67) -> 2955.489163 | FU23: =FT23*(1+$D$67) -> 3014.598947 | FV23: =FU23*(1+$D$67) -> 3074.890925 | FW23: =FV23*(1+$D$67) -> 3136.388744 | FX23: =FW23*(1+$D$67) -> 3199.116519 | FY23: =FX23*(1+$D$67) -> 3263.098849 | FZ23: =FY23*(1+$D$67) -> 3328.360826 | GA23: =FZ23*(1+$D$67) -> 3394.928043 | GB23: =GA23*(1+$D$67) -> 3462.826604 | GC23: =GB23*(1+$D$67) -> 3532.083136 | GD23: =GC23*(1+$D$67) -> 3602.724798 | GE23: =GD23*(1+$D$67) -> 3674.779294 | GF23: =GE23*(1+$D$67) -> 3748.27488 | GG23: =GF23*(1+$D$67) -> 3823.240378 | GH23: =GG23*(1+$D$67) -> 3899.705185 | GI23: =GH23*(1+$D$67) -> 3977.699289 | GJ23: =GI23*(1+$D$67) -> 4057.253275 | GK23: =GJ23*(1+$D$67) -> 4138.39834 | GL23: =GK23*(1+$D$67) -> 4221.166307 | GM23: =GL23*(1+$D$67) -> 4305.589633 | GN23: =GM23*(1+$D$67) -> 4391.701426 | GO23: =GN23*(1+$D$67) -> 4479.535455 | GP23: =GO23*(1+$D$67) -> 4569.126164 | GQ23: =GP23*(1+$D$67) -> 4660.508687 | GR23: =GQ23*(1+$D$67) -> 4753.718861 | GS23: =GR23*(1+$D$67) -> 4848.793238 | GT23: =GS23*(1+$D$67) -> 4945.769103 | GU23: =GT23*(1+$D$67) -> 5044.684485 | GV23: =GU23*(1+$D$67) -> 5145.578174 | GW23: =GV23*(1+$D$67) -> 5248.489738 | GX23: =GW23*(1+$D$67) -> 5353.459533 | GY23: =GX23*(1+$D$67) -> 5460.528723 | GZ23: =GY23*(1+$D$67) -> 5569.739298 | HA23: =GZ23*(1+$D$67) -> 5681.134084 | HB23: =HA23*(1+$D$67) -> 5794.756765 | HC23: =HB23*(1+$D$67) -> 5910.651901 | HD23: =HC23*(1+$D$67) -> 6028.864939 | HE23: =HD23*(1+$D$67) -> 6149.442237 | HF23: =HE23*(1+$D$67) -> 6272.431082 | HG23: =HF23*(1+$D$67) -> 6397.879704 | HH23: =HG23*(1+$D$67) -> 6525.837298 | HI23: =HH23*(1+$D$67) -> 6656.354044 | HJ23: =HI23*(1+$D$67) -> 6789.481125 | HK23: =HJ23*(1+$D$67) -> 6925.270747 | HL23: =HK23*(1+$D$67) -> 7063.776162 | HM23: =HL23*(1+$D$67) -> 7205.051685 | HN23: =HM23*(1+$D$67) -> 7349.152719 | HO23: =HN23*(1+$D$67) -> 7496.135774 | HP23: =HO23*(1+$D$67) -> 7646.058489 | HQ23: =HP23*(1+$D$67) -> 7798.979659 | HR23: =HQ23*(1+$D$67) -> 7954.959252 | HS23: =HR23*(1+$D$67) -> 8114.058437 | HT23: =HS23*(1+$D$67) -> 8276.339606 | HU23: =HT23*(1+$D$67) -> 8441.866398 | HV23: =HU23*(1+$D$67) -> 8610.703726 | HW23: =HV23*(1+$D$67) -> 8782.9178 | HX23: =HW23*(1+$D$67) -> 8958.576156 | HY23: =HX23*(1+$D$67) -> 9137.747679 | HZ23: =HY23*(1+$D$67) -> 9320.502633 | IA23: =HZ23*(1+$D$67) -> 9506.912686 | IB23: =IA23*(1+$D$67) -> 9697.050939 | IC23: =IB23*(1+$D$67) -> 9890.991958 | ID23: =IC23*(1+$D$67) -> 10088.8118 | IE23: =ID23*(1+$D$67) -> 10290.58803 | IF23: =IE23*(1+$D$67) -> 10496.39979 | IG23: =IF23*(1+$D$67) -> 10706.32779 | IH23: =IG23*(1+$D$67) -> 10920.45435 | II23: =IH23*(1+$D$67) -> 11138.86343 | IJ23: =II23*(1+$D$67) -> 11361.6407 | IK23: =IJ23*(1+$D$67) -> 11588.87352 | IL23: =IK23*(1+$D$67) -> 11820.65099 | IM23: =IL23*(1+$D$67) -> 12057.06401 | IN23: =IM23*(1+$D$67) -> 12298.20529 | IO23: =IN23*(1+$D$67) -> 12544.16939 | IP23: =IO23*(1+$D$67) -> 12795.05278 | IQ23: =IP23*(1+$D$67) -> 13050.95383 | IR23: =IQ23*(1+$D$67) -> 13311.97291 | IS23: =IR23*(1+$D$67) -> 13578.21237 | IT23: =IS23*(1+$D$67) -> 13849.77662 | IU23: =IT23*(1+$D$67) -> 14126.77215 | IV23: =IU23*(1+$D$67) -> 14409.30759 | IW23: =IV23*(1+$D$67) -> 14697.49374 | IX23: =IW23*(1+$D$67) -> 14991.44362 | IY23: =IX23*(1+$D$67) -> 15291.27249 | IZ23: =IY23*(1+$D$67) -> 15597.09794 | JA23: =IZ23*(1+$D$67) -> 15909.0399 | JB23: =JA23*(1+$D$67) -> 16227.2207 | JC23: =JB23*(1+$D$67) -> 16551.76511 | JD23: =JC23*(1+$D$67) -> 16882.80041 | JE23: =JD23*(1+$D$67) -> 17220.45642 | JF23: =JE23*(1+$D$67) -> 17564.86555 | JG23: =JF23*(1+$D$67) -> 17916.16286 | JH23: =JG23*(1+$D$67) -> 18274.48612 | JI23: =JH23*(1+$D$67) -> 18639.97584 | JJ23: =JI23*(1+$D$67) -> 19012.77536 | JK23: =JJ23*(1+$D$67) -> 19393.03087 | JL23: =JK23*(1+$D$67) -> 19780.89148 | JM23: =JL23*(1+$D$67) -> 20176.50931 | JN23: =JM23*(1+$D$67) -> 20580.0395 | JO23: =JN23*(1+$D$67) -> 20991.64029 | JP23: =JO23*(1+$D$67) -> 21411.47309 | JQ23: =JP23*(1+$D$67) -> 21839.70256 | JR23: =JQ23*(1+$D$67) -> 22276.49661 | JS23: =JR23*(1+$D$67) -> 22722.02654 | JT23: =JS23*(1+$D$67) -> 23176.46707 | JU23: =JT23*(1+$D$67) -> 23639.99641 | JV23: =JU23*(1+$D$67) -> 24112.79634 | JW23: =JV23*(1+$D$67) -> 24595.05227 | JX23: =JW23*(1+$D$67) -> 25086.95331 | JY23: =JX23*(1+$D$67) -> 25588.69238 | JZ23: =JY23*(1+$D$67) -> 26100.46623 | KA23: =JZ23*(1+$D$67) -> 26622.47555 | KB23: =KA23*(1+$D$67) -> 27154.92506 | KC23: =KB23*(1+$D$67) -> 27698.02356 | KD23: =KC23*(1+$D$67) -> 28251.98403 | KE23: =KD23*(1+$D$67) -> 28817.02371 | KF23: =KE23*(1+$D$67) -> 29393.36419 | KG23: =KF23*(1+$D$67) -> 29981.23147 | KH23: =KG23*(1+$D$67) -> 30580.8561 | KI23: =KH23*(1+$D$67) -> 31192.47322 | KJ23: =KI23*(1+$D$67) -> 31816.32269 | KK23: =KJ23*(1+$D$67) -> 32452.64914 | KL23: =KK23*(1+$D$67) -> 33101.70213 | KM23: =KL23*(1+$D$67) -> 33763.73617 | KN23: =KM23*(1+$D$67) -> 34439.01089 | KO23: =KN23*(1+$D$67) -> 35127.79111 | KP23: =KO23*(1+$D$67) -> 35830.34693 | KQ23: =KP23*(1+$D$67) -> 36546.95387 | KR23: =KQ23*(1+$D$67) -> 37277.89295 | KS23: =KR23*(1+$D$67) -> 38023.45081 | KT23: =KS23*(1+$D$67) -> 38783.91982 | KU23: =KT23*(1+$D$67) -> 39559.59822 | KV23: =KU23*(1+$D$67) -> 40350.79018 | KW23: =KV23*(1+$D$67) -> 41157.80599 | KX23: =KW23*(1+$D$67) -> 41980.96211 | KY23: =KX23*(1+$D$67) -> 42820.58135 | KZ23: =KY23*(1+$D$67) -> 43676.99298 | LA23: =KZ23*(1+$D$67) -> 44550.53284 | LB23: =LA23*(1+$D$67) -> 45441.54349 | LC23: =LB23*(1+$D$67) -> 46350.37436 | LD23: =LC23*(1+$D$67) -> 47277.38185 | LE23: =LD23*(1+$D$67) -> 48222.92949 | LF23: =LE23*(1+$D$67) -> 49187.38808 | LG23: =LF23*(1+$D$67) -> 50171.13584 | LH23: =LG23*(1+$D$67) -> 51174.55855 | LI23: =LH23*(1+$D$67) -> 52198.04972 | LJ23: =LI23*(1+$D$67) -> 53242.01072 | LK23: =LJ23*(1+$D$67) -> 54306.85093 | LL23: =LK23*(1+$D$67) -> 55392.98795 | LM23: =LL23*(1+$D$67) -> 56500.84771 | LN23: =LM23*(1+$D$67) -> 57630.86467 | LO23: =LN23*(1+$D$67) -> 58783.48196 | LP23: =LO23*(1+$D$67) -> 59959.1516 | LQ23: =LP23*(1+$D$67) -> 61158.33463 | LR23: =LQ23*(1+$D$67) -> 62381.50132 | LS23: =LR23*(1+$D$67) -> 63629.13135 | LT23: =LS23*(1+$D$67) -> 64901.71398 | LU23: =LT23*(1+$D$67) -> 66199.74826 | LV23: =LU23*(1+$D$67) -> 67523.74322 | LW23: =LV23*(1+$D$67) -> 68874.21809 | LX23: =LW23*(1+$D$67) -> 70251.70245 | LY23: =LX23*(1+$D$67) -> 71656.7365 | LZ23: =LY23*(1+$D$67) -> 73089.87123 | MA23: =LZ23*(1+$D$67) -> 74551.66865 | MB23: =MA23*(1+$D$67) -> 76042.70202 | MC23: =MB23*(1+$D$67) -> 77563.55606 | MD23: =MC23*(1+$D$67) -> 79114.82719 | ME23: =MD23*(1+$D$67) -> 80697.12373 | MF23: =ME23*(1+$D$67) -> 82311.0662 | MG23: =MF23*(1+$D$67) -> 83957.28753 | MH23: =MG23*(1+$D$67) -> 85636.43328 | MI23: =MH23*(1+$D$67) -> 87349.16194 | MJ23: =MI23*(1+$D$67) -> 89096.14518 | MK23: =MJ23*(1+$D$67) -> 90878.06809 | ML23: =MK23*(1+$D$67) -> 92695.62945 | MM23: =ML23*(1+$D$67) -> 94549.54204 | MN23: =MM23*(1+$D$67) -> 96440.53288 | MO23: =MN23*(1+$D$67) -> 98369.34354 | MP23: =MO23*(1+$D$67) -> 100336.7304 | MQ23: =MP23*(1+$D$67) -> 102343.465 | MR23: =MQ23*(1+$D$67) -> 104390.3343 | MS23: =MR23*(1+$D$67) -> 106478.141 | MT23: =MS23*(1+$D$67) -> 108607.7038 | MU23: =MT23*(1+$D$67) -> 110779.8579 | MV23: =MU23*(1+$D$67) -> 112995.4551 | MW23: =MV23*(1+$D$67) -> 115255.3642 | MX23: =MW23*(1+$D$67) -> 117560.4714 | MY23: =MX23*(1+$D$67) -> 119911.6809 | MZ23: =MY23*(1+$D$67) -> 122309.9145 | NA23: =MZ23*(1+$D$67) -> 124756.1128 | NB23: =NA23*(1+$D$67) -> 127251.235 | NC23: =NB23*(1+$D$67) -> 129796.2597 | ND23: =NC23*(1+$D$67) -> 132392.1849 | NE23: =ND23*(1+$D$67) -> 135040.0286 | NF23: =NE23*(1+$D$67) -> 137740.8292 | NG23: =NF23*(1+$D$67) -> 140495.6458 | NH23: =NG23*(1+$D$67) -> 143305.5587 | NI23: =NH23*(1+$D$67) -> 146171.6699 | NJ23: =NI23*(1+$D$67) -> 149095.1033 | NK23: =NJ23*(1+$D$67) -> 152077.0053 | NL23: =NK23*(1+$D$67) -> 155118.5454 | NM23: =NL23*(1+$D$67) -> 158220.9163 | NN23: =NM23*(1+$D$67) -> 161385.3347 | NO23: =NN23*(1+$D$67) -> 164613.0414 | NP23: =NO23*(1+$D$67) -> 167905.3022 | NQ23: =NP23*(1+$D$67) -> 171263.4082 | NR23: =NQ23*(1+$D$67) -> 174688.6764 | NS23: =NR23*(1+$D$67) -> 178182.4499 | NT23: =NS23*(1+$D$67) -> 181746.0989 | NU23: =NT23*(1+$D$67) -> 185381.0209 | NV23: =NU23*(1+$D$67) -> 189088.6413 | NW23: =NV23*(1+$D$67) -> 192870.4142 | NX23: =NW23*(1+$D$67) -> 196727.8224 | NY23: =NX23*(1+$D$67) -> 200662.3789 | NZ23: =NY23*(1+$D$67) -> 204675.6265 | OA23: =NZ23*(1+$D$67) -> 208769.139 | OB23: =OA23*(1+$D$67) -> 212944.5218 | OC23: =OB23*(1+$D$67) -> 217203.4122 | OD23: =OC23*(1+$D$67) -> 221547.4805 | OE23: =OD23*(1+$D$67) -> 225978.4301 | OF23: =OE23*(1+$D$67) -> 230497.9987 | OG23: =OF23*(1+$D$67) -> 235107.9586 | OH23: =OG23*(1+$D$67) -> 239810.1178 | OI23: =OH23*(1+$D$67) -> 244606.3202 | OJ23: =OI23*(1+$D$67) -> 249498.4466 | OK23: =OJ23*(1+$D$67) -> 254488.4155 | OL23: =OK23*(1+$D$67) -> 259578.1838 | OM23: =OL23*(1+$D$67) -> 264769.7475 | ON23: =OM23*(1+$D$67) -> 270065.1424 | OO23: =ON23*(1+$D$67) -> 275466.4453 | OP23: =OO23*(1+$D$67) -> 280975.7742 | OQ23: =OP23*(1+$D$67) -> 286595.2897 | OR23: =OQ23*(1+$D$67) -> 292327.1955 | OS23: =OR23*(1+$D$67) -> 298173.7394 | OT23: =OS23*(1+$D$67) -> 304137.2142 | OU23: =OT23*(1+$D$67) -> 310219.9584 | OV23: =OU23*(1+$D$67) -> 316424.3576 | OW23: =OV23*(1+$D$67) -> 322752.8448 | OX23: =OW23*(1+$D$67) -> 329207.9017 | OY23: =OX23*(1+$D$67) -> 335792.0597 | OZ23: =OY23*(1+$D$67) -> 342507.9009 | PA23: =OZ23*(1+$D$67) -> 349358.0589 | PB23: =PA23*(1+$D$67) -> 356345.2201 | PC23: =PB23*(1+$D$67) -> 363472.1245 | PD23: =PC23*(1+$D$67) -> 370741.567 | PE23: =PD23*(1+$D$67) -> 378156.3983 | PF23: =PE23*(1+$D$67) -> 385719.5263 | PG23: =PF23*(1+$D$67) -> 393433.9168 | PH23: =PG23*(1+$D$67) -> 401302.5951 | PI23: =PH23*(1+$D$67) -> 409328.6471 | PJ23: =PI23*(1+$D$67) -> 417515.22 | PK23: =PJ23*(1+$D$67) -> 425865.5244 | PL23: =PK23*(1+$D$67) -> 434382.8349 | PM23: =PL23*(1+$D$67) -> 443070.4916 | PN23: =PM23*(1+$D$67) -> 451931.9014 | PO23: =PN23*(1+$D$67) -> 460970.5394 | PP23: =PO23*(1+$D$67) -> 470189.9502 | PQ23: =PP23*(1+$D$67) -> 479593.7492 | PR23: =PQ23*(1+$D$67) -> 489185.6242 | PS23: =PR23*(1+$D$67) -> 498969.3367 | PT23: =PS23*(1+$D$67) -> 508948.7234 | PU23: =PT23*(1+$D$67) -> 519127.6979 | PV23: =PU23*(1+$D$67) -> 529510.2519 | PW23: =PV23*(1+$D$67) -> 540100.4569 | PX23: =PW23*(1+$D$67) -> 550902.466 | PY23: =PX23*(1+$D$67) -> 561920.5154 | PZ23: =PY23*(1+$D$67) -> 573158.9257 | QA23: =PZ23*(1+$D$67) -> 584622.1042 | QB23: =QA23*(1+$D$67) -> 596314.5463 | QC23: =QB23*(1+$D$67) -> 608240.8372 | QD23: =QC23*(1+$D$67) -> 620405.6539 | QE23: =QD23*(1+$D$67) -> 632813.767 | QF23: =QE23*(1+$D$67) -> 645470.0423 | QG23: =QF23*(1+$D$67) -> 658379.4432 | QH23: =QG23*(1+$D$67) -> 671547.0321 | QI23: =QH23*(1+$D$67) -> 684977.9727 | QJ23: =QI23*(1+$D$67) -> 698677.5322 | QK23: =QJ23*(1+$D$67) -> 712651.0828 | QL23: =QK23*(1+$D$67) -> 726904.1045 | QM23: =QL23*(1+$D$67) -> 741442.1865 | QN23: =QM23*(1+$D$67) -> 756271.0303 | QO23: =QN23*(1+$D$67) -> 771396.4509 | QP23: =QO23*(1+$D$67) -> 786824.3799 | QQ23: =QP23*(1+$D$67) -> 802560.8675 | QR23: =QQ23*(1+$D$67) -> 818612.0848 | QS23: =QR23*(1+$D$67) -> 834984.3265 | QT23: =QS23*(1+$D$67) -> 851684.0131 | QU23: =QT23*(1+$D$67) -> 868717.6933 | QV23: =QU23*(1+$D$67) -> 886092.0472 | QW23: =QV23*(1+$D$67) -> 903813.8881 | QX23: =QW23*(1+$D$67) -> 921890.1659 | QY23: =QX23*(1+$D$67) -> 940327.9692 | QZ23: =QY23*(1+$D$67) -> 959134.5286 | RA23: =QZ23*(1+$D$67) -> 978317.2192 | RB23: =RA23*(1+$D$67) -> 997883.5636 | RC23: =RB23*(1+$D$67) -> 1017841.235 | RD23: =RC23*(1+$D$67) -> 1038198.06 | RE23: =RD23*(1+$D$67) -> 1058962.021 | RF23: =RE23*(1+$D$67) -> 1080141.261 | RG23: =RF23*(1+$D$67) -> 1101744.086 | RH23: =RG23*(1+$D$67) -> 1123778.968 | RI23: =RH23*(1+$D$67) -> 1146254.547 | RJ23: =RI23*(1+$D$67) -> 1169179.638 | RK23: =RJ23*(1+$D$67) -> 1192563.231 | RL23: =RK23*(1+$D$67) -> 1216414.496 | RM23: =RL23*(1+$D$67) -> 1240742.786 | RN23: =RM23*(1+$D$67) -> 1265557.641 | RO23: =RN23*(1+$D$67) -> 1290868.794 | RP23: =RO23*(1+$D$67) -> 1316686.17 | RQ23: =RP23*(1+$D$67) -> 1343019.894 | RR23: =RQ23*(1+$D$67) -> 1369880.291 | RS23: =RR23*(1+$D$67) -> 1397277.897 | RT23: =RS23*(1+$D$67) -> 1425223.455 | RU23: =RT23*(1+$D$67) -> 1453727.924 | RV23: =RU23*(1+$D$67) -> 1482802.483 | RW23: =RV23*(1+$D$67) -> 1512458.532 | RX23: =RW23*(1+$D$67) -> 1542707.703 | RY23: =RX23*(1+$D$67) -> 1573561.857 | RZ23: =RY23*(1+$D$67) -> 1605033.094 | SA23: =RZ23*(1+$D$67) -> 1637133.756 | SB23: =SA23*(1+$D$67) -> 1669876.431 | SC23: =SB23*(1+$D$67) -> 1703273.96 | SD23: =SC23*(1+$D$67) -> 1737339.439 | SE23: =SD23*(1+$D$67) -> 1772086.228 | SF23: =SE23*(1+$D$67) -> 1807527.952 | SG23: =SF23*(1+$D$67) -> 1843678.511 | SH23: =SG23*(1+$D$67) -> 1880552.082 | SI23: =SH23*(1+$D$67) -> 1918163.123 | SJ23: =SI23*(1+$D$67) -> 1956526.386 | SK23: =SJ23*(1+$D$67) -> 1995656.914 | SL23: =SK23*(1+$D$67) -> 2035570.052 | SM23: =SL23*(1+$D$67) -> 2076281.453 | SN23: =SM23*(1+$D$67) -> 2117807.082 | SO23: =SN23*(1+$D$67) -> 2160163.224 | SP23: =SO23*(1+$D$67) -> 2203366.488 | SQ23: =SP23*(1+$D$67) -> 2247433.818 | SR23: =SQ23*(1+$D$67) -> 2292382.494 | SS23: =SR23*(1+$D$67) -> 2338230.144 | ST23: =SS23*(1+$D$67) -> 2384994.747 | SU23: =ST23*(1+$D$67) -> 2432694.642 | SV23: =SU23*(1+$D$67) -> 2481348.535 | SW23: =SV23*(1+$D$67) -> 2530975.505 | SX23: =SW23*(1+$D$67) -> 2581595.015 | SY23: =SX23*(1+$D$67) -> 2633226.916 | SZ23: =SY23*(1+$D$67) -> 2685891.454 | TA23: =SZ23*(1+$D$67) -> 2739609.283 | TB23: =TA23*(1+$D$67) -> 2794401.469 | TC23: =TB23*(1+$D$67) -> 2850289.498 | TD23: =TC23*(1+$D$67) -> 2907295.288 | TE23: =TD23*(1+$D$67) -> 2965441.194 | TF23: =TE23*(1+$D$67) -> 3024750.018 | TG23: =TF23*(1+$D$67) -> 3085245.018 | TH23: =TG23*(1+$D$67) -> 3146949.919 | TI23: =TH23*(1+$D$67) -> 3209888.917 | TJ23: =TI23*(1+$D$67) -> 3274086.695 | TK23: =TJ23*(1+$D$67) -> 3339568.429 | TL23: =TK23*(1+$D$67) -> 3406359.798 | TM23: =TL23*(1+$D$67) -> 3474486.994 | TN23: =TM23*(1+$D$67) -> 3543976.734 | TO23: =TN23*(1+$D$67) -> 3614856.268 | TP23: =TO23*(1+$D$67) -> 3687153.394 | TQ23: =TP23*(1+$D$67) -> 3760896.461 | TR23: =TQ23*(1+$D$67) -> 3836114.391 | TS23: =TR23*(1+$D$67) -> 3912836.679 | TT23: =TS23*(1+$D$67) -> 3991093.412 | TU23: =TT23*(1+$D$67) -> 4070915.28 | TV23: =TU23*(1+$D$67) -> 4152333.586 | TW23: =TV23*(1+$D$67) -> 4235380.258 | TX23: =TW23*(1+$D$67) -> 4320087.863 | TY23: =TX23*(1+$D$67) -> 4406489.62 | TZ23: =TY23*(1+$D$67) -> 4494619.412 | UA23: =TZ23*(1+$D$67) -> 4584511.801 | UB23: =UA23*(1+$D$67) -> 4676202.037 | UC23: =UB23*(1+$D$67) -> 4769726.077 | UD23: =UC23*(1+$D$67) -> 4865120.599 | UE23: =UD23*(1+$D$67) -> 4962423.011 | UF23: =UE23*(1+$D$67) -> 5061671.471 | UG23: =UF23*(1+$D$67) -> 5162904.901 | UH23: =UG23*(1+$D$67) -> 5266162.999 | UI23: =UH23*(1+$D$67) -> 5371486.259 | UJ23: =UI23*(1+$D$67) -> 5478915.984 | UK23: =UJ23*(1+$D$67) -> 5588494.303 | UL23: =UK23*(1+$D$67) -> 5700264.19 | UM23: =UL23*(1+$D$67) -> 5814269.473 | UN23: =UM23*(1+$D$67) -> 5930554.863 | UO23: =UN23*(1+$D$67) -> 6049165.96 | UP23: =UO23*(1+$D$67) -> 6170149.279 | UQ23: =UP23*(1+$D$67) -> 6293552.265 | UR23: =UQ23*(1+$D$67) -> 6419423.31 | US23: =UR23*(1+$D$67) -> 6547811.776 | UT23: =US23*(1+$D$67) -> 6678768.012 | UU23: =UT23*(1+$D$67) -> 6812343.372 | UV23: =UU23*(1+$D$67) -> 6948590.24 | UW23: =UV23*(1+$D$67) -> 7087562.044 | UX23: =UW23*(1+$D$67) -> 7229313.285 | UY23: =UX23*(1+$D$67) -> 7373899.551 | UZ23: =UY23*(1+$D$67) -> 7521377.542 | VA23: =UZ23*(1+$D$67) -> 7671805.093 | VB23: =VA23*(1+$D$67) -> 7825241.195 | VC23: =VB23*(1+$D$67) -> 7981746.019 | VD23: =VC23*(1+$D$67) -> 8141380.939 | VE23: =VD23*(1+$D$67) -> 8304208.558 | VF23: =VE23*(1+$D$67) -> 8470292.729 | VG23: =VF23*(1+$D$67) -> 8639698.583 | VH23: =VG23*(1+$D$67) -> 8812492.555 | VI23: =VH23*(1+$D$67) -> 8988742.406 | VJ23: =VI23*(1+$D$67) -> 9168517.254 | VK23: =VJ23*(1+$D$67) -> 9351887.599 | VL23: =VK23*(1+$D$67) -> 9538925.351 | VM23: =VL23*(1+$D$67) -> 9729703.858 | VN23: =VM23*(1+$D$67) -> 9924297.936 | VO23: =VN23*(1+$D$67) -> 10122783.89 | VP23: =VO23*(1+$D$67) -> 10325239.57 | VQ23: =VP23*(1+$D$67) -> 10531744.36 | VR23: =VQ23*(1+$D$67) -> 10742379.25 | VS23: =VR23*(1+$D$67) -> 10957226.84 | VT23: =VS23*(1+$D$67) -> 11176371.37 | VU23: =VT23*(1+$D$67) -> 11399898.8 | VV23: =VU23*(1+$D$67) -> 11627896.78 | VW23: =VV23*(1+$D$67) -> 11860454.71 | VX23: =VW23*(1+$D$67) -> 12097663.81 | VY23: =VX23*(1+$D$67) -> 12339617.08 | VZ23: =VY23*(1+$D$67) -> 12586409.42 | WA23: =VZ23*(1+$D$67) -> 12838137.61 | WB23: =WA23*(1+$D$67) -> 13094900.36 | WC23: =WB23*(1+$D$67) -> 13356798.37 | WD23: =WC23*(1+$D$67) -> 13623934.34 | WE23: =WD23*(1+$D$67) -> 13896413.03 | WF23: =WE23*(1+$D$67) -> 14174341.29 | WG23: =WF23*(1+$D$67) -> 14457828.11 | WH23: =WG23*(1+$D$67) -> 14746984.67 | WI23: =WH23*(1+$D$67) -> 15041924.37 | WJ23: =WI23*(1+$D$67) -> 15342762.86 | WK23: =WJ23*(1+$D$67) -> 15649618.11 | WL23: =WK23*(1+$D$67) -> 15962610.47 | WM23: =WL23*(1+$D$67) -> 16281862.68 | WN23: =WM23*(1+$D$67) -> 16607499.94 | WO23: =WN23*(1+$D$67) -> 16939649.94 | WP23: =WO23*(1+$D$67) -> 17278442.94 | WQ23: =WP23*(1+$D$67) -> 17624011.79 | WR23: =WQ23*(1+$D$67) -> 17976492.03 | WS23: =WR23*(1+$D$67) -> 18336021.87 | WT23: =WS23*(1+$D$67) -> 18702742.31 | WU23: =WT23*(1+$D$67) -> 19076797.15 | WV23: =WU23*(1+$D$67) -> 19458333.1 | WW23: =WV23*(1+$D$67) -> 19847499.76 | WX23: =WW23*(1+$D$67) -> 20244449.75 | WY23: =WX23*(1+$D$67) -> 20649338.75 | WZ23: =WY23*(1+$D$67) -> 21062325.52 | XA23: =WZ23*(1+$D$67) -> 21483572.03 | XB23: =XA23*(1+$D$67) -> 21913243.48 | XC23: =XB23*(1+$D$67) -> 22351508.34 | XD23: =XC23*(1+$D$67) -> 22798538.51 | XE23: =XD23*(1+$D$67) -> 23254509.28 | XF23: =XE23*(1+$D$67) -> 23719599.47 | XG23: =XF23*(1+$D$67) -> 24193991.46 | XH23: =XG23*(1+$D$67) -> 24677871.29 | XI23: =XH23*(1+$D$67) -> 25171428.71 | XJ23: =XI23*(1+$D$67) -> 25674857.29 | XK23: =XJ23*(1+$D$67) -> 26188354.43 | XL23: =XK23*(1+$D$67) -> 26712121.52 | XM23: =XL23*(1+$D$67) -> 27246363.95 | XN23: =XM23*(1+$D$67) -> 27791291.23 | XO23: =XN23*(1+$D$67) -> 28347117.05 | XP23: =XO23*(1+$D$67) -> 28914059.4 | XQ23: =XP23*(1+$D$67) -> 29492340.58 | XR23: =XQ23*(1+$D$67) -> 30082187.4 | XS23: =XR23*(1+$D$67) -> 30683831.14 | XT23: =XS23*(1+$D$67) -> 31297507.77 | XU23: =XT23*(1+$D$67) -> 31923457.92 | XV23: =XU23*(1+$D$67) -> 32561927.08 | XW23: =XV23*(1+$D$67) -> 33213165.62 | XX23: =XW23*(1+$D$67) -> 33877428.93 | XY23: =XX23*(1+$D$67) -> 34554977.51 | XZ23: =XY23*(1+$D$67) -> 35246077.06 | YA23: =XZ23*(1+$D$67) -> 35950998.6 | YB23: =YA23*(1+$D$67) -> 36670018.58 | YC23: =YB23*(1+$D$67) -> 37403418.95 | YD23: =YC23*(1+$D$67) -> 38151487.33 | YE23: =YD23*(1+$D$67) -> 38914517.07 | YF23: =YE23*(1+$D$67) -> 39692807.41 | YG23: =YF23*(1+$D$67) -> 40486663.56 | YH23: =YG23*(1+$D$67) -> 41296396.83 | YI23: =YH23*(1+$D$67) -> 42122324.77 | YJ23: =YI23*(1+$D$67) -> 42964771.27 | YK23: =YJ23*(1+$D$67) -> 43824066.69 | YL23: =YK23*(1+$D$67) -> 44700548.03 | YM23: =YL23*(1+$D$67) -> 45594558.99 | YN23: =YM23*(1+$D$67) -> 46506450.17 | YO23: =YN23*(1+$D$67) -> 47436579.17 | YP23: =YO23*(1+$D$67) -> 48385310.75 | YQ23: =YP23*(1+$D$67) -> 49353016.97 | YR23: =YQ23*(1+$D$67) -> 50340077.31 | YS23: =YR23*(1+$D$67) -> 51346878.85 | YT23: =YS23*(1+$D$67) -> 52373816.43 | YU23: =YT23*(1+$D$67) -> 53421292.76 | YV23: =YU23*(1+$D$67) -> 54489718.61 | YW23: =YV23*(1+$D$67) -> 55579512.99 | YX23: =YW23*(1+$D$67) -> 56691103.25 | YY23: =YX23*(1+$D$67) -> 57824925.31 | YZ23: =YY23*(1+$D$67) -> 58981423.82 | ZA23: =YZ23*(1+$D$67) -> 60161052.29 | ZB23: =ZA23*(1+$D$67) -> 61364273.34 | ZC23: =ZB23*(1+$D$67) -> 62591558.81 | ZD23: =ZC23*(1+$D$67) -> 63843389.98 | ZE23: =ZD23*(1+$D$67) -> 65120257.78 | ZF23: =ZE23*(1+$D$67) -> 66422662.94 | ZG23: =ZF23*(1+$D$67) -> 67751116.2 | ZH23: =ZG23*(1+$D$67) -> 69106138.52 | ZI23: =ZH23*(1+$D$67) -> 70488261.29 | ZJ23: =ZI23*(1+$D$67) -> 71898026.52 | ZK23: =ZJ23*(1+$D$67) -> 73335987.05 | ZL23: =ZK23*(1+$D$67) -> 74802706.79 | ZM23: =ZL23*(1+$D$67) -> 76298760.92 | ZN23: =ZM23*(1+$D$67) -> 77824736.14 | ZO23: =ZN23*(1+$D$67) -> 79381230.86 | ZP23: =ZO23*(1+$D$67) -> 80968855.48 | ZQ23: =ZP23*(1+$D$67) -> 82588232.59 | ZR23: =ZQ23*(1+$D$67) -> 84239997.24 | ZS23: =ZR23*(1+$D$67) -> 85924797.19 | ZT23: =ZS23*(1+$D$67) -> 87643293.13 | ZU23: =ZT23*(1+$D$67) -> 89396158.99 | ZV23: =ZU23*(1+$D$67) -> 91184082.17 | ZW23: =ZV23*(1+$D$67) -> 93007763.82 | ZX23: =ZW23*(1+$D$67) -> 94867919.09 | ZY23: =ZX23*(1+$D$67) -> 96765277.48 | ZZ23: =ZY23*(1+$D$67) -> 98700583.02 | AAA23: =ZZ23*(1+$D$67) -> 100674594.7 | AAB23: =AAA23*(1+$D$67) -> 102688086.6
C25: Enterprise Value at Ku | D25: =H38 -> 0.06577385714 | E25: =NPV(D25,71:71) -> 2184.653124 | F25: =_xlfn.FORMULATEXT(E25) -> =NPV(D25,71:71)
C26: Enteprise Value from Continuing CF | D26: =D25 -> 0.06577385714 | E26: =(c_f/(D25-D29)) -> 2184.653124 | F26: =_xlfn.FORMULATEXT(E26) -> =(c_f/(D25-D29))
C28: Tax Rate for Shield | D28: =D98 -> 0.3 | G28: Gross Debt | I28: =D31*E26 -> 1310.791874
C29: Growth | D29: =D67 -> 0.02 | G29: Net Debt | I29: =I28*(1-D28) -> 917.554312 | K29: Bu= Be * Equity/Net Cap + Bd * Net Debt/Net Cap | P29: =(I18-D31*F36)/(1-D31) -> 0.08643464286
C30: EMRP | D30: =D4 -> 0.03 | G30: Tax Shield | I30: =I28-I29 -> 393.2375623 | K30: Cost of Equity No Tax
C31: Nominal Debt Percent without Tax Shield | D31: =D97 -> 0.6
C32: Debt Beta | D32: =K98/100 -> 0.4 | S32: WACC Reconcile:
C33: Rf | D33: =D5 -> 0.04 | S33: 1. Compute Target EV from EV + Tax Shield
G34: =D28 -> 0.3 | S34: 2. Compute Implied Ku: Value = CF/(k-g); k-g = CF/VAlue; k = CF/Value + g
B35: Correct Valuation from Net Capital Structure | D35: Percent | E35: Amount | F35: Cost | G35: AT Cost | H35: WACC | S35: 3. Compute Implied Ke
C36: Debt at Net of Tax Rate | D36: =E36/E38 -> 0.42 | E36: =I29 -> 917.554312 | F36: =D30*D32+D33 -> 0.052 | G36: =F36 -> 0.052 | H36: =D36*G36 -> 0.02184 | J36: Kd | K36: =F36 -> 0.052 | S36: 4. Verify Equity Value
C37: Equity | D37: =1-D36 -> 0.58 | E37: =E38-E36 -> 1267.098812 | F37: =H37/D37 -> 0.07574802956 | G37: =H37/D37 -> 0.07574802956 | H37: =H38-H36 -> 0.04393385714 | J37: Ku | K37: =H38 -> 0.06577385714
C38: Overall | D38: =SUM(D36:D37) -> 1 | E38: =E26 -> 2184.653124 | H38: =I18 -> 0.06577385714 | S38: 1. | T38: =E43 -> 2577.890686 | W38: =B35 -> Correct Valuation from Net Capital Structure
G39: Pre-tax | H39: After Tax | S39: 2. | T39: =c_f/T38+D29 -> 0.05879140436 | W39: =B40 -> WACC at with Nominal Debt and Same Ku
B40: WACC at with Nominal Debt and Same Ku | D40: Percent | E40: Amount | F40: Cost | G40: WACC | H40: WACC | S40: 3. | T40: =(T39-H41)/D42 -> 0.08195492611 | W40: =B45 -> WACC at with Nominal Debt and Same Ke
C41: Debt at Gross Value | D41: =E41/E43 -> 0.5084745763 | E41: =E36+I30 -> 1310.791874 | F41: =F36 -> 0.052 | G41: =F41*D41 -> 0.02644067797 | H41: =D41*F41*(1-D28) -> 0.01850847458 | S41: 4. | T41: =I64 -> 1267.098812 | W41: =B50 -> Reconciled Case with Adjusted Ku and Implied Ke
C42: Equity | D42: =E42/E43 -> 0.4915254237 | E42: =E37 -> 1267.098812 | G42: =(G43-G41)/D42 -> 0.08002267488 | H42: =G42*D42 -> 0.03933317918
C43: Overall | D43: =SUM(D41:D42) -> 1 | E43: =E41+E42 -> 2577.890686 | G43: =H38 -> 0.06577385714 | H43: =H41+H42 -> 0.05784165375
B45: WACC at with Nominal Debt and Same Ke | D45: Percent | E45: Amount | F45: Cost | G45: AT Cost | H45: WACC | Q45: 4
C46: Debt at Gross Value | D46: =E46/E48 -> 0.5084745763 | E46: =E41+I35 -> 1310.791874 | F46: =F41 -> 0.052 | G46: =F46*(1-D28) -> 0.0364 | H46: =D46*G46 -> 0.01850847458
C47: Equity | D47: =E47/E48 -> 0.4915254237 | E47: =E42 -> 1267.098812 | F47: =H47/D47 -> 0.07574802956 | G47: =G37 -> 0.07574802956 | H47: =G47*D47 -> 0.03723208232
C48: Overall | D48: =SUM(D46:D47) -> 1 | E48: =E46+E47 -> 2577.890686 | H48: =H46+H47 -> 0.0557405569
M49: Net Debt | N49: Reconciled
B50: Reconciled Case with Adjusted Ku and Implied Ke | D50: Percent | E50: Amount | F50: Cost | G50: AT Cost | H50: WACC | L50: EV | M50: =E38 -> 2184.653124 | N50: =E43 -> 2577.890686
C51: Debt at Gross Value | D51: =D41 -> 0.5084745763 | E51: =E41 -> 1310.791874 | F51: =F41 -> 0.052 | G51: =F51*(1-D28) -> 0.0364 | H51: =D51*G51 -> 0.01850847458 | L51: Less: Debt | M51: =E36 -> 917.554312 | N51: =E41 -> 1310.791874
C52: Equity | D52: =1-D51 -> 0.4915254237 | E52: =E53*D52 -> 1267.098812 | F52: =H52/D52 -> 0.08195492611 | G52: =H52/D52 -> 0.08195492611 | H52: =H53-H51 -> 0.04028292978 | L52: Equity | M52: =M50-M51 -> 1267.098812 | N52: =N50-N51 -> 1267.098812
C53: Overall | D53: =SUM(D51:D52) -> 1 | E53: =E43 -> 2577.890686 | H53: =T39 -> 0.05879140436
B57: Basic from Capital Structure | F57: From NPV of Cash Flow | K57: Reconciled Value from Cash Flow
C58: Enterprise Value | D58: =E43 -> 2577.890686 | F58: Enterprise Value | I58: =E73 -> 2577.890686 | K58: Total Enterprise Value From Adding Components | Q58: =E26 -> 2184.653124
C60: Less: Net Debt | D60: =E41 -> 1310.791874 | F60: Less: Nominal Interest | I60: =E87 -> 2130.036791 | K60: Value of Interest Payments on Debt | P60: =F36 -> 0.052 | Q60: =E87 -> 2130.036791
F61: Add: Debt Financing | I61: =E89 -> 819.2449166 | K61: Less: Value of Cash Flow for Issuing New Debt | P61: =D89 -> 0.052 | Q61: =-E89 -> -819.2449166
C62: Equity Value | D62: =D58-D60 -> 1267.098812 | F62: Add: Tax Shield from Debt | I62: =E88 -> 639.0110373 | K62: Less: Value of the Tax Shield | P62: =D88 -> 0.052 | Q62: =-E88 -> -639.0110373
K63: Net Value of Debt Cash Flow at Interest Rate | P63: =P61 -> 0.052 | Q63: =SUM(Q60:Q62) -> 671.7808371
F64: Equity Value from NPV | I64: =E91 -> 1267.098812
F65: Percent Error | I65: =I64/D62-1 -> -4.497735517e-12 | K65: Value of Equity from Components | P65: =D91 -> 0.08195492611 | Q65: =Q58-Q63 -> 1512.872287
C67: Explicit Growth | D67: =E67/100 -> 0.02 | E67: 2
A68: Cash Flow and DCF Valation
E69: =E71/(D73-gr) -> 2577.890686
C71: Free Cash Flow | E71: =E23 -> 100 | F71: 102 | G71: 104.04 | H71: 106.1208 | I71: 108.243216 | J71: 110.4080803 | K71: 112.6162419 | L71: 114.8685668 | M71: 117.1659381 | N71: 119.5092569 | O71: 121.899442 | P71: 124.3374308 | Q71: 126.8241795 | R71: 129.360663 | S71: 131.9478763 | T71: 134.5868338 | U71: 137.2785705 | V71: 140.0241419 | W71: 142.8246248 | X71: 145.6811173 | Y71: 148.5947396 | Z71: 151.5666344 | AA71: 154.5979671 | AB71: 157.6899264 | AC71: 160.8437249 | AD71: 164.0605994 | AE71: 167.3418114 | AF71: 170.6886477 | AG71: 174.1024206 | AH71: 177.584469 | AI71: 181.1361584 | AJ71: 184.7588816 | AK71: 188.4540592 | AL71: 192.2231404 | AM71: 196.0676032 | AN71: 199.9889553 | AO71: 203.9887344 | AP71: 208.0685091 | AQ71: 212.2298792 | AR71: 216.4744768 | AS71: 220.8039664 | AT71: 225.2200457 | AU71: 229.7244466 | AV71: 234.3189355 | AW71: 239.0053142 | AX71: 243.7854205 | AY71: 248.6611289 | AZ71: 253.6343515 | BA71: 258.7070385 | BB71: 263.8811793 | BC71: 269.1588029 | BD71: 274.541979 | BE71: 280.0328185 | BF71: 285.6334749 | BG71: 291.3461444 | BH71: 297.1730673 | BI71: 303.1165286 | BJ71: 309.1788592 | BK71: 315.3624364 | BL71: 321.6696851 | BM71: 328.1030788 | BN71: 334.6651404 | BO71: 341.3584432 | BP71: 348.1856121 | BQ71: =BQ23 -> 355.1493243 | BR71: 362.2523108 | BS71: 369.497357 | BT71: 376.8873042 | BU71: 384.4250503 | BV71: 392.1135513 | BW71: 399.9558223 | BX71: 407.9549387 | BY71: 416.1140375 | BZ71: 424.4363183 | CA71: 432.9250446 | CB71: 441.5835455 | CC71: 450.4152164 | CD71: 459.4235208 | CE71: 468.6119912 | CF71: 477.984231 | CG71: 487.5439156 | CH71: 497.2947939 | CI71: 507.2406898 | CJ71: 517.3855036 | CK71: 527.7332137 | CL71: 538.2878779 | CM71: 549.0536355 | CN71: 560.0347082 | CO71: 571.2354024 | CP71: 582.6601104 | CQ71: 594.3133126 | CR71: 606.1995789 | CS71: 618.3235705 | CT71: 630.6900419 | CU71: 643.3038427 | CV71: 656.1699196 | CW71: 669.293318 | CX71: 682.6791843 | CY71: 696.332768 | CZ71: 710.2594234 | DA71: 724.4646118 | DB71: 738.9539041 | DC71: 753.7329821 | DD71: 768.8076418 | DE71: 784.1837946 | DF71: 799.8674705 | DG71: 815.8648199 | DH71: 832.1821163 | DI71: 848.8257586 | DJ71: 865.8022738 | DK71: 883.1183193 | DL71: 900.7806857 | DM71: 918.7962994 | DN71: 937.1722254 | DO71: 955.9156699 | DP71: 975.0339833 | DQ71: 994.534663 | DR71: 1014.425356 | DS71: 1034.713863 | DT71: 1055.408141 | DU71: 1076.516303 | DV71: 1098.046629 | DW71: 1120.007562 | DX71: 1142.407713 | DY71: 1165.255868 | DZ71: 1188.560985 | EA71: 1212.332205 | EB71: 1236.578849 | EC71: =EC23 -> 1261.310426 | ED71: 1286.536634 | EE71: 1312.267367 | EF71: 1338.512714 | EG71: 1365.282969 | EH71: 1392.588628 | EI71: 1420.4404 | EJ71: 1448.849208 | EK71: 1477.826193 | EL71: 1507.382716 | EM71: 1537.530371 | EN71: 1568.280978 | EO71: 1599.646598 | EP71: 1631.63953 | EQ71: 1664.27232 | ER71: 1697.557767 | ES71: 1731.508922 | ET71: 1766.139101 | EU71: 1801.461883 | EV71: 1837.49112 | EW71: 1874.240943 | EX71: 1911.725761 | EY71: 1949.960277 | EZ71: 1988.959482 | FA71: 2028.738672 | FB71: 2069.313445 | FC71: 2110.699714 | FD71: 2152.913708 | FE71: 2195.971983 | FF71: 2239.891422 | FG71: 2284.689251 | FH71: 2330.383036 | FI71: 2376.990696 | FJ71: 2424.53051 | FK71: 2473.021121 | FL71: 2522.481543 | FM71: 2572.931174 | FN71: 2624.389797 | FO71: 2676.877593 | FP71: 2730.415145 | FQ71: 2785.023448 | FR71: 2840.723917 | FS71: 2897.538395 | FT71: 2955.489163 | FU71: 3014.598947 | FV71: 3074.890925 | FW71: 3136.388744 | FX71: 3199.116519 | FY71: 3263.098849 | FZ71: 3328.360826 | GA71: 3394.928043 | GB71: 3462.826604 | GC71: 3532.083136 | GD71: 3602.724798 | GE71: 3674.779294 | GF71: 3748.27488 | GG71: 3823.240378 | GH71: 3899.705185 | GI71: 3977.699289 | GJ71: 4057.253275 | GK71: 4138.39834 | GL71: 4221.166307 | GM71: 4305.589633 | GN71: 4391.701426 | GO71: =GO23 -> 4479.535455 | GP71: 4569.126164 | GQ71: 4660.508687 | GR71: 4753.718861 | GS71: 4848.793238 | GT71: 4945.769103 | GU71: 5044.684485 | GV71: 5145.578174 | GW71: 5248.489738 | GX71: 5353.459533 | GY71: 5460.528723 | GZ71: 5569.739298 | HA71: 5681.134084 | HB71: 5794.756765 | HC71: 5910.651901 | HD71: 6028.864939 | HE71: 6149.442237 | HF71: 6272.431082 | HG71: 6397.879704 | HH71: 6525.837298 | HI71: 6656.354044 | HJ71: 6789.481125 | HK71: 6925.270747 | HL71: 7063.776162 | HM71: 7205.051685 | HN71: 7349.152719 | HO71: 7496.135774 | HP71: 7646.058489 | HQ71: 7798.979659 | HR71: 7954.959252 | HS71: 8114.058437 | HT71: 8276.339606 | HU71: 8441.866398 | HV71: 8610.703726 | HW71: 8782.9178 | HX71: 8958.576156 | HY71: 9137.747679 | HZ71: 9320.502633 | IA71: 9506.912686 | IB71: 9697.050939 | IC71: 9890.991958 | ID71: 10088.8118 | IE71: 10290.58803 | IF71: 10496.39979 | IG71: 10706.32779 | IH71: 10920.45435 | II71: 11138.86343 | IJ71: 11361.6407 | IK71: 11588.87352 | IL71: 11820.65099 | IM71: 12057.06401 | IN71: 12298.20529 | IO71: 12544.16939 | IP71: 12795.05278 | IQ71: 13050.95383 | IR71: 13311.97291 | IS71: 13578.21237 | IT71: 13849.77662 | IU71: 14126.77215 | IV71: 14409.30759 | IW71: 14697.49374 | IX71: 14991.44362 | IY71: 15291.27249 | IZ71: 15597.09794 | JA71: =JA23 -> 15909.0399 | JB71: 16227.2207 | JC71: 16551.76511 | JD71: 16882.80041 | JE71: 17220.45642 | JF71: 17564.86555 | JG71: 17916.16286 | JH71: 18274.48612 | JI71: 18639.97584 | JJ71: 19012.77536 | JK71: 19393.03087 | JL71: 19780.89148 | JM71: 20176.50931 | JN71: 20580.0395 | JO71: 20991.64029 | JP71: 21411.47309 | JQ71: 21839.70256 | JR71: 22276.49661 | JS71: 22722.02654 | JT71: 23176.46707 | JU71: 23639.99641 | JV71: 24112.79634 | JW71: 24595.05227 | JX71: 25086.95331 | JY71: 25588.69238 | JZ71: 26100.46623 | KA71: 26622.47555 | KB71: 27154.92506 | KC71: 27698.02356 | KD71: 28251.98403 | KE71: 28817.02371 | KF71: 29393.36419 | KG71: 29981.23147 | KH71: 30580.8561 | KI71: 31192.47322 | KJ71: 31816.32269 | KK71: 32452.64914 | KL71: 33101.70213 | KM71: 33763.73617 | KN71: 34439.01089 | KO71: 35127.79111 | KP71: 35830.34693 | KQ71: 36546.95387 | KR71: 37277.89295 | KS71: 38023.45081 | KT71: 38783.91982 | KU71: 39559.59822 | KV71: 40350.79018 | KW71: 41157.80599 | KX71: 41980.96211 | KY71: 42820.58135 | KZ71: 43676.99298 | LA71: 44550.53284 | LB71: 45441.54349 | LC71: 46350.37436 | LD71: 47277.38185 | LE71: 48222.92949 | LF71: 49187.38808 | LG71: 50171.13584 | LH71: 51174.55855 | LI71: 52198.04972 | LJ71: 53242.01072 | LK71: 54306.85093 | LL71: 55392.98795 | LM71: =LM23 -> 56500.84771 | LN71: 57630.86467 | LO71: 58783.48196 | LP71: 59959.1516 | LQ71: 61158.33463 | LR71: 62381.50132 | LS71: 63629.13135 | LT71: 64901.71398 | LU71: 66199.74826 | LV71: 67523.74322 | LW71: 68874.21809 | LX71: 70251.70245 | LY71: 71656.7365 | LZ71: 73089.87123 | MA71: 74551.66865 | MB71: 76042.70202 | MC71: 77563.55606 | MD71: 79114.82719 | ME71: 80697.12373 | MF71: 82311.0662 | MG71: 83957.28753 | MH71: 85636.43328 | MI71: 87349.16194 | MJ71: 89096.14518 | MK71: 90878.06809 | ML71: 92695.62945 | MM71: 94549.54204 | MN71: 96440.53288 | MO71: 98369.34354 | MP71: 100336.7304 | MQ71: 102343.465 | MR71: 104390.3343 | MS71: 106478.141 | MT71: 108607.7038 | MU71: 110779.8579 | MV71: 112995.4551 | MW71: 115255.3642 | MX71: 117560.4714 | MY71: 119911.6809 | MZ71: 122309.9145 | NA71: 124756.1128 | NB71: 127251.235 | NC71: 129796.2597 | ND71: 132392.1849 | NE71: 135040.0286 | NF71: 137740.8292 | NG71: 140495.6458 | NH71: 143305.5587 | NI71: 146171.6699 | NJ71: 149095.1033 | NK71: 152077.0053 | NL71: 155118.5454 | NM71: 158220.9163 | NN71: 161385.3347 | NO71: 164613.0414 | NP71: 167905.3022 | NQ71: 171263.4082 | NR71: 174688.6764 | NS71: 178182.4499 | NT71: 181746.0989 | NU71: 185381.0209 | NV71: 189088.6413 | NW71: 192870.4142 | NX71: 196727.8224 | NY71: =NY23 -> 200662.3789 | NZ71: 204675.6265 | OA71: 208769.139 | OB71: 212944.5218 | OC71: 217203.4122 | OD71: 221547.4805 | OE71: 225978.4301 | OF71: 230497.9987 | OG71: 235107.9586 | OH71: 239810.1178 | OI71: 244606.3202 | OJ71: 249498.4466 | OK71: 254488.4155 | OL71: 259578.1838 | OM71: 264769.7475 | ON71: 270065.1424 | OO71: 275466.4453 | OP71: 280975.7742 | OQ71: 286595.2897 | OR71: 292327.1955 | OS71: 298173.7394 | OT71: 304137.2142 | OU71: 310219.9584 | OV71: 316424.3576 | OW71: 322752.8448 | OX71: 329207.9017 | OY71: 335792.0597 | OZ71: 342507.9009 | PA71: 349358.0589 | PB71: 356345.2201 | PC71: 363472.1245 | PD71: 370741.567 | PE71: 378156.3983 | PF71: 385719.5263 | PG71: 393433.9168 | PH71: 401302.5951 | PI71: 409328.6471 | PJ71: 417515.22 | PK71: 425865.5244 | PL71: 434382.8349 | PM71: 443070.4916 | PN71: 451931.9014 | PO71: 460970.5394 | PP71: 470189.9502 | PQ71: 479593.7492 | PR71: 489185.6242 | PS71: 498969.3367 | PT71: 508948.7234 | PU71: 519127.6979 | PV71: 529510.2519 | PW71: 540100.4569 | PX71: 550902.466 | PY71: 561920.5154 | PZ71: 573158.9257 | QA71: 584622.1042 | QB71: 596314.5463 | QC71: 608240.8372 | QD71: 620405.6539 | QE71: 632813.767 | QF71: 645470.0423 | QG71: 658379.4432 | QH71: 671547.0321 | QI71: 684977.9727 | QJ71: 698677.5322 | QK71: =QK23 -> 712651.0828 | QL71: 726904.1045 | QM71: 741442.1865 | QN71: 756271.0303 | QO71: 771396.4509 | QP71: 786824.3799 | QQ71: 802560.8675 | QR71: 818612.0848 | QS71: 834984.3265 | QT71: 851684.0131 | QU71: 868717.6933 | QV71: 886092.0472 | QW71: 903813.8881 | QX71: 921890.1659 | QY71: 940327.9692 | QZ71: 959134.5286 | RA71: 978317.2192 | RB71: 997883.5636 | RC71: 1017841.235 | RD71: 1038198.06 | RE71: 1058962.021 | RF71: 1080141.261 | RG71: 1101744.086 | RH71: 1123778.968 | RI71: 1146254.547 | RJ71: 1169179.638 | RK71: 1192563.231 | RL71: 1216414.496 | RM71: 1240742.786 | RN71: 1265557.641 | RO71: 1290868.794 | RP71: 1316686.17 | RQ71: 1343019.894 | RR71: 1369880.291 | RS71: 1397277.897 | RT71: 1425223.455 | RU71: 1453727.924 | RV71: 1482802.483 | RW71: 1512458.532 | RX71: 1542707.703 | RY71: 1573561.857 | RZ71: 1605033.094 | SA71: 1637133.756 | SB71: 1669876.431 | SC71: 1703273.96 | SD71: 1737339.439 | SE71: 1772086.228 | SF71: 1807527.952 | SG71: 1843678.511 | SH71: 1880552.082 | SI71: 1918163.123 | SJ71: 1956526.386 | SK71: 1995656.914 | SL71: 2035570.052 | SM71: 2076281.453 | SN71: 2117807.082 | SO71: 2160163.224 | SP71: 2203366.488 | SQ71: 2247433.818 | SR71: 2292382.494 | SS71: 2338230.144 | ST71: 2384994.747 | SU71: 2432694.642 | SV71: 2481348.535 | SW71: =SW23 -> 2530975.505 | SX71: 2581595.015 | SY71: 2633226.916 | SZ71: 2685891.454 | TA71: 2739609.283 | TB71: 2794401.469 | TC71: 2850289.498 | TD71: 2907295.288 | TE71: 2965441.194 | TF71: 3024750.018 | TG71: 3085245.018 | TH71: 3146949.919 | TI71: 3209888.917 | TJ71: 3274086.695 | TK71: 3339568.429 | TL71: 3406359.798 | TM71: 3474486.994 | TN71: 3543976.734 | TO71: 3614856.268 | TP71: 3687153.394 | TQ71: 3760896.461 | TR71: 3836114.391 | TS71: 3912836.679 | TT71: 3991093.412 | TU71: 4070915.28 | TV71: 4152333.586 | TW71: 4235380.258 | TX71: 4320087.863 | TY71: 4406489.62 | TZ71: 4494619.412 | UA71: 4584511.801 | UB71: 4676202.037 | UC71: 4769726.077 | UD71: 4865120.599 | UE71: 4962423.011 | UF71: 5061671.471 | UG71: 5162904.901 | UH71: 5266162.999 | UI71: 5371486.259 | UJ71: 5478915.984 | UK71: 5588494.303 | UL71: 5700264.19 | UM71: 5814269.473 | UN71: 5930554.863 | UO71: 6049165.96 | UP71: 6170149.279 | UQ71: 6293552.265 | UR71: 6419423.31 | US71: 6547811.776 | UT71: 6678768.012 | UU71: 6812343.372 | UV71: 6948590.24 | UW71: 7087562.044 | UX71: 7229313.285 | UY71: 7373899.551 | UZ71: 7521377.542 | VA71: 7671805.093 | VB71: 7825241.195 | VC71: 7981746.019 | VD71: 8141380.939 | VE71: 8304208.558 | VF71: 8470292.729 | VG71: 8639698.583 | VH71: 8812492.555 | VI71: =VI23 -> 8988742.406 | VJ71: 9168517.254 | VK71: 9351887.599 | VL71: 9538925.351 | VM71: 9729703.858 | VN71: 9924297.936 | VO71: 10122783.89 | VP71: 10325239.57 | VQ71: 10531744.36 | VR71: 10742379.25 | VS71: 10957226.84 | VT71: 11176371.37 | VU71: 11399898.8 | VV71: 11627896.78 | VW71: 11860454.71 | VX71: 12097663.81 | VY71: 12339617.08 | VZ71: 12586409.42 | WA71: 12838137.61 | WB71: 13094900.36 | WC71: 13356798.37 | WD71: 13623934.34 | WE71: 13896413.03 | WF71: 14174341.29 | WG71: 14457828.11 | WH71: 14746984.67 | WI71: 15041924.37 | WJ71: 15342762.86 | WK71: 15649618.11 | WL71: 15962610.47 | WM71: 16281862.68 | WN71: 16607499.94 | WO71: 16939649.94 | WP71: 17278442.94 | WQ71: 17624011.79 | WR71: 17976492.03 | WS71: 18336021.87 | WT71: 18702742.31 | WU71: 19076797.15 | WV71: 19458333.1 | WW71: 19847499.76 | WX71: 20244449.75 | WY71: 20649338.75 | WZ71: 21062325.52 | XA71: 21483572.03 | XB71: 21913243.48 | XC71: 22351508.34 | XD71: 22798538.51 | XE71: 23254509.28 | XF71: 23719599.47 | XG71: 24193991.46 | XH71: 24677871.29 | XI71: 25171428.71 | XJ71: 25674857.29 | XK71: 26188354.43 | XL71: 26712121.52 | XM71: 27246363.95 | XN71: 27791291.23 | XO71: 28347117.05 | XP71: 28914059.4 | XQ71: 29492340.58 | XR71: 30082187.4 | XS71: 30683831.14 | XT71: 31297507.77 | XU71: =XU23 -> 31923457.92 | XV71: 32561927.08 | XW71: 33213165.62 | XX71: 33877428.93 | XY71: 34554977.51 | XZ71: 35246077.06 | YA71: 35950998.6 | YB71: 36670018.58 | YC71: 37403418.95 | YD71: 38151487.33 | YE71: 38914517.07 | YF71: 39692807.41 | YG71: 40486663.56 | YH71: 41296396.83 | YI71: 42122324.77 | YJ71: 42964771.27 | YK71: 43824066.69 | YL71: 44700548.03 | YM71: 45594558.99 | YN71: 46506450.17 | YO71: 47436579.17 | YP71: 48385310.75 | YQ71: 49353016.97 | YR71: 50340077.31 | YS71: 51346878.85 | YT71: 52373816.43 | YU71: 53421292.76 | YV71: 54489718.61 | YW71: 55579512.99 | YX71: 56691103.25 | YY71: 57824925.31 | YZ71: 58981423.82 | ZA71: 60161052.29 | ZB71: 61364273.34 | ZC71: 62591558.81 | ZD71: 63843389.98 | ZE71: 65120257.78 | ZF71: 66422662.94 | ZG71: 67751116.2 | ZH71: 69106138.52 | ZI71: 70488261.29 | ZJ71: 71898026.52 | ZK71: 73335987.05 | ZL71: 74802706.79 | ZM71: 76298760.92 | ZN71: 77824736.14 | ZO71: 79381230.86 | ZP71: 80968855.48 | ZQ71: 82588232.59 | ZR71: 84239997.24 | ZS71: 85924797.19 | ZT71: 87643293.13 | ZU71: 89396158.99 | ZV71: 91184082.17 | ZW71: 93007763.82 | ZX71: 94867919.09 | ZY71: 96765277.48 | ZZ71: 98700583.02 | AAA71: 100674594.7 | AAB71: 102688086.6
C73: Value of Company at All Equity Cost of Capital | D73: =CHOOSE($Q$45,H38,H43,H48,H53) -> 0.05879140436 | E73: =NPV($D$73,E71:AAB71) -> 2577.890686 | F73: 2629.4485 | G73: 2682.03747 | H73: 2735.678219 | I73: 2790.391784 | J73: 2846.199619 | K73: 2903.123612 | L73: 2961.186084 | M73: 3020.409806 | N73: 3080.818002 | O73: 3142.434362 | P73: 3205.283049 | Q73: 3269.38871 | R73: 3334.776484 | S73: 3401.472014 | T73: 3469.501454 | U73: 3538.891483 | V73: 3609.669313 | W73: 3681.862699 | X73: 3755.499953 | Y73: 3830.609952 | Z73: 3907.222151 | AA73: 3985.366594 | AB73: 4065.073926 | AC73: 4146.375405 | AD73: 4229.302913 | AE73: 4313.888971 | AF73: 4400.16675 | AG73: 4488.170085 | AH73: 4577.933487 | AI73: 4669.492157 | AJ73: 4762.882 | AK73: 4858.13964 | AL73: 4955.302433 | AM73: 5054.408482 | AN73: 5155.496651 | AO73: 5258.606584 | AP73: 5363.778716 | AQ73: 5471.05429 | AR73: 5580.475376 | AS73: 5692.084883 | AT73: 5805.926581 | AU73: 5922.045113 | AV73: 6040.486015 | AW73: 6161.295735 | AX73: 6284.52165 | AY73: 6410.212083 | AZ73: 6538.416325 | BA73: 6669.184651 | BB73: 6802.568344 | BC73: 6938.619711 | BD73: 7077.392105 | BE73: 7218.939947 | BF73: 7363.318746 | BG73: 7510.585121 | BH73: 7660.796824 | BI73: 7814.01276 | BJ73: 7970.293015 | BK73: 8129.698876 | BL73: 8292.292853 | BM73: 8458.13871 | BN73: 8627.301484 | BO73: 8799.847514 | BP73: 8975.844464 | BQ73: =NPV($D$73,BQ71:ACN71) -> 9155.361353 | BR73: 9338.468581 | BS73: 9525.237952 | BT73: 9715.742711 | BU73: 9910.057565 | BV73: 10108.25872 | BW73: 10310.42389 | BX73: 10516.63237 | BY73: 10726.96502 | BZ73: 10941.50432 | CA73: 11160.3344 | CB73: 11383.54109 | CC73: 11611.21191 | CD73: 11843.43615 | CE73: 12080.30487 | CF73: 12321.91097 | CG73: 12568.34919 | CH73: 12819.71617 | CI73: 13076.1105 | CJ73: 13337.63271 | CK73: 13604.38536 | CL73: 13876.47307 | CM73: 14154.00253 | CN73: 14437.08258 | CO73: 14725.82423 | CP73: 15020.34072 | CQ73: 15320.74753 | CR73: 15627.16248 | CS73: 15939.70573 | CT73: 16258.49985 | CU73: 16583.66984 | CV73: 16915.34324 | CW73: 17253.6501 | CX73: 17598.72311 | CY73: 17950.69757 | CZ73: 18309.71152 | DA73: 18675.90575 | DB73: 19049.42386 | DC73: 19430.41234 | DD73: 19819.02059 | DE73: 20215.401 | DF73: 20619.70902 | DG73: 21032.1032 | DH73: 21452.74526 | DI73: 21881.80017 | DJ73: 22319.43617 | DK73: 22765.8249 | DL73: 23221.14139 | DM73: 23685.56422 | DN73: 24159.2755 | DO73: 24642.46101 | DP73: 25135.31023 | DQ73: 25638.01644 | DR73: 26150.77677 | DS73: 26673.7923 | DT73: 27207.26815 | DU73: 27751.41351 | DV73: 28306.44178 | DW73: 28872.57062 | DX73: 29450.02203 | DY73: 30039.02247 | DZ73: 30639.80292 | EA73: 31252.59897 | EB73: 31877.65095 | EC73: =NPV($D$73,EC71:AEZ71) -> 32515.20397 | ED73: 33165.50805 | EE73: 33828.81821 | EF73: 34505.39457 | EG73: 35195.50246 | EH73: 35899.41251 | EI73: 36617.40076 | EJ73: 37349.74878 | EK73: 38096.74375 | EL73: 38858.67862 | EM73: 39635.8522 | EN73: 40428.56924 | EO73: 41237.14062 | EP73: 42061.88343 | EQ73: 42903.1211 | ER73: 43761.18352 | ES73: 44636.40719 | ET73: 45529.13533 | EU73: 46439.71804 | EV73: 47368.5124 | EW73: 48315.88264 | EX73: 49282.20029 | EY73: 50267.8443 | EZ73: 51273.20118 | FA73: 52298.6652 | FB73: 53344.6385 | FC73: 54411.53127 | FD73: 55499.76189 | FE73: 56609.75713 | FF73: 57741.95227 | FG73: 58896.79131 | FH73: 60074.72713 | FI73: 61276.22167 | FJ73: 62501.7461 | FK73: 63751.78101 | FL73: 65026.81663 | FM73: 66327.35296 | FN73: 67653.90001 | FO73: 69006.97801 | FP73: 70387.11756 | FQ73: 71794.85991 | FR73: 73230.7571 | FS73: 74695.37223 | FT73: 76189.27967 | FU73: 77713.06526 | FV73: 79267.32655 | FW73: 80852.67307 | FX73: 82469.72653 | FY73: 84119.12105 | FZ73: 85801.50346 | GA73: 87517.53352 | GB73: 89267.88417 | GC73: 91053.24185 | GD73: 92874.30667 | GE73: 94731.79279 | GF73: 96626.42863 | GG73: 98558.95719 | GH73: 100530.1363 | GI73: 102540.739 | GJ73: 104591.5538 | GK73: 106683.3848 | GL73: 108817.0525 | GM73: 110993.3935 | GN73: 113213.2614 | GO73: =NPV($D$73,GO71:AHL71) -> 115477.5266 | GP73: 117787.0771 | GQ73: 120142.8186 | GR73: 122545.675 | GS73: 124996.5884 | GT73: 127496.5202 | GU73: 130046.4505 | GV73: 132647.3795 | GW73: 135300.3271 | GX73: 138006.3336 | GY73: 140766.4602 | GZ73: 143581.7893 | HA73: 146453.4251 | HB73: 149382.4935 | HC73: 152370.1433 | HD73: 155417.5462 | HE73: 158525.897 | HF73: 161696.4149 | HG73: 164930.3431 | HH73: 168228.9499 | HI73: 171593.5288 | HJ73: 175025.3993 | HK73: 178525.9072 | HL73: 182096.4253 | HM73: 185738.3537 | HN73: 189453.1207 | HO73: 193242.183 | HP73: 197107.0265 | HQ73: 201049.1669 | HR73: 205070.1501 | HS73: 209171.553 | HT73: 213354.9839 | HU73: 217622.0834 | HV73: 221974.5249 | HW73: 226414.0153 | HX73: 230942.2954 | HY73: 235561.1411 | HZ73: 240272.3637 | IA73: 245077.8108 | IB73: 249979.3668 | IC73: 254978.9539 | ID73: 260078.5327 | IE73: 265280.1031 | IF73: 270585.7048 | IG73: 275997.4186 | IH73: 281517.3667 | II73: 287147.7137 | IJ73: 292890.6676 | IK73: 298748.4805 | IL73: 304723.4498 | IM73: 310817.9183 | IN73: 317034.2762 | IO73: 323374.9613 | IP73: 329842.46 | IQ73: 336439.3087 | IR73: 343168.0943 | IS73: 350031.4555 | IT73: 357032.084 | IU73: 364172.725 | IV73: 371456.1788 | IW73: 378885.3016 | IX73: 386463.0068 | IY73: 394192.2661 | IZ73: 402076.1106 | JA73: =NPV($D$73,JA71:AJX71) -> 410117.6318 | JB73: 418319.9834 | JC73: 426686.382 | JD73: 435220.1085 | JE73: 443924.5095 | JF73: 452802.9984 | JG73: 461859.0571 | JH73: 471096.2368 | JI73: 480518.16 | JJ73: 490128.5216 | JK73: 499931.0904 | JL73: 509929.7104 | JM73: 520128.3027 | JN73: 530530.8667 | JO73: 541141.482 | JP73: 551964.3093 | JQ73: 563003.5931 | JR73: 574263.6625 | JS73: 585748.9331 | JT73: 597463.9089 | JU73: 609413.1841 | JV73: 621601.4446 | JW73: 634033.4702 | JX73: 646714.136 | JY73: 659648.415 | JZ73: 672841.3793 | KA73: 686298.2027 | KB73: 700024.1623 | KC73: 714024.6408 | KD73: 728305.1286 | KE73: 742871.2259 | KF73: 757728.6448 | KG73: 772883.2117 | KH73: 788340.8697 | KI73: 804107.6804 | KJ73: 820189.827 | KK73: 836593.6161 | KL73: 853325.4805 | KM73: 870391.9818 | KN73: 887799.8125 | KO73: 905555.7994 | KP73: 923666.9055 | KQ73: 942140.2331 | KR73: 960983.0266 | KS73: 980202.6754 | KT73: 999806.7164 | KU73: 1019802.838 | KV73: 1040198.88 | KW73: 1061002.843 | KX73: 1082222.884 | KY73: 1103867.325 | KZ73: 1125944.654 | LA73: 1148463.529 | LB73: 1171432.78 | LC73: 1194861.414 | LD73: 1218758.621 | LE73: 1243133.77 | LF73: 1267996.42 | LG73: 1293356.322 | LH73: 1319223.421 | LI73: 1345607.86 | LJ73: 1372519.986 | LK73: 1399970.353 | LL73: 1427969.725 | LM73: =NPV($D$73,LM71:AMJ71) -> 1456529.083 | LN73: 1485659.625 | LO73: 1515372.777 | LP73: 1545680.188 | LQ73: 1576593.746 | LR73: 1608125.571 | LS73: 1640288.031 | LT73: 1673093.736 | LU73: 1706555.553 | LV73: 1740686.602 | LW73: 1775500.269 | LX73: 1811010.205 | LY73: 1847230.336 | LZ73: 1884174.865 | MA73: 1921858.28 | MB73: 1960295.358 | MC73: 1999501.173 | MD73: 2039491.099 | ME73: 2080280.818 | MF73: 2121886.325 | MG73: 2164323.936 | MH73: 2207610.292 | MI73: 2251762.368 | MJ73: 2296797.478 | MK73: 2342733.282 | ML73: 2389587.794 | MM73: 2437379.387 | MN73: 2486126.802 | MO73: 2535849.155 | MP73: 2586565.944 | MQ73: 2638297.058 | MR73: 2691062.782 | MS73: 2744883.808 | MT73: 2799781.241 | MU73: 2855776.608 | MV73: 2912891.868 | MW73: 2971149.416 | MX73: 3030572.099 | MY73: 3091183.217 | MZ73: 3153006.539 | NA73: 3216066.307 | NB73: 3280387.249 | NC73: 3345994.587 | ND73: 3412914.048 | NE73: 3481171.873 | NF73: 3550794.827 | NG73: 3621810.213 | NH73: 3694245.876 | NI73: 3768130.22 | NJ73: 3843492.218 | NK73: 3920361.42 | NL73: 3998767.968 | NM73: 4078742.607 | NN73: 4160316.696 | NO73: 4243522.223 | NP73: 4328391.812 | NQ73: 4414958.743 | NR73: 4503256.96 | NS73: 4593321.084 | NT73: 4685186.431 | NU73: 4778889.023 | NV73: 4874465.599 | NW73: 4971953.635 | NX73: 5071391.358 | NY73: =NPV($D$73,NY71:AOV71) -> 5172817.755 | NZ73: 5276272.597 | OA73: 5381796.446 | OB73: 5489430.678 | OC73: 5599217.495 | OD73: 5711199.943 | OE73: 5825421.927 | OF73: 5941928.233 | OG73: 6060764.54 | OH73: 6181977.44 | OI73: 6305614.458 | OJ73: 6431724.067 | OK73: 6560355.711 | OL73: 6691559.821 | OM73: 6825387.836 | ON73: 6961892.225 | OO73: 7101126.503 | OP73: 7243145.257 | OQ73: 7388004.165 | OR73: 7535760.015 | OS73: 7686470.734 | OT73: 7840195.404 | OU73: 7996994.288 | OV73: 8156928.854 | OW73: 8320061.799 | OX73: 8486457.072 | OY73: 8656179.9 | OZ73: 8829296.813 | PA73: 9005875.671 | PB73: 9185985.69 | PC73: 9369697.469 | PD73: 9557083.017 | PE73: 9748215.782 | PF73: 9943170.68 | PG73: 10142024.12 | PH73: 10344854.05 | PI73: 10551739.95 | PJ73: 10762762.91 | PK73: 10978005.64 | PL73: 11197552.48 | PM73: 11421489.48 | PN73: 11649904.4 | PO73: 11882886.74 | PP73: 12120527.8 | PQ73: 12362920.7 | PR73: 12610160.42 | PS73: 12862343.83 | PT73: 13119569.75 | PU73: 13381938.96 | PV73: 13649554.25 | PW73: 13922520.46 | PX73: 14200944.53 | PY73: 14484935.54 | PZ73: 14774604.72 | QA73: 15070065.56 | QB73: 15371433.77 | QC73: 15678827.4 | QD73: 15992366.85 | QE73: 16312174.9 | QF73: 16638376.81 | QG73: 16971100.3 | QH73: 17310475.68 | QI73: 17656635.82 | QJ73: 18009716.27 | QK73: =NPV($D$73,QK71:ARH71) -> 18369855.24 | QL73: 18737193.75 | QM73: 19111875.58 | QN73: 19494047.4 | QO73: 19883858.79 | QP73: 20281462.32 | QQ73: 20687013.59 | QR73: 21100671.31 | QS73: 21522597.32 | QT73: 21952956.72 | QU73: 22391917.86 | QV73: 22839652.46 | QW73: 23296335.66 | QX73: 23762146.06 | QY73: 24237265.83 | QZ73: 24721880.76 | RA73: 25216180.32 | RB73: 25720357.75 | RC73: 26234610.14 | RD73: 26759138.48 | RE73: 27294147.75 | RF73: 27839847.01 | RG73: 28396449.45 | RH73: 28964172.51 | RI73: 29543237.92 | RJ73: 30133871.82 | RK73: 30736304.82 | RL73: 31350772.11 | RM73: 31977513.54 | RN73: 32616773.68 | RO73: 33268801.97 | RP73: 33933852.77 | RQ73: 34612185.46 | RR73: 35304064.55 | RS73: 36009759.8 | RT73: 36729546.25 | RU73: 37463704.4 | RV73: 38212520.27 | RW73: 38976285.52 | RX73: 39755297.55 | RY73: 40549859.62 | RZ73: 41360280.95 | SA73: 42186876.86 | SB73: 43029968.84 | SC73: 43889884.71 | SD73: 44766958.7 | SE73: 45661531.64 | SF73: 46573950.98 | SG73: 47504571.01 | SH73: 48453752.94 | SI73: 49421865.04 | SJ73: 50409282.77 | SK73: 51416388.91 | SL73: 52443573.71 | SM73: 53491235.01 | SN73: 54559778.38 | SO73: 55649617.29 | SP73: 56761173.22 | SQ73: 57894875.82 | SR73: 59051163.06 | SS73: 60230481.37 | ST73: 61433285.81 | SU73: 62660040.21 | SV73: 63911217.33 | SW73: =NPV($D$73,SW71:ATT71) -> 65187299.01 | SX73: 66488776.36 | SY73: 67816149.88 | SZ73: 69169929.66 | TA73: 70550635.51 | TB73: 71958797.16 | TC73: 73394954.44 | TD73: 74859657.38 | TE73: 76353466.48 | TF73: 77876952.81 | TG73: 79430698.21 | TH73: 81015295.49 | TI73: 82631348.57 | TJ73: 84279472.68 | TK73: 85960294.54 | TL73: 87674452.55 | TM73: 89422596.94 | TN73: 91205390 | TO73: 93023506.23 | TP73: 94877632.54 | TQ73: 96768468.4 | TR73: 98696726.09 | TS73: 100663130.8 | TT73: 102668421 | TU73: 104713348.2 | TV73: 106798677.7 | TW73: 108925188.4 | TX73: 111093672.9 | TY73: 113304938.1 | TZ73: 115559804.9 | UA73: 117859108.8 | UB73: 120203699.5 | UC73: 122594441.7 | UD73: 125032215.1 | UE73: 127517914 | UF73: 130052448.2 | UG73: 132636742.8 | UH73: 135271738.3 | UI73: 137958390.7 | UJ73: 140697672 | UK73: 143490569.8 | UL73: 146338087.6 | UM73: 149241245.1 | UN73: 152201078 | UO73: 155218638.2 | UP73: 158294994 | UQ73: 161431229.7 | UR73: 164628446.1 | US73: 167887760.4 | UT73: 171210305.8 | UU73: 174597232.1 | UV73: 178049705.2 | UW73: 181568907.2 | UX73: 185156036.2 | UY73: 188812306.3 | UZ73: 192538947.4 | VA73: 196337205 | VB73: 200208339.9 | VC73: 204153628.2 | VD73: 208174360.6 | VE73: 212271842.7 | VF73: 216447393.9 | VG73: 220702347.4 | VH73: 225038049.8 | VI73: =NPV($D$73,VI71:AWF71) -> 229455860.2 | VJ73: 233957150.1 | VK73: 238543302.2 | VL73: 243215710.4 | VM73: 247975778.2 | VN73: 252824918.6 | VO73: 257764552.7 | VP73: 262796108.8 | VQ73: 267921021.5 | VR73: 273140730.3 | VS73: 278456678.2 | VT73: 283870310.5 | VU73: 289383073.3 | VV73: 294996411.8 | VW73: 300711768.4 | VX73: 306530580.8 | VY73: 312454280.3 | VZ73: 318484289.2 | WA73: 324622018.4 | WB73: 330868865.1 | WC73: 337226210 | WD73: 343695414.1 | WE73: 350277815.8 | WF73: 356974727.5 | WG73: 363787431.8 | WH73: 370717177.7 | WI73: 377765176.5 | WJ73: 384932597.4 | WK73: 392220562.5 | WL73: 399630142.1 | WM73: 407162348.9 | WN73: 414818132.5 | WO73: 422598373.1 | WP73: 430503875 | WQ73: 438535359.5 | WR73: 446693457.3 | WS73: 454978701 | WT73: 463391515.9 | WU73: 471932211.6 | WV73: 480600971.9 | WW73: 489397844.9 | WX73: 498322731.7 | WY73: 507375375.1 | WZ73: 516555347.2 | XA73: 525862036 | XB73: 535294631.6 | XC73: 544852111.2 | XD73: 554533223.7 | XE73: 564336472.1 | XF73: 574260096.6 | XG73: 584302054.7 | XH73: 594460001.6 | XI73: 604731268.6 | XJ73: 615112840.4 | XK73: 625601330.9 | XL73: 636192957.3 | XM73: 646883513.1 | XN73: 657668339.4 | XO73: 668542293.4 | XP73: 679499716.7 | XQ73: 690534399.9 | XR73: 701639546.4 | XS73: 712807733.3 | XT73: 724030869.9 | XU73: =NPV($D$73,XU71:AYR71) -> 735300153.7 | XV73: 746606024.5 | XW73: 757938114.1 | XX73: 769285194.6 | XY73: 780635122.6 | XZ73: 791974780.3 | YA73: 803290012.7 | YB73: 814565562.1 | YC73: 825784996.9 | YD73: 836930637.6 | YE73: 847983477.8 | YF73: 858923100.2 | YG73: 869727588.1 | YH73: 880373430.9 | YI73: 890835424.4 | YJ73: 901086565.3 | YK73: 911097938.6 | YL73: 920838599.3 | YM73: 930275445.7 | YN73: 939373086.6 | YO73: 948093699.4 | YP73: 956396880.3 | YQ73: 964239485.2 | YR73: 971575461.7 | YS73: 978355670.3 | YT73: 984527695.2 | YU73: 990035644.6 | YV73: 994819937.8 | YW73: 998817080.4 | YX73: 1001959426 | YY73: 1004174925 | YZ73: 1005386854 | ZA73: 1005513535 | ZB73: 1004468035 | ZC73: 1002157848 | ZD73: 998484556.9 | ZE73: 993343476.2 | ZF73: 986623276.4 | ZG73: 978205581.5 | ZH73: 967964545.2 | ZI73: 955766401.6 | ZJ73: 941468989.3 | ZK73: 924921246.9 | ZL73: 905962678.8 | ZM73: 884422790.2 | ZN73: 860120487.2 | ZO73: 832863442.4 | ZP73: 802447423 | ZQ73: 768655578.4 | ZR73: 731257686.7 | ZS73: 690009355.8 | ZT73: 644651177.7 | ZU73: 594907832.6 | ZV73: 540487140.6 | ZW73: 481079056.4 | ZX73: 416354606 | ZY73: 345964758.9 | ZZ73: 269539235.4 | AAA73: 186685242.6 | AAB73: 96986135.47
C74: Debt Computed from Market Value of Debt | D74: =CHOOSE($Q$45,D36,D41,D46,D51) -> 0.5084745763 | E74: =$D$74*E73 -> 1310.791874 | F74: =$D$74*F73 -> 1337.007712 | G74: 1363.747866 | H74: 1391.022823 | I74: 1418.84328 | J74: 1447.220145 | K74: 1476.164548 | L74: 1505.687839 | M74: 1535.801596 | N74: 1566.517628 | O74: 1597.847981 | P74: 1629.80494 | Q74: 1662.401039 | R74: 1695.64906 | S74: 1729.562041 | T74: 1764.153282 | U74: 1799.436347 | V74: 1835.425074 | W74: 1872.133576 | X74: 1909.576247 | Y74: 1947.767772 | Z74: 1986.723128 | AA74: 2026.45759 | AB74: 2066.986742 | AC74: 2108.326477 | AD74: 2150.493007 | AE74: 2193.502867 | AF74: 2237.372924 | AG74: 2282.120382 | AH74: 2327.76279 | AI74: 2374.318046 | AJ74: 2421.804407 | AK74: 2470.240495 | AL74: 2519.645305 | AM74: 2570.038211 | AN74: 2621.438975 | AO74: 2673.867755 | AP74: 2727.34511 | AQ74: 2781.892012 | AR74: 2837.529852 | AS74: 2894.280449 | AT74: 2952.166058 | AU74: 3011.209379 | AV74: 3071.433567 | AW74: 3132.862238 | AX74: 3195.519483 | AY74: 3259.429873 | AZ74: 3324.61847 | BA74: 3391.11084 | BB74: 3458.933056 | BC74: 3528.111717 | BD74: 3598.673952 | BE74: 3670.647431 | BF74: 3744.060379 | BG74: 3818.941587 | BH74: 3895.320419 | BI74: 3973.226827 | BJ74: 4052.691364 | BK74: 4133.745191 | BL74: 4216.420095 | BM74: 4300.748497 | BN74: 4386.763467 | BO74: 4474.498736 | BP74: 4563.988711 | BQ74: 4655.268485 | BR74: =$D$74*BR73 -> 4748.373855 | BS74: 4843.341332 | BT74: 4940.208158 | BU74: 5039.012321 | BV74: 5139.792568 | BW74: 5242.588419 | BX74: 5347.440188 | BY74: 5454.388991 | BZ74: 5563.476771 | CA74: 5674.746306 | CB74: 5788.241233 | CC74: 5904.006057 | CD74: 6022.086178 | CE74: 6142.527902 | CF74: 6265.37846 | CG74: 6390.686029 | CH74: 6518.49975 | CI74: 6648.869745 | CJ74: 6781.847139 | CK74: 6917.484082 | CL74: 7055.833764 | CM74: 7196.950439 | CN74: 7340.889448 | CO74: 7487.707237 | CP74: 7637.461381 | CQ74: 7790.210609 | CR74: 7946.014821 | CS74: 8104.935118 | CT74: 8267.03382 | CU74: 8432.374496 | CV74: 8601.021986 | CW74: 8773.042426 | CX74: 8948.503274 | CY74: 9127.47334 | CZ74: 9310.022806 | DA74: 9496.223262 | DB74: 9686.147728 | DC74: 9879.870682 | DD74: 10077.4681 | DE74: 10279.01746 | DF74: 10484.59781 | DG74: 10694.28976 | DH74: 10908.17556 | DI74: 11126.33907 | DJ74: 11348.86585 | DK74: 11575.84317 | DL74: 11807.36003 | DM74: 12043.50723 | DN74: 12284.37738 | DO74: 12530.06492 | DP74: 12780.66622 | DQ74: 13036.27955 | DR74: 13297.00514 | DS74: 13562.94524 | DT74: 13834.20414 | DU74: 14110.88823 | DV74: 14393.10599 | DW74: 14680.96811 | DX74: 14974.58747 | DY74: 15274.07922 | DZ74: 15579.5608 | EA74: 15891.15202 | EB74: 16208.97506 | EC74: 16533.15456 | ED74: =$D$74*ED73 -> 16863.81765 | EE74: 17201.09401 | EF74: 17545.11588 | EG74: 17896.0182 | EH74: 18253.93857 | EI74: 18619.01734 | EJ74: 18991.39768 | EK74: 19371.22564 | EL74: 19758.65015 | EM74: 20153.82315 | EN74: 20556.89961 | EO74: 20968.0376 | EP74: 21387.39836 | EQ74: 21815.14632 | ER74: 22251.44925 | ES74: 22696.47823 | ET74: 23150.4078 | EU74: 23613.41595 | EV74: 24085.68427 | EW74: 24567.39795 | EX74: 25058.74591 | EY74: 25559.92083 | EZ74: 26071.11924 | FA74: 26592.54163 | FB74: 27124.39246 | FC74: 27666.88031 | FD74: 28220.21791 | FE74: 28784.62227 | FF74: 29360.31471 | FG74: 29947.521 | FH74: 30546.47142 | FI74: 31157.40085 | FJ74: 31780.54886 | FK74: 32416.15984 | FL74: 33064.48303 | FM74: 33725.77269 | FN74: 34400.28814 | FO74: 35088.2939 | FP74: 35790.05978 | FQ74: 36505.86097 | FR74: 37235.97819 | FS74: 37980.69775 | FT74: 38740.3117 | FU74: 39515.11793 | FV74: 40305.42028 | FW74: 41111.52868 | FX74: 41933.75925 | FY74: 42772.43443 | FZ74: 43627.88311 | GA74: 44500.44077 | GB74: 45390.44958 | GC74: 46298.25857 | GD74: 47224.22373 | GE74: 48168.7082 | GF74: 49132.08235 | GG74: 50114.72399 | GH74: 51117.01846 | GI74: 52139.35882 | GJ74: 53182.14599 | GK74: 54245.7889 | GL74: 55330.70467 | GM74: 56437.31875 | GN74: 57566.06511 | GO74: 58717.3864 | GP74: =$D$74*GP73 -> 59891.73412 | GQ74: 61089.56879 | GR74: 62311.36015 | GS74: 63557.58734 | GT74: 64828.73907 | GU74: 66125.31383 | GV74: 67447.82009 | GW74: 68796.77647 | GX74: 70172.71198 | GY74: 71576.1662 | GZ74: 73007.6895 | HA74: 74467.84326 | HB74: 75957.2001 | HC74: 77476.34407 | HD74: 79025.87093 | HE74: 80606.38831 | HF74: 82218.51605 | HG74: 83862.88633 | HH74: 85540.14402 | HI74: 87250.94686 | HJ74: 88995.96576 | HK74: 90775.88503 | HL74: 92591.40268 | HM74: 94443.23069 | HN74: 96332.09525 | HO74: 98258.7371 | HP74: 100223.9118 | HQ74: 102228.39 | HR74: 104272.9577 | HS74: 106358.4168 | HT74: 108485.585 | HU74: 110655.2967 | HV74: 112868.4025 | HW74: 115125.7705 | HX74: 117428.2858 | HY74: 119776.8514 | HZ74: 122172.3883 | IA74: 124615.836 | IB74: 127108.1526 | IC74: 129650.3155 | ID74: 132243.3217 | IE74: 134888.188 | IF74: 137585.9516 | IG74: 140337.6705 | IH74: 143144.4237 | II74: 146007.312 | IJ74: 148927.4581 | IK74: 151906.0071 | IL74: 154944.127 | IM74: 158043.0093 | IN74: 161203.8693 | IO74: 164427.9464 | IP74: 167716.5051 | IQ74: 171070.8349 | IR74: 174492.2513 | IS74: 177982.096 | IT74: 181541.7376 | IU74: 185172.572 | IV74: 188876.0231 | IW74: 192653.5432 | IX74: 196506.6136 | IY74: 200436.7455 | IZ74: 204445.4799 | JA74: 208534.3891 | JB74: =$D$74*JB73 -> 212705.0763 | JC74: 216959.1773 | JD74: 221298.3603 | JE74: 225724.3269 | JF74: 230238.8128 | JG74: 234843.5883 | JH74: 239540.4594 | JI74: 244331.2678 | JJ74: 249217.8923 | JK74: 254202.2493 | JL74: 259286.2934 | JM74: 264472.0183 | JN74: 269761.4577 | JO74: 275156.6857 | JP74: 280659.8183 | JQ74: 286273.0135 | JR74: 291998.4725 | JS74: 297838.4405 | JT74: 303795.2079 | JU74: 309871.1106 | JV74: 316068.5312 | JW74: 322389.9001 | JX74: 328837.6963 | JY74: 335414.4483 | JZ74: 342122.7352 | KA74: 348965.1878 | KB74: 355944.4893 | KC74: 363063.3767 | KD74: 370324.6417 | KE74: 377731.1318 | KF74: 385285.7516 | KG74: 392991.4636 | KH74: 400851.2897 | KI74: 408868.3121 | KJ74: 417045.6747 | KK74: 425386.5845 | KL74: 433894.3121 | KM74: 442572.1941 | KN74: 451423.6335 | KO74: 460452.1014 | KP74: 469661.1384 | KQ74: 479054.3558 | KR74: 488635.4373 | KS74: 498408.14 | KT74: 508376.2965 | KU74: 518543.8157 | KV74: 528914.6849 | KW74: 539492.9711 | KX74: 550282.8225 | KY74: 561288.4705 | KZ74: 572514.231 | LA74: 583964.5062 | LB74: 595643.7863 | LC74: 607556.6514 | LD74: 619707.7732 | LE74: 632101.9168 | LF74: 644743.9425 | LG74: 657638.808 | LH74: 670791.5701 | LI74: 684207.3865 | LJ74: 697891.5185 | LK74: 711849.3321 | LL74: 726086.301 | LM74: 740608.0082 | LN74: =$D$74*LN73 -> 755420.1485 | LO74: 770528.5304 | LP74: 785939.0788 | LQ74: 801657.8367 | LR74: 817690.9685 | LS74: 834044.7614 | LT74: 850725.6286 | LU74: 867740.1115 | LV74: 885094.8824 | LW74: 902796.7468 | LX74: 920852.6465 | LY74: 939269.6622 | LZ74: 958055.0159 | MA74: 977216.0745 | MB74: 996760.3517 | MC74: 1016695.512 | MD74: 1037029.373 | ME74: 1057769.908 | MF74: 1078925.25 | MG74: 1100503.696 | MH74: 1122513.708 | MI74: 1144963.916 | MJ74: 1167863.124 | MK74: 1191220.313 | ML74: 1215044.641 | MM74: 1239345.451 | MN74: 1264132.272 | MO74: 1289414.824 | MP74: 1315203.023 | MQ74: 1341506.979 | MR74: 1368337.008 | MS74: 1395703.631 | MT74: 1423617.58 | MU74: 1452089.801 | MV74: 1481131.458 | MW74: 1510753.941 | MX74: 1540968.864 | MY74: 1571788.077 | MZ74: 1603223.664 | NA74: 1635287.953 | NB74: 1667993.516 | NC74: 1701353.18 | ND74: 1735380.024 | NE74: 1770087.393 | NF74: 1805488.895 | NG74: 1841598.413 | NH74: 1878430.106 | NI74: 1915998.417 | NJ74: 1954318.077 | NK74: 1993404.112 | NL74: 2033271.848 | NM74: 2073936.919 | NN74: 2115415.269 | NO74: 2157723.164 | NP74: 2200877.193 | NQ74: 2244894.276 | NR74: 2289791.674 | NS74: 2335586.992 | NT74: 2382298.185 | NU74: 2429943.571 | NV74: 2478541.83 | NW74: 2528112.018 | NX74: 2578673.572 | NY74: 2630246.316 | NZ74: =$D$74*NZ73 -> 2682850.473 | OA74: 2736506.667 | OB74: 2791235.938 | OC74: 2847059.743 | OD74: 2903999.971 | OE74: 2962078.946 | OF74: 3021319.441 | OG74: 3081744.681 | OH74: 3143378.359 | OI74: 3206244.64 | OJ74: 3270368.17 | OK74: 3335774.09 | OL74: 3402488.044 | OM74: 3470536.188 | ON74: 3539945.199 | OO74: 3610742.29 | OP74: 3682955.216 | OQ74: 3756612.287 | OR74: 3831742.381 | OS74: 3908374.95 | OT74: 3986540.036 | OU74: 4066268.282 | OV74: 4147590.943 | OW74: 4230539.898 | OX74: 4315147.664 | OY74: 4401447.407 | OZ74: 4489472.956 | PA74: 4579258.816 | PB74: 4670840.181 | PC74: 4764252.95 | PD74: 4859533.738 | PE74: 4956719.889 | PF74: 5055849.498 | PG74: 5156961.418 | PH74: 5260095.278 | PI74: 5365291.499 | PJ74: 5472591.311 | PK74: 5582036.765 | PL74: 5693670.753 | PM74: 5807537.025 | PN74: 5923680.202 | PO74: 6042145.798 | PP74: 6162980.235 | PQ74: 6286230.862 | PR74: 6411945.975 | PS74: 6540174.83 | PT74: 6670967.671 | PU74: 6804375.742 | PV74: 6940451.312 | PW74: 7079247.69 | PX74: 7220819.253 | PY74: 7365221.459 | PZ74: 7512510.877 | QA74: 7662745.199 | QB74: 7815983.274 | QC74: 7972285.121 | QD74: 8131711.957 | QE74: 8294326.221 | QF74: 8460191.596 | QG74: 8629373.035 | QH74: 8801936.786 | QI74: 8977950.418 | QJ74: 9157482.847 | QK74: 9340604.362 | QL74: =$D$74*QL73 -> 9527386.652 | QM74: 9717902.837 | QN74: 9912227.49 | QO74: 10110436.67 | QP74: 10312607.96 | QQ74: 10518820.47 | QR74: 10729154.9 | QS74: 10943693.55 | QT74: 11162520.37 | QU74: 11385720.95 | QV74: 11613382.61 | QW74: 11845594.4 | QX74: 12082447.15 | QY74: 12324033.47 | QZ74: 12570447.84 | RA74: 12821786.6 | RB74: 13078148.01 | RC74: 13339632.28 | RD74: 13606341.6 | RE74: 13878380.21 | RF74: 14155854.41 | RG74: 14438872.6 | RH74: 14727545.34 | RI74: 15021985.38 | RJ74: 15322307.7 | RK74: 15628629.57 | RL74: 15941070.57 | RM74: 16259752.65 | RN74: 16584800.18 | RO74: 16916339.99 | RP74: 17254501.41 | RQ74: 17599416.33 | RR74: 17951219.26 | RS74: 18310047.35 | RT74: 18676040.47 | RU74: 19049341.22 | RV74: 19430095.05 | RW74: 19818450.26 | RX74: 20214558.07 | RY74: 20618572.69 | RZ74: 21030651.33 | SA74: 21450954.34 | SB74: 21879645.17 | SC74: 22316890.53 | SD74: 22762860.36 | SE74: 23217727.95 | SF74: 23681669.99 | SG74: 24154866.62 | SH74: 24637501.5 | SI74: 25129761.89 | SJ74: 25631838.7 | SK74: 26143926.57 | SL74: 26666223.92 | SM74: 27198933.05 | SN74: 27742260.19 | SO74: 28296415.57 | SP74: 28861613.5 | SQ74: 29438072.45 | SR74: 30026015.11 | SS74: 30625668.49 | ST74: 31237263.97 | SU74: 31861037.39 | SV74: 32497229.15 | SW74: 33146084.24 | SX74: =$D$74*SX73 -> 33807852.39 | SY74: 34482788.08 | SZ74: 35171150.67 | TA74: 35873204.5 | TB74: 36589218.9 | TC74: 37319468.36 | TD74: 38064232.57 | TE74: 38823796.52 | TF74: 39598450.58 | TG74: 40388490.62 | TH74: 41194218.05 | TI74: 42015939.95 | TJ74: 42853969.16 | TK74: 43708624.34 | TL74: 44580230.11 | TM74: 45469117.09 | TN74: 46375622.04 | TO74: 47300087.92 | TP74: 48242864 | TQ74: 49204305.97 | TR74: 50184775.98 | TS74: 51184642.8 | TT74: 52204281.86 | TU74: 53244075.37 | TV74: 54304412.41 | TW74: 55385689.02 | TX74: 56488308.28 | TY74: 57612680.41 | TZ74: 58759222.85 | UA74: 59928360.38 | UB74: 61120525.16 | UC74: 62336156.81 | UD74: 63575702.57 | UE74: 64839617.27 | UF74: 66128363.49 | UG74: 67442411.59 | UH74: 68782239.8 | UI74: 70148334.28 | UJ74: 71541189.16 | UK74: 72961306.66 | UL74: 74409197.07 | UM74: 75885378.84 | UN74: 77390378.63 | UO74: 78924731.3 | UP74: 80488979.99 | UQ74: 82083676.12 | UR74: 83709379.4 | US74: 85366657.82 | UT74: 87056087.7 | UU74: 88778253.62 | UV74: 90533748.42 | UW74: 92323173.15 | UX74: 94147137.05 | UY74: 96006257.44 | UZ74: 97901159.7 | VA74: 99832477.1 | VB74: 101800850.8 | VC74: 103806929.6 | VD74: 105851369.8 | VE74: 107934835.3 | VF74: 110057996.9 | VG74: 112221532.6 | VH74: 114426127 | VI74: 116672471.3 | VJ74: =$D$74*VJ73 -> 118961262.7 | VK74: 121293204.5 | VL74: 123669005.3 | VM74: 126089378.7 | VN74: 128555043.3 | VO74: 131066721.7 | VP74: 133625140.1 | VQ74: 136231027.9 | VR74: 138885117.1 | VS74: 141588141.4 | VT74: 144340835.8 | VU74: 147143935.6 | VV74: 149998175.5 | VW74: 152904289 | VX74: 155863007.2 | VY74: 158875057.8 | VZ74: 161941164 | WA74: 165062043.3 | WB74: 168238406 | WC74: 171470954.2 | WD74: 174760380.1 | WE74: 178107364 | WF74: 181512573.3 | WG74: 184976660.2 | WH74: 188500259.8 | WI74: 192083988 | WJ74: 195728439.3 | WK74: 199434184.3 | WL74: 203201767.2 | WM74: 207031702.8 | WN74: 210924474.1 | WO74: 214880528.7 | WP74: 218900275.4 | WQ74: 222984081.1 | WR74: 227132266.4 | WS74: 231345102.2 | WT74: 235622804.7 | WU74: 239965531.3 | WV74: 244373375.5 | WW74: 248846361.8 | WX74: 253384439.8 | WY74: 257987478.9 | WZ74: 262655261.3 | XA74: 267387475.9 | XB74: 272183711 | XC74: 277043446.4 | XD74: 281966045.9 | XE74: 286950748.5 | XF74: 291996659.3 | XG74: 297102739.7 | XH74: 302267797.4 | XI74: 307490475.6 | XJ74: 312769240.9 | XK74: 318102371.6 | XL74: 323487944.4 | XM74: 328923820.2 | XN74: 334407630.2 | XO74: 339936759.4 | XP74: 345508330.5 | XQ74: 351119186.4 | XR74: 356765871.1 | XS74: 362444610.2 | XT74: 368151289.8 | XU74: 373881434.1 | XV74: =$D$74*XV73 -> 379630181.9 | XW74: 385392261.4 | XX74: 391161963.4 | XY74: 396933113.2 | XZ74: 402699040.8 | YA74: 408452548.8 | YB74: 414185879 | YC74: 419890676.4 | YD74: 425557951.3 | YE74: 431178039.5 | YF74: 436740559.4 | YG74: 442234366.8 | YH74: 447647507.2 | YI74: 452967164.9 | YJ74: 458179609.5 | YK74: 463270138.3 | YL74: 468223016.6 | YM74: 473021413.1 | YN74: 477647332.2 | YO74: 482081542.1 | YP74: 486303498.4 | YQ74: 490291263.7 | YR74: 494021421.2 | YS74: 497468984.9 | YT74: 500607302.7 | YU74: 503407954.9 | YV74: 505840646.3 | YW74: 507873091.7 | YX74: 509470894.7 | YY74: 510597419.4 | YZ74: 511213654.3 | ZA74: 511278068.5 | ZB74: 510746458.6 | ZC74: 509571787.3 | ZD74: 507704012 | ZE74: 505089903.2 | ZF74: 501672852.4 | ZG74: 497392668.5 | ZH74: 492185361.9 | ZI74: 485982916.1 | ZJ74: 478713045.4 | ZK74: 470298939.1 | ZL74: 460658989.2 | ZM74: 449706503.5 | ZN74: 437349400.3 | ZO74: 423489886 | ZP74: 408024113.4 | ZQ74: 390841819.5 | ZR74: 371825942.4 | ZS74: 350852214.8 | ZT74: 327788734.4 | ZU74: 302495508.1 | ZV74: 274823969.8 | ZW74: 244616469.4 | ZX74: 211705731.8 | ZY74: 175914284.2 | ZZ74: 137053848.5 | AAA74: 94924699.61 | AAB74: 49314984.14
C75: Debt Computed from Nominal Gross Debt for Interest | D75: =CHOOSE(Q45,D31,D41,D46,D51) -> 0.5084745763 | E75: =E73*$D$75 -> 1310.791874 | F75: =F73*$D$75 -> 1337.007712 | G75: =G73*$D$75 -> 1363.747866 | H75: 1391.022823 | I75: 1418.84328 | J75: 1447.220145 | K75: 1476.164548 | L75: 1505.687839 | M75: 1535.801596 | N75: 1566.517628 | O75: 1597.847981 | P75: 1629.80494 | Q75: 1662.401039 | R75: 1695.64906 | S75: 1729.562041 | T75: 1764.153282 | U75: 1799.436347 | V75: 1835.425074 | W75: 1872.133576 | X75: 1909.576247 | Y75: 1947.767772 | Z75: 1986.723128 | AA75: 2026.45759 | AB75: 2066.986742 | AC75: 2108.326477 | AD75: 2150.493007 | AE75: 2193.502867 | AF75: 2237.372924 | AG75: 2282.120382 | AH75: 2327.76279 | AI75: 2374.318046 | AJ75: 2421.804407 | AK75: 2470.240495 | AL75: 2519.645305 | AM75: 2570.038211 | AN75: 2621.438975 | AO75: 2673.867755 | AP75: 2727.34511 | AQ75: 2781.892012 | AR75: 2837.529852 | AS75: 2894.280449 | AT75: 2952.166058 | AU75: 3011.209379 | AV75: 3071.433567 | AW75: 3132.862238 | AX75: 3195.519483 | AY75: 3259.429873 | AZ75: 3324.61847 | BA75: 3391.11084 | BB75: 3458.933056 | BC75: 3528.111717 | BD75: 3598.673952 | BE75: 3670.647431 | BF75: 3744.060379 | BG75: 3818.941587 | BH75: 3895.320419 | BI75: 3973.226827 | BJ75: 4052.691364 | BK75: 4133.745191 | BL75: 4216.420095 | BM75: 4300.748497 | BN75: 4386.763467 | BO75: 4474.498736 | BP75: 4563.988711 | BQ75: 4655.268485 | BR75: =BR73*$D$75 -> 4748.373855 | BS75: 4843.341332 | BT75: 4940.208158 | BU75: 5039.012321 | BV75: 5139.792568 | BW75: 5242.588419 | BX75: 5347.440188 | BY75: 5454.388991 | BZ75: 5563.476771 | CA75: 5674.746306 | CB75: 5788.241233 | CC75: 5904.006057 | CD75: 6022.086178 | CE75: 6142.527902 | CF75: 6265.37846 | CG75: 6390.686029 | CH75: 6518.49975 | CI75: 6648.869745 | CJ75: 6781.847139 | CK75: 6917.484082 | CL75: 7055.833764 | CM75: 7196.950439 | CN75: 7340.889448 | CO75: 7487.707237 | CP75: 7637.461381 | CQ75: 7790.210609 | CR75: 7946.014821 | CS75: 8104.935118 | CT75: 8267.03382 | CU75: 8432.374496 | CV75: 8601.021986 | CW75: 8773.042426 | CX75: 8948.503274 | CY75: 9127.47334 | CZ75: 9310.022806 | DA75: 9496.223262 | DB75: 9686.147728 | DC75: 9879.870682 | DD75: 10077.4681 | DE75: 10279.01746 | DF75: 10484.59781 | DG75: 10694.28976 | DH75: 10908.17556 | DI75: 11126.33907 | DJ75: 11348.86585 | DK75: 11575.84317 | DL75: 11807.36003 | DM75: 12043.50723 | DN75: 12284.37738 | DO75: 12530.06492 | DP75: 12780.66622 | DQ75: 13036.27955 | DR75: 13297.00514 | DS75: 13562.94524 | DT75: 13834.20414 | DU75: 14110.88823 | DV75: 14393.10599 | DW75: 14680.96811 | DX75: 14974.58747 | DY75: 15274.07922 | DZ75: 15579.5608 | EA75: 15891.15202 | EB75: 16208.97506 | EC75: 16533.15456 | ED75: =ED73*$D$75 -> 16863.81765 | EE75: 17201.09401 | EF75: 17545.11588 | EG75: 17896.0182 | EH75: 18253.93857 | EI75: 18619.01734 | EJ75: 18991.39768 | EK75: 19371.22564 | EL75: 19758.65015 | EM75: 20153.82315 | EN75: 20556.89961 | EO75: 20968.0376 | EP75: 21387.39836 | EQ75: 21815.14632 | ER75: 22251.44925 | ES75: 22696.47823 | ET75: 23150.4078 | EU75: 23613.41595 | EV75: 24085.68427 | EW75: 24567.39795 | EX75: 25058.74591 | EY75: 25559.92083 | EZ75: 26071.11924 | FA75: 26592.54163 | FB75: 27124.39246 | FC75: 27666.88031 | FD75: 28220.21791 | FE75: 28784.62227 | FF75: 29360.31471 | FG75: 29947.521 | FH75: 30546.47142 | FI75: 31157.40085 | FJ75: 31780.54886 | FK75: 32416.15984 | FL75: 33064.48303 | FM75: 33725.77269 | FN75: 34400.28814 | FO75: 35088.2939 | FP75: 35790.05978 | FQ75: 36505.86097 | FR75: 37235.97819 | FS75: 37980.69775 | FT75: 38740.3117 | FU75: 39515.11793 | FV75: 40305.42028 | FW75: 41111.52868 | FX75: 41933.75925 | FY75: 42772.43443 | FZ75: 43627.88311 | GA75: 44500.44077 | GB75: 45390.44958 | GC75: 46298.25857 | GD75: 47224.22373 | GE75: 48168.7082 | GF75: 49132.08235 | GG75: 50114.72399 | GH75: 51117.01846 | GI75: 52139.35882 | GJ75: 53182.14599 | GK75: 54245.7889 | GL75: 55330.70467 | GM75: 56437.31875 | GN75: 57566.06511 | GO75: 58717.3864 | GP75: =GP73*$D$75 -> 59891.73412 | GQ75: 61089.56879 | GR75: 62311.36015 | GS75: 63557.58734 | GT75: 64828.73907 | GU75: 66125.31383 | GV75: 67447.82009 | GW75: 68796.77647 | GX75: 70172.71198 | GY75: 71576.1662 | GZ75: 73007.6895 | HA75: 74467.84326 | HB75: 75957.2001 | HC75: 77476.34407 | HD75: 79025.87093 | HE75: 80606.38831 | HF75: 82218.51605 | HG75: 83862.88633 | HH75: 85540.14402 | HI75: 87250.94686 | HJ75: 88995.96576 | HK75: 90775.88503 | HL75: 92591.40268 | HM75: 94443.23069 | HN75: 96332.09525 | HO75: 98258.7371 | HP75: 100223.9118 | HQ75: 102228.39 | HR75: 104272.9577 | HS75: 106358.4168 | HT75: 108485.585 | HU75: 110655.2967 | HV75: 112868.4025 | HW75: 115125.7705 | HX75: 117428.2858 | HY75: 119776.8514 | HZ75: 122172.3883 | IA75: 124615.836 | IB75: 127108.1526 | IC75: 129650.3155 | ID75: 132243.3217 | IE75: 134888.188 | IF75: 137585.9516 | IG75: 140337.6705 | IH75: 143144.4237 | II75: 146007.312 | IJ75: 148927.4581 | IK75: 151906.0071 | IL75: 154944.127 | IM75: 158043.0093 | IN75: 161203.8693 | IO75: 164427.9464 | IP75: 167716.5051 | IQ75: 171070.8349 | IR75: 174492.2513 | IS75: 177982.096 | IT75: 181541.7376 | IU75: 185172.572 | IV75: 188876.0231 | IW75: 192653.5432 | IX75: 196506.6136 | IY75: 200436.7455 | IZ75: 204445.4799 | JA75: 208534.3891 | JB75: =JB73*$D$75 -> 212705.0763 | JC75: 216959.1773 | JD75: 221298.3603 | JE75: 225724.3269 | JF75: 230238.8128 | JG75: 234843.5883 | JH75: 239540.4594 | JI75: 244331.2678 | JJ75: 249217.8923 | JK75: 254202.2493 | JL75: 259286.2934 | JM75: 264472.0183 | JN75: 269761.4577 | JO75: 275156.6857 | JP75: 280659.8183 | JQ75: 286273.0135 | JR75: 291998.4725 | JS75: 297838.4405 | JT75: 303795.2079 | JU75: 309871.1106 | JV75: 316068.5312 | JW75: 322389.9001 | JX75: 328837.6963 | JY75: 335414.4483 | JZ75: 342122.7352 | KA75: 348965.1878 | KB75: 355944.4893 | KC75: 363063.3767 | KD75: 370324.6417 | KE75: 377731.1318 | KF75: 385285.7516 | KG75: 392991.4636 | KH75: 400851.2897 | KI75: 408868.3121 | KJ75: 417045.6747 | KK75: 425386.5845 | KL75: 433894.3121 | KM75: 442572.1941 | KN75: 451423.6335 | KO75: 460452.1014 | KP75: 469661.1384 | KQ75: 479054.3558 | KR75: 488635.4373 | KS75: 498408.14 | KT75: 508376.2965 | KU75: 518543.8157 | KV75: 528914.6849 | KW75: 539492.9711 | KX75: 550282.8225 | KY75: 561288.4705 | KZ75: 572514.231 | LA75: 583964.5062 | LB75: 595643.7863 | LC75: 607556.6514 | LD75: 619707.7732 | LE75: 632101.9168 | LF75: 644743.9425 | LG75: 657638.808 | LH75: 670791.5701 | LI75: 684207.3865 | LJ75: 697891.5185 | LK75: 711849.3321 | LL75: 726086.301 | LM75: 740608.0082 | LN75: =LN73*$D$75 -> 755420.1485 | LO75: 770528.5304 | LP75: 785939.0788 | LQ75: 801657.8367 | LR75: 817690.9685 | LS75: 834044.7614 | LT75: 850725.6286 | LU75: 867740.1115 | LV75: 885094.8824 | LW75: 902796.7468 | LX75: 920852.6465 | LY75: 939269.6622 | LZ75: 958055.0159 | MA75: 977216.0745 | MB75: 996760.3517 | MC75: 1016695.512 | MD75: 1037029.373 | ME75: 1057769.908 | MF75: 1078925.25 | MG75: 1100503.696 | MH75: 1122513.708 | MI75: 1144963.916 | MJ75: 1167863.124 | MK75: 1191220.313 | ML75: 1215044.641 | MM75: 1239345.451 | MN75: 1264132.272 | MO75: 1289414.824 | MP75: 1315203.023 | MQ75: 1341506.979 | MR75: 1368337.008 | MS75: 1395703.631 | MT75: 1423617.58 | MU75: 1452089.801 | MV75: 1481131.458 | MW75: 1510753.941 | MX75: 1540968.864 | MY75: 1571788.077 | MZ75: 1603223.664 | NA75: 1635287.953 | NB75: 1667993.516 | NC75: 1701353.18 | ND75: 1735380.024 | NE75: 1770087.393 | NF75: 1805488.895 | NG75: 1841598.413 | NH75: 1878430.106 | NI75: 1915998.417 | NJ75: 1954318.077 | NK75: 1993404.112 | NL75: 2033271.848 | NM75: 2073936.919 | NN75: 2115415.269 | NO75: 2157723.164 | NP75: 2200877.193 | NQ75: 2244894.276 | NR75: 2289791.674 | NS75: 2335586.992 | NT75: 2382298.185 | NU75: 2429943.571 | NV75: 2478541.83 | NW75: 2528112.018 | NX75: 2578673.572 | NY75: 2630246.316 | NZ75: =NZ73*$D$75 -> 2682850.473 | OA75: 2736506.667 | OB75: 2791235.938 | OC75: 2847059.743 | OD75: 2903999.971 | OE75: 2962078.946 | OF75: 3021319.441 | OG75: 3081744.681 | OH75: 3143378.359 | OI75: 3206244.64 | OJ75: 3270368.17 | OK75: 3335774.09 | OL75: 3402488.044 | OM75: 3470536.188 | ON75: 3539945.199 | OO75: 3610742.29 | OP75: 3682955.216 | OQ75: 3756612.287 | OR75: 3831742.381 | OS75: 3908374.95 | OT75: 3986540.036 | OU75: 4066268.282 | OV75: 4147590.943 | OW75: 4230539.898 | OX75: 4315147.664 | OY75: 4401447.407 | OZ75: 4489472.956 | PA75: 4579258.816 | PB75: 4670840.181 | PC75: 4764252.95 | PD75: 4859533.738 | PE75: 4956719.889 | PF75: 5055849.498 | PG75: 5156961.418 | PH75: 5260095.278 | PI75: 5365291.499 | PJ75: 5472591.311 | PK75: 5582036.765 | PL75: 5693670.753 | PM75: 5807537.025 | PN75: 5923680.202 | PO75: 6042145.798 | PP75: 6162980.235 | PQ75: 6286230.862 | PR75: 6411945.975 | PS75: 6540174.83 | PT75: 6670967.671 | PU75: 6804375.742 | PV75: 6940451.312 | PW75: 7079247.69 | PX75: 7220819.253 | PY75: 7365221.459 | PZ75: 7512510.877 | QA75: 7662745.199 | QB75: 7815983.274 | QC75: 7972285.121 | QD75: 8131711.957 | QE75: 8294326.221 | QF75: 8460191.596 | QG75: 8629373.035 | QH75: 8801936.786 | QI75: 8977950.418 | QJ75: 9157482.847 | QK75: 9340604.362 | QL75: =QL73*$D$75 -> 9527386.652 | QM75: 9717902.837 | QN75: 9912227.49 | QO75: 10110436.67 | QP75: 10312607.96 | QQ75: 10518820.47 | QR75: 10729154.9 | QS75: 10943693.55 | QT75: 11162520.37 | QU75: 11385720.95 | QV75: 11613382.61 | QW75: 11845594.4 | QX75: 12082447.15 | QY75: 12324033.47 | QZ75: 12570447.84 | RA75: 12821786.6 | RB75: 13078148.01 | RC75: 13339632.28 | RD75: 13606341.6 | RE75: 13878380.21 | RF75: 14155854.41 | RG75: 14438872.6 | RH75: 14727545.34 | RI75: 15021985.38 | RJ75: 15322307.7 | RK75: 15628629.57 | RL75: 15941070.57 | RM75: 16259752.65 | RN75: 16584800.18 | RO75: 16916339.99 | RP75: 17254501.41 | RQ75: 17599416.33 | RR75: 17951219.26 | RS75: 18310047.35 | RT75: 18676040.47 | RU75: 19049341.22 | RV75: 19430095.05 | RW75: 19818450.26 | RX75: 20214558.07 | RY75: 20618572.69 | RZ75: 21030651.33 | SA75: 21450954.34 | SB75: 21879645.17 | SC75: 22316890.53 | SD75: 22762860.36 | SE75: 23217727.95 | SF75: 23681669.99 | SG75: 24154866.62 | SH75: 24637501.5 | SI75: 25129761.89 | SJ75: 25631838.7 | SK75: 26143926.57 | SL75: 26666223.92 | SM75: 27198933.05 | SN75: 27742260.19 | SO75: 28296415.57 | SP75: 28861613.5 | SQ75: 29438072.45 | SR75: 30026015.11 | SS75: 30625668.49 | ST75: 31237263.97 | SU75: 31861037.39 | SV75: 32497229.15 | SW75: 33146084.24 | SX75: =SX73*$D$75 -> 33807852.39 | SY75: 34482788.08 | SZ75: 35171150.67 | TA75: 35873204.5 | TB75: 36589218.9 | TC75: 37319468.36 | TD75: 38064232.57 | TE75: 38823796.52 | TF75: 39598450.58 | TG75: 40388490.62 | TH75: 41194218.05 | TI75: 42015939.95 | TJ75: 42853969.16 | TK75: 43708624.34 | TL75: 44580230.11 | TM75: 45469117.09 | TN75: 46375622.04 | TO75: 47300087.92 | TP75: 48242864 | TQ75: 49204305.97 | TR75: 50184775.98 | TS75: 51184642.8 | TT75: 52204281.86 | TU75: 53244075.37 | TV75: 54304412.41 | TW75: 55385689.02 | TX75: 56488308.28 | TY75: 57612680.41 | TZ75: 58759222.85 | UA75: 59928360.38 | UB75: 61120525.16 | UC75: 62336156.81 | UD75: 63575702.57 | UE75: 64839617.27 | UF75: 66128363.49 | UG75: 67442411.59 | UH75: 68782239.8 | UI75: 70148334.28 | UJ75: 71541189.16 | UK75: 72961306.66 | UL75: 74409197.07 | UM75: 75885378.84 | UN75: 77390378.63 | UO75: 78924731.3 | UP75: 80488979.99 | UQ75: 82083676.12 | UR75: 83709379.4 | US75: 85366657.82 | UT75: 87056087.7 | UU75: 88778253.62 | UV75: 90533748.42 | UW75: 92323173.15 | UX75: 94147137.05 | UY75: 96006257.44 | UZ75: 97901159.7 | VA75: 99832477.1 | VB75: 101800850.8 | VC75: 103806929.6 | VD75: 105851369.8 | VE75: 107934835.3 | VF75: 110057996.9 | VG75: 112221532.6 | VH75: 114426127 | VI75: 116672471.3 | VJ75: =VJ73*$D$75 -> 118961262.7 | VK75: 121293204.5 | VL75: 123669005.3 | VM75: 126089378.7 | VN75: 128555043.3 | VO75: 131066721.7 | VP75: 133625140.1 | VQ75: 136231027.9 | VR75: 138885117.1 | VS75: 141588141.4 | VT75: 144340835.8 | VU75: 147143935.6 | VV75: 149998175.5 | VW75: 152904289 | VX75: 155863007.2 | VY75: 158875057.8 | VZ75: 161941164 | WA75: 165062043.3 | WB75: 168238406 | WC75: 171470954.2 | WD75: 174760380.1 | WE75: 178107364 | WF75: 181512573.3 | WG75: 184976660.2 | WH75: 188500259.8 | WI75: 192083988 | WJ75: 195728439.3 | WK75: 199434184.3 | WL75: 203201767.2 | WM75: 207031702.8 | WN75: 210924474.1 | WO75: 214880528.7 | WP75: 218900275.4 | WQ75: 222984081.1 | WR75: 227132266.4 | WS75: 231345102.2 | WT75: 235622804.7 | WU75: 239965531.3 | WV75: 244373375.5 | WW75: 248846361.8 | WX75: 253384439.8 | WY75: 257987478.9 | WZ75: 262655261.3 | XA75: 267387475.9 | XB75: 272183711 | XC75: 277043446.4 | XD75: 281966045.9 | XE75: 286950748.5 | XF75: 291996659.3 | XG75: 297102739.7 | XH75: 302267797.4 | XI75: 307490475.6 | XJ75: 312769240.9 | XK75: 318102371.6 | XL75: 323487944.4 | XM75: 328923820.2 | XN75: 334407630.2 | XO75: 339936759.4 | XP75: 345508330.5 | XQ75: 351119186.4 | XR75: 356765871.1 | XS75: 362444610.2 | XT75: 368151289.8 | XU75: 373881434.1 | XV75: =XV73*$D$75 -> 379630181.9 | XW75: 385392261.4 | XX75: 391161963.4 | XY75: 396933113.2 | XZ75: 402699040.8 | YA75: 408452548.8 | YB75: 414185879 | YC75: 419890676.4 | YD75: 425557951.3 | YE75: 431178039.5 | YF75: 436740559.4 | YG75: 442234366.8 | YH75: 447647507.2 | YI75: 452967164.9 | YJ75: 458179609.5 | YK75: 463270138.3 | YL75: 468223016.6 | YM75: 473021413.1 | YN75: 477647332.2 | YO75: 482081542.1 | YP75: 486303498.4 | YQ75: 490291263.7 | YR75: 494021421.2 | YS75: 497468984.9 | YT75: 500607302.7 | YU75: 503407954.9 | YV75: 505840646.3 | YW75: 507873091.7 | YX75: 509470894.7 | YY75: 510597419.4 | YZ75: 511213654.3 | ZA75: 511278068.5 | ZB75: 510746458.6 | ZC75: 509571787.3 | ZD75: 507704012 | ZE75: 505089903.2 | ZF75: 501672852.4 | ZG75: 497392668.5 | ZH75: 492185361.9 | ZI75: 485982916.1 | ZJ75: 478713045.4 | ZK75: 470298939.1 | ZL75: 460658989.2 | ZM75: 449706503.5 | ZN75: 437349400.3 | ZO75: 423489886 | ZP75: 408024113.4 | ZQ75: 390841819.5 | ZR75: 371825942.4 | ZS75: 350852214.8 | ZT75: 327788734.4 | ZU75: 302495508.1 | ZV75: 274823969.8 | ZW75: 244616469.4 | ZX75: 211705731.8 | ZY75: 175914284.2 | ZZ75: 137053848.5 | AAA75: 94924699.61 | AAB75: 49314984.14
C77: Interest Cash Outflow Pre-tax | D77: =G105 -> 0.052 | E77: =E75*$D$77 -> 68.16117747 | F77: =F75*$D$77 -> 69.52440101 | G77: 70.91488903 | H77: 72.33318682 | I77: 73.77985055 | J77: 75.25544756 | K77: 76.76055651 | L77: 78.29576764 | M77: 79.861683 | N77: 81.45891666 | O77: 83.08809499 | P77: 84.74985689 | Q77: 86.44485403 | R77: 88.17375111 | S77: 89.93722613 | T77: 91.73597065 | U77: 93.57069007 | V77: 95.44210387 | W77: 97.35094594 | X77: 99.29796486 | Y77: 101.2839242 | Z77: 103.3096026 | AA77: 105.3757947 | AB77: 107.4833106 | AC77: 109.6329768 | AD77: 111.8256363 | AE77: 114.0621491 | AF77: 116.343392 | AG77: 118.6702599 | AH77: 121.0436651 | AI77: 123.4645384 | AJ77: 125.9338292 | AK77: 128.4525057 | AL77: 131.0215559 | AM77: 133.641987 | AN77: 136.3148267 | AO77: 139.0411232 | AP77: 141.8219457 | AQ77: 144.6583846 | AR77: 147.5515523 | AS77: 150.5025834 | AT77: 153.512635 | AU77: 156.5828877 | AV77: 159.7145455 | AW77: 162.9088364 | AX77: 166.1670131 | AY77: 169.4903534 | AZ77: 172.8801604 | BA77: 176.3377637 | BB77: 179.8645189 | BC77: 183.4618093 | BD77: 187.1310455 | BE77: 190.8736664 | BF77: 194.6911397 | BG77: 198.5849625 | BH77: 202.5566618 | BI77: 206.607795 | BJ77: 210.7399509 | BK77: 214.9547499 | BL77: 219.2538449 | BM77: 223.6389218 | BN77: 228.1117003 | BO77: 232.6739343 | BP77: 237.327413 | BQ77: 242.0739612 | BR77: =BR75*$D$77 -> 246.9154404 | BS77: 251.8537492 | BT77: 256.8908242 | BU77: 262.0286407 | BV77: 267.2692135 | BW77: 272.6145978 | BX77: 278.0668898 | BY77: 283.6282275 | BZ77: 289.3007921 | CA77: 295.0868079 | CB77: 300.9885441 | CC77: 307.008315 | CD77: 313.1484813 | CE77: 319.4114509 | CF77: 325.7996799 | CG77: 332.3156735 | CH77: 338.961987 | CI77: 345.7412267 | CJ77: 352.6560513 | CK77: 359.7091723 | CL77: 366.9033557 | CM77: 374.2414228 | CN77: 381.7262513 | CO77: 389.3607763 | CP77: 397.1479918 | CQ77: 405.0909517 | CR77: 413.1927707 | CS77: 421.4566261 | CT77: 429.8857586 | CU77: 438.4834738 | CV77: 447.2531433 | CW77: 456.1982061 | CX77: 465.3221703 | CY77: 474.6286137 | CZ77: 484.1211859 | DA77: 493.8036096 | DB77: 503.6796818 | DC77: 513.7532755 | DD77: 524.028341 | DE77: 534.5089078 | DF77: 545.1990859 | DG77: 556.1030677 | DH77: 567.225129 | DI77: 578.5696316 | DJ77: 590.1410242 | DK77: 601.9438447 | DL77: 613.9827216 | DM77: 626.262376 | DN77: 638.7876235 | DO77: 651.563376 | DP77: 664.5946435 | DQ77: 677.8865363 | DR77: 691.4442671 | DS77: 705.2731524 | DT77: 719.3786154 | DU77: 733.7661877 | DV77: 748.4415115 | DW77: 763.4103417 | DX77: 778.6785485 | DY77: 794.2521195 | DZ77: 810.1371618 | EA77: 826.3399051 | EB77: 842.8667032 | EC77: 859.7240372 | ED77: =ED75*$D$77 -> 876.9185179 | EE77: 894.4568883 | EF77: 912.346026 | EG77: 930.5929465 | EH77: 949.2048054 | EI77: 968.1889015 | EJ77: 987.5526795 | EK77: 1007.303733 | EL77: 1027.449808 | EM77: 1047.998804 | EN77: 1068.95878 | EO77: 1090.337955 | EP77: 1112.144715 | EQ77: 1134.387609 | ER77: 1157.075361 | ES77: 1180.216868 | ET77: 1203.821205 | EU77: 1227.897629 | EV77: 1252.455582 | EW77: 1277.504694 | EX77: 1303.054787 | EY77: 1329.115883 | EZ77: 1355.698201 | FA77: 1382.812165 | FB77: 1410.468408 | FC77: 1438.677776 | FD77: 1467.451331 | FE77: 1496.800358 | FF77: 1526.736365 | FG77: 1557.271092 | FH77: 1588.416514 | FI77: 1620.184844 | FJ77: 1652.588541 | FK77: 1685.640312 | FL77: 1719.353118 | FM77: 1753.74018 | FN77: 1788.814983 | FO77: 1824.591283 | FP77: 1861.083108 | FQ77: 1898.30477 | FR77: 1936.270866 | FS77: 1974.996283 | FT77: 2014.496208 | FU77: 2054.786132 | FV77: 2095.881855 | FW77: 2137.799491 | FX77: 2180.555481 | FY77: 2224.16659 | FZ77: 2268.649922 | GA77: 2314.02292 | GB77: 2360.303378 | GC77: 2407.509445 | GD77: 2455.659634 | GE77: 2504.772826 | GF77: 2554.868282 | GG77: 2605.965648 | GH77: 2658.08496 | GI77: 2711.246659 | GJ77: 2765.471592 | GK77: 2820.781023 | GL77: 2877.196643 | GM77: 2934.740575 | GN77: 2993.435386 | GO77: 3053.304093 | GP77: =GP75*$D$77 -> 3114.370174 | GQ77: 3176.657577 | GR77: 3240.190728 | GS77: 3304.994541 | GT77: 3371.094431 | GU77: 3438.516319 | GV77: 3507.286645 | GW77: 3577.432376 | GX77: 3648.981023 | GY77: 3721.960642 | GZ77: 3796.399854 | HA77: 3872.32785 | HB77: 3949.774405 | HC77: 4028.769892 | HD77: 4109.345288 | HE77: 4191.532192 | HF77: 4275.362834 | HG77: 4360.870089 | HH77: 4448.087489 | HI77: 4537.049237 | HJ77: 4627.790219 | HK77: 4720.346022 | HL77: 4814.75294 | HM77: 4911.047996 | HN77: 5009.268953 | HO77: 5109.454329 | HP77: 5211.643413 | HQ77: 5315.876278 | HR77: 5422.1938 | HS77: 5530.637672 | HT77: 5641.250422 | HU77: 5754.075426 | HV77: 5869.15693 | HW77: 5986.540065 | HX77: 6106.270861 | HY77: 6228.396273 | HZ77: 6352.964193 | IA77: 6480.023471 | IB77: 6609.623935 | IC77: 6741.816407 | ID77: 6876.652728 | IE77: 7014.185776 | IF77: 7154.469484 | IG77: 7297.558865 | IH77: 7443.510034 | II77: 7592.380226 | IJ77: 7744.227821 | IK77: 7899.112367 | IL77: 8057.094604 | IM77: 8218.236484 | IN77: 8382.601202 | IO77: 8550.253213 | IP77: 8721.258264 | IQ77: 8895.683415 | IR77: 9073.597069 | IS77: 9255.068994 | IT77: 9440.170357 | IU77: 9628.973746 | IV77: 9821.553202 | IW77: 10017.98425 | IX77: 10218.34391 | IY77: 10422.71077 | IZ77: 10631.16496 | JA77: 10843.78823 | JB77: =JB75*$D$77 -> 11060.66397 | JC77: 11281.87722 | JD77: 11507.51473 | JE77: 11737.665 | JF77: 11972.41826 | JG77: 12211.86659 | JH77: 12456.10389 | JI77: 12705.22593 | JJ77: 12959.3304 | JK77: 13218.51697 | JL77: 13482.88726 | JM77: 13752.54495 | JN77: 14027.5958 | JO77: 14308.14766 | JP77: 14594.31055 | JQ77: 14886.1967 | JR77: 15183.92057 | JS77: 15487.59891 | JT77: 15797.35081 | JU77: 16113.29775 | JV77: 16435.56362 | JW77: 16764.2748 | JX77: 17099.56021 | JY77: 17441.55131 | JZ77: 17790.38223 | KA77: 18146.18977 | KB77: 18509.11344 | KC77: 18879.29559 | KD77: 19256.88137 | KE77: 19642.01885 | KF77: 20034.85908 | KG77: 20435.55611 | KH77: 20844.26706 | KI77: 21261.15223 | KJ77: 21686.37509 | KK77: 22120.10239 | KL77: 22562.50423 | KM77: 23013.75409 | KN77: 23474.02894 | KO77: 23943.50927 | KP77: 24422.3792 | KQ77: 24910.8265 | KR77: 25409.04274 | KS77: 25917.22328 | KT77: 26435.56742 | KU77: 26964.27842 | KV77: 27503.56361 | KW77: 28053.6345 | KX77: 28614.70677 | KY77: 29187.00047 | KZ77: 29770.74001 | LA77: 30366.15432 | LB77: 30973.47689 | LC77: 31592.94587 | LD77: 32224.80421 | LE77: 32869.29967 | LF77: 33526.68501 | LG77: 34197.21802 | LH77: 34881.16164 | LI77: 35578.7841 | LJ77: 36290.35896 | LK77: 37016.16527 | LL77: 37756.48765 | LM77: 38511.61643 | LN77: =LN75*$D$77 -> 39281.84772 | LO77: 40067.48358 | LP77: 40868.8321 | LQ77: 41686.20751 | LR77: 42519.93036 | LS77: 43370.32759 | LT77: 44237.73269 | LU77: 45122.4858 | LV77: 46024.93388 | LW77: 46945.43083 | LX77: 47884.33762 | LY77: 48842.02243 | LZ77: 49818.86083 | MA77: 50815.23587 | MB77: 51831.53829 | MC77: 52868.16662 | MD77: 53925.52737 | ME77: 55004.03519 | MF77: 56104.113 | MG77: 57226.1922 | MH77: 58370.71281 | MI77: 59538.12363 | MJ77: 60728.88247 | MK77: 61943.45627 | ML77: 63182.32133 | MM77: 64445.96344 | MN77: 65734.87814 | MO77: 67049.57087 | MP77: 68390.55717 | MQ77: 69758.3629 | MR77: 71153.52442 | MS77: 72576.58883 | MT77: 74028.11417 | MU77: 75508.66965 | MV77: 77018.83583 | MW77: 78559.20491 | MX77: 80130.38093 | MY77: 81732.97998 | MZ77: 83367.63052 | NA77: 85034.97354 | NB77: 86735.66285 | NC77: 88470.36535 | ND77: 90239.76127 | NE77: 92044.54444 | NF77: 93885.42256 | NG77: 95763.11749 | NH77: 97678.36553 | NI77: 99631.91768 | NJ77: 101624.54 | NK77: 103657.0138 | NL77: 105730.1361 | NM77: 107844.7198 | NN77: 110001.594 | NO77: 112201.6045 | NP77: 114445.614 | NQ77: 116734.5024 | NR77: 119069.1671 | NS77: 121450.5236 | NT77: 123879.5056 | NU77: 126357.0657 | NV77: 128884.1751 | NW77: 131461.8249 | NX77: 134091.0257 | NY77: 136772.8084 | NZ77: =NZ75*$D$77 -> 139508.2246 | OA77: 142298.3467 | OB77: 145144.2688 | OC77: 148047.1066 | OD77: 151007.9985 | OE77: 154028.1052 | OF77: 157108.6109 | OG77: 160250.7234 | OH77: 163455.6747 | OI77: 166724.7213 | OJ77: 170059.1448 | OK77: 173460.2527 | OL77: 176929.3783 | OM77: 180467.8818 | ON77: 184077.1503 | OO77: 187758.5991 | OP77: 191513.6712 | OQ77: 195343.8389 | OR77: 199250.6038 | OS77: 203235.4974 | OT77: 207300.0819 | OU77: 211445.9507 | OV77: 215674.729 | OW77: 219988.0747 | OX77: 224387.6785 | OY77: 228875.2651 | OZ77: 233452.5937 | PA77: 238121.4584 | PB77: 242883.6894 | PC77: 247741.1534 | PD77: 252695.7544 | PE77: 257749.4342 | PF77: 262904.1739 | PG77: 268161.9937 | PH77: 273524.9544 | PI77: 278995.158 | PJ77: 284574.7482 | PK77: 290265.9118 | PL77: 296070.8792 | PM77: 301991.9253 | PN77: 308031.3705 | PO77: 314191.5815 | PP77: 320474.9722 | PQ77: 326884.0048 | PR77: 333421.1907 | PS77: 340089.0912 | PT77: 346890.3189 | PU77: 353827.5386 | PV77: 360903.4682 | PW77: 368120.8799 | PX77: 375482.6012 | PY77: 382991.5159 | PZ77: 390650.5656 | QA77: 398462.7504 | QB77: 406431.1303 | QC77: 414558.8263 | QD77: 422849.0218 | QE77: 431304.9635 | QF77: 439929.963 | QG77: 448727.3978 | QH77: 457700.7129 | QI77: 466853.4217 | QJ77: 476189.108 | QK77: 485711.4268 | QL77: =QL75*$D$77 -> 495424.1059 | QM77: 505330.9475 | QN77: 515435.8295 | QO77: 525742.707 | QP77: 536255.6139 | QQ77: 546978.6645 | QR77: 557916.0549 | QS77: 569072.0648 | QT77: 580451.059 | QU77: 592057.4892 | QV77: 603895.8957 | QW77: 615970.909 | QX77: 628287.2518 | QY77: 640849.7407 | QZ77: 653663.2879 | RA77: 666732.9034 | RB77: 680063.6966 | RC77: 693660.8784 | RD77: 707529.7633 | RE77: 721675.7711 | RF77: 736104.4294 | RG77: 750821.3753 | RH77: 765832.3578 | RI77: 781143.2398 | RJ77: 796760.0006 | RK77: 812688.7376 | RL77: 828935.6695 | RM77: 845507.1376 | RN77: 862409.6092 | RO77: 879649.6792 | RP77: 897234.0731 | RQ77: 915169.6493 | RR77: 933463.4017 | RS77: 952122.4624 | RT77: 971154.1042 | RU77: 990565.7434 | RV77: 1010364.943 | RW77: 1030559.414 | RX77: 1051157.02 | RY77: 1072165.78 | RZ77: 1093593.869 | SA77: 1115449.625 | SB77: 1137741.549 | SC77: 1160478.307 | SD77: 1183668.739 | SE77: 1207321.853 | SF77: 1231446.839 | SG77: 1256053.064 | SH77: 1281150.078 | SI77: 1306747.618 | SJ77: 1332855.612 | SK77: 1359484.181 | SL77: 1386643.644 | SM77: 1414344.519 | SN77: 1442597.53 | SO77: 1471413.61 | SP77: 1500803.902 | SQ77: 1530779.767 | SR77: 1561352.786 | SS77: 1592534.762 | ST77: 1624337.726 | SU77: 1656773.944 | SV77: 1689855.916 | SW77: 1723596.381 | SX77: =SX75*$D$77 -> 1758008.324 | SY77: 1793104.98 | SZ77: 1828899.835 | TA77: 1865406.634 | TB77: 1902639.383 | TC77: 1940612.355 | TD77: 1979340.093 | TE77: 2018837.419 | TF77: 2059119.43 | TG77: 2100201.512 | TH77: 2142099.338 | TI77: 2184828.877 | TJ77: 2228406.396 | TK77: 2272848.466 | TL77: 2318171.966 | TM77: 2364394.089 | TN77: 2411532.346 | TO77: 2459604.572 | TP77: 2508628.928 | TQ77: 2558623.91 | TR77: 2609608.351 | TS77: 2661601.426 | TT77: 2714622.657 | TU77: 2768691.919 | TV77: 2823829.445 | TW77: 2880055.829 | TX77: 2937392.03 | TY77: 2995859.381 | TZ77: 3055479.588 | UA77: 3116274.74 | UB77: 3178267.308 | UC77: 3241480.154 | UD77: 3305936.534 | UE77: 3371660.098 | UF77: 3438674.902 | UG77: 3507005.403 | UH77: 3576676.47 | UI77: 3647713.382 | UJ77: 3720141.836 | UK77: 3793987.946 | UL77: 3869278.248 | UM77: 3946039.7 | UN77: 4024299.689 | UO77: 4104086.028 | UP77: 4185426.96 | UQ77: 4268351.158 | UR77: 4352887.729 | US77: 4439066.207 | UT77: 4526916.56 | UU77: 4616469.188 | UV77: 4707754.918 | UW77: 4800805.004 | UX77: 4895651.127 | UY77: 4992325.387 | UZ77: 5090860.304 | VA77: 5191288.809 | VB77: 5293644.241 | VC77: 5397960.338 | VD77: 5504271.231 | VE77: 5612611.435 | VF77: 5723015.839 | VG77: 5835519.695 | VH77: 5950158.605 | VI77: 6066968.508 | VJ77: =VJ75*$D$77 -> 6185985.663 | VK77: 6307246.635 | VL77: 6430788.274 | VM77: 6556647.695 | VN77: 6684862.254 | VO77: 6815469.528 | VP77: 6948507.284 | VQ77: 7084013.451 | VR77: 7222026.089 | VS77: 7362583.355 | VT77: 7505723.464 | VU77: 7651484.651 | VV77: 7799905.126 | VW77: 7951023.028 | VX77: 8104876.374 | VY77: 8261503.006 | VZ77: 8420940.528 | WA77: 8583226.249 | WB77: 8748397.112 | WC77: 8916489.621 | WD77: 9087539.763 | WE77: 9261582.927 | WF77: 9438653.812 | WG77: 9618786.332 | WH77: 9802013.511 | WI77: 9988367.379 | WJ77: 10177878.85 | WK77: 10370577.58 | WL77: 10566491.89 | WM77: 10765648.55 | WN77: 10968072.66 | WO77: 11173787.49 | WP77: 11382814.32 | WQ77: 11595172.22 | WR77: 11810877.85 | WS77: 12029945.31 | WT77: 12252385.84 | WU77: 12478207.63 | WV77: 12707415.53 | WW77: 12940010.81 | WX77: 13175990.87 | WY77: 13415348.9 | WZ77: 13658073.59 | XA77: 13904148.75 | XB77: 14153552.97 | XC77: 14406259.21 | XD77: 14662234.39 | XE77: 14921438.92 | XF77: 15183826.28 | XG77: 15449342.46 | XH77: 15717925.47 | XI77: 15989504.73 | XJ77: 16264000.53 | XK77: 16541323.33 | XL77: 16821373.11 | XM77: 17104038.65 | XN77: 17389196.77 | XO77: 17676711.49 | XP77: 17966433.19 | XQ77: 18258197.69 | XR77: 18551825.3 | XS77: 18847119.73 | XT77: 19143867.07 | XU77: 19441834.57 | XV77: =XV75*$D$77 -> 19740769.46 | XW77: 20040397.59 | XX77: 20340422.09 | XY77: 20640521.89 | XZ77: 20940350.12 | YA77: 21239532.54 | YB77: 21537665.71 | YC77: 21834315.17 | YD77: 22129013.47 | YE77: 22421258.06 | YF77: 22710509.09 | YG77: 22996187.08 | YH77: 23277670.38 | YI77: 23554292.58 | YJ77: 23825339.69 | YK77: 24090047.19 | YL77: 24347596.86 | YM77: 24597113.48 | YN77: 24837661.27 | YO77: 25068240.19 | YP77: 25287781.92 | YQ77: 25495145.71 | YR77: 25689113.9 | YS77: 25868387.21 | YT77: 26031579.74 | YU77: 26177213.65 | YV77: 26303713.61 | YW77: 26409400.77 | YX77: 26492486.53 | YY77: 26551065.81 | YZ77: 26583110.03 | ZA77: 26586459.56 | ZB77: 26558815.85 | ZC77: 26497732.94 | ZD77: 26400608.62 | ZE77: 26264674.96 | ZF77: 26086988.33 | ZG77: 25864418.76 | ZH77: 25593638.82 | ZI77: 25271111.64 | ZJ77: 24893078.36 | ZK77: 24455544.83 | ZL77: 23954267.44 | ZM77: 23384738.18 | ZN77: 22742168.81 | ZO77: 22021474.07 | ZP77: 21217253.9 | ZQ77: 20323774.62 | ZR77: 19334949.01 | ZS77: 18244315.17 | ZT77: 17045014.19 | ZU77: 15729766.42 | ZV77: 14290846.43 | ZW77: 12720056.41 | ZX77: 11008698.06 | ZY77: 9147542.777 | ZZ77: 7126800.123 | AAA77: 4936084.38 | AAB77: 2564379.175
C78: Less: Tax Shield from Interest | D78: =D98 -> 0.3 | E78: =$D$78*E77 -> 20.44835324 | F78: =$D$78*F77 -> 20.8573203 | G78: 21.27446671 | H78: 21.69995604 | I78: 22.13395517 | J78: 22.57663427 | K78: 23.02816695 | L78: 23.48873029 | M78: 23.9585049 | N78: 24.437675 | O78: 24.9264285 | P78: 25.42495707 | Q78: 25.93345621 | R78: 26.45212533 | S78: 26.98116784 | T78: 27.5207912 | U78: 28.07120702 | V78: 28.63263116 | W78: 29.20528378 | X78: 29.78938946 | Y78: 30.38517725 | Z78: 30.99288079 | AA78: 31.61273841 | AB78: 32.24499318 | AC78: 32.88989304 | AD78: 33.5476909 | AE78: 34.21864472 | AF78: 34.90301761 | AG78: 35.60107797 | AH78: 36.31309953 | AI78: 37.03936152 | AJ78: 37.78014875 | AK78: 38.53575172 | AL78: 39.30646676 | AM78: 40.09259609 | AN78: 40.89444801 | AO78: 41.71233697 | AP78: 42.54658371 | AQ78: 43.39751539 | AR78: 44.26546569 | AS78: 45.15077501 | AT78: 46.05379051 | AU78: 46.97486632 | AV78: 47.91436364 | AW78: 48.87265092 | AX78: 49.85010394 | AY78: 50.84710601 | AZ78: 51.86404813 | BA78: 52.9013291 | BB78: 53.95935568 | BC78: 55.03854279 | BD78: 56.13931365 | BE78: 57.26209992 | BF78: 58.40734192 | BG78: 59.57548876 | BH78: 60.76699853 | BI78: 61.9823385 | BJ78: 63.22198527 | BK78: 64.48642498 | BL78: 65.77615348 | BM78: 67.09167655 | BN78: 68.43351008 | BO78: 69.80218028 | BP78: 71.19822389 | BQ78: 72.62218836 | BR78: =$D$78*BR77 -> 74.07463213 | BS78: 75.55612477 | BT78: 77.06724727 | BU78: 78.60859221 | BV78: 80.18076406 | BW78: 81.78437934 | BX78: 83.42006693 | BY78: 85.08846826 | BZ78: 86.79023763 | CA78: 88.52604238 | CB78: 90.29656323 | CC78: 92.10249449 | CD78: 93.94454438 | CE78: 95.82343527 | CF78: 97.73990397 | CG78: 99.69470205 | CH78: 101.6885961 | CI78: 103.722368 | CJ78: 105.7968154 | CK78: 107.9127517 | CL78: 110.0710067 | CM78: 112.2724268 | CN78: 114.5178754 | CO78: 116.8082329 | CP78: 119.1443976 | CQ78: 121.5272855 | CR78: 123.9578312 | CS78: 126.4369878 | CT78: 128.9657276 | CU78: 131.5450421 | CV78: 134.175943 | CW78: 136.8594618 | CX78: 139.5966511 | CY78: 142.3885841 | CZ78: 145.2363558 | DA78: 148.1410829 | DB78: 151.1039046 | DC78: 154.1259826 | DD78: 157.2085023 | DE78: 160.3526723 | DF78: 163.5597258 | DG78: 166.8309203 | DH78: 170.1675387 | DI78: 173.5708895 | DJ78: 177.0423073 | DK78: 180.5831534 | DL78: 184.1948165 | DM78: 187.8787128 | DN78: 191.6362871 | DO78: 195.4690128 | DP78: 199.378393 | DQ78: 203.3659609 | DR78: 207.4332801 | DS78: 211.5819457 | DT78: 215.8135846 | DU78: 220.1298563 | DV78: 224.5324534 | DW78: 229.0231025 | DX78: 233.6035646 | DY78: 238.2756358 | DZ78: 243.0411486 | EA78: 247.9019715 | EB78: 252.8600109 | EC78: 257.9172112 | ED78: =$D$78*ED77 -> 263.0755554 | EE78: 268.3370665 | EF78: 273.7038078 | EG78: 279.177884 | EH78: 284.7614416 | EI78: 290.4566704 | EJ78: 296.2658039 | EK78: 302.1911199 | EL78: 308.2349423 | EM78: 314.3996411 | EN78: 320.687634 | EO78: 327.1013866 | EP78: 333.6434144 | EQ78: 340.3162826 | ER78: 347.1226083 | ES78: 354.0650604 | ET78: 361.1463616 | EU78: 368.3692888 | EV78: 375.7366746 | EW78: 383.2514081 | EX78: 390.9164362 | EY78: 398.7347649 | EZ78: 406.7094602 | FA78: 414.8436494 | FB78: 423.1405224 | FC78: 431.6033328 | FD78: 440.2353994 | FE78: 449.0401074 | FF78: 458.0209095 | FG78: 467.1813277 | FH78: 476.5249542 | FI78: 486.0554532 | FJ78: 495.7765623 | FK78: 505.6920935 | FL78: 515.8059353 | FM78: 526.122054 | FN78: 536.644495 | FO78: 547.3773849 | FP78: 558.3249325 | FQ78: 569.4914311 | FR78: 580.8812597 | FS78: 592.4988848 | FT78: 604.3488625 | FU78: 616.4358397 | FV78: 628.7645564 | FW78: 641.3398474 | FX78: 654.1666443 | FY78: 667.2499771 | FZ78: 680.5949766 | GA78: 694.206876 | GB78: 708.0910134 | GC78: 722.2528336 | GD78: 736.6978902 | GE78: 751.4318479 | GF78: 766.4604847 | GG78: 781.7896943 | GH78: 797.425488 | GI78: 813.3739977 | GJ78: 829.6414775 | GK78: 846.2343069 | GL78: 863.1589928 | GM78: 880.4221725 | GN78: 898.0306158 | GO78: 915.9912279 | GP78: =$D$78*GP77 -> 934.3110523 | GQ78: 952.9972731 | GR78: 972.0572183 | GS78: 991.4983624 | GT78: 1011.328329 | GU78: 1031.554896 | GV78: 1052.185993 | GW78: 1073.229713 | GX78: 1094.694307 | GY78: 1116.588193 | GZ78: 1138.919956 | HA78: 1161.698355 | HB78: 1184.932322 | HC78: 1208.630968 | HD78: 1232.803586 | HE78: 1257.459658 | HF78: 1282.60885 | HG78: 1308.261027 | HH78: 1334.426247 | HI78: 1361.114771 | HJ78: 1388.337066 | HK78: 1416.103806 | HL78: 1444.425882 | HM78: 1473.314399 | HN78: 1502.780686 | HO78: 1532.836299 | HP78: 1563.493024 | HQ78: 1594.762883 | HR78: 1626.65814 | HS78: 1659.191302 | HT78: 1692.375127 | HU78: 1726.222628 | HV78: 1760.747079 | HW78: 1795.962019 | HX78: 1831.881258 | HY78: 1868.518882 | HZ78: 1905.889258 | IA78: 1944.007041 | IB78: 1982.88718 | IC78: 2022.544922 | ID78: 2062.995819 | IE78: 2104.255733 | IF78: 2146.340845 | IG78: 2189.26766 | IH78: 2233.05301 | II78: 2277.714068 | IJ78: 2323.268346 | IK78: 2369.73371 | IL78: 2417.128381 | IM78: 2465.470945 | IN78: 2514.780361 | IO78: 2565.075964 | IP78: 2616.377479 | IQ78: 2668.705025 | IR78: 2722.079121 | IS78: 2776.520698 | IT78: 2832.051107 | IU78: 2888.692124 | IV78: 2946.465961 | IW78: 3005.395274 | IX78: 3065.503173 | IY78: 3126.81323 | IZ78: 3189.349487 | JA78: 3253.136469 | JB78: =$D$78*JB77 -> 3318.199191 | JC78: 3384.563166 | JD78: 3452.25442 | JE78: 3521.299499 | JF78: 3591.725479 | JG78: 3663.559978 | JH78: 3736.831166 | JI78: 3811.567778 | JJ78: 3887.799121 | JK78: 3965.55509 | JL78: 4044.866177 | JM78: 4125.763486 | JN78: 4208.27874 | JO78: 4292.444298 | JP78: 4378.293166 | JQ78: 4465.85901 | JR78: 4555.17617 | JS78: 4646.279673 | JT78: 4739.205244 | JU78: 4833.989325 | JV78: 4930.669086 | JW78: 5029.282441 | JX78: 5129.868062 | JY78: 5232.465393 | JZ78: 5337.11467 | KA78: 5443.85693 | KB78: 5552.734033 | KC78: 5663.788676 | KD78: 5777.06441 | KE78: 5892.605656 | KF78: 6010.457725 | KG78: 6130.666832 | KH78: 6253.280119 | KI78: 6378.345669 | KJ78: 6505.912526 | KK78: 6636.030717 | KL78: 6768.751269 | KM78: 6904.126228 | KN78: 7042.208683 | KO78: 7183.052782 | KP78: 7326.713759 | KQ78: 7473.247951 | KR78: 7622.712821 | KS78: 7775.166984 | KT78: 7930.670225 | KU78: 8089.283525 | KV78: 8251.069084 | KW78: 8416.090349 | KX78: 8584.412031 | KY78: 8756.10014 | KZ78: 8931.222004 | LA78: 9109.846296 | LB78: 9292.043066 | LC78: 9477.883762 | LD78: 9667.441262 | LE78: 9860.789902 | LF78: 10058.0055 | LG78: 10259.16541 | LH78: 10464.34849 | LI78: 10673.63523 | LJ78: 10887.10769 | LK78: 11104.84958 | LL78: 11326.9463 | LM78: 11553.48493 | LN78: =$D$78*LN77 -> 11784.55432 | LO78: 12020.24507 | LP78: 12260.64963 | LQ78: 12505.86225 | LR78: 12755.97911 | LS78: 13011.09828 | LT78: 13271.31981 | LU78: 13536.74574 | LV78: 13807.48016 | LW78: 14083.62925 | LX78: 14365.30129 | LY78: 14652.60673 | LZ78: 14945.65825 | MA78: 15244.57076 | MB78: 15549.46149 | MC78: 15860.44999 | MD78: 16177.65821 | ME78: 16501.21056 | MF78: 16831.2339 | MG78: 17167.85766 | MH78: 17511.21384 | MI78: 17861.43709 | MJ78: 18218.66474 | MK78: 18583.03688 | ML78: 18954.6964 | MM78: 19333.78903 | MN78: 19720.46344 | MO78: 20114.87126 | MP78: 20517.16715 | MQ78: 20927.50887 | MR78: 21346.05733 | MS78: 21772.97665 | MT78: 22208.43425 | MU78: 22652.60089 | MV78: 23105.65075 | MW78: 23567.76147 | MX78: 24039.11428 | MY78: 24519.894 | MZ78: 25010.28916 | NA78: 25510.49206 | NB78: 26020.69885 | NC78: 26541.1096 | ND78: 27071.92838 | NE78: 27613.36333 | NF78: 28165.62677 | NG78: 28728.93525 | NH78: 29303.50966 | NI78: 29889.57531 | NJ78: 30487.362 | NK78: 31097.10414 | NL78: 31719.04083 | NM78: 32353.41593 | NN78: 33000.4782 | NO78: 33660.48136 | NP78: 34333.68421 | NQ78: 35020.35071 | NR78: 35720.75012 | NS78: 36435.15707 | NT78: 37163.85169 | NU78: 37907.1197 | NV78: 38665.25254 | NW78: 39438.54748 | NX78: 40227.30772 | NY78: 41031.84253 | NZ78: =$D$78*NZ77 -> 41852.46738 | OA78: 42689.50401 | OB78: 43543.28063 | OC78: 44414.13199 | OD78: 45302.39954 | OE78: 46208.43156 | OF78: 47132.58327 | OG78: 48075.21703 | OH78: 49036.70241 | OI78: 50017.41638 | OJ78: 51017.74345 | OK78: 52038.07581 | OL78: 53078.81349 | OM78: 54140.36453 | ON78: 55223.1451 | OO78: 56327.57972 | OP78: 57454.10136 | OQ78: 58603.15168 | OR78: 59775.18114 | OS78: 60970.64921 | OT78: 62190.02456 | OU78: 63433.7852 | OV78: 64702.41871 | OW78: 65996.42241 | OX78: 67316.30355 | OY78: 68662.57954 | OZ78: 70035.77811 | PA78: 71436.43752 | PB78: 72865.10683 | PC78: 74322.34603 | PD78: 75808.72631 | PE78: 77324.83027 | PF78: 78871.25217 | PG78: 80448.59812 | PH78: 82057.48633 | PI78: 83698.54739 | PJ78: 85372.42445 | PK78: 87079.77353 | PL78: 88821.26375 | PM78: 90597.57759 | PN78: 92409.41115 | PO78: 94257.47445 | PP78: 96142.49167 | PQ78: 98065.20145 | PR78: 100026.3572 | PS78: 102026.7273 | PT78: 104067.0957 | PU78: 106148.2616 | PV78: 108271.0405 | PW78: 110436.264 | PX78: 112644.7803 | PY78: 114897.4548 | PZ78: 117195.1697 | QA78: 119538.8251 | QB78: 121929.3391 | QC78: 124367.6479 | QD78: 126854.7065 | QE78: 129391.489 | QF78: 131978.9889 | QG78: 134618.2193 | QH78: 137310.2139 | QI78: 140056.0265 | QJ78: 142856.7324 | QK78: 145713.428 | QL78: =$D$78*QL77 -> 148627.2318 | QM78: 151599.2843 | QN78: 154630.7488 | QO78: 157722.8121 | QP78: 160876.6842 | QQ78: 164093.5994 | QR78: 167374.8165 | QS78: 170721.6194 | QT78: 174135.3177 | QU78: 177617.2468 | QV78: 181168.7687 | QW78: 184791.2727 | QX78: 188486.1755 | QY78: 192254.9222 | QZ78: 196098.9864 | RA78: 200019.871 | RB78: 204019.109 | RC78: 208098.2635 | RD78: 212258.929 | RE78: 216502.7313 | RF78: 220831.3288 | RG78: 225246.4126 | RH78: 229749.7073 | RI78: 234342.972 | RJ78: 239028.0002 | RK78: 243806.6213 | RL78: 248680.7008 | RM78: 253652.1413 | RN78: 258722.8828 | RO78: 263894.9038 | RP78: 269170.2219 | RQ78: 274550.8948 | RR78: 280039.0205 | RS78: 285636.7387 | RT78: 291346.2313 | RU78: 297169.723 | RV78: 303109.4828 | RW78: 309167.8241 | RX78: 315347.106 | RY78: 321649.7339 | RZ78: 328078.1608 | SA78: 334634.8876 | SB78: 341322.4647 | SC78: 348143.4922 | SD78: 355100.6216 | SE78: 362196.556 | SF78: 369434.0518 | SG78: 376815.9192 | SH78: 384345.0233 | SI78: 392024.2854 | SJ78: 399856.6837 | SK78: 407845.2544 | SL78: 415993.0932 | SM78: 424303.3556 | SN78: 432779.259 | SO78: 441424.0829 | SP78: 450241.1706 | SQ78: 459233.9302 | SR78: 468405.8358 | SS78: 477760.4285 | ST78: 487301.3179 | SU78: 497032.1833 | SV78: 506956.7747 | SW78: 517078.9142 | SX78: =$D$78*SX77 -> 527402.4972 | SY78: 537931.494 | SZ78: 548669.9505 | TA78: 559621.9901 | TB78: 570791.8148 | TC78: 582183.7064 | TD78: 593802.028 | TE78: 605651.2256 | TF78: 617735.8291 | TG78: 630060.4536 | TH78: 642629.8015 | TI78: 655448.6632 | TJ78: 668521.9189 | TK78: 681854.5398 | TL78: 695451.5897 | TM78: 709318.2266 | TN78: 723459.7038 | TO78: 737881.3715 | TP78: 752588.6784 | TQ78: 767587.1731 | TR78: 782882.5053 | TS78: 798480.4277 | TT78: 814386.797 | TU78: 830607.5758 | TV78: 847148.8336 | TW78: 864016.7487 | TX78: 881217.6091 | TY78: 898757.8143 | TZ78: 916643.8765 | UA78: 934882.422 | UB78: 953480.1924 | UC78: 972444.0463 | UD78: 991780.9601 | UE78: 1011498.029 | UF78: 1031602.47 | UG78: 1052101.621 | UH78: 1073002.941 | UI78: 1094314.015 | UJ78: 1116042.551 | UK78: 1138196.384 | UL78: 1160783.474 | UM78: 1183811.91 | UN78: 1207289.907 | UO78: 1231225.808 | UP78: 1255628.088 | UQ78: 1280505.348 | UR78: 1305866.319 | US78: 1331719.862 | UT78: 1358074.968 | UU78: 1384940.756 | UV78: 1412326.475 | UW78: 1440241.501 | UX78: 1468695.338 | UY78: 1497697.616 | UZ78: 1527258.091 | VA78: 1557386.643 | VB78: 1588093.272 | VC78: 1619388.101 | VD78: 1651281.369 | VE78: 1683783.43 | VF78: 1716904.752 | VG78: 1750655.908 | VH78: 1785047.581 | VI78: 1820090.552 | VJ78: =$D$78*VJ77 -> 1855795.699 | VK78: 1892173.991 | VL78: 1929236.482 | VM78: 1966994.308 | VN78: 2005458.676 | VO78: 2044640.858 | VP78: 2084552.185 | VQ78: 2125204.035 | VR78: 2166607.827 | VS78: 2208775.006 | VT78: 2251717.039 | VU78: 2295445.395 | VV78: 2339971.538 | VW78: 2385306.908 | VX78: 2431462.912 | VY78: 2478450.902 | VZ78: 2526282.158 | WA78: 2574967.875 | WB78: 2624519.134 | WC78: 2674946.886 | WD78: 2726261.929 | WE78: 2778474.878 | WF78: 2831596.144 | WG78: 2885635.9 | WH78: 2940604.053 | WI78: 2996510.214 | WJ78: 3053363.654 | WK78: 3111173.275 | WL78: 3169947.568 | WM78: 3229694.564 | WN78: 3290421.797 | WO78: 3352136.248 | WP78: 3414844.297 | WQ78: 3478551.665 | WR78: 3543263.356 | WS78: 3608983.594 | WT78: 3675715.753 | WU78: 3743462.288 | WV78: 3812224.658 | WW78: 3882003.244 | WX78: 3952797.261 | WY78: 4024604.671 | WZ78: 4097422.076 | XA78: 4171244.625 | XB78: 4246065.891 | XC78: 4321877.764 | XD78: 4398670.317 | XE78: 4476431.677 | XF78: 4555147.885 | XG78: 4634802.739 | XH78: 4715377.64 | XI78: 4796851.419 | XJ78: 4879200.158 | XK78: 4962396.998 | XL78: 5046411.932 | XM78: 5131211.596 | XN78: 5216759.031 | XO78: 5303013.446 | XP78: 5389929.956 | XQ78: 5477459.308 | XR78: 5565547.589 | XS78: 5654135.919 | XT78: 5743160.12 | XU78: 5832550.372 | XV78: =$D$78*XV77 -> 5922230.838 | XW78: 6012119.278 | XX78: 6102126.628 | XY78: 6192156.566 | XZ78: 6282105.037 | YA78: 6371859.762 | YB78: 6461299.713 | YC78: 6550294.551 | YD78: 6638704.04 | YE78: 6726377.417 | YF78: 6813152.727 | YG78: 6898856.123 | YH78: 6983301.113 | YI78: 7066287.773 | YJ78: 7147601.908 | YK78: 7227014.157 | YL78: 7304279.059 | YM78: 7379134.044 | YN78: 7451298.382 | YO78: 7520472.056 | YP78: 7586334.576 | YQ78: 7648543.713 | YR78: 7706734.171 | YS78: 7760516.164 | YT78: 7809473.922 | YU78: 7853164.096 | YV78: 7891114.083 | YW78: 7922820.231 | YX78: 7947745.958 | YY78: 7965319.743 | YZ78: 7974933.008 | ZA78: 7975937.869 | ZB78: 7967644.755 | ZC78: 7949319.882 | ZD78: 7920182.587 | ZE78: 7879402.489 | ZF78: 7826096.498 | ZG78: 7759325.629 | ZH78: 7678091.646 | ZI78: 7581333.491 | ZJ78: 7467923.509 | ZK78: 7336663.45 | ZL78: 7186280.232 | ZM78: 7015421.455 | ZN78: 6822650.644 | ZO78: 6606442.221 | ZP78: 6365176.169 | ZQ78: 6097132.385 | ZR78: 5800484.702 | ZS78: 5473294.551 | ZT78: 5113504.257 | ZU78: 4718929.927 | ZV78: 4287253.929 | ZW78: 3816016.922 | ZX78: 3302609.417 | ZY78: 2744262.833 | ZZ78: 2138040.037 | AAA78: 1480825.314 | AAB78: 769313.7526
C79: Net Interest Cash Flow | E79: =E77-E78 -> 47.71282423 | F79: =F77-F78 -> 48.66708071 | G79: 49.64042232 | H79: 50.63323077 | I79: 51.64589539 | J79: 52.67881329 | K79: 53.73238956 | L79: 54.80703735 | M79: 55.9031781 | N79: 57.02124166 | O79: 58.16166649 | P79: 59.32489982 | Q79: 60.51139782 | R79: 61.72162578 | S79: 62.95605829 | T79: 64.21517946 | U79: 65.49948305 | V79: 66.80947271 | W79: 68.14566216 | X79: 69.5085754 | Y79: 70.89874691 | Z79: 72.31672185 | AA79: 73.76305629 | AB79: 75.23831741 | AC79: 76.74308376 | AD79: 78.27794544 | AE79: 79.84350435 | AF79: 81.44037443 | AG79: 83.06918192 | AH79: 84.73056556 | AI79: 86.42517687 | AJ79: 88.15368041 | AK79: 89.91675402 | AL79: 91.7150891 | AM79: 93.54939088 | AN79: 95.4203787 | AO79: 97.32878627 | AP79: 99.275362 | AQ79: 101.2608692 | AR79: 103.2860866 | AS79: 105.3518084 | AT79: 107.4588445 | AU79: 109.6080214 | AV79: 111.8001818 | AW79: 114.0361855 | AX79: 116.3169092 | AY79: 118.6432474 | AZ79: 121.0161123 | BA79: 123.4364346 | BB79: 125.9051633 | BC79: 128.4232665 | BD79: 130.9917318 | BE79: 133.6115665 | BF79: 136.2837978 | BG79: 139.0094738 | BH79: 141.7896632 | BI79: 144.6254565 | BJ79: 147.5179656 | BK79: 150.468325 | BL79: 153.4776914 | BM79: 156.5472453 | BN79: 159.6781902 | BO79: 162.871754 | BP79: 166.1291891 | BQ79: 169.4517728 | BR79: =BR77-BR78 -> 172.8408083 | BS79: 176.2976245 | BT79: 179.823577 | BU79: 183.4200485 | BV79: 187.0884495 | BW79: 190.8302185 | BX79: 194.6468228 | BY79: 198.5397593 | BZ79: 202.5105545 | CA79: 206.5607656 | CB79: 210.6919809 | CC79: 214.9058205 | CD79: 219.2039369 | CE79: 223.5880156 | CF79: 228.0597759 | CG79: 232.6209715 | CH79: 237.2733909 | CI79: 242.0188587 | CJ79: 246.8592359 | CK79: 251.7964206 | CL79: 256.832349 | CM79: 261.968996 | CN79: 267.2083759 | CO79: 272.5525434 | CP79: 278.0035943 | CQ79: 283.5636662 | CR79: 289.2349395 | CS79: 295.0196383 | CT79: 300.920031 | CU79: 306.9384317 | CV79: 313.0772003 | CW79: 319.3387443 | CX79: 325.7255192 | CY79: 332.2400296 | CZ79: 338.8848302 | DA79: 345.6625268 | DB79: 352.5757773 | DC79: 359.6272928 | DD79: 366.8198387 | DE79: 374.1562355 | DF79: 381.6393602 | DG79: 389.2721474 | DH79: 397.0575903 | DI79: 404.9987421 | DJ79: 413.0987169 | DK79: 421.3606913 | DL79: 429.7879051 | DM79: 438.3836632 | DN79: 447.1513365 | DO79: 456.0943632 | DP79: 465.2162504 | DQ79: 474.5205754 | DR79: 484.0109869 | DS79: 493.6912067 | DT79: 503.5650308 | DU79: 513.6363314 | DV79: 523.909058 | DW79: 534.3872392 | DX79: 545.074984 | DY79: 555.9764836 | DZ79: 567.0960133 | EA79: 578.4379335 | EB79: 590.0066922 | EC79: 601.806826 | ED79: =ED77-ED78 -> 613.8429625 | EE79: 626.1198218 | EF79: 638.6422182 | EG79: 651.4150626 | EH79: 664.4433638 | EI79: 677.732231 | EJ79: 691.2868757 | EK79: 705.1126131 | EL79: 719.2148654 | EM79: 733.5991627 | EN79: 748.2711459 | EO79: 763.2365688 | EP79: 778.5013002 | EQ79: 794.0713261 | ER79: 809.9527526 | ES79: 826.1518077 | ET79: 842.6748438 | EU79: 859.5283406 | EV79: 876.7189074 | EW79: 894.2532855 | EX79: 912.1383512 | EY79: 930.3811182 | EZ79: 948.9887405 | FA79: 967.9685152 | FB79: 987.3278855 | FC79: 1007.074443 | FD79: 1027.215932 | FE79: 1047.760251 | FF79: 1068.715455 | FG79: 1090.089765 | FH79: 1111.89156 | FI79: 1134.129391 | FJ79: 1156.811979 | FK79: 1179.948218 | FL79: 1203.547182 | FM79: 1227.618126 | FN79: 1252.170488 | FO79: 1277.213898 | FP79: 1302.758176 | FQ79: 1328.813339 | FR79: 1355.389606 | FS79: 1382.497398 | FT79: 1410.147346 | FU79: 1438.350293 | FV79: 1467.117298 | FW79: 1496.459644 | FX79: 1526.388837 | FY79: 1556.916613 | FZ79: 1588.054945 | GA79: 1619.816044 | GB79: 1652.212365 | GC79: 1685.256612 | GD79: 1718.961744 | GE79: 1753.340978 | GF79: 1788.407798 | GG79: 1824.175953 | GH79: 1860.659472 | GI79: 1897.872661 | GJ79: 1935.830114 | GK79: 1974.546716 | GL79: 2014.03765 | GM79: 2054.318403 | GN79: 2095.40477 | GO79: 2137.312865 | GP79: =GP77-GP78 -> 2180.059122 | GQ79: 2223.660304 | GR79: 2268.133509 | GS79: 2313.496179 | GT79: 2359.766102 | GU79: 2406.961423 | GV79: 2455.100651 | GW79: 2504.202663 | GX79: 2554.286716 | GY79: 2605.37245 | GZ79: 2657.479898 | HA79: 2710.629495 | HB79: 2764.842084 | HC79: 2820.138924 | HD79: 2876.541702 | HE79: 2934.072535 | HF79: 2992.753984 | HG79: 3052.609062 | HH79: 3113.661242 | HI79: 3175.934466 | HJ79: 3239.453154 | HK79: 3304.242215 | HL79: 3370.327058 | HM79: 3437.733597 | HN79: 3506.488267 | HO79: 3576.61803 | HP79: 3648.150389 | HQ79: 3721.113394 | HR79: 3795.53566 | HS79: 3871.446371 | HT79: 3948.875295 | HU79: 4027.852798 | HV79: 4108.409851 | HW79: 4190.578045 | HX79: 4274.389603 | HY79: 4359.877391 | HZ79: 4447.074935 | IA79: 4536.01643 | IB79: 4626.736754 | IC79: 4719.271485 | ID79: 4813.65691 | IE79: 4909.930043 | IF79: 5008.128639 | IG79: 5108.291206 | IH79: 5210.457024 | II79: 5314.666158 | IJ79: 5420.959475 | IK79: 5529.378657 | IL79: 5639.966223 | IM79: 5752.765539 | IN79: 5867.820841 | IO79: 5985.177249 | IP79: 6104.880785 | IQ79: 6226.978391 | IR79: 6351.517948 | IS79: 6478.548296 | IT79: 6608.11925 | IU79: 6740.281622 | IV79: 6875.087241 | IW79: 7012.588972 | IX79: 7152.840737 | IY79: 7295.897536 | IZ79: 7441.81547 | JA79: 7590.651762 | JB79: =JB77-JB78 -> 7742.464778 | JC79: 7897.314054 | JD79: 8055.260314 | JE79: 8216.365498 | JF79: 8380.692785 | JG79: 8548.306615 | JH79: 8719.272721 | JI79: 8893.658148 | JJ79: 9071.531281 | JK79: 9252.961876 | JL79: 9438.02108 | JM79: 9626.781467 | JN79: 9819.317059 | JO79: 10015.70336 | JP79: 10216.01739 | JQ79: 10420.33769 | JR79: 10628.7444 | JS79: 10841.31924 | JT79: 11058.14557 | JU79: 11279.30842 | JV79: 11504.89453 | JW79: 11734.99236 | JX79: 11969.69214 | JY79: 12209.08592 | JZ79: 12453.26756 | KA79: 12702.33284 | KB79: 12956.37941 | KC79: 13215.50691 | KD79: 13479.81696 | KE79: 13749.4132 | KF79: 14024.40136 | KG79: 14304.88928 | KH79: 14590.98694 | KI79: 14882.80656 | KJ79: 15180.46256 | KK79: 15484.07167 | KL79: 15793.75296 | KM79: 16109.62787 | KN79: 16431.82026 | KO79: 16760.45649 | KP79: 17095.66544 | KQ79: 17437.57855 | KR79: 17786.32992 | KS79: 18142.0563 | KT79: 18504.89719 | KU79: 18874.99489 | KV79: 19252.49453 | KW79: 19637.54415 | KX79: 20030.29474 | KY79: 20430.90033 | KZ79: 20839.51801 | LA79: 21256.30802 | LB79: 21681.43382 | LC79: 22115.06211 | LD79: 22557.36294 | LE79: 23008.50977 | LF79: 23468.67951 | LG79: 23938.05261 | LH79: 24416.81315 | LI79: 24905.14887 | LJ79: 25403.25127 | LK79: 25911.31569 | LL79: 26429.54136 | LM79: 26958.1315 | LN79: =LN77-LN78 -> 27497.29341 | LO79: 28047.23851 | LP79: 28608.18247 | LQ79: 29180.34526 | LR79: 29763.95125 | LS79: 30359.22931 | LT79: 30966.41288 | LU79: 31585.74006 | LV79: 32217.45372 | LW79: 32861.80158 | LX79: 33519.03633 | LY79: 34189.4157 | LZ79: 34873.20258 | MA79: 35570.66511 | MB79: 36282.0768 | MC79: 37007.71663 | MD79: 37747.86916 | ME79: 38502.82463 | MF79: 39272.8791 | MG79: 40058.33454 | MH79: 40859.49896 | MI79: 41676.68654 | MJ79: 42510.21773 | MK79: 43360.41939 | ML79: 44227.62493 | MM79: 45112.17441 | MN79: 46014.4147 | MO79: 46934.69961 | MP79: 47873.39002 | MQ79: 48830.85403 | MR79: 49807.46709 | MS79: 50803.61218 | MT79: 51819.67992 | MU79: 52856.06875 | MV79: 53913.18508 | MW79: 54991.44344 | MX79: 56091.26665 | MY79: 57213.08599 | MZ79: 58357.34137 | NA79: 59524.48148 | NB79: 60714.96399 | NC79: 61929.25574 | ND79: 63167.83289 | NE79: 64431.1811 | NF79: 65719.79579 | NG79: 67034.18224 | NH79: 68374.85587 | NI79: 69742.34238 | NJ79: 71137.17799 | NK79: 72559.90966 | NL79: 74011.09527 | NM79: 75491.30384 | NN79: 77001.1158 | NO79: 78541.12317 | NP79: 80111.92981 | NQ79: 81714.15166 | NR79: 83348.41695 | NS79: 85015.36651 | NT79: 86715.65395 | NU79: 88449.94598 | NV79: 90218.9226 | NW79: 92023.27745 | NX79: 93863.71801 | NY79: 95740.96591 | NZ79: =NZ77-NZ78 -> 97655.75721 | OA79: 99608.84269 | OB79: 101600.9881 | OC79: 103632.9747 | OD79: 105705.5989 | OE79: 107819.6736 | OF79: 109976.0276 | OG79: 112175.5064 | OH79: 114418.9723 | OI79: 116707.3049 | OJ79: 119041.4014 | OK79: 121422.1769 | OL79: 123850.5648 | OM79: 126327.5172 | ON79: 128854.0052 | OO79: 131431.0193 | OP79: 134059.5698 | OQ79: 136740.6873 | OR79: 139475.4227 | OS79: 142264.8482 | OT79: 145110.0573 | OU79: 148012.1655 | OV79: 150972.3103 | OW79: 153991.6523 | OX79: 157071.375 | OY79: 160212.6856 | OZ79: 163416.8156 | PA79: 166685.0209 | PB79: 170018.5826 | PC79: 173418.8074 | PD79: 176887.028 | PE79: 180424.604 | PF79: 184032.9217 | PG79: 187713.3956 | PH79: 191467.4681 | PI79: 195296.6106 | PJ79: 199202.3237 | PK79: 203186.1382 | PL79: 207249.6154 | PM79: 211394.3477 | PN79: 215621.9594 | PO79: 219934.107 | PP79: 224332.4806 | PQ79: 228818.8034 | PR79: 233394.8335 | PS79: 238062.3638 | PT79: 242823.2232 | PU79: 247679.277 | PV79: 252632.4278 | PW79: 257684.6159 | PX79: 262837.8208 | PY79: 268094.0611 | PZ79: 273455.3959 | QA79: 278923.9253 | QB79: 284501.7912 | QC79: 290191.1784 | QD79: 295994.3152 | QE79: 301913.4744 | QF79: 307950.9741 | QG79: 314109.1785 | QH79: 320390.499 | QI79: 326797.3952 | QJ79: 333332.3756 | QK79: 339997.9988 | QL79: =QL77-QL78 -> 346796.8741 | QM79: 353731.6633 | QN79: 360805.0806 | QO79: 368019.8949 | QP79: 375378.9298 | QQ79: 382885.0652 | QR79: 390541.2384 | QS79: 398350.4454 | QT79: 406315.7413 | QU79: 414440.2424 | QV79: 422727.127 | QW79: 431179.6363 | QX79: 439801.0763 | QY79: 448594.8185 | QZ79: 457564.3015 | RA79: 466713.0324 | RB79: 476044.5876 | RC79: 485562.6149 | RD79: 495270.8343 | RE79: 505173.0398 | RF79: 515273.1006 | RG79: 525574.9627 | RH79: 536082.6505 | RI79: 546800.2679 | RJ79: 557732.0004 | RK79: 568882.1163 | RL79: 580254.9686 | RM79: 591854.9964 | RN79: 603686.7265 | RO79: 615754.7755 | RP79: 628063.8512 | RQ79: 640618.7545 | RR79: 653424.3812 | RS79: 666485.7237 | RT79: 679807.8729 | RU79: 693396.0204 | RV79: 707255.4599 | RW79: 721391.5895 | RX79: 735809.9139 | RY79: 750516.0458 | RZ79: 765515.7085 | SA79: 780814.7378 | SB79: 796419.0843 | SC79: 812334.8152 | SD79: 828568.117 | SE79: 845125.2974 | SF79: 862012.7876 | SG79: 879237.1448 | SH79: 896805.0545 | SI79: 914723.3327 | SJ79: 932998.9286 | SK79: 951638.927 | SL79: 970650.5507 | SM79: 990041.1632 | SN79: 1009818.271 | SO79: 1029989.527 | SP79: 1050562.731 | SQ79: 1071545.837 | SR79: 1092946.95 | SS79: 1114774.333 | ST79: 1137036.408 | SU79: 1159741.761 | SV79: 1182899.141 | SW79: 1206517.466 | SX79: =SX77-SX78 -> 1230605.827 | SY79: 1255173.486 | SZ79: 1280229.885 | TA79: 1305784.644 | TB79: 1331847.568 | TC79: 1358428.648 | TD79: 1385538.065 | TE79: 1413186.193 | TF79: 1441383.601 | TG79: 1470141.058 | TH79: 1499469.537 | TI79: 1529380.214 | TJ79: 1559884.477 | TK79: 1590993.926 | TL79: 1622720.376 | TM79: 1655075.862 | TN79: 1688072.642 | TO79: 1721723.2 | TP79: 1756040.25 | TQ79: 1791036.737 | TR79: 1826725.846 | TS79: 1863120.998 | TT79: 1900235.86 | TU79: 1938084.343 | TV79: 1976680.612 | TW79: 2016039.08 | TX79: 2056174.421 | TY79: 2097101.567 | TZ79: 2138835.712 | UA79: 2181392.318 | UB79: 2224787.116 | UC79: 2269036.108 | UD79: 2314155.574 | UE79: 2360162.069 | UF79: 2407072.431 | UG79: 2454903.782 | UH79: 2503673.529 | UI79: 2553399.368 | UJ79: 2604099.285 | UK79: 2655791.562 | UL79: 2708494.773 | UM79: 2762227.79 | UN79: 2817009.782 | UO79: 2872860.219 | UP79: 2929798.872 | UQ79: 2987845.811 | UR79: 3047021.41 | US79: 3107346.345 | UT79: 3168841.592 | UU79: 3231528.432 | UV79: 3295428.442 | UW79: 3360563.503 | UX79: 3426955.789 | UY79: 3494627.771 | UZ79: 3563602.213 | VA79: 3633902.167 | VB79: 3705550.969 | VC79: 3778572.236 | VD79: 3852989.861 | VE79: 3928828.004 | VF79: 4006111.087 | VG79: 4084863.786 | VH79: 4165111.023 | VI79: 4246877.955 | VJ79: =VJ77-VJ78 -> 4330189.964 | VK79: 4415072.645 | VL79: 4501551.792 | VM79: 4589653.386 | VN79: 4679403.578 | VO79: 4770828.67 | VP79: 4863955.099 | VQ79: 4958809.416 | VR79: 5055418.262 | VS79: 5153808.348 | VT79: 5254006.425 | VU79: 5356039.255 | VV79: 5459933.588 | VW79: 5565716.119 | VX79: 5673413.462 | VY79: 5783052.104 | VZ79: 5894658.369 | WA79: 6008258.374 | WB79: 6123877.978 | WC79: 6241542.734 | WD79: 6361277.834 | WE79: 6483108.049 | WF79: 6607057.669 | WG79: 6733150.432 | WH79: 6861409.458 | WI79: 6991857.165 | WJ79: 7124515.192 | WK79: 7259404.309 | WL79: 7396544.325 | WM79: 7535953.983 | WN79: 7677650.859 | WO79: 7821651.245 | WP79: 7967970.026 | WQ79: 8116620.551 | WR79: 8267614.498 | WS79: 8420961.719 | WT79: 8576670.09 | WU79: 8734745.339 | WV79: 8895190.869 | WW79: 9058007.569 | WX79: 9223193.61 | WY79: 9390744.232 | WZ79: 9560651.512 | XA79: 9732904.124 | XB79: 9907487.079 | XC79: 10084381.45 | XD79: 10263564.07 | XE79: 10445007.25 | XF79: 10628678.4 | XG79: 10814539.72 | XH79: 11002547.83 | XI79: 11192653.31 | XJ79: 11384800.37 | XK79: 11578926.33 | XL79: 11774961.18 | XM79: 11972827.06 | XN79: 12172437.74 | XO79: 12373698.04 | XP79: 12576503.23 | XQ79: 12780738.38 | XR79: 12986277.71 | XS79: 13192983.81 | XT79: 13400706.95 | XU79: 13609284.2 | XV79: =XV77-XV78 -> 13818538.62 | XW79: 14028278.31 | XX79: 14238295.47 | XY79: 14448365.32 | XZ79: 14658245.09 | YA79: 14867672.78 | YB79: 15076366 | YC79: 15284020.62 | YD79: 15490309.43 | YE79: 15694880.64 | YF79: 15897356.36 | YG79: 16097330.95 | YH79: 16294369.26 | YI79: 16488004.8 | YJ79: 16677737.78 | YK79: 16863033.03 | YL79: 17043317.8 | YM79: 17217979.44 | YN79: 17386362.89 | YO79: 17547768.13 | YP79: 17701447.34 | YQ79: 17846602 | YR79: 17982379.73 | YS79: 18107871.05 | YT79: 18222105.82 | YU79: 18324049.56 | YV79: 18412599.53 | YW79: 18486580.54 | YX79: 18544740.57 | YY79: 18585746.07 | YZ79: 18608177.02 | ZA79: 18610521.69 | ZB79: 18591171.09 | ZC79: 18548413.06 | ZD79: 18480426.04 | ZE79: 18385272.48 | ZF79: 18260891.83 | ZG79: 18105093.14 | ZH79: 17915547.17 | ZI79: 17689778.15 | ZJ79: 17425154.85 | ZK79: 17118881.38 | ZL79: 16767987.21 | ZM79: 16369316.73 | ZN79: 15919518.17 | ZO79: 15415031.85 | ZP79: 14852077.73 | ZQ79: 14226642.23 | ZR79: 13534464.3 | ZS79: 12771020.62 | ZT79: 11931509.93 | ZU79: 11010836.5 | ZV79: 10003592.5 | ZW79: 8904039.485 | ZX79: 7706088.639 | ZY79: 6403279.944 | ZZ79: 4988760.086 | AAA79: 3455259.066 | AAB79: 1795065.423
C81: Cash Inflow from Economic New Debt | E81: =F74-E74 -> 26.21583749 | F81: =G74-F74 -> 26.74015424 | G81: 27.27495732 | H81: 27.82045647 | I81: 28.3768656 | J81: 28.94440291 | K81: 29.52329097 | L81: 30.11375679 | M81: 30.71603192 | N81: 31.33035256 | O81: 31.95695961 | P81: 32.5960988 | Q81: 33.24802078 | R81: 33.9129812 | S81: 34.59124082 | T81: 35.28306564 | U81: 35.98872695 | V81: 36.70850149 | W81: 37.44267152 | X81: 38.19152495 | Y81: 38.95535545 | Z81: 39.73446255 | AA81: 40.52915181 | AB81: 41.33973484 | AC81: 42.16652954 | AD81: 43.00986013 | AE81: 43.87005733 | AF81: 44.74745848 | AG81: 45.64240765 | AH81: 46.5552558 | AI81: 47.48636092 | AJ81: 48.43608813 | AK81: 49.4048099 | AL81: 50.3929061 | AM81: 51.40076422 | AN81: 52.4287795 | AO81: 53.47735509 | AP81: 54.54690219 | AQ81: 55.63784024 | AR81: 56.75059704 | AS81: 57.88560898 | AT81: 59.04332116 | AU81: 60.22418758 | AV81: 61.42867134 | AW81: 62.65724476 | AX81: 63.91038966 | AY81: 65.18859745 | AZ81: 66.4923694 | BA81: 67.82221679 | BB81: 69.17866112 | BC81: 70.56223435 | BD81: 71.97347903 | BE81: 73.41294861 | BF81: 74.88120758 | BG81: 76.37883174 | BH81: 77.90640837 | BI81: 79.46453654 | BJ81: 81.05382727 | BK81: 82.67490381 | BL81: 84.32840189 | BM81: 86.01496993 | BN81: 87.73526932 | BO81: 89.48997471 | BP81: 91.2797742 | BQ81: 93.10536969 | BR81: =BS74-BR74 -> 94.96747708 | BS81: 96.86682662 | BT81: 98.80416315 | BU81: 100.7802464 | BV81: 102.7958513 | BW81: 104.8517684 | BX81: 106.9488037 | BY81: 109.0877798 | BZ81: 111.2695354 | CA81: 113.4949261 | CB81: 115.7648246 | CC81: 118.0801211 | CD81: 120.4417235 | CE81: 122.850558 | CF81: 125.3075692 | CG81: 127.8137206 | CH81: 130.369995 | CI81: 132.9773949 | CJ81: 135.6369428 | CK81: 138.3496816 | CL81: 141.1166752 | CM81: 143.9390088 | CN81: 146.8177889 | CO81: 149.7541447 | CP81: 152.7492276 | CQ81: 155.8042121 | CR81: 158.9202964 | CS81: 162.0987023 | CT81: 165.3406764 | CU81: 168.6474899 | CV81: 172.0204397 | CW81: 175.4608485 | CX81: 178.9700654 | CY81: 182.5494667 | CZ81: 186.2004561 | DA81: 189.9244652 | DB81: 193.7229545 | DC81: 197.5974136 | DD81: 201.5493618 | DE81: 205.5803491 | DF81: 209.691956 | DG81: 213.8857952 | DH81: 218.1635111 | DI81: 222.5267813 | DJ81: 226.9773169 | DK81: 231.5168632 | DL81: 236.1472005 | DM81: 240.8701445 | DN81: 245.6875474 | DO81: 250.6012983 | DP81: 255.6133243 | DQ81: 260.7255907 | DR81: 265.9401025 | DS81: 271.2589046 | DT81: 276.6840827 | DU81: 282.2177643 | DV81: 287.8621196 | DW81: 293.6193619 | DX81: 299.4917492 | DY81: 305.4815841 | DZ81: 311.5912158 | EA81: 317.8230401 | EB81: 324.1795009 | EC81: 330.6630909 | ED81: =EE74-ED74 -> 337.2763527 | EE81: 344.0218797 | EF81: 350.9023173 | EG81: 357.9203636 | EH81: 365.0787709 | EI81: 372.3803462 | EJ81: 379.8279531 | EK81: 387.4245122 | EL81: 395.1730024 | EM81: 403.0764624 | EN81: 411.1379916 | EO81: 419.3607514 | EP81: 427.7479664 | EQ81: 436.3029257 | ER81: 445.0289842 | ES81: 453.9295638 | ET81: 463.008155 | EU81: 472.2683181 | EV81: 481.7136844 | EW81: 491.347958 | EX81: 501.1749171 | EY81: 511.1984154 | EZ81: 521.4223836 | FA81: 531.8508312 | FB81: 542.4878477 | FC81: 553.3376046 | FD81: 564.4043566 | FE81: 575.6924437 | FF81: 587.2062924 | FG81: 598.9504182 | FH81: 610.9294264 | FI81: 623.1480148 | FJ81: 635.610975 | FK81: 648.3231944 | FL81: 661.2896581 | FM81: 674.5154511 | FN81: 688.00576 | FO81: 701.765875 | FP81: 715.8011924 | FQ81: 730.117216 | FR81: 744.7195601 | FS81: 759.6139511 | FT81: 774.8062299 | FU81: 790.3023543 | FV81: 806.1084011 | FW81: 822.2305689 | FX81: 838.67518 | FY81: 855.4486833 | FZ81: 872.5576566 | GA81: 890.0088095 | GB81: 907.8089853 | GC81: 925.9651646 | GD81: 944.4844675 | GE81: 963.3741565 | GF81: 982.6416391 | GG81: 1002.294471 | GH81: 1022.34036 | GI81: 1042.787167 | GJ81: 1063.64291 | GK81: 1084.915767 | GL81: 1106.614082 | GM81: 1128.746363 | GN81: 1151.32129 | GO81: 1174.347715 | GP81: =GQ74-GP74 -> 1197.834668 | GQ81: 1221.791361 | GR81: 1246.227187 | GS81: 1271.15173 | GT81: 1296.574764 | GU81: 1322.506258 | GV81: 1348.956382 | GW81: 1375.935508 | GX81: 1403.454217 | GY81: 1431.5233 | GZ81: 1460.153765 | HA81: 1489.356839 | HB81: 1519.143974 | HC81: 1549.526852 | HD81: 1580.517387 | HE81: 1612.127733 | HF81: 1644.370286 | HG81: 1677.25769 | HH81: 1710.802841 | HI81: 1745.018896 | HJ81: 1779.919271 | HK81: 1815.517654 | HL81: 1851.828004 | HM81: 1888.864561 | HN81: 1926.64185 | HO81: 1965.174683 | HP81: 2004.478174 | HQ81: 2044.567733 | HR81: 2085.459084 | HS81: 2127.168262 | HT81: 2169.711623 | HU81: 2213.105851 | HV81: 2257.367963 | HW81: 2302.515317 | HX81: 2348.565618 | HY81: 2395.536924 | HZ81: 2443.447657 | IA81: 2492.316603 | IB81: 2542.162929 | IC81: 2593.00618 | ID81: 2644.866296 | IE81: 2697.763614 | IF81: 2751.718877 | IG81: 2806.753246 | IH81: 2862.888301 | II81: 2920.146057 | IJ81: 2978.548967 | IK81: 3038.119935 | IL81: 3098.882322 | IM81: 3160.859956 | IN81: 3224.077141 | IO81: 3288.55867 | IP81: 3354.329828 | IQ81: 3421.416408 | IR81: 3489.844719 | IS81: 3559.641596 | IT81: 3630.834408 | IU81: 3703.451076 | IV81: 3777.520076 | IW81: 3853.070455 | IX81: 3930.13184 | IY81: 4008.734452 | IZ81: 4088.909114 | JA81: 4170.687268 | JB81: =JC74-JB74 -> 4254.100983 | JC81: 4339.18297 | JD81: 4425.966596 | JE81: 4514.485892 | JF81: 4604.775572 | JG81: 4696.871043 | JH81: 4790.808422 | JI81: 4886.624545 | JJ81: 4984.356988 | JK81: 5084.044077 | JL81: 5185.724906 | JM81: 5289.439347 | JN81: 5395.228074 | JO81: 5503.132572 | JP81: 5613.195156 | JQ81: 5725.458988 | JR81: 5839.968093 | JS81: 5956.767375 | JT81: 6075.902638 | JU81: 6197.420601 | JV81: 6321.368919 | JW81: 6447.796197 | JX81: 6576.752015 | JY81: 6708.286943 | JZ81: 6842.452563 | KA81: 6979.301488 | KB81: 7118.887384 | KC81: 7261.264991 | KD81: 7406.490141 | KE81: 7554.619786 | KF81: 7705.712014 | KG81: 7859.826077 | KH81: 8017.02241 | KI81: 8177.36266 | KJ81: 8340.909702 | KK81: 8507.727673 | KL81: 8677.881991 | KM81: 8851.439381 | KN81: 9028.467904 | KO81: 9209.036982 | KP81: 9393.217425 | KQ81: 9581.081459 | KR81: 9772.702755 | KS81: 9968.156458 | KT81: 10167.51921 | KU81: 10370.8692 | KV81: 10578.28617 | KW81: 10789.85145 | KX81: 11005.64801 | KY81: 11225.76048 | KZ81: 11450.27516 | LA81: 11679.28011 | LB81: 11912.86512 | LC81: 12151.1218 | LD81: 12394.14357 | LE81: 12642.02575 | LF81: 12894.86552 | LG81: 13152.76205 | LH81: 13415.81646 | LI81: 13684.13191 | LJ81: 13957.81362 | LK81: 14236.96891 | LL81: 14521.70724 | LM81: 14812.14028 | LN81: =LO74-LN74 -> 15108.38192 | LO81: 15410.54832 | LP81: 15718.75798 | LQ81: 16033.13175 | LR81: 16353.79292 | LS81: 16680.86722 | LT81: 17014.48292 | LU81: 17354.77083 | LV81: 17701.8644 | LW81: 18055.89974 | LX81: 18417.01566 | LY81: 18785.35378 | LZ81: 19161.05854 | MA81: 19544.27725 | MB81: 19935.1602 | MC81: 20333.86065 | MD81: 20740.53495 | ME81: 21155.34256 | MF81: 21578.44614 | MG81: 22010.0116 | MH81: 22450.20817 | MI81: 22899.20845 | MJ81: 23357.18852 | MK81: 23824.32794 | ML81: 24300.80989 | MM81: 24786.82121 | MN81: 25282.55248 | MO81: 25788.19806 | MP81: 26303.95623 | MQ81: 26830.02923 | MR81: 27366.62333 | MS81: 27913.94893 | MT81: 28472.22063 | MU81: 29041.65735 | MV81: 29622.48234 | MW81: 30214.92336 | MX81: 30819.21268 | MY81: 31435.58726 | MZ81: 32064.28876 | NA81: 32705.56369 | NB81: 33359.66347 | NC81: 34026.84458 | ND81: 34707.3686 | NE81: 35401.50234 | NF81: 36109.51795 | NG81: 36831.69302 | NH81: 37568.3107 | NI81: 38319.65978 | NJ81: 39086.03484 | NK81: 39867.73633 | NL81: 40665.07072 | NM81: 41478.3506 | NN81: 42307.89482 | NO81: 43154.02857 | NP81: 44017.08359 | NQ81: 44897.3982 | NR81: 45795.31751 | NS81: 46711.19353 | NT81: 47645.38528 | NU81: 48598.25898 | NV81: 49570.18816 | NW81: 50561.5538 | NX81: 51572.74451 | NY81: 52604.15666 | NZ81: =OA74-NZ74 -> 53656.19454 | OA81: 54729.27053 | OB81: 55823.80521 | OC81: 56940.2276 | OD81: 58078.97529 | OE81: 59240.49459 | OF81: 60425.24073 | OG81: 61633.67805 | OH81: 62866.28014 | OI81: 64123.53008 | OJ81: 65405.92056 | OK81: 66713.95415 | OL81: 68048.14342 | OM81: 69409.01119 | ON81: 70797.09073 | OO81: 72212.92594 | OP81: 73657.07159 | OQ81: 75130.09352 | OR81: 76632.56885 | OS81: 78165.08626 | OT81: 79728.24614 | OU81: 81322.66087 | OV81: 82948.95507 | OW81: 84607.76581 | OX81: 86299.74286 | OY81: 88025.54897 | OZ81: 89785.86011 | PA81: 91581.36572 | PB81: 93412.76901 | PC81: 95280.78719 | PD81: 97186.15178 | PE81: 99129.60891 | PF81: 101111.9195 | PG81: 103133.8598 | PH81: 105196.2214 | PI81: 107299.8117 | PJ81: 109445.4541 | PK81: 111633.9885 | PL81: 113866.2716 | PM81: 116143.1771 | PN81: 118465.596 | PO81: 120834.4371 | PP81: 123250.6273 | PQ81: 125715.1121 | PR81: 128228.8555 | PS81: 130792.841 | PT81: 133408.0713 | PU81: 136075.5695 | PV81: 138796.3786 | PW81: 141571.5626 | PX81: 144402.2065 | PY81: 147289.4171 | PZ81: 150234.3228 | QA81: 153238.0748 | QB81: 156301.8469 | QC81: 159426.8363 | QD81: 162614.2638 | QE81: 165865.3747 | QF81: 169181.4388 | QG81: 172563.751 | QH81: 176013.6321 | QI81: 179532.4289 | QJ81: 183121.5148 | QK81: 186782.2906 | QL81: =QM74-QL74 -> 190516.1846 | QM81: 194324.6536 | QN81: 198209.1828 | QO81: 202171.2872 | QP81: 206212.5114 | QQ81: 210334.4307 | QR81: 214538.6513 | QS81: 218826.8113 | QT81: 223200.5808 | QU81: 227661.663 | QV81: 232211.7947 | QW81: 236852.7466 | QX81: 241586.3246 | QY81: 246414.3696 | QZ81: 251338.7592 | RA81: 256361.4073 | RB81: 261484.2658 | RC81: 266709.3246 | RD81: 272038.6125 | RE81: 277474.1982 | RF81: 283018.1907 | RG81: 288672.7402 | RH81: 294440.0388 | RI81: 300322.3215 | RJ81: 306321.8667 | RK81: 312440.997 | RL81: 318682.0803 | RM81: 325047.5304 | RN81: 331539.808 | RO81: 338161.4212 | RP81: 344914.9268 | RQ81: 351802.9308 | RR81: 358828.0898 | RS81: 365993.1111 | RT81: 373300.7543 | RU81: 380753.8321 | RV81: 388355.2108 | RW81: 396107.8117 | RX81: 404014.612 | RY81: 412078.6455 | RZ81: 420303.0038 | SA81: 428690.8372 | SB81: 437245.3557 | SC81: 445969.83 | SD81: 454867.5925 | SE81: 463942.0384 | SF81: 473196.6265 | SG81: 482634.8805 | SH81: 492260.3899 | SI81: 502076.8111 | SJ81: 512087.8683 | SK81: 522297.3547 | SL81: 532709.1337 | SM81: 543327.1393 | SN81: 554155.3782 | SO81: 565197.93 | SP81: 576458.9484 | SQ81: 587942.6628 | SR81: 599653.3784 | SS81: 611595.4783 | ST81: 623773.4237 | SU81: 636191.7555 | SV81: 648855.0947 | SW81: 661768.144 | SX81: =SY74-SX74 -> 674935.6886 | SY81: 688362.597 | SZ81: 702053.8219 | TA81: 716014.4017 | TB81: 730249.4605 | TC81: 744764.2098 | TD81: 759563.9487 | TE81: 774654.0651 | TF81: 790040.0364 | TG81: 805727.43 | TH81: 821721.9041 | TI81: 838029.2083 | TJ81: 854655.1842 | TK81: 871605.7658 | TL81: 888886.98 | TM81: 906504.9467 | TN81: 924465.8796 | TO81: 942776.0856 | TP81: 961441.9654 | TQ81: 980470.0136 | TR81: 999866.818 | TS81: 1019639.06 | TT81: 1039793.512 | TU81: 1060337.043 | TV81: 1081276.608 | TW81: 1102619.257 | TX81: 1124372.128 | TY81: 1146542.447 | TZ81: 1169137.529 | UA81: 1192164.773 | UB81: 1215631.66 | UC81: 1239545.755 | UD81: 1263914.702 | UE81: 1288746.22 | UF81: 1314048.101 | UG81: 1339828.209 | UH81: 1366094.474 | UI81: 1392854.886 | UJ81: 1420117.497 | UK81: 1447890.409 | UL81: 1476181.774 | UM81: 1504999.786 | UN81: 1534352.672 | UO81: 1564248.693 | UP81: 1594696.129 | UQ81: 1625703.273 | UR81: 1657278.425 | US81: 1689429.88 | UT81: 1722165.919 | UU81: 1755494.797 | UV81: 1789424.734 | UW81: 1823963.897 | UX81: 1859120.394 | UY81: 1894902.253 | UZ81: 1931317.408 | VA81: 1968373.686 | VB81: 2006078.782 | VC81: 2044440.247 | VD81: 2083465.462 | VE81: 2123161.618 | VF81: 2163535.692 | VG81: 2204594.424 | VH81: 2246344.285 | VI81: 2288791.451 | VJ81: =VK74-VJ74 -> 2331941.775 | VK81: 2375800.749 | VL81: 2420373.469 | VM81: 2465664.604 | VN81: 2511678.348 | VO81: 2558418.382 | VP81: 2605887.826 | VQ81: 2654089.195 | VR81: 2703024.341 | VS81: 2752694.403 | VT81: 2803099.747 | VU81: 2854239.904 | VV81: 2906113.502 | VW81: 2958718.199 | VX81: 3012050.603 | VY81: 3066106.198 | VZ81: 3120879.256 | WA81: 3176362.747 | WB81: 3232548.242 | WC81: 3289425.814 | WD81: 3346983.929 | WE81: 3405209.33 | WF81: 3464086.914 | WG81: 3523599.605 | WH81: 3583728.214 | WI81: 3644451.293 | WJ81: 3705744.98 | WK81: 3767582.835 | WL81: 3829935.662 | WM81: 3892771.326 | WN81: 3956054.555 | WO81: 4019746.728 | WP81: 4083805.657 | WQ81: 4148185.347 | WR81: 4212835.751 | WS81: 4277702.498 | WT81: 4342726.616 | WU81: 4407844.233 | WV81: 4472986.259 | WW81: 4538078.049 | WX81: 4603039.05 | WY81: 4667782.42 | WZ81: 4732214.628 | XA81: 4796235.031 | XB81: 4859735.42 | XC81: 4922599.547 | XD81: 4984702.613 | XE81: 5045910.735 | XF81: 5106080.379 | XG81: 5165057.749 | XH81: 5222678.157 | XI81: 5278765.337 | XJ81: 5333130.733 | XK81: 5385572.735 | XL81: 5435875.871 | XM81: 5483809.954 | XN81: 5529129.175 | XO81: 5571571.144 | XP81: 5610855.869 | XQ81: 5646684.683 | XR81: 5678739.098 | XS81: 5706679.595 | XT81: 5730144.342 | XU81: 5748747.835 | XV81: =XW74-XV74 -> 5762079.459 | XW81: 5769701.961 | XX81: 5771149.835 | XY81: 5765927.612 | XZ81: 5753508.043 | YA81: 5733330.179 | YB81: 5704797.336 | YC81: 5667274.94 | YD81: 5620088.241 | YE81: 5562519.894 | YF81: 5493807.399 | YG81: 5413140.382 | YH81: 5319657.725 | YI81: 5212444.516 | YJ81: 5090528.825 | YK81: 4952878.286 | YL81: 4798396.481 | YM81: 4625919.104 | YN81: 4434209.904 | YO81: 4221956.381 | YP81: 3987765.235 | YQ81: 3730157.546 | YR81: 3447563.659 | YS81: 3138317.779 | YT81: 2800652.239 | YU81: 2432691.435 | YV81: 2032445.397 | YW81: 1597802.984 | YX81: 1126524.679 | YY81: 616234.9529 | YZ81: 64414.18334 | ZA81: -531609.906 | ZB81: -1174671.31 | ZC81: -1867775.344 | ZD81: -2614108.806 | ZE81: -3417050.748 | ZF81: -4280183.87 | ZG81: -5207306.598 | ZH81: -6202445.868 | ZI81: -7269870.661 | ZJ81: -8414106.342 | ZK81: -9639949.842 | ZL81: -10952485.73 | ZM81: -12357103.24 | ZN81: -13859514.3 | ZO81: -15465772.6 | ZP81: -17182293.84 | ZQ81: -19015877.12 | ZR81: -20973727.57 | ZS81: -23063480.41 | ZT81: -25293226.31 | ZU81: -27671538.33 | ZV81: -30207500.41 | ZW81: -32910737.53 | ZX81: -35791447.68 | ZY81: -38860435.65 | ZZ81: -42129148.9 | AAA81: -45609715.48 | AAB81: -49314984.14
C82: Cash Inflow from Gross New Debt | E82: =F75-E75 -> 26.21583749 | F82: =G75-F75 -> 26.74015424 | G82: 27.27495732 | H82: 27.82045647 | I82: 28.3768656 | J82: 28.94440291 | K82: 29.52329097 | L82: 30.11375679 | M82: 30.71603192 | N82: 31.33035256 | O82: 31.95695961 | P82: 32.5960988 | Q82: 33.24802078 | R82: 33.9129812 | S82: 34.59124082 | T82: 35.28306564 | U82: 35.98872695 | V82: 36.70850149 | W82: 37.44267152 | X82: 38.19152495 | Y82: 38.95535545 | Z82: 39.73446255 | AA82: 40.52915181 | AB82: 41.33973484 | AC82: 42.16652954 | AD82: 43.00986013 | AE82: 43.87005733 | AF82: 44.74745848 | AG82: 45.64240765 | AH82: 46.5552558 | AI82: 47.48636092 | AJ82: 48.43608813 | AK82: 49.4048099 | AL82: 50.3929061 | AM82: 51.40076422 | AN82: 52.4287795 | AO82: 53.47735509 | AP82: 54.54690219 | AQ82: 55.63784024 | AR82: 56.75059704 | AS82: 57.88560898 | AT82: 59.04332116 | AU82: 60.22418758 | AV82: 61.42867134 | AW82: 62.65724476 | AX82: 63.91038966 | AY82: 65.18859745 | AZ82: 66.4923694 | BA82: 67.82221679 | BB82: 69.17866112 | BC82: 70.56223435 | BD82: 71.97347903 | BE82: 73.41294861 | BF82: 74.88120758 | BG82: 76.37883174 | BH82: 77.90640837 | BI82: 79.46453654 | BJ82: 81.05382727 | BK82: 82.67490381 | BL82: 84.32840189 | BM82: 86.01496993 | BN82: 87.73526932 | BO82: 89.48997471 | BP82: 91.2797742 | BQ82: 93.10536969 | BR82: =BS75-BR75 -> 94.96747708 | BS82: 96.86682662 | BT82: 98.80416315 | BU82: 100.7802464 | BV82: 102.7958513 | BW82: 104.8517684 | BX82: 106.9488037 | BY82: 109.0877798 | BZ82: 111.2695354 | CA82: 113.4949261 | CB82: 115.7648246 | CC82: 118.0801211 | CD82: 120.4417235 | CE82: 122.850558 | CF82: 125.3075692 | CG82: 127.8137206 | CH82: 130.369995 | CI82: 132.9773949 | CJ82: 135.6369428 | CK82: 138.3496816 | CL82: 141.1166752 | CM82: 143.9390088 | CN82: 146.8177889 | CO82: 149.7541447 | CP82: 152.7492276 | CQ82: 155.8042121 | CR82: 158.9202964 | CS82: 162.0987023 | CT82: 165.3406764 | CU82: 168.6474899 | CV82: 172.0204397 | CW82: 175.4608485 | CX82: 178.9700654 | CY82: 182.5494667 | CZ82: 186.2004561 | DA82: 189.9244652 | DB82: 193.7229545 | DC82: 197.5974136 | DD82: 201.5493618 | DE82: 205.5803491 | DF82: 209.691956 | DG82: 213.8857952 | DH82: 218.1635111 | DI82: 222.5267813 | DJ82: 226.9773169 | DK82: 231.5168632 | DL82: 236.1472005 | DM82: 240.8701445 | DN82: 245.6875474 | DO82: 250.6012983 | DP82: 255.6133243 | DQ82: 260.7255907 | DR82: 265.9401025 | DS82: 271.2589046 | DT82: 276.6840827 | DU82: 282.2177643 | DV82: 287.8621196 | DW82: 293.6193619 | DX82: 299.4917492 | DY82: 305.4815841 | DZ82: 311.5912158 | EA82: 317.8230401 | EB82: 324.1795009 | EC82: 330.6630909 | ED82: =EE75-ED75 -> 337.2763527 | EE82: 344.0218797 | EF82: 350.9023173 | EG82: 357.9203636 | EH82: 365.0787709 | EI82: 372.3803462 | EJ82: 379.8279531 | EK82: 387.4245122 | EL82: 395.1730024 | EM82: 403.0764624 | EN82: 411.1379916 | EO82: 419.3607514 | EP82: 427.7479664 | EQ82: 436.3029257 | ER82: 445.0289842 | ES82: 453.9295638 | ET82: 463.008155 | EU82: 472.2683181 | EV82: 481.7136844 | EW82: 491.347958 | EX82: 501.1749171 | EY82: 511.1984154 | EZ82: 521.4223836 | FA82: 531.8508312 | FB82: 542.4878477 | FC82: 553.3376046 | FD82: 564.4043566 | FE82: 575.6924437 | FF82: 587.2062924 | FG82: 598.9504182 | FH82: 610.9294264 | FI82: 623.1480148 | FJ82: 635.610975 | FK82: 648.3231944 | FL82: 661.2896581 | FM82: 674.5154511 | FN82: 688.00576 | FO82: 701.765875 | FP82: 715.8011924 | FQ82: 730.117216 | FR82: 744.7195601 | FS82: 759.6139511 | FT82: 774.8062299 | FU82: 790.3023543 | FV82: 806.1084011 | FW82: 822.2305689 | FX82: 838.67518 | FY82: 855.4486833 | FZ82: 872.5576566 | GA82: 890.0088095 | GB82: 907.8089853 | GC82: 925.9651646 | GD82: 944.4844675 | GE82: 963.3741565 | GF82: 982.6416391 | GG82: 1002.294471 | GH82: 1022.34036 | GI82: 1042.787167 | GJ82: 1063.64291 | GK82: 1084.915767 | GL82: 1106.614082 | GM82: 1128.746363 | GN82: 1151.32129 | GO82: 1174.347715 | GP82: =GQ75-GP75 -> 1197.834668 | GQ82: 1221.791361 | GR82: 1246.227187 | GS82: 1271.15173 | GT82: 1296.574764 | GU82: 1322.506258 | GV82: 1348.956382 | GW82: 1375.935508 | GX82: 1403.454217 | GY82: 1431.5233 | GZ82: 1460.153765 | HA82: 1489.356839 | HB82: 1519.143974 | HC82: 1549.526852 | HD82: 1580.517387 | HE82: 1612.127733 | HF82: 1644.370286 | HG82: 1677.25769 | HH82: 1710.802841 | HI82: 1745.018896 | HJ82: 1779.919271 | HK82: 1815.517654 | HL82: 1851.828004 | HM82: 1888.864561 | HN82: 1926.64185 | HO82: 1965.174683 | HP82: 2004.478174 | HQ82: 2044.567733 | HR82: 2085.459084 | HS82: 2127.168262 | HT82: 2169.711623 | HU82: 2213.105851 | HV82: 2257.367963 | HW82: 2302.515317 | HX82: 2348.565618 | HY82: 2395.536924 | HZ82: 2443.447657 | IA82: 2492.316603 | IB82: 2542.162929 | IC82: 2593.00618 | ID82: 2644.866296 | IE82: 2697.763614 | IF82: 2751.718877 | IG82: 2806.753246 | IH82: 2862.888301 | II82: 2920.146057 | IJ82: 2978.548967 | IK82: 3038.119935 | IL82: 3098.882322 | IM82: 3160.859956 | IN82: 3224.077141 | IO82: 3288.55867 | IP82: 3354.329828 | IQ82: 3421.416408 | IR82: 3489.844719 | IS82: 3559.641596 | IT82: 3630.834408 | IU82: 3703.451076 | IV82: 3777.520076 | IW82: 3853.070455 | IX82: 3930.13184 | IY82: 4008.734452 | IZ82: 4088.909114 | JA82: 4170.687268 | JB82: =JC75-JB75 -> 4254.100983 | JC82: 4339.18297 | JD82: 4425.966596 | JE82: 4514.485892 | JF82: 4604.775572 | JG82: 4696.871043 | JH82: 4790.808422 | JI82: 4886.624545 | JJ82: 4984.356988 | JK82: 5084.044077 | JL82: 5185.724906 | JM82: 5289.439347 | JN82: 5395.228074 | JO82: 5503.132572 | JP82: 5613.195156 | JQ82: 5725.458988 | JR82: 5839.968093 | JS82: 5956.767375 | JT82: 6075.902638 | JU82: 6197.420601 | JV82: 6321.368919 | JW82: 6447.796197 | JX82: 6576.752015 | JY82: 6708.286943 | JZ82: 6842.452563 | KA82: 6979.301488 | KB82: 7118.887384 | KC82: 7261.264991 | KD82: 7406.490141 | KE82: 7554.619786 | KF82: 7705.712014 | KG82: 7859.826077 | KH82: 8017.02241 | KI82: 8177.36266 | KJ82: 8340.909702 | KK82: 8507.727673 | KL82: 8677.881991 | KM82: 8851.439381 | KN82: 9028.467904 | KO82: 9209.036982 | KP82: 9393.217425 | KQ82: 9581.081459 | KR82: 9772.702755 | KS82: 9968.156458 | KT82: 10167.51921 | KU82: 10370.8692 | KV82: 10578.28617 | KW82: 10789.85145 | KX82: 11005.64801 | KY82: 11225.76048 | KZ82: 11450.27516 | LA82: 11679.28011 | LB82: 11912.86512 | LC82: 12151.1218 | LD82: 12394.14357 | LE82: 12642.02575 | LF82: 12894.86552 | LG82: 13152.76205 | LH82: 13415.81646 | LI82: 13684.13191 | LJ82: 13957.81362 | LK82: 14236.96891 | LL82: 14521.70724 | LM82: 14812.14028 | LN82: =LO75-LN75 -> 15108.38192 | LO82: 15410.54832 | LP82: 15718.75798 | LQ82: 16033.13175 | LR82: 16353.79292 | LS82: 16680.86722 | LT82: 17014.48292 | LU82: 17354.77083 | LV82: 17701.8644 | LW82: 18055.89974 | LX82: 18417.01566 | LY82: 18785.35378 | LZ82: 19161.05854 | MA82: 19544.27725 | MB82: 19935.1602 | MC82: 20333.86065 | MD82: 20740.53495 | ME82: 21155.34256 | MF82: 21578.44614 | MG82: 22010.0116 | MH82: 22450.20817 | MI82: 22899.20845 | MJ82: 23357.18852 | MK82: 23824.32794 | ML82: 24300.80989 | MM82: 24786.82121 | MN82: 25282.55248 | MO82: 25788.19806 | MP82: 26303.95623 | MQ82: 26830.02923 | MR82: 27366.62333 | MS82: 27913.94893 | MT82: 28472.22063 | MU82: 29041.65735 | MV82: 29622.48234 | MW82: 30214.92336 | MX82: 30819.21268 | MY82: 31435.58726 | MZ82: 32064.28876 | NA82: 32705.56369 | NB82: 33359.66347 | NC82: 34026.84458 | ND82: 34707.3686 | NE82: 35401.50234 | NF82: 36109.51795 | NG82: 36831.69302 | NH82: 37568.3107 | NI82: 38319.65978 | NJ82: 39086.03484 | NK82: 39867.73633 | NL82: 40665.07072 | NM82: 41478.3506 | NN82: 42307.89482 | NO82: 43154.02857 | NP82: 44017.08359 | NQ82: 44897.3982 | NR82: 45795.31751 | NS82: 46711.19353 | NT82: 47645.38528 | NU82: 48598.25898 | NV82: 49570.18816 | NW82: 50561.5538 | NX82: 51572.74451 | NY82: 52604.15666 | NZ82: =OA75-NZ75 -> 53656.19454 | OA82: 54729.27053 | OB82: 55823.80521 | OC82: 56940.2276 | OD82: 58078.97529 | OE82: 59240.49459 | OF82: 60425.24073 | OG82: 61633.67805 | OH82: 62866.28014 | OI82: 64123.53008 | OJ82: 65405.92056 | OK82: 66713.95415 | OL82: 68048.14342 | OM82: 69409.01119 | ON82: 70797.09073 | OO82: 72212.92594 | OP82: 73657.07159 | OQ82: 75130.09352 | OR82: 76632.56885 | OS82: 78165.08626 | OT82: 79728.24614 | OU82: 81322.66087 | OV82: 82948.95507 | OW82: 84607.76581 | OX82: 86299.74286 | OY82: 88025.54897 | OZ82: 89785.86011 | PA82: 91581.36572 | PB82: 93412.76901 | PC82: 95280.78719 | PD82: 97186.15178 | PE82: 99129.60891 | PF82: 101111.9195 | PG82: 103133.8598 | PH82: 105196.2214 | PI82: 107299.8117 | PJ82: 109445.4541 | PK82: 111633.9885 | PL82: 113866.2716 | PM82: 116143.1771 | PN82: 118465.596 | PO82: 120834.4371 | PP82: 123250.6273 | PQ82: 125715.1121 | PR82: 128228.8555 | PS82: 130792.841 | PT82: 133408.0713 | PU82: 136075.5695 | PV82: 138796.3786 | PW82: 141571.5626 | PX82: 144402.2065 | PY82: 147289.4171 | PZ82: 150234.3228 | QA82: 153238.0748 | QB82: 156301.8469 | QC82: 159426.8363 | QD82: 162614.2638 | QE82: 165865.3747 | QF82: 169181.4388 | QG82: 172563.751 | QH82: 176013.6321 | QI82: 179532.4289 | QJ82: 183121.5148 | QK82: 186782.2906 | QL82: =QM75-QL75 -> 190516.1846 | QM82: 194324.6536 | QN82: 198209.1828 | QO82: 202171.2872 | QP82: 206212.5114 | QQ82: 210334.4307 | QR82: 214538.6513 | QS82: 218826.8113 | QT82: 223200.5808 | QU82: 227661.663 | QV82: 232211.7947 | QW82: 236852.7466 | QX82: 241586.3246 | QY82: 246414.3696 | QZ82: 251338.7592 | RA82: 256361.4073 | RB82: 261484.2658 | RC82: 266709.3246 | RD82: 272038.6125 | RE82: 277474.1982 | RF82: 283018.1907 | RG82: 288672.7402 | RH82: 294440.0388 | RI82: 300322.3215 | RJ82: 306321.8667 | RK82: 312440.997 | RL82: 318682.0803 | RM82: 325047.5304 | RN82: 331539.808 | RO82: 338161.4212 | RP82: 344914.9268 | RQ82: 351802.9308 | RR82: 358828.0898 | RS82: 365993.1111 | RT82: 373300.7543 | RU82: 380753.8321 | RV82: 388355.2108 | RW82: 396107.8117 | RX82: 404014.612 | RY82: 412078.6455 | RZ82: 420303.0038 | SA82: 428690.8372 | SB82: 437245.3557 | SC82: 445969.83 | SD82: 454867.5925 | SE82: 463942.0384 | SF82: 473196.6265 | SG82: 482634.8805 | SH82: 492260.3899 | SI82: 502076.8111 | SJ82: 512087.8683 | SK82: 522297.3547 | SL82: 532709.1337 | SM82: 543327.1393 | SN82: 554155.3782 | SO82: 565197.93 | SP82: 576458.9484 | SQ82: 587942.6628 | SR82: 599653.3784 | SS82: 611595.4783 | ST82: 623773.4237 | SU82: 636191.7555 | SV82: 648855.0947 | SW82: 661768.144 | SX82: =SY75-SX75 -> 674935.6886 | SY82: 688362.597 | SZ82: 702053.8219 | TA82: 716014.4017 | TB82: 730249.4605 | TC82: 744764.2098 | TD82: 759563.9487 | TE82: 774654.0651 | TF82: 790040.0364 | TG82: 805727.43 | TH82: 821721.9041 | TI82: 838029.2083 | TJ82: 854655.1842 | TK82: 871605.7658 | TL82: 888886.98 | TM82: 906504.9467 | TN82: 924465.8796 | TO82: 942776.0856 | TP82: 961441.9654 | TQ82: 980470.0136 | TR82: 999866.818 | TS82: 1019639.06 | TT82: 1039793.512 | TU82: 1060337.043 | TV82: 1081276.608 | TW82: 1102619.257 | TX82: 1124372.128 | TY82: 1146542.447 | TZ82: 1169137.529 | UA82: 1192164.773 | UB82: 1215631.66 | UC82: 1239545.755 | UD82: 1263914.702 | UE82: 1288746.22 | UF82: 1314048.101 | UG82: 1339828.209 | UH82: 1366094.474 | UI82: 1392854.886 | UJ82: 1420117.497 | UK82: 1447890.409 | UL82: 1476181.774 | UM82: 1504999.786 | UN82: 1534352.672 | UO82: 1564248.693 | UP82: 1594696.129 | UQ82: 1625703.273 | UR82: 1657278.425 | US82: 1689429.88 | UT82: 1722165.919 | UU82: 1755494.797 | UV82: 1789424.734 | UW82: 1823963.897 | UX82: 1859120.394 | UY82: 1894902.253 | UZ82: 1931317.408 | VA82: 1968373.686 | VB82: 2006078.782 | VC82: 2044440.247 | VD82: 2083465.462 | VE82: 2123161.618 | VF82: 2163535.692 | VG82: 2204594.424 | VH82: 2246344.285 | VI82: 2288791.451 | VJ82: =VK75-VJ75 -> 2331941.775 | VK82: 2375800.749 | VL82: 2420373.469 | VM82: 2465664.604 | VN82: 2511678.348 | VO82: 2558418.382 | VP82: 2605887.826 | VQ82: 2654089.195 | VR82: 2703024.341 | VS82: 2752694.403 | VT82: 2803099.747 | VU82: 2854239.904 | VV82: 2906113.502 | VW82: 2958718.199 | VX82: 3012050.603 | VY82: 3066106.198 | VZ82: 3120879.256 | WA82: 3176362.747 | WB82: 3232548.242 | WC82: 3289425.814 | WD82: 3346983.929 | WE82: 3405209.33 | WF82: 3464086.914 | WG82: 3523599.605 | WH82: 3583728.214 | WI82: 3644451.293 | WJ82: 3705744.98 | WK82: 3767582.835 | WL82: 3829935.662 | WM82: 3892771.326 | WN82: 3956054.555 | WO82: 4019746.728 | WP82: 4083805.657 | WQ82: 4148185.347 | WR82: 4212835.751 | WS82: 4277702.498 | WT82: 4342726.616 | WU82: 4407844.233 | WV82: 4472986.259 | WW82: 4538078.049 | WX82: 4603039.05 | WY82: 4667782.42 | WZ82: 4732214.628 | XA82: 4796235.031 | XB82: 4859735.42 | XC82: 4922599.547 | XD82: 4984702.613 | XE82: 5045910.735 | XF82: 5106080.379 | XG82: 5165057.749 | XH82: 5222678.157 | XI82: 5278765.337 | XJ82: 5333130.733 | XK82: 5385572.735 | XL82: 5435875.871 | XM82: 5483809.954 | XN82: 5529129.175 | XO82: 5571571.144 | XP82: 5610855.869 | XQ82: 5646684.683 | XR82: 5678739.098 | XS82: 5706679.595 | XT82: 5730144.342 | XU82: 5748747.835 | XV82: =XW75-XV75 -> 5762079.459 | XW82: 5769701.961 | XX82: 5771149.835 | XY82: 5765927.612 | XZ82: 5753508.043 | YA82: 5733330.179 | YB82: 5704797.336 | YC82: 5667274.94 | YD82: 5620088.241 | YE82: 5562519.894 | YF82: 5493807.399 | YG82: 5413140.382 | YH82: 5319657.725 | YI82: 5212444.516 | YJ82: 5090528.825 | YK82: 4952878.286 | YL82: 4798396.481 | YM82: 4625919.104 | YN82: 4434209.904 | YO82: 4221956.381 | YP82: 3987765.235 | YQ82: 3730157.546 | YR82: 3447563.659 | YS82: 3138317.779 | YT82: 2800652.239 | YU82: 2432691.435 | YV82: 2032445.397 | YW82: 1597802.984 | YX82: 1126524.679 | YY82: 616234.9529 | YZ82: 64414.18334 | ZA82: -531609.906 | ZB82: -1174671.31 | ZC82: -1867775.344 | ZD82: -2614108.806 | ZE82: -3417050.748 | ZF82: -4280183.87 | ZG82: -5207306.598 | ZH82: -6202445.868 | ZI82: -7269870.661 | ZJ82: -8414106.342 | ZK82: -9639949.842 | ZL82: -10952485.73 | ZM82: -12357103.24 | ZN82: -13859514.3 | ZO82: -15465772.6 | ZP82: -17182293.84 | ZQ82: -19015877.12 | ZR82: -20973727.57 | ZS82: -23063480.41 | ZT82: -25293226.31 | ZU82: -27671538.33 | ZV82: -30207500.41 | ZW82: -32910737.53 | ZX82: -35791447.68 | ZY82: -38860435.65 | ZZ82: -42129148.9 | AAA82: -45609715.48 | AAB82: -49314984.14
C84: Dividend - Equity Cash Flow with Net New Debt | E84: =E71-E79+E81 -> 78.50301326 | F84: =F71-F79+F81 -> 80.07307353 | G84: =G71-G79+G81 -> 81.674535 | H84: 83.3080257 | I84: 84.97418621 | J84: 86.67366993 | K84: 88.40714333 | L84: 90.1752862 | M84: 91.97879192 | N84: 93.81836776 | O84: 95.69473512 | P84: 97.60862982 | Q84: 99.56080242 | R84: 101.5520185 | S84: 103.5830588 | T84: 105.65472 | U84: 107.7678144 | V84: 109.9231707 | W84: 112.1216341 | X84: 114.3640668 | Y84: 116.6513481 | Z84: 118.9843751 | AA84: 121.3640626 | AB84: 123.7913438 | AC84: 126.2671707 | AD84: 128.7925141 | AE84: 131.3683644 | AF84: 133.9957317 | AG84: 136.6756463 | AH84: 139.4091593 | AI84: 142.1973425 | AJ84: 145.0412893 | AK84: 147.9421151 | AL84: 150.9009574 | AM84: 153.9189765 | AN84: 156.9973561 | AO84: 160.1373032 | AP84: 163.3400493 | AQ84: 166.6068502 | AR84: 169.9389872 | AS84: 173.337767 | AT84: 176.8045223 | AU84: 180.3406128 | AV84: 183.947425 | AW84: 187.6263735 | AX84: 191.378901 | AY84: 195.206479 | AZ84: 199.1106086 | BA84: 203.0928208 | BB84: 207.1546772 | BC84: 211.2977707 | BD84: 215.5237262 | BE84: 219.8342007 | BF84: 224.2308847 | BG84: 228.7155024 | BH84: 233.2898124 | BI84: 237.9556087 | BJ84: 242.7147209 | BK84: 247.5690153 | BL84: 252.5203956 | BM84: 257.5708035 | BN84: 262.7222196 | BO84: 267.9766639 | BP84: 273.3361972 | BQ84: 278.8029212 | BR84: =BR71-BR79+BR81 -> 284.3789796 | BS84: 290.0665592 | BT84: 295.8678904 | BU84: 301.7852482 | BV84: 307.8209531 | BW84: 313.9773722 | BX84: 320.2569196 | BY84: 326.662058 | BZ84: 333.1952992 | CA84: 339.8592052 | CB84: 346.6563893 | CC84: 353.5895171 | CD84: 360.6613074 | CE84: 367.8745336 | CF84: 375.2320242 | CG84: 382.7366647 | CH84: 390.391398 | CI84: 398.199226 | CJ84: 406.1632105 | CK84: 414.2864747 | CL84: 422.5722042 | CM84: 431.0236483 | CN84: 439.6441212 | CO84: 448.4370037 | CP84: 457.4057437 | CQ84: 466.5538586 | CR84: 475.8849358 | CS84: 485.4026345 | CT84: 495.1106872 | CU84: 505.0129009 | CV84: 515.1131589 | CW84: 525.4154221 | CX84: 535.9237306 | CY84: 546.6422052 | CZ84: 557.5750493 | DA84: 568.7265503 | DB84: 580.1010813 | DC84: 591.7031029 | DD84: 603.5371649 | DE84: 615.6079082 | DF84: 627.9200664 | DG84: 640.4784677 | DH84: 653.2880371 | DI84: 666.3537978 | DJ84: 679.6808738 | DK84: 693.2744912 | DL84: 707.1399811 | DM84: 721.2827807 | DN84: 735.7084363 | DO84: 750.422605 | DP84: 765.4310571 | DQ84: 780.7396782 | DR84: 796.3544718 | DS84: 812.2815612 | DT84: 828.5271925 | DU84: 845.0977363 | DV84: 861.999691 | DW84: 879.2396848 | DX84: 896.8244785 | DY84: 914.7609681 | DZ84: 933.0561875 | EA84: 951.7173112 | EB84: 970.7516574 | EC84: 990.1666906 | ED84: =ED71-ED79+ED81 -> 1009.970024 | EE84: 1030.169425 | EF84: 1050.772813 | EG84: 1071.78827 | EH84: 1093.224035 | EI84: 1115.088516 | EJ84: 1137.390286 | EK84: 1160.138092 | EL84: 1183.340853 | EM84: 1207.007671 | EN84: 1231.147824 | EO84: 1255.77078 | EP84: 1280.886196 | EQ84: 1306.50392 | ER84: 1332.633998 | ES84: 1359.286678 | ET84: 1386.472412 | EU84: 1414.20186 | EV84: 1442.485897 | EW84: 1471.335615 | EX84: 1500.762327 | EY84: 1530.777574 | EZ84: 1561.393125 | FA84: 1592.620988 | FB84: 1624.473408 | FC84: 1656.962876 | FD84: 1690.102133 | FE84: 1723.904176 | FF84: 1758.382259 | FG84: 1793.549904 | FH84: 1829.420902 | FI84: 1866.00932 | FJ84: 1903.329507 | FK84: 1941.396097 | FL84: 1980.224019 | FM84: 2019.828499 | FN84: 2060.225069 | FO84: 2101.42957 | FP84: 2143.458162 | FQ84: 2186.327325 | FR84: 2230.053871 | FS84: 2274.654949 | FT84: 2320.148047 | FU84: 2366.551008 | FV84: 2413.882028 | FW84: 2462.159669 | FX84: 2511.402862 | FY84: 2561.630919 | FZ84: 2612.863538 | GA84: 2665.120808 | GB84: 2718.423224 | GC84: 2772.791689 | GD84: 2828.247522 | GE84: 2884.812472 | GF84: 2942.508722 | GG84: 3001.358896 | GH84: 3061.386074 | GI84: 3122.613795 | GJ84: 3185.066071 | GK84: 3248.767392 | GL84: 3313.742739 | GM84: 3380.017594 | GN84: 3447.617946 | GO84: 3516.570304 | GP84: =GP71-GP79+GP81 -> 3586.90171 | GQ84: 3658.639744 | GR84: 3731.812538 | GS84: 3806.448789 | GT84: 3882.577764 | GU84: 3960.229319 | GV84: 4039.433905 | GW84: 4120.222583 | GX84: 4202.627034 | GY84: 4286.679574 | GZ84: 4372.413165 | HA84: 4459.861428 | HB84: 4549.058656 | HC84: 4640.039828 | HD84: 4732.840624 | HE84: 4827.497436 | HF84: 4924.047384 | HG84: 5022.528331 | HH84: 5122.978897 | HI84: 5225.438474 | HJ84: 5329.947242 | HK84: 5436.546186 | HL84: 5545.277109 | HM84: 5656.18265 | HN84: 5769.306302 | HO84: 5884.692427 | HP84: 6002.386274 | HQ84: 6122.433998 | HR84: 6244.882676 | HS84: 6369.780328 | HT84: 6497.175933 | HU84: 6627.11945 | HV84: 6759.661837 | HW84: 6894.855072 | HX84: 7032.752171 | HY84: 7173.407213 | HZ84: 7316.875355 | IA84: 7463.212859 | IB84: 7612.477114 | IC84: 7764.726653 | ID84: 7920.021184 | IE84: 8078.421604 | IF84: 8239.990033 | IG84: 8404.78983 | IH84: 8572.885623 | II84: 8744.343332 | IJ84: 8919.230194 | IK84: 9097.614794 | IL84: 9279.567085 | IM84: 9465.158422 | IN84: 9654.461585 | IO84: 9847.550811 | IP84: 10044.50182 | IQ84: 10245.39185 | IR84: 10450.29968 | IS84: 10659.30567 | IT84: 10872.49178 | IU84: 11089.9416 | IV84: 11311.74043 | IW84: 11537.97523 | IX84: 11768.73472 | IY84: 12004.10941 | IZ84: 12244.19159 | JA84: 12489.07541 | JB84: =JB71-JB79+JB81 -> 12738.8569 | JC84: 12993.63403 | JD84: 13253.5067 | JE84: 13518.57682 | JF84: 13788.94834 | JG84: 14064.72729 | JH84: 14346.02182 | JI84: 14632.94224 | JJ84: 14925.60107 | JK84: 15224.11307 | JL84: 15528.59531 | JM84: 15839.16719 | JN84: 16155.95051 | JO84: 16479.0695 | JP84: 16808.65086 | JQ84: 17144.82385 | JR84: 17487.7203 | JS84: 17837.47468 | JT84: 18194.22414 | JU84: 18558.10859 | JV84: 18929.27072 | JW84: 19307.8561 | JX84: 19694.01318 | JY84: 20087.8934 | JZ84: 20489.65123 | KA84: 20899.4442 | KB84: 21317.43304 | KC84: 21743.78164 | KD84: 22178.65722 | KE84: 22622.2303 | KF84: 23074.67485 | KG84: 23536.16827 | KH84: 24006.89157 | KI84: 24487.02932 | KJ84: 24976.76983 | KK84: 25476.30514 | KL84: 25985.83115 | KM84: 26505.54768 | KN84: 27035.65854 | KO84: 27576.3716 | KP84: 28127.89892 | KQ84: 28690.45678 | KR84: 29264.26579 | KS84: 29849.55097 | KT84: 30446.54185 | KU84: 31055.47253 | KV84: 31676.58182 | KW84: 32310.11329 | KX84: 32956.31538 | KY84: 33615.4415 | KZ84: 34287.75013 | LA84: 34973.50492 | LB84: 35672.97479 | LC84: 36386.43405 | LD84: 37114.16248 | LE84: 37856.44546 | LF84: 38613.57409 | LG84: 39385.84527 | LH84: 40173.56186 | LI84: 40977.03277 | LJ84: 41796.57307 | LK84: 42632.50415 | LL84: 43485.15384 | LM84: 44354.8565 | LN84: =LN71-LN79+LN81 -> 45241.95318 | LO84: 46146.79177 | LP84: 47069.72711 | LQ84: 48011.12112 | LR84: 48971.34299 | LS84: 49950.76925 | LT84: 50949.78401 | LU84: 51968.77903 | LV84: 53008.1539 | LW84: 54068.31624 | LX84: 55149.68178 | LY84: 56252.67458 | LZ84: 57377.72718 | MA84: 58525.28079 | MB84: 59695.78542 | MC84: 60889.70008 | MD84: 62107.49297 | ME84: 63349.64165 | MF84: 64616.63324 | MG84: 65908.96459 | MH84: 67227.14248 | MI84: 68571.68386 | MJ84: 69943.11597 | MK84: 71341.97663 | ML84: 72768.81441 | MM84: 74224.18884 | MN84: 75708.67065 | MO84: 77222.84198 | MP84: 78767.29662 | MQ84: 80342.64022 | MR84: 81949.49055 | MS84: 83588.47775 | MT84: 85260.24453 | MU84: 86965.44649 | MV84: 88704.75231 | MW84: 90478.84407 | MX84: 92288.41747 | MY84: 94134.18214 | MZ84: 96016.86188 | NA84: 97937.19498 | NB84: 99895.93451 | NC84: 101893.8486 | ND84: 103931.7206 | NE84: 106010.3499 | NF84: 108130.5514 | NG84: 110293.1566 | NH84: 112499.0135 | NI84: 114748.9873 | NJ84: 117043.9601 | NK84: 119384.832 | NL84: 121772.5209 | NM84: 124207.9631 | NN84: 126692.1137 | NO84: 129225.9468 | NP84: 131810.456 | NQ84: 134446.6548 | NR84: 137135.577 | NS84: 139878.277 | NT84: 142675.8303 | NU84: 145529.3339 | NV84: 148439.9069 | NW84: 151408.6905 | NX84: 154436.8489 | NY84: 157525.5696 | NZ84: =NZ71-NZ79+NZ81 -> 160676.0638 | OA84: 163889.5668 | OB84: 167167.3388 | OC84: 170510.6652 | OD84: 173920.8568 | OE84: 177399.251 | OF84: 180947.2118 | OG84: 184566.1303 | OH84: 188257.4257 | OI84: 192022.5454 | OJ84: 195862.9658 | OK84: 199780.1928 | OL84: 203775.7624 | OM84: 207851.2414 | ON84: 212008.2279 | OO84: 216248.3519 | OP84: 220573.2759 | OQ84: 224984.6959 | OR84: 229484.3417 | OS84: 234073.9775 | OT84: 238755.403 | OU84: 243530.4539 | OV84: 248401.0024 | OW84: 253368.9583 | OX84: 258436.2696 | OY84: 263604.9231 | OZ84: 268876.9454 | PA84: 274254.4037 | PB84: 279739.4065 | PC84: 285334.1043 | PD84: 291040.6907 | PE84: 296861.4033 | PF84: 302798.5241 | PG84: 308854.381 | PH84: 315031.3484 | PI84: 321331.8481 | PJ84: 327758.3503 | PK84: 334313.3747 | PL84: 340999.4911 | PM84: 347819.321 | PN84: 354775.538 | PO84: 361870.8695 | PP84: 369108.097 | PQ84: 376490.0579 | PR84: 384019.6463 | PS84: 391699.8138 | PT84: 399533.5715 | PU84: 407523.9903 | PV84: 415674.2027 | PW84: 423987.4035 | PX84: 432466.8517 | PY84: 441115.8713 | PZ84: 449937.8526 | QA84: 458936.2537 | QB84: 468114.602 | QC84: 477476.495 | QD84: 487025.6025 | QE84: 496765.6673 | QF84: 506700.507 | QG84: 516834.0158 | QH84: 527170.1652 | QI84: 537713.0064 | QJ84: 548466.6714 | QK84: 559435.3747 | QL84: =QL71-QL79+QL81 -> 570623.415 | QM84: 582035.1768 | QN84: 593675.1324 | QO84: 605547.8432 | QP84: 617657.9616 | QQ84: 630010.233 | QR84: 642609.4977 | QS84: 655460.6924 | QT84: 668568.8526 | QU84: 681939.1139 | QV84: 695576.7149 | QW84: 709486.9985 | QX84: 723675.4142 | QY84: 738147.5204 | QZ84: 752908.9862 | RA84: 767965.5941 | RB84: 783323.2418 | RC84: 798987.9445 | RD84: 814965.8378 | RE84: 831263.1792 | RF84: 847886.3512 | RG84: 864841.8638 | RH84: 882136.3564 | RI84: 899776.6011 | RJ84: 917769.5047 | RK84: 936122.1118 | RL84: 954841.6074 | RM84: 973935.3198 | RN84: 993410.7229 | RO84: 1013275.44 | RP84: 1033537.246 | RQ84: 1054204.07 | RR84: 1075284 | RS84: 1096785.285 | RT84: 1118716.337 | RU84: 1141085.736 | RV84: 1163902.234 | RW84: 1187174.755 | RX84: 1210912.401 | RY84: 1235124.457 | RZ84: 1259820.39 | SA84: 1285009.856 | SB84: 1310702.703 | SC84: 1336908.975 | SD84: 1363638.915 | SE84: 1390902.969 | SF84: 1418711.791 | SG84: 1447076.247 | SH84: 1476007.417 | SI84: 1505516.602 | SJ84: 1535615.326 | SK84: 1566315.341 | SL84: 1597628.635 | SM84: 1629567.429 | SN84: 1662144.189 | SO84: 1695371.627 | SP84: 1729262.705 | SQ84: 1763830.643 | SR84: 1799088.922 | SS84: 1835051.289 | ST84: 1871731.762 | SU84: 1909144.636 | SV84: 1947304.488 | SW84: 1986226.183 | SX84: =SX71-SX79+SX81 -> 2025924.877 | SY84: 2066416.027 | SZ84: 2107715.392 | TA84: 2149839.041 | TB84: 2192803.362 | TC84: 2236625.06 | TD84: 2281321.171 | TE84: 2326909.066 | TF84: 2373406.453 | TG84: 2420831.39 | TH84: 2469202.286 | TI84: 2518537.911 | TJ84: 2568857.402 | TK84: 2620180.269 | TL84: 2672526.402 | TM84: 2725916.078 | TN84: 2780369.971 | TO84: 2835909.154 | TP84: 2892555.109 | TQ84: 2950329.738 | TR84: 3009255.363 | TS84: 3069354.74 | TT84: 3130651.065 | TU84: 3193167.979 | TV84: 3256929.582 | TW84: 3321960.434 | TX84: 3388285.569 | TY84: 3455930.501 | TZ84: 3524921.23 | UA84: 3595284.255 | UB84: 3667046.581 | UC84: 3740235.725 | UD84: 3814879.728 | UE84: 3891007.162 | UF84: 3968647.141 | UG84: 4047829.328 | UH84: 4128583.943 | UI84: 4210941.777 | UJ84: 4294934.195 | UK84: 4380593.15 | UL84: 4467951.191 | UM84: 4557041.469 | UN84: 4647897.753 | UO84: 4740554.434 | UP84: 4835046.536 | UQ84: 4931409.727 | UR84: 5029680.325 | US84: 5129895.312 | UT84: 5232092.339 | UU84: 5336309.738 | UV84: 5442586.531 | UW84: 5550962.439 | UX84: 5661477.891 | UY84: 5774174.033 | UZ84: 5889092.737 | VA84: 6006276.612 | VB84: 6125769.008 | VC84: 6247614.029 | VD84: 6371856.539 | VE84: 6498542.171 | VF84: 6627717.334 | VG84: 6759429.221 | VH84: 6893725.816 | VI84: 7030655.902 | VJ84: =VJ71-VJ79+VJ81 -> 7170269.066 | VK84: 7312615.703 | VL84: 7457747.029 | VM84: 7605715.077 | VN84: 7756572.706 | VO84: 7910373.606 | VP84: 8067172.3 | VQ84: 8227024.143 | VR84: 8389985.329 | VS84: 8556112.891 | VT84: 8725464.695 | VU84: 8898099.449 | VV84: 9074076.69 | VW84: 9253456.791 | VX84: 9436300.947 | VY84: 9622671.176 | VZ84: 9812630.31 | WA84: 10006241.98 | WB84: 10203570.63 | WC84: 10404681.45 | WD84: 10609640.43 | WE84: 10818514.31 | WF84: 11031370.53 | WG84: 11248277.29 | WH84: 11469303.43 | WI84: 11694518.5 | WJ84: 11923992.64 | WK84: 12157796.64 | WL84: 12396001.81 | WM84: 12638680.03 | WN84: 12885903.63 | WO84: 13137745.42 | WP84: 13394278.57 | WQ84: 13655576.59 | WR84: 13921713.28 | WS84: 14192762.65 | WT84: 14468798.83 | WU84: 14749896.05 | WV84: 15036128.49 | WW84: 15327570.24 | WX84: 15624295.19 | WY84: 15926376.94 | WZ84: 16233888.64 | XA84: 16546902.94 | XB84: 16865491.82 | XC84: 17189726.44 | XD84: 17519677.05 | XE84: 17855412.77 | XF84: 18197001.45 | XG84: 18544509.48 | XH84: 18898001.62 | XI84: 19257540.74 | XJ84: 19623187.65 | XK84: 19995000.84 | XL84: 20373036.22 | XM84: 20757346.85 | XN84: 21147982.67 | XO84: 21544990.16 | XP84: 21948412.03 | XQ84: 22358286.88 | XR84: 22774648.79 | XS84: 23197526.93 | XT84: 23626945.16 | XU84: 24062921.55 | XV84: =XV71-XV79+XV81 -> 24505467.92 | XW84: 24954589.27 | XX84: 25410283.3 | XY84: 25872539.8 | XZ84: 26341340.02 | YA84: 26816656 | YB84: 27298449.92 | YC84: 27786673.27 | YD84: 28281266.14 | YE84: 28782156.33 | YF84: 29289258.45 | YG84: 29802472.99 | YH84: 30321685.3 | YI84: 30846764.48 | YJ84: 31377562.31 | YK84: 31913911.94 | YL84: 32455626.7 | YM84: 33002498.65 | YN84: 33554297.18 | YO84: 34110767.42 | YP84: 34671628.64 | YQ84: 35236572.52 | YR84: 35805261.23 | YS84: 36377325.58 | YT84: 36952362.85 | YU84: 37529934.63 | YV84: 38109564.48 | YW84: 38690735.43 | YX84: 39272887.36 | YY84: 39855414.2 | YZ84: 40437660.98 | ZA84: 41018920.69 | ZB84: 41598430.93 | ZC84: 42175370.4 | ZD84: 42748855.14 | ZE84: 43317934.56 | ZF84: 43881587.24 | ZG84: 44438716.46 | ZH84: 44988145.48 | ZI84: 45528612.48 | ZJ84: 46058765.32 | ZK84: 46577155.82 | ZL84: 47082233.85 | ZM84: 47572340.95 | ZN84: 48045703.68 | ZO84: 48500426.41 | ZP84: 48934483.91 | ZQ84: 49345713.24 | ZR84: 49731805.37 | ZS84: 50090296.16 | ZT84: 50418556.89 | ZU84: 50713784.17 | ZV84: 50972989.26 | ZW84: 51192986.8 | ZX84: 51370382.78 | ZY84: 51501561.88 | ZZ84: 51582674.03 | AAA84: 51609620.14 | AAB84: 51578037.02
C85: Dividend with Gross new Debt | E85: =E71-E79+E82 -> 78.50301326 | F85: =F71-F79+F82 -> 80.07307353 | G85: 81.674535 | H85: 83.3080257 | I85: 84.97418621 | J85: 86.67366993 | K85: 88.40714333 | L85: 90.1752862 | M85: 91.97879192 | N85: 93.81836776 | O85: 95.69473512 | P85: 97.60862982 | Q85: 99.56080242 | R85: 101.5520185 | S85: 103.5830588 | T85: 105.65472 | U85: 107.7678144 | V85: 109.9231707 | W85: 112.1216341 | X85: 114.3640668 | Y85: 116.6513481 | Z85: 118.9843751 | AA85: 121.3640626 | AB85: 123.7913438 | AC85: 126.2671707 | AD85: 128.7925141 | AE85: 131.3683644 | AF85: 133.9957317 | AG85: 136.6756463 | AH85: 139.4091593 | AI85: 142.1973425 | AJ85: 145.0412893 | AK85: 147.9421151 | AL85: 150.9009574 | AM85: 153.9189765 | AN85: 156.9973561 | AO85: 160.1373032 | AP85: 163.3400493 | AQ85: 166.6068502 | AR85: 169.9389872 | AS85: 173.337767 | AT85: 176.8045223 | AU85: 180.3406128 | AV85: 183.947425 | AW85: 187.6263735 | AX85: 191.378901 | AY85: 195.206479 | AZ85: 199.1106086 | BA85: 203.0928208 | BB85: 207.1546772 | BC85: 211.2977707 | BD85: 215.5237262 | BE85: 219.8342007 | BF85: 224.2308847 | BG85: 228.7155024 | BH85: 233.2898124 | BI85: 237.9556087 | BJ85: 242.7147209 | BK85: 247.5690153 | BL85: 252.5203956 | BM85: 257.5708035 | BN85: 262.7222196 | BO85: 267.9766639 | BP85: 273.3361972 | BQ85: 278.8029212 | BR85: =BR71-BR79+BR82 -> 284.3789796 | BS85: 290.0665592 | BT85: 295.8678904 | BU85: 301.7852482 | BV85: 307.8209531 | BW85: 313.9773722 | BX85: 320.2569196 | BY85: 326.662058 | BZ85: 333.1952992 | CA85: 339.8592052 | CB85: 346.6563893 | CC85: 353.5895171 | CD85: 360.6613074 | CE85: 367.8745336 | CF85: 375.2320242 | CG85: 382.7366647 | CH85: 390.391398 | CI85: 398.199226 | CJ85: 406.1632105 | CK85: 414.2864747 | CL85: 422.5722042 | CM85: 431.0236483 | CN85: 439.6441212 | CO85: 448.4370037 | CP85: 457.4057437 | CQ85: 466.5538586 | CR85: 475.8849358 | CS85: 485.4026345 | CT85: 495.1106872 | CU85: 505.0129009 | CV85: 515.1131589 | CW85: 525.4154221 | CX85: 535.9237306 | CY85: 546.6422052 | CZ85: 557.5750493 | DA85: 568.7265503 | DB85: 580.1010813 | DC85: 591.7031029 | DD85: 603.5371649 | DE85: 615.6079082 | DF85: 627.9200664 | DG85: 640.4784677 | DH85: 653.2880371 | DI85: 666.3537978 | DJ85: 679.6808738 | DK85: 693.2744912 | DL85: 707.1399811 | DM85: 721.2827807 | DN85: 735.7084363 | DO85: 750.422605 | DP85: 765.4310571 | DQ85: 780.7396782 | DR85: 796.3544718 | DS85: 812.2815612 | DT85: 828.5271925 | DU85: 845.0977363 | DV85: 861.999691 | DW85: 879.2396848 | DX85: 896.8244785 | DY85: 914.7609681 | DZ85: 933.0561875 | EA85: 951.7173112 | EB85: 970.7516574 | EC85: 990.1666906 | ED85: =ED71-ED79+ED82 -> 1009.970024 | EE85: 1030.169425 | EF85: 1050.772813 | EG85: 1071.78827 | EH85: 1093.224035 | EI85: 1115.088516 | EJ85: 1137.390286 | EK85: 1160.138092 | EL85: 1183.340853 | EM85: 1207.007671 | EN85: 1231.147824 | EO85: 1255.77078 | EP85: 1280.886196 | EQ85: 1306.50392 | ER85: 1332.633998 | ES85: 1359.286678 | ET85: 1386.472412 | EU85: 1414.20186 | EV85: 1442.485897 | EW85: 1471.335615 | EX85: 1500.762327 | EY85: 1530.777574 | EZ85: 1561.393125 | FA85: 1592.620988 | FB85: 1624.473408 | FC85: 1656.962876 | FD85: 1690.102133 | FE85: 1723.904176 | FF85: 1758.382259 | FG85: 1793.549904 | FH85: 1829.420902 | FI85: 1866.00932 | FJ85: 1903.329507 | FK85: 1941.396097 | FL85: 1980.224019 | FM85: 2019.828499 | FN85: 2060.225069 | FO85: 2101.42957 | FP85: 2143.458162 | FQ85: 2186.327325 | FR85: 2230.053871 | FS85: 2274.654949 | FT85: 2320.148047 | FU85: 2366.551008 | FV85: 2413.882028 | FW85: 2462.159669 | FX85: 2511.402862 | FY85: 2561.630919 | FZ85: 2612.863538 | GA85: 2665.120808 | GB85: 2718.423224 | GC85: 2772.791689 | GD85: 2828.247522 | GE85: 2884.812472 | GF85: 2942.508722 | GG85: 3001.358896 | GH85: 3061.386074 | GI85: 3122.613795 | GJ85: 3185.066071 | GK85: 3248.767392 | GL85: 3313.742739 | GM85: 3380.017594 | GN85: 3447.617946 | GO85: 3516.570304 | GP85: =GP71-GP79+GP82 -> 3586.90171 | GQ85: 3658.639744 | GR85: 3731.812538 | GS85: 3806.448789 | GT85: 3882.577764 | GU85: 3960.229319 | GV85: 4039.433905 | GW85: 4120.222583 | GX85: 4202.627034 | GY85: 4286.679574 | GZ85: 4372.413165 | HA85: 4459.861428 | HB85: 4549.058656 | HC85: 4640.039828 | HD85: 4732.840624 | HE85: 4827.497436 | HF85: 4924.047384 | HG85: 5022.528331 | HH85: 5122.978897 | HI85: 5225.438474 | HJ85: 5329.947242 | HK85: 5436.546186 | HL85: 5545.277109 | HM85: 5656.18265 | HN85: 5769.306302 | HO85: 5884.692427 | HP85: 6002.386274 | HQ85: 6122.433998 | HR85: 6244.882676 | HS85: 6369.780328 | HT85: 6497.175933 | HU85: 6627.11945 | HV85: 6759.661837 | HW85: 6894.855072 | HX85: 7032.752171 | HY85: 7173.407213 | HZ85: 7316.875355 | IA85: 7463.212859 | IB85: 7612.477114 | IC85: 7764.726653 | ID85: 7920.021184 | IE85: 8078.421604 | IF85: 8239.990033 | IG85: 8404.78983 | IH85: 8572.885623 | II85: 8744.343332 | IJ85: 8919.230194 | IK85: 9097.614794 | IL85: 9279.567085 | IM85: 9465.158422 | IN85: 9654.461585 | IO85: 9847.550811 | IP85: 10044.50182 | IQ85: 10245.39185 | IR85: 10450.29968 | IS85: 10659.30567 | IT85: 10872.49178 | IU85: 11089.9416 | IV85: 11311.74043 | IW85: 11537.97523 | IX85: 11768.73472 | IY85: 12004.10941 | IZ85: 12244.19159 | JA85: 12489.07541 | JB85: =JB71-JB79+JB82 -> 12738.8569 | JC85: 12993.63403 | JD85: 13253.5067 | JE85: 13518.57682 | JF85: 13788.94834 | JG85: 14064.72729 | JH85: 14346.02182 | JI85: 14632.94224 | JJ85: 14925.60107 | JK85: 15224.11307 | JL85: 15528.59531 | JM85: 15839.16719 | JN85: 16155.95051 | JO85: 16479.0695 | JP85: 16808.65086 | JQ85: 17144.82385 | JR85: 17487.7203 | JS85: 17837.47468 | JT85: 18194.22414 | JU85: 18558.10859 | JV85: 18929.27072 | JW85: 19307.8561 | JX85: 19694.01318 | JY85: 20087.8934 | JZ85: 20489.65123 | KA85: 20899.4442 | KB85: 21317.43304 | KC85: 21743.78164 | KD85: 22178.65722 | KE85: 22622.2303 | KF85: 23074.67485 | KG85: 23536.16827 | KH85: 24006.89157 | KI85: 24487.02932 | KJ85: 24976.76983 | KK85: 25476.30514 | KL85: 25985.83115 | KM85: 26505.54768 | KN85: 27035.65854 | KO85: 27576.3716 | KP85: 28127.89892 | KQ85: 28690.45678 | KR85: 29264.26579 | KS85: 29849.55097 | KT85: 30446.54185 | KU85: 31055.47253 | KV85: 31676.58182 | KW85: 32310.11329 | KX85: 32956.31538 | KY85: 33615.4415 | KZ85: 34287.75013 | LA85: 34973.50492 | LB85: 35672.97479 | LC85: 36386.43405 | LD85: 37114.16248 | LE85: 37856.44546 | LF85: 38613.57409 | LG85: 39385.84527 | LH85: 40173.56186 | LI85: 40977.03277 | LJ85: 41796.57307 | LK85: 42632.50415 | LL85: 43485.15384 | LM85: 44354.8565 | LN85: =LN71-LN79+LN82 -> 45241.95318 | LO85: 46146.79177 | LP85: 47069.72711 | LQ85: 48011.12112 | LR85: 48971.34299 | LS85: 49950.76925 | LT85: 50949.78401 | LU85: 51968.77903 | LV85: 53008.1539 | LW85: 54068.31624 | LX85: 55149.68178 | LY85: 56252.67458 | LZ85: 57377.72718 | MA85: 58525.28079 | MB85: 59695.78542 | MC85: 60889.70008 | MD85: 62107.49297 | ME85: 63349.64165 | MF85: 64616.63324 | MG85: 65908.96459 | MH85: 67227.14248 | MI85: 68571.68386 | MJ85: 69943.11597 | MK85: 71341.97663 | ML85: 72768.81441 | MM85: 74224.18884 | MN85: 75708.67065 | MO85: 77222.84198 | MP85: 78767.29662 | MQ85: 80342.64022 | MR85: 81949.49055 | MS85: 83588.47775 | MT85: 85260.24453 | MU85: 86965.44649 | MV85: 88704.75231 | MW85: 90478.84407 | MX85: 92288.41747 | MY85: 94134.18214 | MZ85: 96016.86188 | NA85: 97937.19498 | NB85: 99895.93451 | NC85: 101893.8486 | ND85: 103931.7206 | NE85: 106010.3499 | NF85: 108130.5514 | NG85: 110293.1566 | NH85: 112499.0135 | NI85: 114748.9873 | NJ85: 117043.9601 | NK85: 119384.832 | NL85: 121772.5209 | NM85: 124207.9631 | NN85: 126692.1137 | NO85: 129225.9468 | NP85: 131810.456 | NQ85: 134446.6548 | NR85: 137135.577 | NS85: 139878.277 | NT85: 142675.8303 | NU85: 145529.3339 | NV85: 148439.9069 | NW85: 151408.6905 | NX85: 154436.8489 | NY85: 157525.5696 | NZ85: =NZ71-NZ79+NZ82 -> 160676.0638 | OA85: 163889.5668 | OB85: 167167.3388 | OC85: 170510.6652 | OD85: 173920.8568 | OE85: 177399.251 | OF85: 180947.2118 | OG85: 184566.1303 | OH85: 188257.4257 | OI85: 192022.5454 | OJ85: 195862.9658 | OK85: 199780.1928 | OL85: 203775.7624 | OM85: 207851.2414 | ON85: 212008.2279 | OO85: 216248.3519 | OP85: 220573.2759 | OQ85: 224984.6959 | OR85: 229484.3417 | OS85: 234073.9775 | OT85: 238755.403 | OU85: 243530.4539 | OV85: 248401.0024 | OW85: 253368.9583 | OX85: 258436.2696 | OY85: 263604.9231 | OZ85: 268876.9454 | PA85: 274254.4037 | PB85: 279739.4065 | PC85: 285334.1043 | PD85: 291040.6907 | PE85: 296861.4033 | PF85: 302798.5241 | PG85: 308854.381 | PH85: 315031.3484 | PI85: 321331.8481 | PJ85: 327758.3503 | PK85: 334313.3747 | PL85: 340999.4911 | PM85: 347819.321 | PN85: 354775.538 | PO85: 361870.8695 | PP85: 369108.097 | PQ85: 376490.0579 | PR85: 384019.6463 | PS85: 391699.8138 | PT85: 399533.5715 | PU85: 407523.9903 | PV85: 415674.2027 | PW85: 423987.4035 | PX85: 432466.8517 | PY85: 441115.8713 | PZ85: 449937.8526 | QA85: 458936.2537 | QB85: 468114.602 | QC85: 477476.495 | QD85: 487025.6025 | QE85: 496765.6673 | QF85: 506700.507 | QG85: 516834.0158 | QH85: 527170.1652 | QI85: 537713.0064 | QJ85: 548466.6714 | QK85: 559435.3747 | QL85: =QL71-QL79+QL82 -> 570623.415 | QM85: 582035.1768 | QN85: 593675.1324 | QO85: 605547.8432 | QP85: 617657.9616 | QQ85: 630010.233 | QR85: 642609.4977 | QS85: 655460.6924 | QT85: 668568.8526 | QU85: 681939.1139 | QV85: 695576.7149 | QW85: 709486.9985 | QX85: 723675.4142 | QY85: 738147.5204 | QZ85: 752908.9862 | RA85: 767965.5941 | RB85: 783323.2418 | RC85: 798987.9445 | RD85: 814965.8378 | RE85: 831263.1792 | RF85: 847886.3512 | RG85: 864841.8638 | RH85: 882136.3564 | RI85: 899776.6011 | RJ85: 917769.5047 | RK85: 936122.1118 | RL85: 954841.6074 | RM85: 973935.3198 | RN85: 993410.7229 | RO85: 1013275.44 | RP85: 1033537.246 | RQ85: 1054204.07 | RR85: 1075284 | RS85: 1096785.285 | RT85: 1118716.337 | RU85: 1141085.736 | RV85: 1163902.234 | RW85: 1187174.755 | RX85: 1210912.401 | RY85: 1235124.457 | RZ85: 1259820.39 | SA85: 1285009.856 | SB85: 1310702.703 | SC85: 1336908.975 | SD85: 1363638.915 | SE85: 1390902.969 | SF85: 1418711.791 | SG85: 1447076.247 | SH85: 1476007.417 | SI85: 1505516.602 | SJ85: 1535615.326 | SK85: 1566315.341 | SL85: 1597628.635 | SM85: 1629567.429 | SN85: 1662144.189 | SO85: 1695371.627 | SP85: 1729262.705 | SQ85: 1763830.643 | SR85: 1799088.922 | SS85: 1835051.289 | ST85: 1871731.762 | SU85: 1909144.636 | SV85: 1947304.488 | SW85: 1986226.183 | SX85: =SX71-SX79+SX82 -> 2025924.877 | SY85: 2066416.027 | SZ85: 2107715.392 | TA85: 2149839.041 | TB85: 2192803.362 | TC85: 2236625.06 | TD85: 2281321.171 | TE85: 2326909.066 | TF85: 2373406.453 | TG85: 2420831.39 | TH85: 2469202.286 | TI85: 2518537.911 | TJ85: 2568857.402 | TK85: 2620180.269 | TL85: 2672526.402 | TM85: 2725916.078 | TN85: 2780369.971 | TO85: 2835909.154 | TP85: 2892555.109 | TQ85: 2950329.738 | TR85: 3009255.363 | TS85: 3069354.74 | TT85: 3130651.065 | TU85: 3193167.979 | TV85: 3256929.582 | TW85: 3321960.434 | TX85: 3388285.569 | TY85: 3455930.501 | TZ85: 3524921.23 | UA85: 3595284.255 | UB85: 3667046.581 | UC85: 3740235.725 | UD85: 3814879.728 | UE85: 3891007.162 | UF85: 3968647.141 | UG85: 4047829.328 | UH85: 4128583.943 | UI85: 4210941.777 | UJ85: 4294934.195 | UK85: 4380593.15 | UL85: 4467951.191 | UM85: 4557041.469 | UN85: 4647897.753 | UO85: 4740554.434 | UP85: 4835046.536 | UQ85: 4931409.727 | UR85: 5029680.325 | US85: 5129895.312 | UT85: 5232092.339 | UU85: 5336309.738 | UV85: 5442586.531 | UW85: 5550962.439 | UX85: 5661477.891 | UY85: 5774174.033 | UZ85: 5889092.737 | VA85: 6006276.612 | VB85: 6125769.008 | VC85: 6247614.029 | VD85: 6371856.539 | VE85: 6498542.171 | VF85: 6627717.334 | VG85: 6759429.221 | VH85: 6893725.816 | VI85: 7030655.902 | VJ85: =VJ71-VJ79+VJ82 -> 7170269.066 | VK85: 7312615.703 | VL85: 7457747.029 | VM85: 7605715.077 | VN85: 7756572.706 | VO85: 7910373.606 | VP85: 8067172.3 | VQ85: 8227024.143 | VR85: 8389985.329 | VS85: 8556112.891 | VT85: 8725464.695 | VU85: 8898099.449 | VV85: 9074076.69 | VW85: 9253456.791 | VX85: 9436300.947 | VY85: 9622671.176 | VZ85: 9812630.31 | WA85: 10006241.98 | WB85: 10203570.63 | WC85: 10404681.45 | WD85: 10609640.43 | WE85: 10818514.31 | WF85: 11031370.53 | WG85: 11248277.29 | WH85: 11469303.43 | WI85: 11694518.5 | WJ85: 11923992.64 | WK85: 12157796.64 | WL85: 12396001.81 | WM85: 12638680.03 | WN85: 12885903.63 | WO85: 13137745.42 | WP85: 13394278.57 | WQ85: 13655576.59 | WR85: 13921713.28 | WS85: 14192762.65 | WT85: 14468798.83 | WU85: 14749896.05 | WV85: 15036128.49 | WW85: 15327570.24 | WX85: 15624295.19 | WY85: 15926376.94 | WZ85: 16233888.64 | XA85: 16546902.94 | XB85: 16865491.82 | XC85: 17189726.44 | XD85: 17519677.05 | XE85: 17855412.77 | XF85: 18197001.45 | XG85: 18544509.48 | XH85: 18898001.62 | XI85: 19257540.74 | XJ85: 19623187.65 | XK85: 19995000.84 | XL85: 20373036.22 | XM85: 20757346.85 | XN85: 21147982.67 | XO85: 21544990.16 | XP85: 21948412.03 | XQ85: 22358286.88 | XR85: 22774648.79 | XS85: 23197526.93 | XT85: 23626945.16 | XU85: 24062921.55 | XV85: =XV71-XV79+XV82 -> 24505467.92 | XW85: 24954589.27 | XX85: 25410283.3 | XY85: 25872539.8 | XZ85: 26341340.02 | YA85: 26816656 | YB85: 27298449.92 | YC85: 27786673.27 | YD85: 28281266.14 | YE85: 28782156.33 | YF85: 29289258.45 | YG85: 29802472.99 | YH85: 30321685.3 | YI85: 30846764.48 | YJ85: 31377562.31 | YK85: 31913911.94 | YL85: 32455626.7 | YM85: 33002498.65 | YN85: 33554297.18 | YO85: 34110767.42 | YP85: 34671628.64 | YQ85: 35236572.52 | YR85: 35805261.23 | YS85: 36377325.58 | YT85: 36952362.85 | YU85: 37529934.63 | YV85: 38109564.48 | YW85: 38690735.43 | YX85: 39272887.36 | YY85: 39855414.2 | YZ85: 40437660.98 | ZA85: 41018920.69 | ZB85: 41598430.93 | ZC85: 42175370.4 | ZD85: 42748855.14 | ZE85: 43317934.56 | ZF85: 43881587.24 | ZG85: 44438716.46 | ZH85: 44988145.48 | ZI85: 45528612.48 | ZJ85: 46058765.32 | ZK85: 46577155.82 | ZL85: 47082233.85 | ZM85: 47572340.95 | ZN85: 48045703.68 | ZO85: 48500426.41 | ZP85: 48934483.91 | ZQ85: 49345713.24 | ZR85: 49731805.37 | ZS85: 50090296.16 | ZT85: 50418556.89 | ZU85: 50713784.17 | ZV85: 50972989.26 | ZW85: 51192986.8 | ZX85: 51370382.78 | ZY85: 51501561.88 | ZZ85: 51582674.03 | AAA85: 51609620.14 | AAB85: 51578037.02
C87: Value of Nominal Interest from NPV Calculation | D87: =G105 -> 0.052 | E87: =NPV($D$87,E77:AAB77) -> 2130.036791 | F87: 2172.637527 | G87: 2216.090277 | H87: 2260.412082 | I87: 2305.620324 | J87: 2351.73273 | K87: 2398.767384 | L87: 2446.742732 | M87: 2495.677586 | N87: 2545.591138 | O87: 2596.50296 | P87: 2648.433019 | Q87: 2701.401679 | R87: 2755.429713 | S87: 2810.538307 | T87: 2866.749072 | U87: 2924.084054 | V87: 2982.565734 | W87: 3042.217049 | X87: 3103.061389 | Y87: 3165.122617 | Z87: 3228.425068 | AA87: 3292.993569 | AB87: 3358.85344 | AC87: 3426.030509 | AD87: 3494.551118 | AE87: 3564.44214 | AF87: 3635.730982 | AG87: 3708.445601 | AH87: 3782.614513 | AI87: 3858.266802 | AJ87: 3935.432138 | AK87: 4014.14078 | AL87: 4094.423594 | AM87: 4176.312065 | AN87: 4259.838306 | AO87: 4345.035071 | AP87: 4431.935772 | AQ87: 4520.574486 | AR87: 4610.985975 | AS87: 4703.205693 | AT87: 4797.269806 | AU87: 4893.2152 | AV87: 4991.079503 | AW87: 5090.901092 | AX87: 5192.719112 | AY87: 5296.573493 | AZ87: 5402.504961 | BA87: 5510.555059 | BB87: 5620.766158 | BC87: 5733.181479 | BD87: 5847.845107 | BE87: 5964.802007 | BF87: 6084.098045 | BG87: 6205.780004 | BH87: 6329.895601 | BI87: 6456.493511 | BJ87: 6585.623378 | BK87: 6717.335843 | BL87: 6851.682557 | BM87: 6988.716205 | BN87: 7128.490526 | BO87: 7271.060333 | BP87: 7416.481536 | BQ87: =NPV($D$87,BQ77:ACN77) -> 7564.811163 | BR87: 7716.107382 | BS87: 7870.429526 | BT87: 8027.838112 | BU87: 8188.39487 | BV87: 8352.162762 | BW87: 8519.206012 | BX87: 8689.590127 | BY87: 8863.381924 | BZ87: 9040.649556 | CA87: 9221.462541 | CB87: 9405.891785 | CC87: 9594.009614 | CD87: 9785.889799 | CE87: 9981.607587 | CF87: 10181.23973 | CG87: 10384.86452 | CH87: 10592.5618 | CI87: 10804.41302 | CJ87: 11020.50128 | CK87: 11240.91129 | CL87: 11465.72951 | CM87: 11695.04408 | CN87: 11928.94495 | CO87: 12167.52384 | CP87: 12410.8743 | CQ87: 12659.09178 | CR87: 12912.2736 | CS87: 13170.51905 | CT87: 13433.92942 | CU87: 13702.60799 | CV87: 13976.66013 | CW87: 14256.19331 | CX87: 14541.31716 | CY87: 14832.14348 | CZ87: 15128.78633 | DA87: 15431.36203 | DB87: 15739.98925 | DC87: 16054.78901 | DD87: 16375.88476 | DE87: 16703.40243 | DF87: 17037.47044 | DG87: 17378.21982 | DH87: 17725.78418 | DI87: 18080.29983 | DJ87: 18441.90579 | DK87: 18810.74387 | DL87: 19186.95871 | DM87: 19570.69784 | DN87: 19962.11175 | DO87: 20361.35394 | DP87: 20768.58096 | DQ87: 21183.95253 | DR87: 21607.63153 | DS87: 22039.7841 | DT87: 22480.57972 | DU87: 22930.19125 | DV87: 23388.79501 | DW87: 23856.57084 | DX87: 24333.70218 | DY87: 24820.37614 | DZ87: 25316.78358 | EA87: 25823.11917 | EB87: 26339.58146 | EC87: =NPV($D$87,EC77:AEZ77) -> 26866.37299 | ED87: 27403.70035 | EE87: 27951.77425 | EF87: 28510.80962 | EG87: 29081.0257 | EH87: 29662.64609 | EI87: 30255.89888 | EJ87: 30861.01672 | EK87: 31478.23691 | EL87: 32107.80149 | EM87: 32749.95736 | EN87: 33404.95634 | EO87: 34073.05529 | EP87: 34754.51621 | EQ87: 35449.60634 | ER87: 36158.59826 | ES87: 36881.77001 | ET87: 37619.40518 | EU87: 38371.79305 | EV87: 39139.22866 | EW87: 39922.01297 | EX87: 40720.45295 | EY87: 41534.86171 | EZ87: 42365.55864 | FA87: 43212.86949 | FB87: 44077.12653 | FC87: 44958.66871 | FD87: 45857.8417 | FE87: 46774.99814 | FF87: 47710.49769 | FG87: 48664.7072 | FH87: 49638.00088 | FI87: 50630.76042 | FJ87: 51643.37511 | FK87: 52676.24208 | FL87: 53729.76635 | FM87: 54804.36109 | FN87: 55900.44768 | FO87: 57018.45598 | FP87: 58158.82441 | FQ87: 59322.00017 | FR87: 60508.43941 | FS87: 61718.60739 | FT87: 62952.97869 | FU87: 64212.03738 | FV87: 65496.27719 | FW87: 66806.20175 | FX87: 68142.32475 | FY87: 69505.17015 | FZ87: 70895.27241 | GA87: 72313.17665 | GB87: 73759.43892 | GC87: 75234.62636 | GD87: 76739.31749 | GE87: 78274.10236 | GF87: 79839.58286 | GG87: 81436.37289 | GH87: 83065.09863 | GI87: 84726.3988 | GJ87: 86420.92488 | GK87: 88149.34138 | GL87: 89912.32611 | GM87: 91710.57042 | GN87: 93544.77951 | GO87: =NPV($D$87,GO77:AHL77) -> 95415.67266 | GP87: 97323.98354 | GQ87: 99270.46051 | GR87: 101255.8669 | GS87: 103280.9812 | GT87: 105346.5977 | GU87: 107453.5264 | GV87: 109602.5934 | GW87: 111794.6416 | GX87: 114030.5306 | GY87: 116311.1372 | GZ87: 118637.3557 | HA87: 121010.0983 | HB87: 123430.2956 | HC87: 125898.8966 | HD87: 128416.8693 | HE87: 130985.2012 | HF87: 133604.8995 | HG87: 136276.9914 | HH87: 139002.5249 | HI87: 141782.5687 | HJ87: 144618.213 | HK87: 147510.5699 | HL87: 150460.7735 | HM87: 153469.9808 | HN87: 156539.3718 | HO87: 159670.1501 | HP87: 162863.5436 | HQ87: 166120.8045 | HR87: 169443.21 | HS87: 172832.0631 | HT87: 176288.6928 | HU87: 179814.4544 | HV87: 183410.7306 | HW87: 187078.9316 | HX87: 190820.496 | HY87: 194636.8909 | HZ87: 198529.613 | IA87: 202500.1887 | IB87: 206550.175 | IC87: 210681.1602 | ID87: 214894.7641 | IE87: 219192.6391 | IF87: 223576.4705 | IG87: 228047.9775 | IH87: 232608.9135 | II87: 237261.067 | IJ87: 242006.2622 | IK87: 246846.36 | IL87: 251783.2584 | IM87: 256818.8932 | IN87: 261955.2392 | IO87: 267194.3104 | IP87: 272538.1613 | IQ87: 277988.8875 | IR87: 283548.6262 | IS87: 289219.5577 | IT87: 295003.9057 | IU87: 300903.9384 | IV87: 306921.9695 | IW87: 313060.3587 | IX87: 319321.5131 | IY87: 325707.8879 | IZ87: 332221.9873 | JA87: =NPV($D$87,JA77:AJX77) -> 338866.3657 | JB87: 345643.6285 | JC87: 352556.4332 | JD87: 359607.4905 | JE87: 366799.5652 | JF87: 374135.4776 | JG87: 381618.1042 | JH87: 389250.379 | JI87: 397035.2949 | JJ87: 404975.9043 | JK87: 413075.3209 | JL87: 421336.7206 | JM87: 429763.3428 | JN87: 438358.4917 | JO87: 447125.5375 | JP87: 456067.9178 | JQ87: 465189.1389 | JR87: 474492.7775 | JS87: 483982.4813 | JT87: 493661.9714 | JU87: 503535.0431 | JV87: 513605.5676 | JW87: 523877.4935 | JX87: 534354.8484 | JY87: 545041.7403 | JZ87: 555942.3595 | KA87: 567060.9799 | KB87: 578401.9611 | KC87: 589969.7497 | KD87: 601768.8811 | KE87: 613803.9815 | KF87: 626079.7697 | KG87: 638601.0586 | KH87: 651372.7576 | KI87: 664399.8739 | KJ87: 677687.5151 | KK87: 691240.8908 | KL87: 705065.3148 | KM87: 719166.2069 | KN87: 733549.0956 | KO87: 748219.6196 | KP87: 763183.5305 | KQ87: 778446.6949 | KR87: 794015.0966 | KS87: 809894.8389 | KT87: 826092.1472 | KU87: 842613.3714 | KV87: 859464.9883 | KW87: 876653.6041 | KX87: 894185.957 | KY87: 912068.92 | KZ87: 930309.5034 | LA87: 948914.8576 | LB87: 967892.2758 | LC87: 987249.1973 | LD87: 1006993.21 | LE87: 1027132.052 | LF87: 1047673.619 | LG87: 1068625.963 | LH87: 1089997.295 | LI87: 1111795.992 | LJ87: 1134030.6 | LK87: 1156709.832 | LL87: 1179842.578 | LM87: =NPV($D$87,LM77:AMJ77) -> 1203437.904 | LN87: 1227505.059 | LO87: 1252053.474 | LP87: 1277092.772 | LQ87: 1302632.764 | LR87: 1328683.46 | LS87: 1355255.069 | LT87: 1382358.005 | LU87: 1410002.889 | LV87: 1438200.553 | LW87: 1466962.048 | LX87: 1496298.644 | LY87: 1526221.836 | LZ87: 1556743.349 | MA87: 1587875.142 | MB87: 1619629.414 | MC87: 1652018.605 | MD87: 1685055.406 | ME87: 1718752.759 | MF87: 1753123.868 | MG87: 1788182.196 | MH87: 1823941.478 | MI87: 1860415.722 | MJ87: 1897619.216 | MK87: 1935566.532 | ML87: 1974272.536 | MM87: 2013752.386 | MN87: 2054021.547 | MO87: 2095095.789 | MP87: 2136991.199 | MQ87: 2179724.185 | MR87: 2223311.479 | MS87: 2267770.152 | MT87: 2313117.611 | MU87: 2359371.612 | MV87: 2406550.267 | MW87: 2454672.045 | MX87: 2503755.786 | MY87: 2553820.706 | MZ87: 2604886.403 | NA87: 2656972.865 | NB87: 2710100.481 | NC87: 2764290.043 | ND87: 2819562.76 | NE87: 2875940.262 | NF87: 2933444.611 | NG87: 2992098.308 | NH87: 3051924.303 | NI87: 3112946.001 | NJ87: 3175187.276 | NK87: 3238672.474 | NL87: 3303426.429 | NM87: 3369474.467 | NN87: 3436842.419 | NO87: 3505556.631 | NP87: 3575643.972 | NQ87: 3647131.844 | NR87: 3720048.198 | NS87: 3794421.537 | NT87: 3870280.933 | NU87: 3947656.036 | NV87: 4026577.084 | NW87: 4107074.917 | NX87: 4189180.988 | NY87: =NPV($D$87,NY77:AOV77) -> 4272927.374 | NZ87: 4358346.789 | OA87: 4445472.597 | OB87: 4534338.826 | OC87: 4624980.176 | OD87: 4717432.038 | OE87: 4811730.506 | OF87: 4907912.387 | OG87: 5006015.22 | OH87: 5106077.288 | OI87: 5208137.632 | OJ87: 5312236.068 | OK87: 5418413.199 | OL87: 5526710.432 | OM87: 5637169.996 | ON87: 5749834.955 | OO87: 5864749.222 | OP87: 5981957.582 | OQ87: 6101505.705 | OR87: 6223440.163 | OS87: 6347808.448 | OT87: 6474658.99 | OU87: 6604041.175 | OV87: 6736005.366 | OW87: 6870602.916 | OX87: 7007886.193 | OY87: 7147908.596 | OZ87: 7290724.578 | PA87: 7436389.662 | PB87: 7584960.466 | PC87: 7736494.721 | PD87: 7891051.293 | PE87: 8048690.206 | PF87: 8209472.663 | PG87: 8373461.067 | PH87: 8540719.049 | PI87: 8711311.485 | PJ87: 8885304.524 | PK87: 9062765.611 | PL87: 9243763.511 | PM87: 9428368.335 | PN87: 9616651.563 | PO87: 9808686.074 | PP87: 10004546.17 | PQ87: 10204307.6 | PR87: 10408047.59 | PS87: 10615844.87 | PT87: 10827779.71 | PU87: 11043933.94 | PV87: 11264390.97 | PW87: 11489235.83 | PX87: 11718555.21 | PY87: 11952437.48 | PZ87: 12190972.71 | QA87: 12434252.73 | QB87: 12682371.12 | QC87: 12935423.29 | QD87: 13193506.47 | QE87: 13456719.79 | QF87: 13725164.25 | QG87: 13998942.83 | QH87: 14278160.46 | QI87: 14562924.09 | QJ87: 14853342.72 | QK87: =NPV($D$87,QK77:ARH77) -> 15149527.44 | QL87: 15451591.44 | QM87: 15759650.08 | QN87: 16073820.94 | QO87: 16394223.8 | QP87: 16720980.73 | QQ87: 17054216.12 | QR87: 17394056.69 | QS87: 17740631.58 | QT87: 18094072.36 | QU87: 18454513.06 | QV87: 18822090.25 | QW87: 19196943.05 | QX87: 19579213.18 | QY87: 19969045.01 | QZ87: 20366585.61 | RA87: 20771984.78 | RB87: 21185395.08 | RC87: 21606971.93 | RD87: 22036873.59 | RE87: 22475261.26 | RF87: 22922299.07 | RG87: 23378154.19 | RH87: 23842996.84 | RI87: 24317000.31 | RJ87: 24800341.09 | RK87: 25293198.83 | RL87: 25795756.43 | RM87: 26308200.09 | RN87: 26830719.36 | RO87: 27363507.16 | RP87: 27906759.85 | RQ87: 28460677.29 | RR87: 29025462.86 | RS87: 29601323.53 | RT87: 30188469.89 | RU87: 30787116.22 | RV87: 31397480.52 | RW87: 32019784.56 | RX87: 32654253.95 | RY87: 33301118.13 | RZ87: 33960610.49 | SA87: 34632968.37 | SB87: 35318433.1 | SC87: 36017250.07 | SD87: 36729668.77 | SE87: 37455942.81 | SF87: 38196329.98 | SG87: 38951092.3 | SH87: 39720496.03 | SI87: 40504811.75 | SJ87: 41304314.34 | SK87: 42119283.08 | SL87: 42950001.61 | SM87: 43796758.05 | SN87: 44659844.95 | SO87: 45539559.36 | SP87: 46436202.84 | SQ87: 47350081.49 | SR87: 48281505.95 | SS87: 49230791.48 | ST87: 50198257.87 | SU87: 51184229.56 | SV87: 52189035.55 | SW87: =NPV($D$87,SW77:ATT77) -> 53213009.48 | SX87: 54256489.59 | SY87: 55319818.73 | SZ87: 56403344.32 | TA87: 57507418.39 | TB87: 58632397.52 | TC87: 59778642.8 | TD87: 60946519.88 | TE87: 62136398.82 | TF87: 63348654.14 | TG87: 64583664.72 | TH87: 65841813.77 | TI87: 67123488.75 | TJ87: 68429081.29 | TK87: 69758987.12 | TL87: 71113605.98 | TM87: 72493341.53 | TN87: 73898601.2 | TO87: 75329796.12 | TP87: 76787340.94 | TQ87: 78271653.74 | TR87: 79783155.83 | TS87: 81322271.58 | TT87: 82889428.28 | TU87: 84485055.89 | TV87: 86109586.88 | TW87: 87763455.95 | TX87: 89447099.83 | TY87: 91160956.99 | TZ87: 92905467.37 | UA87: 94681072.09 | UB87: 96488213.1 | UC87: 98327332.87 | UD87: 100198874 | UE87: 102103278.9 | UF87: 104040989.3 | UG87: 106012445.9 | UH87: 108018087.7 | UI87: 110058351.8 | UJ87: 112133672.7 | UK87: 114244481.8 | UL87: 116391206.9 | UM87: 118574271.4 | UN87: 120794093.9 | UO87: 123051087 | UP87: 125345657.5 | UQ87: 127678204.8 | UR87: 130049120.3 | US87: 132458786.8 | UT87: 134907577.5 | UU87: 137395855 | UV87: 139923970.2 | UW87: 142492261.8 | UX87: 145101054.4 | UY87: 147750658.1 | UZ87: 150441366.9 | VA87: 153173457.7 | VB87: 155947188.7 | VC87: 158762798.3 | VD87: 161620503.4 | VE87: 164520498.4 | VF87: 167462952.9 | VG87: 170448010.6 | VH87: 173475787.4 | VI87: =NPV($D$87,VI77:AWF77) -> 176546369.8 | VJ87: 179659812.5 | VK87: 182816137.1 | VL87: 186015329.6 | VM87: 189257338.4 | VN87: 192542072.3 | VO87: 195869397.8 | VP87: 199239137 | VQ87: 202651064.8 | VR87: 206104906.7 | VS87: 209600335.8 | VT87: 213136969.9 | VU87: 216714368.9 | VV87: 220332031.4 | VW87: 223989391.9 | VX87: 227685817.3 | VY87: 231420603.4 | VZ87: 235192971.8 | WA87: 239002065.8 | WB87: 242846946.9 | WC87: 246726591.1 | WD87: 250639884.2 | WE87: 254585618.4 | WF87: 258562487.6 | WG87: 262569083.2 | WH87: 266603889.2 | WI87: 270665277.9 | WJ87: 274751505 | WK87: 278860704.4 | WL87: 282990883.4 | WM87: 287139917.5 | WN87: 291305544.6 | WO87: 295485360.3 | WP87: 299676811.5 | WQ87: 303877191.4 | WR87: 308083633.2 | WS87: 312293104.2 | WT87: 316502400.3 | WU87: 320708139.3 | WV87: 324906754.9 | WW87: 329094490.6 | WX87: 333267393.3 | WY87: 337421306.9 | WZ87: 341551866 | XA87: 345654489.4 | XB87: 349724374.1 | XC87: 353756488.6 | XD87: 357745566.8 | XE87: 361686101.9 | XF87: 365572340.3 | XG87: 369398275.7 | XH87: 373157643.6 | XI87: 376843915.6 | XJ87: 380450294.4 | XK87: 383969709.2 | XL87: 387394810.8 | XM87: 390717967.8 | XN87: 393931263.5 | XO87: 397026492.4 | XP87: 399995158.6 | XQ87: 402828473.6 | XR87: 405517356.5 | XS87: 408052433.8 | XT87: 410424040.6 | XU87: =NPV($D$87,XU77:AYR77) -> 412622223.7 | XV87: 414636744.7 | XW87: 416457086 | XX87: 418072456.9 | XY87: 419471802.5 | XZ87: 420643814.4 | YA87: 421576942.6 | YB87: 422259411.1 | YC87: 422679234.7 | YD87: 422824239.8 | YE87: 422682086.8 | YF87: 422240297.2 | YG87: 421486283.6 | YH87: 420407383.3 | YI87: 418990896.8 | YJ87: 417224130.9 | YK87: 415094446 | YL87: 412589310 | YM87: 409696357.3 | YN87: 406403454.4 | YO87: 402698772.7 | YP87: 398570868.7 | YQ87: 394008772 | YR87: 389002082.4 | YS87: 383541076.8 | YT87: 377616825.5 | YU87: 371221320.7 | YV87: 364347615.8 | YW87: 356989978.2 | YX87: 349144056.3 | YY87: 340807060.7 | YZ87: 331977962 | ZA87: 322657706 | ZB87: 312849447.2 | ZC87: 302558802.6 | ZD87: 291794127.4 | ZE87: 280566813.4 | ZF87: 268891612.7 | ZG87: 256786988.2 | ZH87: 244275492.8 | ZI87: 231384179.7 | ZJ87: 218145045.4 | ZK87: 204595509.4 | ZL87: 190778931 | ZM87: 176745168 | ZN87: 162551178.5 | ZO87: 148261671 | ZP87: 133949803.8 | ZQ87: 119697939.7 | ZR87: 105598458 | ZS87: 91754628.8 | ZT87: 78281554.32 | ZU87: 65307180.96 | ZV87: 52973387.95 | ZW87: 41437157.69 | ZX87: 30871833.48 | ZY87: 21468470.77 | ZZ87: 13437288.47 | AAA87: 7009227.348 | AAB87: 2437622.79
C88: Value of Tax Shield Using NPV and Nominal Rate | D88: =D87 -> 0.052 | E88: =NPV($D$88,E78:AAB78) -> 639.0110373 | F88: =NPV($D$88,F78:AAC78) -> 651.791258 | G88: 664.8270831 | H88: 678.1236247 | I88: 691.6860971 | J88: 705.519819 | K88: 719.6302153 | L88: 734.0228196 | M88: 748.7032759 | N88: 763.6773413 | O88: 778.9508881 | P88: 794.5299058 | Q88: 810.4205038 | R88: 826.6289138 | S88: 843.161492 | T88: 860.0247217 | U88: 877.2252161 | V88: 894.7697203 | W88: 912.6651146 | X88: 930.9184168 | Y88: 949.536785 | Z88: 968.5275205 | AA88: 987.8980708 | AB88: 1007.656032 | AC88: 1027.809153 | AD88: 1048.365335 | AE88: 1069.332642 | AF88: 1090.719295 | AG88: 1112.53368 | AH88: 1134.784354 | AI88: 1157.480041 | AJ88: 1180.629641 | AK88: 1204.242234 | AL88: 1228.327078 | AM88: 1252.89362 | AN88: 1277.951492 | AO88: 1303.510521 | AP88: 1329.580731 | AQ88: 1356.172346 | AR88: 1383.295792 | AS88: 1410.961708 | AT88: 1439.180942 | AU88: 1467.96456 | AV88: 1497.323851 | AW88: 1527.270328 | AX88: 1557.815734 | AY88: 1588.972048 | AZ88: 1620.751488 | BA88: 1653.166518 | BB88: 1686.229847 | BC88: 1719.954444 | BD88: 1754.353532 | BE88: 1789.440602 | BF88: 1825.229414 | BG88: 1861.734001 | BH88: 1898.96868 | BI88: 1936.948053 | BJ88: 1975.687014 | BK88: 2015.200753 | BL88: 2055.504767 | BM88: 2096.614862 | BN88: 2138.547158 | BO88: 2181.3181 | BP88: 2224.944461 | BQ88: =NPV($D$88,BQ78:ACN78) -> 2269.443349 | BR88: 2314.832215 | BS88: 2361.128858 | BT88: 2408.351434 | BU88: 2456.518461 | BV88: 2505.648829 | BW88: 2555.761804 | BX88: 2606.877038 | BY88: 2659.014577 | BZ88: 2712.194867 | CA88: 2766.438762 | CB88: 2821.767536 | CC88: 2878.202884 | CD88: 2935.76694 | CE88: 2994.482276 | CF88: 3054.371919 | CG88: 3115.459355 | CH88: 3177.76854 | CI88: 3241.323907 | CJ88: 3306.150383 | CK88: 3372.273387 | CL88: 3439.718852 | CM88: 3508.513225 | CN88: 3578.683486 | CO88: 3650.257152 | CP88: 3723.262291 | CQ88: 3797.727533 | CR88: 3873.682079 | CS88: 3951.155716 | CT88: 4030.178825 | CU88: 4110.782396 | CV88: 4192.998039 | CW88: 4276.857994 | CX88: 4362.395148 | CY88: 4449.643044 | CZ88: 4538.635898 | DA88: 4629.408609 | DB88: 4721.996774 | DC88: 4816.436702 | DD88: 4912.765428 | DE88: 5011.020728 | DF88: 5111.241133 | DG88: 5213.465946 | DH88: 5317.735255 | DI88: 5424.08995 | DJ88: 5532.571738 | DK88: 5643.223161 | DL88: 5756.087612 | DM88: 5871.209351 | DN88: 5988.633525 | DO88: 6108.406181 | DP88: 6230.574289 | DQ88: 6355.185759 | DR88: 6482.289458 | DS88: 6611.93523 | DT88: 6744.173916 | DU88: 6879.057375 | DV88: 7016.638502 | DW88: 7156.971251 | DX88: 7300.110653 | DY88: 7446.112843 | DZ88: 7595.035075 | EA88: 7746.93575 | EB88: 7901.874438 | EC88: =NPV($D$88,EC78:AEZ78) -> 8059.911897 | ED88: 8221.110105 | EE88: 8385.532275 | EF88: 8553.242887 | EG88: 8724.307709 | EH88: 8898.793826 | EI88: 9076.769663 | EJ88: 9258.305015 | EK88: 9443.471072 | EL88: 9632.340448 | EM88: 9824.987209 | EN88: 10021.4869 | EO88: 10221.91659 | EP88: 10426.35486 | EQ88: 10634.8819 | ER88: 10847.57948 | ES88: 11064.531 | ET88: 11285.82156 | EU88: 11511.53791 | EV88: 11741.7686 | EW88: 11976.60389 | EX88: 12216.13588 | EY88: 12460.45851 | EZ88: 12709.66759 | FA88: 12963.86085 | FB88: 13223.13796 | FC88: 13487.60061 | FD88: 13757.35251 | FE88: 14032.49944 | FF88: 14313.14931 | FG88: 14599.41216 | FH88: 14891.40026 | FI88: 15189.22812 | FJ88: 15493.01253 | FK88: 15802.87262 | FL88: 16118.92991 | FM88: 16441.30833 | FN88: 16770.13431 | FO88: 17105.53679 | FP88: 17447.64732 | FQ88: 17796.60005 | FR88: 18152.53182 | FS88: 18515.58222 | FT88: 18885.89361 | FU88: 19263.61121 | FV88: 19648.88316 | FW88: 20041.86052 | FX88: 20442.69742 | FY88: 20851.55105 | FZ88: 21268.58172 | GA88: 21693.953 | GB88: 22127.83168 | GC88: 22570.38791 | GD88: 23021.79525 | GE88: 23482.23071 | GF88: 23951.87486 | GG88: 24430.91187 | GH88: 24919.52959 | GI88: 25417.91964 | GJ88: 25926.27746 | GK88: 26444.80241 | GL88: 26973.69783 | GM88: 27513.17113 | GN88: 28063.43385 | GO88: =NPV($D$88,GO78:AHL78) -> 28624.7018 | GP88: 29197.19506 | GQ88: 29781.13815 | GR88: 30376.76006 | GS88: 30984.29437 | GT88: 31603.97931 | GU88: 32236.05791 | GV88: 32880.77803 | GW88: 33538.39249 | GX88: 34209.15919 | GY88: 34893.34116 | GZ88: 35591.2067 | HA88: 36303.0295 | HB88: 37029.08868 | HC88: 37769.66897 | HD88: 38525.06078 | HE88: 39295.56036 | HF88: 40081.46984 | HG88: 40883.09742 | HH88: 41700.75746 | HI88: 42534.7706 | HJ88: 43385.4639 | HK88: 44253.17096 | HL88: 45138.23204 | HM88: 46040.99423 | HN88: 46961.81153 | HO88: 47901.04504 | HP88: 48859.06308 | HQ88: 49836.24134 | HR88: 50832.96301 | HS88: 51849.61894 | HT88: 52886.60783 | HU88: 53944.33631 | HV88: 55023.21917 | HW88: 56123.67948 | HX88: 57246.1488 | HY88: 58391.06728 | HZ88: 59558.88389 | IA88: 60750.0566 | IB88: 61965.0525 | IC88: 63204.34805 | ID88: 64468.42922 | IE88: 65757.79173 | IF88: 67072.94116 | IG88: 68414.39326 | IH88: 69782.67405 | II88: 71178.32009 | IJ88: 72601.87867 | IK88: 74053.90801 | IL88: 75534.97752 | IM88: 77045.66797 | IN88: 78586.57175 | IO88: 80158.29313 | IP88: 81761.4484 | IQ88: 83396.66624 | IR88: 85064.58786 | IS88: 86765.86731 | IT88: 88501.17171 | IU88: 90271.18153 | IV88: 92076.59085 | IW88: 93918.10761 | IX88: 95796.45393 | IY88: 97712.36637 | IZ88: 99666.59619 | JA88: =NPV($D$88,JA78:AJX78) -> 101659.9097 | JB88: 103693.0885 | JC88: 105766.93 | JD88: 107882.2471 | JE88: 110039.8696 | JF88: 112240.6433 | JG88: 114485.4313 | JH88: 116775.1137 | JI88: 119110.5885 | JJ88: 121492.7713 | JK88: 123922.5963 | JL88: 126401.0162 | JM88: 128929.0028 | JN88: 131507.5475 | JO88: 134137.6612 | JP88: 136820.3753 | JQ88: 139556.7417 | JR88: 142347.8332 | JS88: 145194.7444 | JT88: 148098.5914 | JU88: 151060.5129 | JV88: 154081.6703 | JW88: 157163.2481 | JX88: 160306.4545 | JY88: 163512.5221 | JZ88: 166782.7078 | KA88: 170118.294 | KB88: 173520.5883 | KC88: 176990.9249 | KD88: 180530.6643 | KE88: 184141.1945 | KF88: 187823.9309 | KG88: 191580.3176 | KH88: 195411.8273 | KI88: 199319.9622 | KJ88: 203306.2545 | KK88: 207372.2672 | KL88: 211519.5944 | KM88: 215749.8621 | KN88: 220064.7287 | KO88: 224465.8859 | KP88: 228955.0592 | KQ88: 233534.0085 | KR88: 238204.529 | KS88: 242968.4517 | KT88: 247827.6442 | KU88: 252784.0114 | KV88: 257839.4965 | KW88: 262996.0812 | KX88: 268255.7871 | KY88: 273620.676 | KZ88: 279092.851 | LA88: 284674.4573 | LB88: 290367.6827 | LC88: 296174.7592 | LD88: 302097.9629 | LE88: 308139.6157 | LF88: 314302.0858 | LG88: 320587.7888 | LH88: 326999.1884 | LI88: 333538.7977 | LJ88: 340209.1799 | LK88: 347012.9496 | LL88: 353952.7734 | LM88: =NPV($D$88,LM78:AMJ78) -> 361031.3713 | LN88: 368251.5177 | LO88: 375616.0423 | LP88: 383127.8315 | LQ88: 390789.8291 | LR88: 398605.0379 | LS88: 406576.5208 | LT88: 414707.4016 | LU88: 423000.8667 | LV88: 431460.166 | LW88: 440088.6145 | LX88: 448889.5932 | LY88: 457866.5507 | LZ88: 467023.0046 | MA88: 476362.5426 | MB88: 485888.8241 | MC88: 495605.5814 | MD88: 505516.6217 | ME88: 515625.8278 | MF88: 525937.1603 | MG88: 536454.6587 | MH88: 547182.4433 | MI88: 558124.7165 | MJ88: 569285.7647 | MK88: 580669.9597 | ML88: 592281.7607 | MM88: 604125.7159 | MN88: 616206.4641 | MO88: 628528.7368 | MP88: 641097.3598 | MQ88: 653917.2554 | MR88: 666993.4438 | MS88: 680331.0455 | MT88: 693935.2833 | MU88: 707811.4837 | MV88: 721965.08 | MW88: 736401.6134 | MX88: 751126.7358 | MY88: 766146.2118 | MZ88: 781465.9208 | NA88: 797091.8596 | NB88: 813030.1442 | NC88: 829287.0129 | ND88: 845868.8279 | NE88: 862782.0786 | NF88: 880033.3833 | NG88: 897629.4925 | NH88: 915577.2909 | NI88: 933883.8003 | NJ88: 952556.1827 | NK88: 971601.7422 | NL88: 991027.9286 | NM88: 1010842.34 | NN88: 1031052.726 | NO88: 1051666.989 | NP88: 1072693.191 | NQ88: 1094139.553 | NR88: 1116014.459 | NS88: 1138326.461 | NT88: 1161084.28 | NU88: 1184296.811 | NV88: 1207973.125 | NW88: 1232122.475 | NX88: 1256754.296 | NY88: =NPV($D$88,NY78:AOV78) -> 1281878.212 | NZ88: 1307504.037 | OA88: 1333641.779 | OB88: 1360301.648 | OC88: 1387494.053 | OD88: 1415229.611 | OE88: 1443519.152 | OF88: 1472373.716 | OG88: 1501804.566 | OH88: 1531823.186 | OI88: 1562441.29 | OJ88: 1593670.82 | OK88: 1625523.96 | OL88: 1658013.13 | OM88: 1691150.999 | ON88: 1724950.486 | OO88: 1759424.767 | OP88: 1794587.275 | OQ88: 1830451.712 | OR88: 1867032.049 | OS88: 1904342.534 | OT88: 1942397.697 | OU88: 1981212.353 | OV88: 2020801.61 | OW88: 2061180.875 | OX88: 2102365.858 | OY88: 2144372.579 | OZ88: 2187217.373 | PA88: 2230916.899 | PB88: 2275488.14 | PC88: 2320948.416 | PD88: 2367315.388 | PE88: 2414607.062 | PF88: 2462841.799 | PG88: 2512038.32 | PH88: 2562215.715 | PI88: 2613393.446 | PJ88: 2665591.357 | PK88: 2718829.683 | PL88: 2773129.053 | PM88: 2828510.5 | PN88: 2884995.469 | PO88: 2942605.822 | PP88: 3001363.85 | PQ88: 3061292.279 | PR88: 3122414.276 | PS88: 3184753.461 | PT88: 3248333.914 | PU88: 3313180.182 | PV88: 3379317.29 | PW88: 3446770.748 | PX88: 3515566.563 | PY88: 3585731.244 | PZ88: 3657291.814 | QA88: 3730275.819 | QB88: 3804711.336 | QC88: 3880626.986 | QD88: 3958051.942 | QE88: 4037015.936 | QF88: 4117549.276 | QG88: 4199682.849 | QH88: 4283448.138 | QI88: 4368877.227 | QJ88: 4456002.817 | QK88: =NPV($D$88,QK78:ARH78) -> 4544858.231 | QL88: 4635477.431 | QM88: 4727895.025 | QN88: 4822146.283 | QO88: 4918267.14 | QP88: 5016294.22 | QQ88: 5116264.835 | QR88: 5218217.007 | QS88: 5322189.475 | QT88: 5428221.708 | QU88: 5536353.919 | QV88: 5646627.076 | QW88: 5759082.915 | QX88: 5873763.954 | QY88: 5990713.504 | QZ88: 6109975.684 | RA88: 6231595.434 | RB88: 6355618.525 | RC88: 6482091.58 | RD88: 6611062.078 | RE88: 6742578.377 | RF88: 6876689.722 | RG88: 7013446.258 | RH88: 7152899.051 | RI88: 7295100.094 | RJ88: 7440102.327 | RK88: 7587959.648 | RL88: 7738726.929 | RM88: 7892460.028 | RN88: 8049215.808 | RO88: 8209052.147 | RP88: 8372027.955 | RQ88: 8538203.187 | RR88: 8707638.858 | RS88: 8880397.058 | RT88: 9056540.966 | RU88: 9236134.865 | RV88: 9419244.155 | RW88: 9605935.369 | RX88: 9796276.184 | RY88: 9990335.439 | RZ88: 10188183.15 | SA88: 10389890.51 | SB88: 10595529.93 | SC88: 10805175.02 | SD88: 11018900.63 | SE88: 11236782.84 | SF88: 11458898.99 | SG88: 11685327.69 | SH88: 11916148.81 | SI88: 12151443.52 | SJ88: 12391294.3 | SK88: 12635784.92 | SL88: 12885000.48 | SM88: 13139027.42 | SN88: 13397953.49 | SO88: 13661867.81 | SP88: 13930860.85 | SQ88: 14205024.45 | SR88: 14484451.79 | SS88: 14769237.44 | ST88: 15059477.36 | SU88: 15355268.87 | SV88: 15656710.66 | SW88: =NPV($D$88,SW78:ATT78) -> 15963902.84 | SX88: 16276946.88 | SY88: 16595945.62 | SZ88: 16921003.3 | TA88: 17252225.52 | TB88: 17589719.25 | TC88: 17933592.84 | TD88: 18283955.96 | TE88: 18640919.64 | TF88: 19004596.24 | TG88: 19375099.42 | TH88: 19752544.13 | TI88: 20137046.63 | TJ88: 20528724.39 | TK88: 20927696.14 | TL88: 21334081.8 | TM88: 21748002.46 | TN88: 22169580.36 | TO88: 22598938.83 | TP88: 23036202.28 | TQ88: 23481496.12 | TR88: 23934946.75 | TS88: 24396681.47 | TT88: 24866828.48 | TU88: 25345516.77 | TV88: 25832876.06 | TW88: 26329036.79 | TX88: 26834129.95 | TY88: 27348287.1 | TZ88: 27871640.21 | UA88: 28404321.63 | UB88: 28946463.93 | UC88: 29498199.86 | UD88: 30059662.21 | UE88: 30630983.68 | UF88: 31212296.8 | UG88: 31803733.77 | UH88: 32405426.3 | UI88: 33017505.53 | UJ88: 33640101.8 | UK88: 34273344.55 | UL88: 34917362.08 | UM88: 35572281.43 | UN88: 36238228.16 | UO88: 36915326.11 | UP88: 37603697.26 | UQ88: 38303461.43 | UR88: 39014736.08 | US88: 39737636.04 | UT88: 40472273.25 | UU88: 41218756.49 | UV88: 41977191.07 | UW88: 42747678.53 | UX88: 43530316.31 | UY88: 44325197.42 | UZ88: 45132410.07 | VA88: 45952037.31 | VB88: 46784156.6 | VC88: 47628839.48 | VD88: 48486151.03 | VE88: 49356149.51 | VF88: 50238885.86 | VG88: 51134403.17 | VH88: 52042736.22 | VI88: =NPV($D$88,VI78:AWF78) -> 52963910.93 | VJ88: 53897943.74 | VK88: 54844841.12 | VL88: 55804598.87 | VM88: 56777201.52 | VN88: 57762621.7 | VO88: 58760819.35 | VP88: 59771741.09 | VQ88: 60795319.45 | VR88: 61831472.02 | VS88: 62880100.74 | VT88: 63941090.97 | VU88: 65014310.66 | VV88: 66099609.42 | VW88: 67196817.58 | VX88: 68305745.18 | VY88: 69426181.02 | VZ88: 70557891.53 | WA88: 71700619.73 | WB88: 72854084.08 | WC88: 74017977.32 | WD88: 75191965.26 | WE88: 76375685.52 | WF88: 77568746.29 | WG88: 78770724.95 | WH88: 79981166.75 | WI88: 81199583.37 | WJ88: 82425451.49 | WK88: 83658211.31 | WL88: 84897265.03 | WM88: 86141975.24 | WN88: 87391663.39 | WO88: 88645608.09 | WP88: 89903043.46 | WQ88: 91163157.42 | WR88: 92425089.95 | WS88: 93687931.27 | WT88: 94950720.1 | WU88: 96212441.79 | WV88: 97472026.48 | WW88: 98728347.19 | WX88: 99980218 | WY88: 101226392.1 | WZ88: 102465559.8 | XA88: 103696346.8 | XB88: 104917312.2 | XC88: 106126946.6 | XD88: 107323670 | XE88: 108505830.6 | XF88: 109671702.1 | XG88: 110819482.7 | XH88: 111947293.1 | XI88: 113053174.7 | XJ88: 114135088.3 | XK88: 115190912.8 | XL88: 116218443.2 | XM88: 117215390.3 | XN88: 118179379.1 | XO88: 119107947.7 | XP88: 119998547.6 | XQ88: 120848542.1 | XR88: 121655207 | XS88: 122415730.1 | XT88: 123127212.2 | XU88: =NPV($D$88,XU78:AYR78) -> 123786667.1 | XV88: 124391023.4 | XW88: 124937125.8 | XX88: 125421737.1 | XY88: 125841540.8 | XZ88: 126193144.3 | YA88: 126473082.8 | YB88: 126677823.3 | YC88: 126803770.4 | YD88: 126847271.9 | YE88: 126804626 | YF88: 126672089.2 | YG88: 126445885.1 | YH88: 126122215 | YI88: 125697269 | YJ88: 125167239.3 | YK88: 124528333.8 | YL88: 123776793 | YM88: 122908907.2 | YN88: 121921036.3 | YO88: 120809631.8 | YP88: 119571260.6 | YQ88: 118202631.6 | YR88: 116700624.7 | YS88: 115062323 | YT88: 113285047.7 | YU88: 111366396.2 | YV88: 109304284.7 | YW88: 107096993.5 | YX88: 104743216.9 | YY88: 102242118.2 | YZ88: 99593388.6 | ZA88: 96797311.8 | ZB88: 93854834.15 | ZC88: 90767640.77 | ZD88: 87538238.21 | ZE88: 84170044.01 | ZF88: 80667483.81 | ZG88: 77036096.47 | ZH88: 73282647.85 | ZI88: 69415253.9 | ZJ88: 65443513.61 | ZK88: 61378652.81 | ZL88: 57233679.3 | ZM88: 53023550.4 | ZN88: 48765353.56 | ZO88: 44478501.3 | ZP88: 40184941.15 | ZQ88: 35909381.92 | ZR88: 31679537.4 | ZS88: 27526388.64 | ZT88: 23484466.3 | ZU88: 19592154.29 | ZV88: 15892016.38 | ZW88: 12431147.31 | ZX88: 9261550.045 | ZY88: 6440541.23 | ZZ88: 4031186.541 | AAA88: 2102768.204 | AAB88: 731286.837
C89: Value of Change in Economic Debt | D89: =D88 -> 0.052 | E89: =NPV($D$89,E81:AAB81) -> 819.2449166 | F89: =NPV($D$89,F81:AAC81) -> 835.6298147 | G89: 852.3424109 | H89: 869.3892589 | I89: 886.7770439 | J89: 904.5125846 | K89: 922.6028361 | L89: 941.0548926 | M89: 959.8759902 | N89: 979.0735098 | O89: 998.6549797 | P89: 1018.628079 | Q89: 1039.00064 | R89: 1059.780653 | S89: 1080.976266 | T89: 1102.595791 | U89: 1124.647706 | V89: 1147.14066 | W89: 1170.083473 | X89: 1193.485142 | Y89: 1217.354844 | Z89: 1241.701941 | AA89: 1266.535979 | AB89: 1291.866698 | AC89: 1317.704032 | AD89: 1344.058112 | AE89: 1370.939273 | AF89: 1398.358058 | AG89: 1426.325219 | AH89: 1454.851723 | AI89: 1483.948756 | AJ89: 1513.627731 | AK89: 1543.900285 | AL89: 1574.77829 | AM89: 1606.273855 | AN89: 1638.399331 | AO89: 1671.167316 | AP89: 1704.590662 | AQ89: 1738.682474 | AR89: 1773.456122 | AS89: 1808.925244 | AT89: 1845.103747 | AU89: 1882.005821 | AV89: 1919.645936 | AW89: 1958.038854 | AX89: 1997.199629 | AY89: 2037.14362 | AZ89: 2077.886491 | BA89: 2119.444219 | BB89: 2161.833102 | BC89: 2205.069762 | BD89: 2249.171155 | BE89: 2294.154576 | BF89: 2340.037666 | BG89: 2386.838417 | BH89: 2434.575183 | BI89: 2483.266684 | BJ89: 2532.932015 | BK89: 2583.590652 | BL89: 2635.262462 | BM89: 2687.967709 | BN89: 2741.727059 | BO89: 2796.561597 | BP89: 2852.492826 | BQ89: =NPV($D$89,BQ81:ACN81) -> 2909.542678 | BR89: 2967.733528 | BS89: 3027.088194 | BT89: 3087.629954 | BU89: 3149.382548 | BV89: 3212.370194 | BW89: 3276.617593 | BX89: 3342.149939 | BY89: 3408.992933 | BZ89: 3477.172785 | CA89: 3546.716235 | CB89: 3617.650553 | CC89: 3690.003557 | CD89: 3763.803621 | CE89: 3839.079685 | CF89: 3915.861271 | CG89: 3994.178488 | CH89: 4074.062049 | CI89: 4155.54328 | CJ89: 4238.654136 | CK89: 4323.427208 | CL89: 4409.895742 | CM89: 4498.093645 | CN89: 4588.055506 | CO89: 4679.816603 | CP89: 4773.412922 | CQ89: 4868.881166 | CR89: 4966.258775 | CS89: 5065.583935 | CT89: 5166.895597 | CU89: 5270.233491 | CV89: 5375.638143 | CW89: 5483.150887 | CX89: 5592.813885 | CY89: 5704.670141 | CZ89: 5818.763522 | DA89: 5935.138769 | DB89: 6053.84152 | DC89: 6174.918324 | DD89: 6298.416663 | DE89: 6424.384968 | DF89: 6552.872637 | DG89: 6683.930059 | DH89: 6817.608626 | DI89: 6953.960764 | DJ89: 7093.039942 | DK89: 7234.900703 | DL89: 7379.598676 | DM89: 7527.190607 | DN89: 7677.734374 | DO89: 7831.289014 | DP89: 7987.914744 | DQ89: 8147.672987 | DR89: 8310.626391 | DS89: 8476.838861 | DT89: 8646.375577 | DU89: 8819.303024 | DV89: 8995.689017 | DW89: 9175.602727 | DX89: 9359.114707 | DY89: 9546.296922 | DZ89: 9737.222778 | EA89: 9931.967147 | EB89: 10130.6064 | EC89: =NPV($D$89,EC81:AEZ81) -> 10333.21843 | ED89: 10539.8827 | EE89: 10750.68024 | EF89: 10965.69374 | EG89: 11185.0075 | EH89: 11408.70752 | EI89: 11636.88154 | EJ89: 11869.61904 | EK89: 12107.01127 | EL89: 12349.15135 | EM89: 12596.13421 | EN89: 12848.05673 | EO89: 13105.01769 | EP89: 13367.11786 | EQ89: 13634.46002 | ER89: 13907.14901 | ES89: 14185.29178 | ET89: 14468.99739 | EU89: 14758.3771 | EV89: 15053.54439 | EW89: 15354.61501 | EX89: 15661.70703 | EY89: 15974.94088 | EZ89: 16294.43939 | FA89: 16620.32786 | FB89: 16952.73408 | FC89: 17291.7884 | FD89: 17637.62379 | FE89: 17990.37587 | FF89: 18350.18297 | FG89: 18717.1862 | FH89: 19091.52946 | FI89: 19473.35957 | FJ89: 19862.82625 | FK89: 20260.08224 | FL89: 20665.28332 | FM89: 21078.5884 | FN89: 21500.15954 | FO89: 21930.16208 | FP89: 22368.76463 | FQ89: 22816.1392 | FR89: 23272.46122 | FS89: 23737.90964 | FT89: 24212.667 | FU89: 24696.91945 | FV89: 25190.85691 | FW89: 25694.67306 | FX89: 26208.56549 | FY89: 26732.73572 | FZ89: 27267.38929 | GA89: 27812.73588 | GB89: 28368.98934 | GC89: 28936.3678 | GD89: 29515.09376 | GE89: 30105.39417 | GF89: 30707.50051 | GG89: 31321.64889 | GH89: 31948.08017 | GI89: 32587.03997 | GJ89: 33238.77888 | GK89: 33903.55248 | GL89: 34581.62144 | GM89: 35273.25167 | GN89: 35978.71439 | GO89: =NPV($D$89,GO81:AHL81) -> 36698.28625 | GP89: 37432.24942 | GQ89: 38180.89173 | GR89: 38944.50673 | GS89: 39723.3939 | GT89: 40517.85865 | GU89: 41328.21254 | GV89: 42154.77333 | GW89: 42997.86516 | GX89: 43857.81864 | GY89: 44734.97099 | GZ89: 45629.66618 | HA89: 46542.25506 | HB89: 47473.09549 | HC89: 48422.55248 | HD89: 49390.99835 | HE89: 50378.81288 | HF89: 51386.38342 | HG89: 52414.10507 | HH89: 53462.38084 | HI89: 54531.62181 | HJ89: 55622.24724 | HK89: 56734.68483 | HL89: 57869.37079 | HM89: 59026.75006 | HN89: 60207.2765 | HO89: 61411.41303 | HP89: 62639.63183 | HQ89: 63892.41451 | HR89: 65170.25233 | HS89: 66473.64637 | HT89: 67803.10772 | HU89: 69159.15769 | HV89: 70542.32804 | HW89: 71953.16114 | HX89: 73392.2102 | HY89: 74860.03951 | HZ89: 76357.22464 | IA89: 77884.35267 | IB89: 79442.0224 | IC89: 81030.84464 | ID89: 82651.44238 | IE89: 84304.45109 | IF89: 85990.51893 | IG89: 87710.30704 | IH89: 89464.48976 | II89: 91253.75493 | IJ89: 93078.80413 | IK89: 94940.35297 | IL89: 96839.13139 | IM89: 98775.8839 | IN89: 100751.3699 | IO89: 102766.364 | IP89: 104821.6563 | IQ89: 106918.0526 | IR89: 109056.3749 | IS89: 111237.4617 | IT89: 113462.1681 | IU89: 115731.3664 | IV89: 118045.9464 | IW89: 120406.8155 | IX89: 122814.8995 | IY89: 125271.1424 | IZ89: 127776.5074 | JA89: =NPV($D$89,JA81:AJX81) -> 130331.9766 | JB89: 132938.5521 | JC89: 135597.2559 | JD89: 138309.1302 | JE89: 141075.2384 | JF89: 143896.6649 | JG89: 146774.5159 | JH89: 149709.9197 | JI89: 152704.0271 | JJ89: 155758.0119 | JK89: 158873.0716 | JL89: 162050.4272 | JM89: 165291.3245 | JN89: 168597.034 | JO89: 171968.8517 | JP89: 175408.0995 | JQ89: 178916.1255 | JR89: 182494.305 | JS89: 186144.0408 | JT89: 189866.7635 | JU89: 193663.9326 | JV89: 197537.0365 | JW89: 201487.5934 | JX89: 205517.1521 | JY89: 209627.292 | JZ89: 213819.6242 | KA89: 218095.7921 | KB89: 222457.4719 | KC89: 226906.373 | KD89: 231444.2394 | KE89: 236072.8497 | KF89: 240794.0181 | KG89: 245609.595 | KH89: 250521.4679 | KI89: 255531.5618 | KJ89: 260641.8404 | KK89: 265854.3064 | KL89: 271171.0026 | KM89: 276594.0128 | KN89: 282125.4621 | KO89: 287767.5182 | KP89: 293522.3922 | KQ89: 299392.3391 | KR89: 305379.6593 | KS89: 311486.6988 | KT89: 317715.8507 | KU89: 324069.5557 | KV89: 330550.3034 | KW89: 337160.633 | KX89: 343903.1345 | KY89: 350780.4495 | KZ89: 357795.2724 | LA89: 364950.3514 | LB89: 372248.4896 | LC89: 379692.5459 | LD89: 387285.4365 | LE89: 395030.1356 | LF89: 402929.6769 | LG89: 410987.1546 | LH89: 419205.7246 | LI89: 427588.6058 | LJ89: 436139.0814 | LK89: 444860.5 | LL89: 453756.2771 | LM89: =NPV($D$89,LM81:AMJ81) -> 462829.8962 | LN89: 472084.9106 | LO89: 481524.944 | LP89: 491153.6928 | LQ89: 500974.9268 | LR89: 510992.4912 | LS89: 521210.3079 | LT89: 531632.3767 | LU89: 542262.7773 | LV89: 553105.6709 | LW89: 564165.3014 | LX89: 575445.9974 | LY89: 586952.1736 | LZ89: 598688.3328 | MA89: 610659.0676 | MB89: 622869.0618 | MC89: 635323.0928 | MD89: 648026.033 | ME89: 660982.8518 | MF89: 674198.6175 | MG89: 687678.4995 | MH89: 701427.7699 | MI89: 715451.8057 | MJ89: 729756.0912 | MK89: 744346.2194 | ML89: 759227.8949 | MM89: 774406.9355 | MN89: 789889.2749 | MO89: 805680.9648 | MP89: 821788.1769 | MQ89: 838217.2058 | MR89: 854974.4713 | MS89: 872066.5205 | MT89: 889500.0306 | MU89: 907281.8116 | MV89: 925418.8084 | MW89: 943918.1041 | MX89: 962786.9222 | MY89: 982032.6295 | MZ89: 1001662.739 | NA89: 1021684.913 | NB89: 1042106.964 | NC89: 1062936.863 | ND89: 1084182.735 | NE89: 1105852.869 | NF89: 1127955.716 | NG89: 1150499.895 | NH89: 1173494.197 | NI89: 1196947.584 | NJ89: 1220869.199 | NK89: 1245268.362 | NL89: 1270154.581 | NM89: 1295537.548 | NN89: 1321427.15 | NO89: 1347833.467 | NP89: 1374766.779 | NQ89: 1402237.568 | NR89: 1430256.523 | NS89: 1458834.545 | NT89: 1487982.748 | NU89: 1517712.465 | NV89: 1548035.254 | NW89: 1578962.899 | NX89: 1610507.416 | NY89: =NPV($D$89,NY81:AOV81) -> 1642681.058 | NZ89: 1675496.316 | OA89: 1708965.93 | OB89: 1743102.888 | OC89: 1777920.433 | OD89: 1813432.067 | OE89: 1849651.56 | OF89: 1886592.946 | OG89: 1924270.539 | OH89: 1962698.929 | OI89: 2001892.993 | OJ89: 2041867.898 | OK89: 2082639.108 | OL89: 2124222.388 | OM89: 2166633.809 | ON89: 2209889.756 | OO89: 2254006.932 | OP89: 2299002.367 | OQ89: 2344893.418 | OR89: 2391697.782 | OS89: 2439433.498 | OT89: 2488118.954 | OU89: 2537772.893 | OV89: 2588414.423 | OW89: 2640063.018 | OX89: 2692738.529 | OY89: 2746461.19 | OZ89: 2801251.622 | PA89: 2857130.847 | PB89: 2914120.285 | PC89: 2972241.771 | PD89: 3031517.556 | PE89: 3091970.317 | PF89: 3153623.164 | PG89: 3216499.649 | PH89: 3280623.771 | PI89: 3346019.986 | PJ89: 3412713.214 | PK89: 3480728.847 | PL89: 3550092.758 | PM89: 3620831.31 | PN89: 3692971.361 | PO89: 3766540.276 | PP89: 3841565.933 | PQ89: 3918076.734 | PR89: 3996101.612 | PS89: 4075670.041 | PT89: 4156812.042 | PU89: 4239558.197 | PV89: 4323939.653 | PW89: 4409988.137 | PX89: 4497735.957 | PY89: 4587216.021 | PZ89: 4678461.837 | QA89: 4771507.529 | QB89: 4866387.846 | QC89: 4963138.167 | QD89: 5061794.515 | QE89: 5162393.566 | QF89: 5264972.657 | QG89: 5369569.797 | QH89: 5476223.675 | QI89: 5584973.674 | QJ89: 5695859.876 | QK89: =NPV($D$89,QK81:ARH81) -> 5808923.075 | QL89: 5924204.784 | QM89: 6041747.248 | QN89: 6161593.451 | QO89: 6283787.128 | QP89: 6408372.772 | QQ89: 6535395.644 | QR89: 6664901.787 | QS89: 6796938.029 | QT89: 6931551.995 | QU89: 7068792.118 | QV89: 7208707.645 | QW89: 7351348.648 | QX89: 7496766.031 | QY89: 7645011.54 | QZ89: 7796137.77 | RA89: 7950198.175 | RB89: 8107247.073 | RC89: 8267339.655 | RD89: 8430531.993 | RE89: 8596881.044 | RF89: 8766444.66 | RG89: 8939281.591 | RH89: 9115451.494 | RI89: 9295014.933 | RJ89: 9478033.388 | RK89: 9664569.257 | RL89: 9854685.862 | RM89: 10048447.45 | RN89: 10245919.18 | RO89: 10447167.17 | RP89: 10652258.44 | RQ89: 10861260.96 | RR89: 11074243.6 | RS89: 11291276.17 | RT89: 11512429.42 | RU89: 11737775 | RV89: 11967385.47 | RW89: 12201334.3 | RX89: 12439695.87 | RY89: 12682545.44 | RZ89: 12929959.16 | SA89: 13182014.04 | SB89: 13438787.93 | SC89: 13700359.54 | SD89: 13966808.41 | SE89: 14238214.86 | SF89: 14514659.99 | SG89: 14796225.68 | SH89: 15082994.54 | SI89: 15375049.86 | SJ89: 15672475.65 | SK89: 15975356.51 | SL89: 16283777.69 | SM89: 16597825 | SN89: 16917584.76 | SO89: 17243143.79 | SP89: 17574589.34 | SQ89: 17912009.03 | SR89: 18255490.84 | SS89: 18605122.99 | ST89: 18960993.9 | SU89: 19323192.16 | SV89: 19691806.4 | SW89: =NPV($D$89,SW81:ATT81) -> 20066925.24 | SX89: 20448637.21 | SY89: 20837030.65 | SZ89: 21232193.65 | TA89: 21634213.9 | TB89: 22043178.62 | TC89: 22459174.45 | TD89: 22882287.31 | TE89: 23312602.3 | TF89: 23750203.55 | TG89: 24195174.1 | TH89: 24647595.73 | TI89: 25107548.8 | TJ89: 25575112.13 | TK89: 26050362.78 | TL89: 26533375.87 | TM89: 27024224.44 | TN89: 27522979.16 | TO89: 28029708.2 | TP89: 28544476.94 | TQ89: 29067347.78 | TR89: 29598379.85 | TS89: 30137628.78 | TT89: 30685146.42 | TU89: 31240980.52 | TV89: 31805174.47 | TW89: 32377766.93 | TX89: 32958791.55 | TY89: 33548276.59 | TZ89: 34146244.52 | UA89: 34752711.71 | UB89: 35367687.94 | UC89: 35991176.06 | UD89: 36623171.46 | UE89: 37263661.67 | UF89: 37912625.86 | UG89: 38570034.3 | UH89: 39235847.87 | UI89: 39910017.49 | UJ89: 40592483.51 | UK89: 41283175.16 | UL89: 41982009.86 | UM89: 42688892.6 | UN89: 43403715.22 | UO89: 44126355.74 | UP89: 44856677.55 | UQ89: 45594528.65 | UR89: 46339740.87 | US89: 47092128.97 | UT89: 47851489.8 | UU89: 48617601.35 | UV89: 49390221.82 | UW89: 50169088.62 | UX89: 50953917.33 | UY89: 51744400.64 | UZ89: 52540207.22 | VA89: 53340980.59 | VB89: 54146337.89 | VC89: 54955868.68 | VD89: 55769133.6 | VE89: 56585663.09 | VF89: 57404955.95 | VG89: 58226477.97 | VH89: 59049660.4 | VI89: =NPV($D$89,VI81:AWF81) -> 59873898.46 | VJ89: 60698549.73 | VK89: 61522932.54 | VL89: 62346324.28 | VM89: 63167959.67 | VN89: 63987028.97 | VO89: 64802676.13 | VP89: 65613996.91 | VQ89: 66420036.92 | VR89: 67219789.64 | VS89: 68012194.36 | VT89: 68796134.07 | VU89: 69570433.29 | VV89: 70333855.92 | VW89: 71085102.92 | VX89: 71822810.08 | VY89: 72545545.6 | VZ89: 73251807.77 | WA89: 73940022.52 | WB89: 74608540.94 | WC89: 75255636.83 | WD89: 75879504.13 | WE89: 76478254.42 | WF89: 77049914.32 | WG89: 77592422.95 | WH89: 78103629.33 | WI89: 78581289.85 | WJ89: 79023065.63 | WK89: 79426520.06 | WL89: 79789116.27 | WM89: 80108214.65 | WN89: 80381070.48 | WO89: 80604831.6 | WP89: 80776536.11 | WQ89: 80893110.33 | WR89: 80951366.72 | WS89: 80948002.04 | WT89: 80879595.65 | WU89: 80742608.01 | WV89: 80533379.39 | WW89: 80248128.86 | WX89: 79882953.51 | WY89: 79433828.04 | WZ89: 78896604.68 | XA89: 78267013.5 | XB89: 77540663.17 | XC89: 76713042.23 | XD89: 75779520.88 | XE89: 74735353.35 | XF89: 73575680.99 | XG89: 72295536.02 | XH89: 70889846.15 | XI89: 69353439.99 | XJ89: 67681053.53 | XK89: 65867337.59 | XL89: 63906866.4 | XM89: 61794147.59 | XN89: 59523633.31 | XO89: 57089733.06 | XP89: 54486828.04 | XQ89: 51709287.23 | XR89: 48751485.48 | XS89: 45607823.63 | XT89: 42272750.86 | XU89: =NPV($D$89,XU81:AYR81) -> 38740789.56 | XV89: 35006562.79 | XW89: 31064824.59 | XX89: 26910493.51 | XY89: 22538689.34 | XZ89: 17944773.57 | YA89: 13124393.75 | YB89: 8073532.049 | YC89: 2788558.379 | YD89: -2733711.525 | YE89: -8495952.765 | YF89: -14500262.2 | YG89: -20748083.24 | YH89: -27240123.95 | YI89: -33976268.12 | YJ89: -40955478.58 | YK89: -48175692.29 | YL89: -55633706.57 | YM89: -63325055.79 | YN89: -71243877.8 | YO89: -79382769.35 | YP89: -87732629.74 | YQ89: -96282491.72 | YR89: -105019338.8 | YS89: -113927908.1 | YT89: -122990477.1 | YU89: -132186634.2 | YV89: -141493030.6 | YW89: -150883113.6 | YX89: -160326838.4 | YY89: -169790358.7 | YZ89: -179235692.3 | ZA89: -188620362.5 | ZB89: -197897011.5 | ZC89: -207012984.7 | ZD89: -215909884.6 | ZE89: -224523089.8 | ZF89: -232781239.7 | ZG89: -240605680.3 | ZH89: -247909869.1 | ZI89: -254598736.4 | ZJ89: -260568000.1 | ZK89: -265703429.7 | ZL89: -269880058.2 | ZM89: -272961335.5 | ZN89: -274798221.7 | ZO89: -275228215 | ZP89: -274074309.5 | ZQ89: -271143879.8 | ZR89: -266227484.4 | ZS89: -259097586 | ZT89: -249507180.1 | ZU89: -237188327.2 | ZV89: -221850581.8 | ZW89: -203179311.7 | ZX89: -180833898.4 | ZY89: -154445813.4 | ZZ89: -123616560 | AAA89: -87915472.27 | AAB89: -46877361.35
C91: Value of Equity Using Net New Debt | D91: =CHOOSE($Q$45,G37,G42,G47,G52) -> 0.08195492611 | E91: =NPV($D$91,E84:AAB84) -> 1267.098812 | F91: =NPV($D$91,F84:AAC84) -> 1292.440788 | G91: =NPV($D$91,G84:AAD84) -> 1318.289604 | H91: 1344.655396 | I91: 1371.548504 | J91: 1398.979474 | K91: 1426.959063 | L91: 1455.498245 | M91: 1484.60821 | N91: 1514.300374 | O91: 1544.586381 | P91: 1575.478109 | Q91: 1606.987671 | R91: 1639.127424 | S91: 1671.909973 | T91: 1705.348172 | U91: 1739.455136 | V91: 1774.244239 | W91: 1809.729123 | X91: 1845.923706 | Y91: 1882.84218 | Z91: 1920.499024 | AA91: 1958.909004 | AB91: 1998.087184 | AC91: 2038.048928 | AD91: 2078.809906 | AE91: 2120.386104 | AF91: 2162.793827 | AG91: 2206.049703 | AH91: 2250.170697 | AI91: 2295.174111 | AJ91: 2341.077593 | AK91: 2387.899145 | AL91: 2435.657128 | AM91: 2484.370271 | AN91: 2534.057676 | AO91: 2584.73883 | AP91: 2636.433606 | AQ91: 2689.162278 | AR91: 2742.945524 | AS91: 2797.804434 | AT91: 2853.760523 | AU91: 2910.835733 | AV91: 2969.052448 | AW91: 3028.433497 | AX91: 3089.002167 | AY91: 3150.78221 | AZ91: 3213.797854 | BA91: 3278.073812 | BB91: 3343.635288 | BC91: 3410.507994 | BD91: 3478.718153 | BE91: 3548.292516 | BF91: 3619.258367 | BG91: 3691.643534 | BH91: 3765.476405 | BI91: 3840.785933 | BJ91: 3917.601652 | BK91: 3995.953685 | BL91: 4075.872758 | BM91: 4157.390213 | BN91: 4240.538018 | BO91: 4325.348778 | BP91: 4411.855754 | BQ91: =NPV($D$91,BQ84:ACN84) -> 4500.092869 | BR91: 4590.094726 | BS91: 4681.896621 | BT91: 4775.534553 | BU91: 4871.045244 | BV91: 4968.466149 | BW91: 5067.835472 | BX91: 5169.192181 | BY91: 5272.576025 | BZ91: 5378.027545 | CA91: 5485.588096 | CB91: 5595.299858 | CC91: 5707.205855 | CD91: 5821.349972 | CE91: 5937.776972 | CF91: 6056.532511 | CG91: 6177.663161 | CH91: 6301.216425 | CI91: 6427.240753 | CJ91: 6555.785568 | CK91: 6686.901279 | CL91: 6820.639305 | CM91: 6957.052091 | CN91: 7096.193133 | CO91: 7238.116996 | CP91: 7382.879335 | CQ91: 7530.536922 | CR91: 7681.147661 | CS91: 7834.770614 | CT91: 7991.466026 | CU91: 8151.295346 | CV91: 8314.321253 | CW91: 8480.607678 | CX91: 8650.219832 | CY91: 8823.224228 | CZ91: 8999.688713 | DA91: 9179.682487 | DB91: 9363.276137 | DC91: 9550.541659 | DD91: 9741.552493 | DE91: 9936.383542 | DF91: 10135.11121 | DG91: 10337.81344 | DH91: 10544.56971 | DI91: 10755.4611 | DJ91: 10970.57032 | DK91: 11189.98173 | DL91: 11413.78136 | DM91: 11642.05699 | DN91: 11874.89813 | DO91: 12112.39609 | DP91: 12354.64401 | DQ91: 12601.73689 | DR91: 12853.77163 | DS91: 13110.84706 | DT91: 13373.064 | DU91: 13640.52528 | DV91: 13913.33579 | DW91: 14191.60251 | DX91: 14475.43456 | DY91: 14764.94325 | DZ91: 15060.24211 | EA91: 15361.44695 | EB91: 15668.67589 | EC91: =NPV($D$91,EC84:AEZ84) -> 15982.04941 | ED91: 16301.6904 | EE91: 16627.7242 | EF91: 16960.27869 | EG91: 17299.48426 | EH91: 17645.47395 | EI91: 17998.38343 | EJ91: 18358.35109 | EK91: 18725.51811 | EL91: 19100.02848 | EM91: 19482.02905 | EN91: 19871.66963 | EO91: 20269.10302 | EP91: 20674.48508 | EQ91: 21087.97478 | ER91: 21509.73427 | ES91: 21939.92896 | ET91: 22378.72754 | EU91: 22826.30209 | EV91: 23282.82813 | EW91: 23748.48469 | EX91: 24223.45438 | EY91: 24707.92347 | EZ91: 25202.08194 | FA91: 25706.12357 | FB91: 26220.24604 | FC91: 26744.65096 | FD91: 27279.54398 | FE91: 27825.13486 | FF91: 28381.63755 | FG91: 28949.2703 | FH91: 29528.25571 | FI91: 30118.82082 | FJ91: 30721.19723 | FK91: 31335.62118 | FL91: 31962.3336 | FM91: 32601.58027 | FN91: 33253.61187 | FO91: 33918.68411 | FP91: 34597.05778 | FQ91: 35288.99894 | FR91: 35994.77891 | FS91: 36714.67449 | FT91: 37448.96797 | FU91: 38197.94733 | FV91: 38961.90627 | FW91: 39741.14439 | FX91: 40535.96728 | FY91: 41346.68662 | FZ91: 42173.62034 | GA91: 43017.09274 | GB91: 43877.43459 | GC91: 44754.98328 | GD91: 45650.08294 | GE91: 46563.08459 | GF91: 47494.34628 | GG91: 48444.23319 | GH91: 49413.11785 | GI91: 50401.3802 | GJ91: 51409.40779 | GK91: 52437.59594 | GL91: 53486.34785 | GM91: 54556.07479 | GN91: 55647.19628 | GO91: =NPV($D$91,GO84:AHL84) -> 56760.14019 | GP91: 57895.34298 | GQ91: 59053.24983 | GR91: 60234.31481 | GS91: 61439.00109 | GT91: 62667.7811 | GU91: 63921.1367 | GV91: 65199.55942 | GW91: 66503.55059 | GX91: 67833.62158 | GY91: 69190.29399 | GZ91: 70574.09985 | HA91: 71985.58182 | HB91: 73425.29343 | HC91: 74893.79927 | HD91: 76391.67523 | HE91: 77919.5087 | HF91: 79477.89884 | HG91: 81067.45679 | HH91: 82688.80589 | HI91: 84342.58197 | HJ91: 86029.43357 | HK91: 87750.0222 | HL91: 89505.02259 | HM91: 91295.123 | HN91: 93121.02541 | HO91: 94983.44586 | HP91: 96883.11472 | HQ91: 98820.77696 | HR91: 100797.1924 | HS91: 102813.1362 | HT91: 104869.3989 | HU91: 106966.7868 | HV91: 109106.1224 | HW91: 111288.2448 | HX91: 113514.0096 | HY91: 115784.2897 | HZ91: 118099.9754 | IA91: 120461.9748 | IB91: 122871.2142 | IC91: 125328.6383 | ID91: 127835.211 | IE91: 130391.9151 | IF91: 132999.7532 | IG91: 135659.7481 | IH91: 138372.9429 | II91: 141140.4016 | IJ91: 143963.2095 | IK91: 146842.4735 | IL91: 149779.3228 | IM91: 152774.909 | IN91: 155830.407 | IO91: 158947.0149 | IP91: 162125.9549 | IQ91: 165368.4737 | IR91: 168675.8429 | IS91: 172049.3595 | IT91: 175490.3464 | IU91: 179000.153 | IV91: 182580.1557 | IW91: 186231.7584 | IX91: 189956.3932 | IY91: 193755.5206 | IZ91: 197630.6306 | JA91: =NPV($D$91,JA84:AJX84) -> 201583.2428 | JB91: 205614.9071 | JC91: 209727.2047 | JD91: 213921.7483 | JE91: 218200.1826 | JF91: 222564.1857 | JG91: 227015.4687 | JH91: 231555.7774 | JI91: 236186.8922 | JJ91: 240910.6293 | JK91: 245728.841 | JL91: 250643.417 | JM91: 255656.2844 | JN91: 260769.4091 | JO91: 265984.7962 | JP91: 271304.491 | JQ91: 276730.5797 | JR91: 282265.19 | JS91: 287910.4925 | JT91: 293668.701 | JU91: 299542.0735 | JV91: 305532.9135 | JW91: 311643.5701 | JX91: 317876.4397 | JY91: 324233.9667 | JZ91: 330718.6441 | KA91: 337333.0149 | KB91: 344079.673 | KC91: 350961.2641 | KD91: 357980.4869 | KE91: 365140.0941 | KF91: 372442.8932 | KG91: 379891.7481 | KH91: 387489.58 | KI91: 395239.3684 | KJ91: 403144.1523 | KK91: 411207.0316 | KL91: 419431.1684 | KM91: 427819.7876 | KN91: 436376.179 | KO91: 445103.698 | KP91: 454005.7671 | KQ91: 463085.8773 | KR91: 472347.5894 | KS91: 481794.5354 | KT91: 491430.4199 | KU91: 501259.0218 | KV91: 511284.1954 | KW91: 521509.872 | KX91: 531940.0618 | KY91: 542578.8548 | KZ91: 553430.4233 | LA91: 564499.0226 | LB91: 575788.9934 | LC91: 587304.763 | LD91: 599050.8474 | LE91: 611031.8529 | LF91: 623252.4778 | LG91: 635717.5144 | LH91: 648431.8511 | LI91: 661400.4737 | LJ91: 674628.4678 | LK91: 688121.021 | LL91: 701883.4243 | LM91: =NPV($D$91,LM84:AMJ84) -> 715921.0746 | LN91: 730239.4769 | LO91: 744844.2461 | LP91: 759741.1095 | LQ91: 774935.9088 | LR91: 790434.6029 | LS91: 806243.2694 | LT91: 822368.1077 | LU91: 838815.4411 | LV91: 855591.7196 | LW91: 872703.5219 | LX91: 890157.5583 | LY91: 907960.6734 | LZ91: 926119.8487 | MA91: 944642.2053 | MB91: 963535.0067 | MC91: 982805.6615 | MD91: 1002461.727 | ME91: 1022510.911 | MF91: 1042961.075 | MG91: 1063820.24 | MH91: 1085096.584 | MI91: 1106798.452 | MJ91: 1128934.354 | MK91: 1151512.969 | ML91: 1174543.153 | MM91: 1198033.936 | MN91: 1221994.53 | MO91: 1246434.33 | MP91: 1271362.922 | MQ91: 1296790.079 | MR91: 1322725.774 | MS91: 1349180.177 | MT91: 1376163.661 | MU91: 1403686.808 | MV91: 1431760.41 | MW91: 1460395.476 | MX91: 1489603.235 | MY91: 1519395.141 | MZ91: 1549782.875 | NA91: 1580778.354 | NB91: 1612393.732 | NC91: 1644641.407 | ND91: 1677534.024 | NE91: 1711084.48 | NF91: 1745305.932 | NG91: 1780211.799 | NH91: 1815815.769 | NI91: 1852131.803 | NJ91: 1889174.141 | NK91: 1926957.308 | NL91: 1965496.12 | NM91: 2004805.688 | NN91: 2044901.427 | NO91: 2085799.059 | NP91: 2127514.62 | NQ91: 2170064.467 | NR91: 2213465.285 | NS91: 2257734.092 | NT91: 2302888.246 | NU91: 2348945.452 | NV91: 2395923.769 | NW91: 2443841.617 | NX91: 2492717.786 | NY91: =NPV($D$91,NY84:AOV84) -> 2542571.439 | NZ91: 2593422.124 | OA91: 2645289.779 | OB91: 2698194.74 | OC91: 2752157.752 | OD91: 2807199.972 | OE91: 2863342.981 | OF91: 2920608.793 | OG91: 2979019.859 | OH91: 3038599.081 | OI91: 3099369.818 | OJ91: 3161355.897 | OK91: 3224581.621 | OL91: 3289071.776 | OM91: 3354851.648 | ON91: 3421947.026 | OO91: 3490384.213 | OP91: 3560190.042 | OQ91: 3631391.878 | OR91: 3704017.635 | OS91: 3778095.785 | OT91: 3853655.368 | OU91: 3930726.006 | OV91: 4009337.911 | OW91: 4089521.901 | OX91: 4171309.408 | OY91: 4254732.493 | OZ91: 4339823.857 | PA91: 4426616.855 | PB91: 4515145.509 | PC91: 4605444.519 | PD91: 4697549.28 | PE91: 4791495.893 | PF91: 4887321.182 | PG91: 4985062.704 | PH91: 5084758.768 | PI91: 5186448.449 | PJ91: 5290171.6 | PK91: 5395968.873 | PL91: 5503881.728 | PM91: 5613952.457 | PN91: 5726224.195 | PO91: 5840740.938 | PP91: 5957547.561 | PQ91: 6076689.834 | PR91: 6198214.442 | PS91: 6322169.002 | PT91: 6448602.082 | PU91: 6577563.218 | PV91: 6709102.935 | PW91: 6843272.767 | PX91: 6980125.278 | PY91: 7119714.077 | PZ91: 7262093.847 | QA91: 7407320.359 | QB91: 7555450.498 | QC91: 7706542.284 | QD91: 7860654.892 | QE91: 8017848.68 | QF91: 8178185.209 | QG91: 8341727.267 | QH91: 8508538.893 | QI91: 8678685.404 | QJ91: 8852233.418 | QK91: =NPV($D$91,QK84:ARH84) -> 9029250.883 | QL91: 9209807.097 | QM91: 9393972.742 | QN91: 9581819.907 | QO91: 9773422.117 | QP91: 9968854.362 | QQ91: 10168193.12 | QR91: 10371516.41 | QS91: 10578903.77 | QT91: 10790436.35 | QU91: 11006196.91 | QV91: 11226269.86 | QW91: 11450741.26 | QX91: 11679698.91 | QY91: 11913232.36 | QZ91: 12151432.92 | RA91: 12394393.72 | RB91: 12642209.74 | RC91: 12894977.87 | RD91: 13152796.88 | RE91: 13415767.54 | RF91: 13683992.6 | RG91: 13957576.85 | RH91: 14236627.16 | RI91: 14521252.54 | RJ91: 14811564.11 | RK91: 15107675.25 | RL91: 15409701.55 | RM91: 15717760.89 | RN91: 16031973.5 | RO91: 16352461.99 | RP91: 16679351.36 | RQ91: 17012769.12 | RR91: 17352845.29 | RS91: 17699712.44 | RT91: 18053505.78 | RU91: 18414363.18 | RV91: 18782425.22 | RW91: 19157835.25 | RX91: 19540739.47 | RY91: 19931286.93 | RZ91: 20329629.62 | SA91: 20735922.52 | SB91: 21150323.67 | SC91: 21572994.18 | SD91: 22004098.35 | SE91: 22443803.69 | SF91: 22892280.99 | SG91: 23349704.4 | SH91: 23816251.45 | SI91: 24292103.16 | SJ91: 24777444.07 | SK91: 25272462.35 | SL91: 25777349.79 | SM91: 26292301.95 | SN91: 26817518.19 | SO91: 27353201.72 | SP91: 27899559.72 | SQ91: 28456803.37 | SR91: 29025147.94 | SS91: 29604812.87 | ST91: 30196021.84 | SU91: 30799002.81 | SV91: 31413988.18 | SW91: =NPV($D$91,SW84:ATT84) -> 32041214.77 | SX91: 32680923.97 | SY91: 33333361.81 | SZ91: 33998778.98 | TA91: 34677431.01 | TB91: 35369578.27 | TC91: 36075486.08 | TD91: 36795424.81 | TE91: 37529669.97 | TF91: 38278502.23 | TG91: 39042207.6 | TH91: 39821077.45 | TI91: 40615408.62 | TJ91: 41425503.52 | TK91: 42251670.2 | TL91: 43094222.44 | TM91: 43953479.85 | TN91: 44829767.97 | TO91: 45723418.32 | TP91: 46634768.53 | TQ91: 47564162.43 | TR91: 48511950.11 | TS91: 49478488.04 | TT91: 50464139.13 | TU91: 51469272.86 | TV91: 52494265.33 | TW91: 53539499.39 | TX91: 54605364.67 | TY91: 55692257.73 | TZ91: 56800582.09 | UA91: 57930748.37 | UB91: 59083174.32 | UC91: 60258284.92 | UD91: 61456512.48 | UE91: 62678296.7 | UF91: 63924084.71 | UG91: 65194331.21 | UH91: 66489498.48 | UI91: 67810056.47 | UJ91: 69156482.86 | UK91: 70529263.1 | UL91: 71928890.5 | UM91: 73355866.21 | UN91: 74810699.34 | UO91: 76293906.92 | UP91: 77806013.99 | UQ91: 79347553.59 | UR91: 80919066.75 | US91: 82521102.56 | UT91: 84154218.11 | UU91: 85818978.5 | UV91: 87515956.8 | UW91: 89245734.05 | UX91: 91008899.15 | UY91: 92806048.86 | UZ91: 94637787.71 | VA91: 96504727.87 | VB91: 98407489.1 | VC91: 100346698.6 | VD91: 102322990.8 | VE91: 104337007.4 | VF91: 106389397 | VG91: 108480814.8 | VH91: 110611922.8 | VI91: =NPV($D$91,VI84:AWF84) -> 112783388.9 | VJ91: 114995887.3 | VK91: 117250097.7 | VL91: 119546705.1 | VM91: 121886399.5 | VN91: 124269875.2 | VO91: 126697831 | VP91: 129170968.7 | VQ91: 131689993.6 | VR91: 134255613.2 | VS91: 136868536.7 | VT91: 139529474.6 | VU91: 142239137.7 | VV91: 144998236.3 | VW91: 147807479.4 | VX91: 150667573.6 | VY91: 153579222.5 | VZ91: 156543125.2 | WA91: 159559975.1 | WB91: 162630459.1 | WC91: 165755255.8 | WD91: 168935034.1 | WE91: 172170451.9 | WF91: 175462154.2 | WG91: 178810771.6 | WH91: 182216917.8 | WI91: 185681188.4 | WJ91: 189204158 | WK91: 192786378.2 | WL91: 196428374.9 | WM91: 200130646.1 | WN91: 203893658.3 | WO91: 207717844.4 | WP91: 211603599.6 | WQ91: 215551278.4 | WR91: 219561190.9 | WS91: 223633598.8 | WT91: 227768711.2 | WU91: 231966680.3 | WV91: 236227596.3 | WW91: 240551483.1 | WX91: 244938291.8 | WY91: 249387896.3 | WZ91: 253900085.9 | XA91: 258474560.1 | XB91: 263110920.6 | XC91: 267808664.8 | XD91: 272567177.7 | XE91: 277385723.6 | XF91: 282263437.3 | XG91: 287199315 | XH91: 292192204.2 | XI91: 297240793 | XJ91: 302343599.5 | XK91: 307498959.2 | XL91: 312705012.9 | XM91: 317959692.9 | XN91: 323260709.2 | XO91: 328605534.1 | XP91: 333991386.2 | XQ91: 339415213.5 | XR91: 344873675.4 | XS91: 350363123.2 | XT91: 355879580.1 | XU91: =NPV($D$91,XU84:AYR84) -> 361418719.6 | XV91: 366975842.5 | XW91: 372545852.7 | XX91: 378123231.2 | XY91: 383702009.4 | XZ91: 389275739.4 | YA91: 394837463.9 | YB91: 400379683.1 | YC91: 405894320.5 | YD91: 411372686.3 | YE91: 416805438.2 | YF91: 422182540.8 | YG91: 427493221.3 | YH91: 432725923.6 | YI91: 437868259.4 | YJ91: 442906955.8 | YK91: 447827800.3 | YL91: 452615582.7 | YM91: 457254032.6 | YN91: 461725754.4 | YO91: 466012157.3 | YP91: 470093381.8 | YQ91: 473948221.6 | YR91: 477554040.5 | YS91: 480886685.4 | YT91: 483920392.6 | YU91: 486627689.7 | YV91: 488979291.5 | YW91: 490943988.7 | YX91: 492488531.6 | YY91: 493577505.4 | YZ91: 494173199.2 | ZA91: 494235466.2 | ZB91: 493721576.7 | ZC91: 492586061.1 | ZD91: 490780544.9 | ZE91: 488253573.1 | ZF91: 484950424 | ZG91: 480812912.9 | ZH91: 475779183.2 | ZI91: 469783485.5 | ZJ91: 462755943.9 | ZK91: 454622307.8 | ZL91: 445303689.6 | ZM91: 434716286.7 | ZN91: 422771086.9 | ZO91: 409373556.4 | ZP91: 394423309.6 | ZQ91: 377813758.9 | ZR91: 359431744.3 | ZS91: 339157141 | ZT91: 316862443.3 | ZU91: 292412324.5 | ZV91: 265663170.8 | ZW91: 236462587.1 | ZX91: 204648874.1 | ZY91: 170050474.7 | ZZ91: 132485386.9 | AAA91: 91760542.96 | AAB91: 47671151.33
C92: Value of Equity Flows before Tax Shield | D92: =D91 -> 0.08195492611 | E92: =NPV($D$92,E85:AAB85) -> 1267.098812 | F92: 1292.440788 | G92: 1318.289604 | H92: 1344.655396 | I92: 1371.548504 | J92: 1398.979474 | K92: 1426.959063 | L92: 1455.498245 | M92: 1484.60821 | N92: 1514.300374 | O92: 1544.586381 | P92: 1575.478109 | Q92: 1606.987671 | R92: 1639.127424 | S92: 1671.909973 | T92: 1705.348172 | U92: 1739.455136 | V92: 1774.244239 | W92: 1809.729123 | X92: 1845.923706 | Y92: 1882.84218 | Z92: 1920.499024 | AA92: 1958.909004 | AB92: 1998.087184 | AC92: 2038.048928 | AD92: 2078.809906 | AE92: 2120.386104 | AF92: 2162.793827 | AG92: 2206.049703 | AH92: 2250.170697 | AI92: 2295.174111 | AJ92: 2341.077593 | AK92: 2387.899145 | AL92: 2435.657128 | AM92: 2484.370271 | AN92: 2534.057676 | AO92: 2584.73883 | AP92: 2636.433606 | AQ92: 2689.162278 | AR92: 2742.945524 | AS92: 2797.804434 | AT92: 2853.760523 | AU92: 2910.835733 | AV92: 2969.052448 | AW92: 3028.433497 | AX92: 3089.002167 | AY92: 3150.78221 | AZ92: 3213.797854 | BA92: 3278.073812 | BB92: 3343.635288 | BC92: 3410.507994 | BD92: 3478.718153 | BE92: 3548.292516 | BF92: 3619.258367 | BG92: 3691.643534 | BH92: 3765.476405 | BI92: 3840.785933 | BJ92: 3917.601652 | BK92: 3995.953685 | BL92: 4075.872758 | BM92: 4157.390213 | BN92: 4240.538018 | BO92: 4325.348778 | BP92: 4411.855754 | BQ92: =NPV($D$92,BQ85:ACN85) -> 4500.092869 | BR92: 4590.094726 | BS92: 4681.896621 | BT92: 4775.534553 | BU92: 4871.045244 | BV92: 4968.466149 | BW92: 5067.835472 | BX92: 5169.192181 | BY92: 5272.576025 | BZ92: 5378.027545 | CA92: 5485.588096 | CB92: 5595.299858 | CC92: 5707.205855 | CD92: 5821.349972 | CE92: 5937.776972 | CF92: 6056.532511 | CG92: 6177.663161 | CH92: 6301.216425 | CI92: 6427.240753 | CJ92: 6555.785568 | CK92: 6686.901279 | CL92: 6820.639305 | CM92: 6957.052091 | CN92: 7096.193133 | CO92: 7238.116996 | CP92: 7382.879335 | CQ92: 7530.536922 | CR92: 7681.147661 | CS92: 7834.770614 | CT92: 7991.466026 | CU92: 8151.295346 | CV92: 8314.321253 | CW92: 8480.607678 | CX92: 8650.219832 | CY92: 8823.224228 | CZ92: 8999.688713 | DA92: 9179.682487 | DB92: 9363.276137 | DC92: 9550.541659 | DD92: 9741.552493 | DE92: 9936.383542 | DF92: 10135.11121 | DG92: 10337.81344 | DH92: 10544.56971 | DI92: 10755.4611 | DJ92: 10970.57032 | DK92: 11189.98173 | DL92: 11413.78136 | DM92: 11642.05699 | DN92: 11874.89813 | DO92: 12112.39609 | DP92: 12354.64401 | DQ92: 12601.73689 | DR92: 12853.77163 | DS92: 13110.84706 | DT92: 13373.064 | DU92: 13640.52528 | DV92: 13913.33579 | DW92: 14191.60251 | DX92: 14475.43456 | DY92: 14764.94325 | DZ92: 15060.24211 | EA92: 15361.44695 | EB92: 15668.67589 | EC92: =NPV($D$92,EC85:AEZ85) -> 15982.04941 | ED92: 16301.6904 | EE92: 16627.7242 | EF92: 16960.27869 | EG92: 17299.48426 | EH92: 17645.47395 | EI92: 17998.38343 | EJ92: 18358.35109 | EK92: 18725.51811 | EL92: 19100.02848 | EM92: 19482.02905 | EN92: 19871.66963 | EO92: 20269.10302 | EP92: 20674.48508 | EQ92: 21087.97478 | ER92: 21509.73427 | ES92: 21939.92896 | ET92: 22378.72754 | EU92: 22826.30209 | EV92: 23282.82813 | EW92: 23748.48469 | EX92: 24223.45438 | EY92: 24707.92347 | EZ92: 25202.08194 | FA92: 25706.12357 | FB92: 26220.24604 | FC92: 26744.65096 | FD92: 27279.54398 | FE92: 27825.13486 | FF92: 28381.63755 | FG92: 28949.2703 | FH92: 29528.25571 | FI92: 30118.82082 | FJ92: 30721.19723 | FK92: 31335.62118 | FL92: 31962.3336 | FM92: 32601.58027 | FN92: 33253.61187 | FO92: 33918.68411 | FP92: 34597.05778 | FQ92: 35288.99894 | FR92: 35994.77891 | FS92: 36714.67449 | FT92: 37448.96797 | FU92: 38197.94733 | FV92: 38961.90627 | FW92: 39741.14439 | FX92: 40535.96728 | FY92: 41346.68662 | FZ92: 42173.62034 | GA92: 43017.09274 | GB92: 43877.43459 | GC92: 44754.98328 | GD92: 45650.08294 | GE92: 46563.08459 | GF92: 47494.34628 | GG92: 48444.23319 | GH92: 49413.11785 | GI92: 50401.3802 | GJ92: 51409.40779 | GK92: 52437.59594 | GL92: 53486.34785 | GM92: 54556.07479 | GN92: 55647.19628 | GO92: =NPV($D$92,GO85:AHL85) -> 56760.14019 | GP92: 57895.34298 | GQ92: 59053.24983 | GR92: 60234.31481 | GS92: 61439.00109 | GT92: 62667.7811 | GU92: 63921.1367 | GV92: 65199.55942 | GW92: 66503.55059 | GX92: 67833.62158 | GY92: 69190.29399 | GZ92: 70574.09985 | HA92: 71985.58182 | HB92: 73425.29343 | HC92: 74893.79927 | HD92: 76391.67523 | HE92: 77919.5087 | HF92: 79477.89884 | HG92: 81067.45679 | HH92: 82688.80589 | HI92: 84342.58197 | HJ92: 86029.43357 | HK92: 87750.0222 | HL92: 89505.02259 | HM92: 91295.123 | HN92: 93121.02541 | HO92: 94983.44586 | HP92: 96883.11472 | HQ92: 98820.77696 | HR92: 100797.1924 | HS92: 102813.1362 | HT92: 104869.3989 | HU92: 106966.7868 | HV92: 109106.1224 | HW92: 111288.2448 | HX92: 113514.0096 | HY92: 115784.2897 | HZ92: 118099.9754 | IA92: 120461.9748 | IB92: 122871.2142 | IC92: 125328.6383 | ID92: 127835.211 | IE92: 130391.9151 | IF92: 132999.7532 | IG92: 135659.7481 | IH92: 138372.9429 | II92: 141140.4016 | IJ92: 143963.2095 | IK92: 146842.4735 | IL92: 149779.3228 | IM92: 152774.909 | IN92: 155830.407 | IO92: 158947.0149 | IP92: 162125.9549 | IQ92: 165368.4737 | IR92: 168675.8429 | IS92: 172049.3595 | IT92: 175490.3464 | IU92: 179000.153 | IV92: 182580.1557 | IW92: 186231.7584 | IX92: 189956.3932 | IY92: 193755.5206 | IZ92: 197630.6306 | JA92: =NPV($D$92,JA85:AJX85) -> 201583.2428 | JB92: 205614.9071 | JC92: 209727.2047 | JD92: 213921.7483 | JE92: 218200.1826 | JF92: 222564.1857 | JG92: 227015.4687 | JH92: 231555.7774 | JI92: 236186.8922 | JJ92: 240910.6293 | JK92: 245728.841 | JL92: 250643.417 | JM92: 255656.2844 | JN92: 260769.4091 | JO92: 265984.7962 | JP92: 271304.491 | JQ92: 276730.5797 | JR92: 282265.19 | JS92: 287910.4925 | JT92: 293668.701 | JU92: 299542.0735 | JV92: 305532.9135 | JW92: 311643.5701 | JX92: 317876.4397 | JY92: 324233.9667 | JZ92: 330718.6441 | KA92: 337333.0149 | KB92: 344079.673 | KC92: 350961.2641 | KD92: 357980.4869 | KE92: 365140.0941 | KF92: 372442.8932 | KG92: 379891.7481 | KH92: 387489.58 | KI92: 395239.3684 | KJ92: 403144.1523 | KK92: 411207.0316 | KL92: 419431.1684 | KM92: 427819.7876 | KN92: 436376.179 | KO92: 445103.698 | KP92: 454005.7671 | KQ92: 463085.8773 | KR92: 472347.5894 | KS92: 481794.5354 | KT92: 491430.4199 | KU92: 501259.0218 | KV92: 511284.1954 | KW92: 521509.872 | KX92: 531940.0618 | KY92: 542578.8548 | KZ92: 553430.4233 | LA92: 564499.0226 | LB92: 575788.9934 | LC92: 587304.763 | LD92: 599050.8474 | LE92: 611031.8529 | LF92: 623252.4778 | LG92: 635717.5144 | LH92: 648431.8511 | LI92: 661400.4737 | LJ92: 674628.4678 | LK92: 688121.021 | LL92: 701883.4243 | LM92: =NPV($D$92,LM85:AMJ85) -> 715921.0746 | LN92: 730239.4769 | LO92: 744844.2461 | LP92: 759741.1095 | LQ92: 774935.9088 | LR92: 790434.6029 | LS92: 806243.2694 | LT92: 822368.1077 | LU92: 838815.4411 | LV92: 855591.7196 | LW92: 872703.5219 | LX92: 890157.5583 | LY92: 907960.6734 | LZ92: 926119.8487 | MA92: 944642.2053 | MB92: 963535.0067 | MC92: 982805.6615 | MD92: 1002461.727 | ME92: 1022510.911 | MF92: 1042961.075 | MG92: 1063820.24 | MH92: 1085096.584 | MI92: 1106798.452 | MJ92: 1128934.354 | MK92: 1151512.969 | ML92: 1174543.153 | MM92: 1198033.936 | MN92: 1221994.53 | MO92: 1246434.33 | MP92: 1271362.922 | MQ92: 1296790.079 | MR92: 1322725.774 | MS92: 1349180.177 | MT92: 1376163.661 | MU92: 1403686.808 | MV92: 1431760.41 | MW92: 1460395.476 | MX92: 1489603.235 | MY92: 1519395.141 | MZ92: 1549782.875 | NA92: 1580778.354 | NB92: 1612393.732 | NC92: 1644641.407 | ND92: 1677534.024 | NE92: 1711084.48 | NF92: 1745305.932 | NG92: 1780211.799 | NH92: 1815815.769 | NI92: 1852131.803 | NJ92: 1889174.141 | NK92: 1926957.308 | NL92: 1965496.12 | NM92: 2004805.688 | NN92: 2044901.427 | NO92: 2085799.059 | NP92: 2127514.62 | NQ92: 2170064.467 | NR92: 2213465.285 | NS92: 2257734.092 | NT92: 2302888.246 | NU92: 2348945.452 | NV92: 2395923.769 | NW92: 2443841.617 | NX92: 2492717.786 | NY92: =NPV($D$92,NY85:AOV85) -> 2542571.439 | NZ92: 2593422.124 | OA92: 2645289.779 | OB92: 2698194.74 | OC92: 2752157.752 | OD92: 2807199.972 | OE92: 2863342.981 | OF92: 2920608.793 | OG92: 2979019.859 | OH92: 3038599.081 | OI92: 3099369.818 | OJ92: 3161355.897 | OK92: 3224581.621 | OL92: 3289071.776 | OM92: 3354851.648 | ON92: 3421947.026 | OO92: 3490384.213 | OP92: 3560190.042 | OQ92: 3631391.878 | OR92: 3704017.635 | OS92: 3778095.785 | OT92: 3853655.368 | OU92: 3930726.006 | OV92: 4009337.911 | OW92: 4089521.901 | OX92: 4171309.408 | OY92: 4254732.493 | OZ92: 4339823.857 | PA92: 4426616.855 | PB92: 4515145.509 | PC92: 4605444.519 | PD92: 4697549.28 | PE92: 4791495.893 | PF92: 4887321.182 | PG92: 4985062.704 | PH92: 5084758.768 | PI92: 5186448.449 | PJ92: 5290171.6 | PK92: 5395968.873 | PL92: 5503881.728 | PM92: 5613952.457 | PN92: 5726224.195 | PO92: 5840740.938 | PP92: 5957547.561 | PQ92: 6076689.834 | PR92: 6198214.442 | PS92: 6322169.002 | PT92: 6448602.082 | PU92: 6577563.218 | PV92: 6709102.935 | PW92: 6843272.767 | PX92: 6980125.278 | PY92: 7119714.077 | PZ92: 7262093.847 | QA92: 7407320.359 | QB92: 7555450.498 | QC92: 7706542.284 | QD92: 7860654.892 | QE92: 8017848.68 | QF92: 8178185.209 | QG92: 8341727.267 | QH92: 8508538.893 | QI92: 8678685.404 | QJ92: 8852233.418 | QK92: =NPV($D$92,QK85:ARH85) -> 9029250.883 | QL92: 9209807.097 | QM92: 9393972.742 | QN92: 9581819.907 | QO92: 9773422.117 | QP92: 9968854.362 | QQ92: 10168193.12 | QR92: 10371516.41 | QS92: 10578903.77 | QT92: 10790436.35 | QU92: 11006196.91 | QV92: 11226269.86 | QW92: 11450741.26 | QX92: 11679698.91 | QY92: 11913232.36 | QZ92: 12151432.92 | RA92: 12394393.72 | RB92: 12642209.74 | RC92: 12894977.87 | RD92: 13152796.88 | RE92: 13415767.54 | RF92: 13683992.6 | RG92: 13957576.85 | RH92: 14236627.16 | RI92: 14521252.54 | RJ92: 14811564.11 | RK92: 15107675.25 | RL92: 15409701.55 | RM92: 15717760.89 | RN92: 16031973.5 | RO92: 16352461.99 | RP92: 16679351.36 | RQ92: 17012769.12 | RR92: 17352845.29 | RS92: 17699712.44 | RT92: 18053505.78 | RU92: 18414363.18 | RV92: 18782425.22 | RW92: 19157835.25 | RX92: 19540739.47 | RY92: 19931286.93 | RZ92: 20329629.62 | SA92: 20735922.52 | SB92: 21150323.67 | SC92: 21572994.18 | SD92: 22004098.35 | SE92: 22443803.69 | SF92: 22892280.99 | SG92: 23349704.4 | SH92: 23816251.45 | SI92: 24292103.16 | SJ92: 24777444.07 | SK92: 25272462.35 | SL92: 25777349.79 | SM92: 26292301.95 | SN92: 26817518.19 | SO92: 27353201.72 | SP92: 27899559.72 | SQ92: 28456803.37 | SR92: 29025147.94 | SS92: 29604812.87 | ST92: 30196021.84 | SU92: 30799002.81 | SV92: 31413988.18 | SW92: =NPV($D$92,SW85:ATT85) -> 32041214.77 | SX92: 32680923.97 | SY92: 33333361.81 | SZ92: 33998778.98 | TA92: 34677431.01 | TB92: 35369578.27 | TC92: 36075486.08 | TD92: 36795424.81 | TE92: 37529669.97 | TF92: 38278502.23 | TG92: 39042207.6 | TH92: 39821077.45 | TI92: 40615408.62 | TJ92: 41425503.52 | TK92: 42251670.2 | TL92: 43094222.44 | TM92: 43953479.85 | TN92: 44829767.97 | TO92: 45723418.32 | TP92: 46634768.53 | TQ92: 47564162.43 | TR92: 48511950.11 | TS92: 49478488.04 | TT92: 50464139.13 | TU92: 51469272.86 | TV92: 52494265.33 | TW92: 53539499.39 | TX92: 54605364.67 | TY92: 55692257.73 | TZ92: 56800582.09 | UA92: 57930748.37 | UB92: 59083174.32 | UC92: 60258284.92 | UD92: 61456512.48 | UE92: 62678296.7 | UF92: 63924084.71 | UG92: 65194331.21 | UH92: 66489498.48 | UI92: 67810056.47 | UJ92: 69156482.86 | UK92: 70529263.1 | UL92: 71928890.5 | UM92: 73355866.21 | UN92: 74810699.34 | UO92: 76293906.92 | UP92: 77806013.99 | UQ92: 79347553.59 | UR92: 80919066.75 | US92: 82521102.56 | UT92: 84154218.11 | UU92: 85818978.5 | UV92: 87515956.8 | UW92: 89245734.05 | UX92: 91008899.15 | UY92: 92806048.86 | UZ92: 94637787.71 | VA92: 96504727.87 | VB92: 98407489.1 | VC92: 100346698.6 | VD92: 102322990.8 | VE92: 104337007.4 | VF92: 106389397 | VG92: 108480814.8 | VH92: 110611922.8 | VI92: =NPV($D$92,VI85:AWF85) -> 112783388.9 | VJ92: 114995887.3 | VK92: 117250097.7 | VL92: 119546705.1 | VM92: 121886399.5 | VN92: 124269875.2 | VO92: 126697831 | VP92: 129170968.7 | VQ92: 131689993.6 | VR92: 134255613.2 | VS92: 136868536.7 | VT92: 139529474.6 | VU92: 142239137.7 | VV92: 144998236.3 | VW92: 147807479.4 | VX92: 150667573.6 | VY92: 153579222.5 | VZ92: 156543125.2 | WA92: 159559975.1 | WB92: 162630459.1 | WC92: 165755255.8 | WD92: 168935034.1 | WE92: 172170451.9 | WF92: 175462154.2 | WG92: 178810771.6 | WH92: 182216917.8 | WI92: 185681188.4 | WJ92: 189204158 | WK92: 192786378.2 | WL92: 196428374.9 | WM92: 200130646.1 | WN92: 203893658.3 | WO92: 207717844.4 | WP92: 211603599.6 | WQ92: 215551278.4 | WR92: 219561190.9 | WS92: 223633598.8 | WT92: 227768711.2 | WU92: 231966680.3 | WV92: 236227596.3 | WW92: 240551483.1 | WX92: 244938291.8 | WY92: 249387896.3 | WZ92: 253900085.9 | XA92: 258474560.1 | XB92: 263110920.6 | XC92: 267808664.8 | XD92: 272567177.7 | XE92: 277385723.6 | XF92: 282263437.3 | XG92: 287199315 | XH92: 292192204.2 | XI92: 297240793 | XJ92: 302343599.5 | XK92: 307498959.2 | XL92: 312705012.9 | XM92: 317959692.9 | XN92: 323260709.2 | XO92: 328605534.1 | XP92: 333991386.2 | XQ92: 339415213.5 | XR92: 344873675.4 | XS92: 350363123.2 | XT92: 355879580.1 | XU92: =NPV($D$92,XU85:AYR85) -> 361418719.6 | XV92: 366975842.5 | XW92: 372545852.7 | XX92: 378123231.2 | XY92: 383702009.4 | XZ92: 389275739.4 | YA92: 394837463.9 | YB92: 400379683.1 | YC92: 405894320.5 | YD92: 411372686.3 | YE92: 416805438.2 | YF92: 422182540.8 | YG92: 427493221.3 | YH92: 432725923.6 | YI92: 437868259.4 | YJ92: 442906955.8 | YK92: 447827800.3 | YL92: 452615582.7 | YM92: 457254032.6 | YN92: 461725754.4 | YO92: 466012157.3 | YP92: 470093381.8 | YQ92: 473948221.6 | YR92: 477554040.5 | YS92: 480886685.4 | YT92: 483920392.6 | YU92: 486627689.7 | YV92: 488979291.5 | YW92: 490943988.7 | YX92: 492488531.6 | YY92: 493577505.4 | YZ92: 494173199.2 | ZA92: 494235466.2 | ZB92: 493721576.7 | ZC92: 492586061.1 | ZD92: 490780544.9 | ZE92: 488253573.1 | ZF92: 484950424 | ZG92: 480812912.9 | ZH92: 475779183.2 | ZI92: 469783485.5 | ZJ92: 462755943.9 | ZK92: 454622307.8 | ZL92: 445303689.6 | ZM92: 434716286.7 | ZN92: 422771086.9 | ZO92: 409373556.4 | ZP92: 394423309.6 | ZQ92: 377813758.9 | ZR92: 359431744.3 | ZS92: 339157141 | ZT92: 316862443.3 | ZU92: 292412324.5 | ZV92: 265663170.8 | ZW92: 236462587.1 | ZX92: 204648874.1 | ZY92: 170050474.7 | ZZ92: 132485386.9 | AAA92: 91760542.96 | AAB92: 47671151.33
C94: Interest Percent | E94: =E77/E71 -> 0.6816117747 | F94: 0.6816117747 | G94: 0.6816117747 | H94: 0.6816117747 | I94: 0.6816117747 | J94: 0.6816117747 | K94: 0.6816117747 | L94: 0.6816117747 | M94: 0.6816117747 | N94: 0.6816117747 | O94: 0.6816117747 | P94: 0.6816117747 | Q94: 0.6816117747 | R94: 0.6816117747 | S94: 0.6816117747 | T94: 0.6816117747 | U94: 0.6816117747 | V94: 0.6816117747 | W94: 0.6816117747 | X94: 0.6816117746 | Y94: 0.6816117746 | Z94: 0.6816117746 | AA94: 0.6816117746 | AB94: 0.6816117746 | AC94: 0.6816117746 | AD94: 0.6816117746 | AE94: 0.6816117746 | AF94: 0.6816117746 | AG94: 0.6816117746 | AH94: 0.6816117746 | AI94: 0.6816117746 | AJ94: 0.6816117746 | AK94: 0.6816117746 | AL94: 0.6816117746 | AM94: 0.6816117746 | AN94: 0.6816117746 | AO94: 0.6816117746 | AP94: 0.6816117746 | AQ94: 0.6816117746 | AR94: 0.6816117746 | AS94: 0.6816117746 | AT94: 0.6816117746 | AU94: 0.6816117746 | AV94: 0.6816117746 | AW94: 0.6816117746 | AX94: 0.6816117746 | AY94: 0.6816117746 | AZ94: 0.6816117746 | BA94: 0.6816117746 | BB94: 0.6816117746 | BC94: 0.6816117746 | BD94: 0.6816117746 | BE94: 0.6816117746 | BF94: 0.6816117746 | BG94: 0.6816117746 | BH94: 0.6816117746 | BI94: 0.6816117746 | BJ94: 0.6816117746 | BK94: 0.6816117746 | BL94: 0.6816117746 | BM94: 0.6816117746 | BN94: 0.6816117746 | BO94: 0.6816117746 | BP94: 0.6816117746 | BQ94: =BQ77/BQ71 -> 0.6816117746 | BR94: 0.6816117746 | BS94: 0.6816117746 | BT94: 0.6816117746 | BU94: 0.6816117746 | BV94: 0.6816117746 | BW94: 0.6816117746 | BX94: 0.6816117746 | BY94: 0.6816117746 | BZ94: 0.6816117746 | CA94: 0.6816117746 | CB94: 0.6816117746 | CC94: 0.6816117746 | CD94: 0.6816117746 | CE94: 0.6816117746 | CF94: 0.6816117746 | CG94: 0.6816117746 | CH94: 0.6816117746 | CI94: 0.6816117746 | CJ94: 0.6816117746 | CK94: 0.6816117746 | CL94: 0.6816117746 | CM94: 0.6816117746 | CN94: 0.6816117746 | CO94: 0.6816117746 | CP94: 0.6816117746 | CQ94: 0.6816117746 | CR94: 0.6816117746 | CS94: 0.6816117746 | CT94: 0.6816117746 | CU94: 0.6816117746 | CV94: 0.6816117745 | CW94: 0.6816117745 | CX94: 0.6816117745 | CY94: 0.6816117745 | CZ94: 0.6816117745 | DA94: 0.6816117745 | DB94: 0.6816117745 | DC94: 0.6816117745 | DD94: 0.6816117745 | DE94: 0.6816117745 | DF94: 0.6816117745 | DG94: 0.6816117745 | DH94: 0.6816117745 | DI94: 0.6816117745 | DJ94: 0.6816117745 | DK94: 0.6816117745 | DL94: 0.6816117745 | DM94: 0.6816117745 | DN94: 0.6816117744 | DO94: 0.6816117744 | DP94: 0.6816117744 | DQ94: 0.6816117744 | DR94: 0.6816117744 | DS94: 0.6816117744 | DT94: 0.6816117744 | DU94: 0.6816117744 | DV94: 0.6816117744 | DW94: 0.6816117744 | DX94: 0.6816117744 | DY94: 0.6816117743 | DZ94: 0.6816117743 | EA94: 0.6816117743 | EB94: 0.6816117743 | EC94: =EC77/EC71 -> 0.6816117743 | ED94: 0.6816117743 | EE94: 0.6816117743 | EF94: 0.6816117742 | EG94: 0.6816117742 | EH94: 0.6816117742 | EI94: 0.6816117742 | EJ94: 0.6816117742 | EK94: 0.6816117742 | EL94: 0.6816117741 | EM94: 0.6816117741 | EN94: 0.6816117741 | EO94: 0.6816117741 | EP94: 0.6816117741 | EQ94: 0.681611774 | ER94: 0.681611774 | ES94: 0.681611774 | ET94: 0.681611774 | EU94: 0.6816117739 | EV94: 0.6816117739 | EW94: 0.6816117739 | EX94: 0.6816117739 | EY94: 0.6816117738 | EZ94: 0.6816117738 | FA94: 0.6816117738 | FB94: 0.6816117737 | FC94: 0.6816117737 | FD94: 0.6816117737 | FE94: 0.6816117736 | FF94: 0.6816117736 | FG94: 0.6816117735 | FH94: 0.6816117735 | FI94: 0.6816117735 | FJ94: 0.6816117734 | FK94: 0.6816117734 | FL94: 0.6816117733 | FM94: 0.6816117733 | FN94: 0.6816117732 | FO94: 0.6816117732 | FP94: 0.6816117731 | FQ94: 0.681611773 | FR94: 0.681611773 | FS94: 0.6816117729 | FT94: 0.6816117728 | FU94: 0.6816117728 | FV94: 0.6816117727 | FW94: 0.6816117726 | FX94: 0.6816117726 | FY94: 0.6816117725 | FZ94: 0.6816117724 | GA94: 0.6816117723 | GB94: 0.6816117722 | GC94: 0.6816117721 | GD94: 0.681611772 | GE94: 0.6816117719 | GF94: 0.6816117718 | GG94: 0.6816117717 | GH94: 0.6816117716 | GI94: 0.6816117715 | GJ94: 0.6816117714 | GK94: 0.6816117712 | GL94: 0.6816117711 | GM94: 0.681611771 | GN94: 0.6816117708 | GO94: =GO77/GO71 -> 0.6816117707 | GP94: 0.6816117705 | GQ94: 0.6816117704 | GR94: 0.6816117702 | GS94: 0.68161177 | GT94: 0.6816117699 | GU94: 0.6816117697 | GV94: 0.6816117695 | GW94: 0.6816117693 | GX94: 0.6816117691 | GY94: 0.6816117689 | GZ94: 0.6816117687 | HA94: 0.6816117684 | HB94: 0.6816117682 | HC94: 0.681611768 | HD94: 0.6816117677 | HE94: 0.6816117674 | HF94: 0.6816117672 | HG94: 0.6816117669 | HH94: 0.6816117666 | HI94: 0.6816117663 | HJ94: 0.681611766 | HK94: 0.6816117656 | HL94: 0.6816117653 | HM94: 0.6816117649 | HN94: 0.6816117646 | HO94: 0.6816117642 | HP94: 0.6816117638 | HQ94: 0.6816117634 | HR94: 0.6816117629 | HS94: 0.6816117625 | HT94: 0.681611762 | HU94: 0.6816117616 | HV94: 0.6816117611 | HW94: 0.6816117605 | HX94: 0.68161176 | HY94: 0.6816117594 | HZ94: 0.6816117589 | IA94: 0.6816117583 | IB94: 0.6816117576 | IC94: 0.681611757 | ID94: 0.6816117563 | IE94: 0.6816117556 | IF94: 0.6816117549 | IG94: 0.6816117541 | IH94: 0.6816117534 | II94: 0.6816117526 | IJ94: 0.6816117517 | IK94: 0.6816117508 | IL94: 0.6816117499 | IM94: 0.681611749 | IN94: 0.681611748 | IO94: 0.681611747 | IP94: 0.681611746 | IQ94: 0.6816117449 | IR94: 0.6816117437 | IS94: 0.6816117426 | IT94: 0.6816117413 | IU94: 0.6816117401 | IV94: 0.6816117388 | IW94: 0.6816117374 | IX94: 0.681611736 | IY94: 0.6816117345 | IZ94: 0.681611733 | JA94: =JA77/JA71 -> 0.6816117314 | JB94: 0.6816117297 | JC94: 0.681611728 | JD94: 0.6816117263 | JE94: 0.6816117244 | JF94: 0.6816117225 | JG94: 0.6816117205 | JH94: 0.6816117185 | JI94: 0.6816117163 | JJ94: 0.6816117141 | JK94: 0.6816117118 | JL94: 0.6816117094 | JM94: 0.6816117069 | JN94: 0.6816117044 | JO94: 0.6816117017 | JP94: 0.6816116989 | JQ94: 0.681611696 | JR94: 0.681611693 | JS94: 0.6816116899 | JT94: 0.6816116867 | JU94: 0.6816116834 | JV94: 0.6816116799 | JW94: 0.6816116763 | JX94: 0.6816116726 | JY94: 0.6816116687 | JZ94: 0.6816116646 | KA94: 0.6816116605 | KB94: 0.6816116561 | KC94: 0.6816116516 | KD94: 0.6816116469 | KE94: 0.6816116421 | KF94: 0.681611637 | KG94: 0.6816116318 | KH94: 0.6816116264 | KI94: 0.6816116207 | KJ94: 0.6816116149 | KK94: 0.6816116088 | KL94: 0.6816116025 | KM94: 0.6816115959 | KN94: 0.6816115891 | KO94: 0.6816115821 | KP94: 0.6816115748 | KQ94: 0.6816115672 | KR94: 0.6816115593 | KS94: 0.6816115511 | KT94: 0.6816115426 | KU94: 0.6816115337 | KV94: 0.6816115246 | KW94: 0.6816115151 | KX94: 0.6816115052 | KY94: 0.6816114949 | KZ94: 0.6816114843 | LA94: 0.6816114733 | LB94: 0.6816114618 | LC94: 0.6816114499 | LD94: 0.6816114376 | LE94: 0.6816114247 | LF94: 0.6816114114 | LG94: 0.6816113976 | LH94: 0.6816113833 | LI94: 0.6816113684 | LJ94: 0.6816113529 | LK94: 0.6816113369 | LL94: 0.6816113203 | LM94: =LM77/LM71 -> 0.681611303 | LN94: 0.681611285 | LO94: 0.6816112664 | LP94: 0.6816112471 | LQ94: 0.681611227 | LR94: 0.6816112062 | LS94: 0.6816111846 | LT94: 0.6816111621 | LU94: 0.6816111388 | LV94: 0.6816111147 | LW94: 0.6816110896 | LX94: 0.6816110635 | LY94: 0.6816110365 | LZ94: 0.6816110084 | MA94: 0.6816109792 | MB94: 0.681610949 | MC94: 0.6816109176 | MD94: 0.681610885 | ME94: 0.6816108512 | MF94: 0.681610816 | MG94: 0.6816107796 | MH94: 0.6816107417 | MI94: 0.6816107025 | MJ94: 0.6816106617 | MK94: 0.6816106194 | ML94: 0.6816105754 | MM94: 0.6816105298 | MN94: 0.6816104825 | MO94: 0.6816104333 | MP94: 0.6816103823 | MQ94: 0.6816103294 | MR94: 0.6816102744 | MS94: 0.6816102173 | MT94: 0.6816101581 | MU94: 0.6816100966 | MV94: 0.6816100328 | MW94: 0.6816099666 | MX94: 0.6816098978 | MY94: 0.6816098264 | MZ94: 0.6816097523 | NA94: 0.6816096754 | NB94: 0.6816095956 | NC94: 0.6816095127 | ND94: 0.6816094267 | NE94: 0.6816093374 | NF94: 0.6816092447 | NG94: 0.6816091485 | NH94: 0.6816090486 | NI94: 0.681608945 | NJ94: 0.6816088373 | NK94: 0.6816087256 | NL94: 0.6816086097 | NM94: 0.6816084893 | NN94: 0.6816083644 | NO94: 0.6816082347 | NP94: 0.6816081001 | NQ94: 0.6816079603 | NR94: 0.6816078152 | NS94: 0.6816076647 | NT94: 0.6816075084 | NU94: 0.6816073461 | NV94: 0.6816071777 | NW94: 0.6816070029 | NX94: 0.6816068214 | NY94: =NY77/NY71 -> 0.681606633 | NZ94: 0.6816064375 | OA94: 0.6816062345 | OB94: 0.6816060238 | OC94: 0.6816058051 | OD94: 0.681605578 | OE94: 0.6816053424 | OF94: 0.6816050978 | OG94: 0.6816048438 | OH94: 0.6816045803 | OI94: 0.6816043066 | OJ94: 0.6816040226 | OK94: 0.6816037278 | OL94: 0.6816034218 | OM94: 0.6816031041 | ON94: 0.6816027744 | OO94: 0.6816024321 | OP94: 0.6816020768 | OQ94: 0.681601708 | OR94: 0.6816013251 | OS94: 0.6816009277 | OT94: 0.6816005152 | OU94: 0.681600087 | OV94: 0.6815996425 | OW94: 0.6815991811 | OX94: 0.6815987022 | OY94: 0.681598205 | OZ94: 0.6815976889 | PA94: 0.6815971532 | PB94: 0.6815965972 | PC94: 0.68159602 | PD94: 0.6815954208 | PE94: 0.6815947989 | PF94: 0.6815941533 | PG94: 0.6815934831 | PH94: 0.6815927875 | PI94: 0.6815920654 | PJ94: 0.6815913158 | PK94: 0.6815905377 | PL94: 0.6815897301 | PM94: 0.6815888917 | PN94: 0.6815880214 | PO94: 0.6815871181 | PP94: 0.6815861804 | PQ94: 0.681585207 | PR94: 0.6815841966 | PS94: 0.6815831478 | PT94: 0.6815820591 | PU94: 0.681580929 | PV94: 0.6815797559 | PW94: 0.6815785382 | PX94: 0.6815772742 | PY94: 0.6815759621 | PZ94: 0.6815746001 | QA94: 0.6815731864 | QB94: 0.6815717188 | QC94: 0.6815701955 | QD94: 0.6815686142 | QE94: 0.6815669728 | QF94: 0.6815652689 | QG94: 0.6815635003 | QH94: 0.6815616643 | QI94: 0.6815597586 | QJ94: 0.6815577804 | QK94: =QK77/QK71 -> 0.681555727 | QL94: 0.6815535954 | QM94: 0.6815513828 | QN94: 0.6815490861 | QO94: 0.681546702 | QP94: 0.6815442272 | QQ94: 0.6815416583 | QR94: 0.6815389917 | QS94: 0.6815362237 | QT94: 0.6815333505 | QU94: 0.6815303679 | QV94: 0.681527272 | QW94: 0.6815240583 | QX94: 0.6815207224 | QY94: 0.6815172596 | QZ94: 0.6815136651 | RA94: 0.6815099339 | RB94: 0.6815060608 | RC94: 0.6815020404 | RD94: 0.6814978672 | RE94: 0.6814935352 | RF94: 0.6814890384 | RG94: 0.6814843707 | RH94: 0.6814795254 | RI94: 0.6814744959 | RJ94: 0.681469275 | RK94: 0.6814638557 | RL94: 0.6814582302 | RM94: 0.6814523908 | RN94: 0.6814463293 | RO94: 0.6814400373 | RP94: 0.6814335059 | RQ94: 0.6814267262 | RR94: 0.6814196887 | RS94: 0.6814123835 | RT94: 0.6814048005 | RU94: 0.6813969291 | RV94: 0.6813887584 | RW94: 0.6813802769 | RX94: 0.6813714729 | RY94: 0.681362334 | RZ94: 0.6813528476 | SA94: 0.6813430004 | SB94: 0.6813327787 | SC94: 0.6813221682 | SD94: 0.6813111543 | SE94: 0.6812997215 | SF94: 0.6812878538 | SG94: 0.6812755349 | SH94: 0.6812627474 | SI94: 0.6812494736 | SJ94: 0.681235695 | SK94: 0.6812213924 | SL94: 0.6812065459 | SM94: 0.6811911347 | SN94: 0.6811751374 | SO94: 0.6811585318 | SP94: 0.6811412946 | SQ94: 0.6811234019 | SR94: 0.6811048287 | SS94: 0.6810855491 | ST94: 0.6810655363 | SU94: 0.6810447624 | SV94: 0.6810231985 | SW94: =SW77/SW71 -> 0.6810008145 | SX94: 0.6809775792 | SY94: 0.6809534603 | SZ94: 0.680928424 | TA94: 0.6809024357 | TB94: 0.680875459 | TC94: 0.6808474563 | TD94: 0.6808183887 | TE94: 0.6807882156 | TF94: 0.680756895 | TG94: 0.6807243832 | TH94: 0.680690635 | TI94: 0.6806556034 | TJ94: 0.6806192394 | TK94: 0.6805814925 | TL94: 0.6805423101 | TM94: 0.6805016375 | TN94: 0.6804594181 | TO94: 0.6804155931 | TP94: 0.6803701013 | TQ94: 0.6803228795 | TR94: 0.6802738618 | TS94: 0.6802229799 | TT94: 0.680170163 | TU94: 0.6801153374 | TV94: 0.6800584267 | TW94: 0.6799993516 | TX94: 0.6799380299 | TY94: 0.6798743761 | TZ94: 0.6798083014 | UA94: 0.6797397139 | UB94: 0.679668518 | UC94: 0.6795946144 | UD94: 0.6795179002 | UE94: 0.6794382685 | UF94: 0.6793556083 | UG94: 0.6792698046 | UH94: 0.6791807376 | UI94: 0.6790882833 | UJ94: 0.678992313 | UK94: 0.6788926928 | UL94: 0.6787892839 | UM94: 0.6786819424 | UN94: 0.6785705186 | UO94: 0.6784548572 | UP94: 0.6783347971 | UQ94: 0.6782101711 | UR94: 0.6780808054 | US94: 0.6779465199 | UT94: 0.6778071274 | UU94: 0.6776624336 | UV94: 0.6775122371 | UW94: 0.6773563284 | UX94: 0.6771944905 | UY94: 0.6770264977 | UZ94: 0.676852116 | VA94: 0.6766711024 | VB94: 0.6764832047 | VC94: 0.6762881612 | VD94: 0.6760856999 | VE94: 0.675875539 | VF94: 0.6756573854 | VG94: 0.6754309353 | VH94: 0.6751958731 | VI94: =VI77/VI71 -> 0.6749518713 | VJ94: 0.6746985899 | VK94: 0.674435676 | VL94: 0.6741627633 | VM94: 0.6738794716 | VN94: 0.673585406 | VO94: 0.6732801569 | VP94: 0.6729632989 | VQ94: 0.6726343905 | VR94: 0.6722929735 | VS94: 0.6719385721 | VT94: 0.6715706926 | VU94: 0.6711888224 | VV94: 0.6707924293 | VW94: 0.670380961 | VX94: 0.6699538443 | VY94: 0.669510484 | VZ94: 0.6690502624 | WA94: 0.6685725382 | WB94: 0.6680766458 | WC94: 0.6675618941 | WD94: 0.6670275661 | WE94: 0.6664729171 | WF94: 0.6658971745 | WG94: 0.6652995358 | WH94: 0.6646791685 | WI94: 0.6640352081 | WJ94: 0.6633667575 | WK94: 0.6626728851 | WL94: 0.6619526242 | WM94: 0.6612049712 | WN94: 0.6604288843 | WO94: 0.6596232823 | WP94: 0.6587870426 | WQ94: 0.6579190001 | WR94: 0.6570179452 | WS94: 0.6560826224 | WT94: 0.6551117286 | WU94: 0.654103911 | WV94: 0.6530577652 | WW94: 0.6519718337 | WX94: 0.6508446034 | WY94: 0.6496745036 | WZ94: 0.648459904 | XA94: 0.6471991122 | XB94: 0.6458903716 | XC94: 0.6445318584 | XD94: 0.64312168 | XE94: 0.6416578713 | XF94: 0.6401383929 | XG94: 0.6385611275 | XH94: 0.6369238774 | XI94: 0.6352243614 | XJ94: 0.6334602115 | XK94: 0.6316289696 | XL94: 0.6297280841 | XM94: 0.6277549064 | XN94: 0.6257066873 | XO94: 0.6235805727 | XP94: 0.6213736003 | XQ94: 0.6190826951 | XR94: 0.6167046649 | XS94: 0.6142361963 | XT94: 0.6116738499 | XU94: =XU77/XU71 -> 0.6090140555 | XV94: 0.606253107 | XW94: 0.6033871574 | XX94: 0.6004122135 | XY94: 0.5973241302 | XZ94: 0.5941186046 | YA94: 0.5907911703 | YB94: 0.5873371911 | YC94: 0.5837518544 | YD94: 0.5800301644 | YE94: 0.5761669357 | YF94: 0.5721567853 | YG94: 0.5679941258 | YH94: 0.563673157 | YI94: 0.5591878584 | YJ94: 0.5545319803 | YK94: 0.5496990355 | YL94: 0.54468229 | YM94: 0.5394747537 | YN94: 0.5340691707 | YO94: 0.5284580091 | YP94: 0.5226334506 | YQ94: 0.5165873796 | YR94: 0.5103113717 | YS94: 0.5037966823 | YT94: 0.4970342341 | YU94: 0.4900146047 | YV94: 0.4827280133 | YW94: 0.475164307 | YX94: 0.467312947 | YY94: 0.4591629936 | YZ94: 0.450703091 | ZA94: 0.4419214517 | ZB94: 0.4328058397 | ZC94: 0.4233435538 | ZD94: 0.4135214097 | ZE94: 0.4033257217 | ZF94: 0.3927422836 | ZG94: 0.3817563491 | ZH94: 0.3703526108 | ZI94: 0.3585151793 | ZJ94: 0.346227561 | ZK94: 0.3334726349 | ZL94: 0.3202326289 | ZM94: 0.306489095 | ZN94: 0.2922228836 | ZO94: 0.2774141171 | ZP94: 0.2620421614 | ZQ94: 0.2460855981 | ZR94: 0.2295221942 | ZS94: 0.2123288709 | ZT94: 0.194481672 | ZU94: 0.1759557301 | ZV94: 0.156725232 | ZW94: 0.1367633828 | ZX94: 0.1160423688 | ZY94: 0.09453331831 | ZZ94: 0.07220626165 | AAA94: 0.04903008942 | AAB94: 0.02497250909
C97: Gross Debt Percent | D97: =E97/100 -> 0.6 | E97: 60
C98: Tax Rate | D98: =E98/100 -> 0.3 | E98: 30 | G98: Growth | H98: =gr -> 0.02 | K98: 40 | R98: Co Val | S98: Int Tax | T98: New Debt | U98: Net Tax
C99: Gross Market Debt Value | D99: =D97*D107 -> 1310.791874 | P99: Net of Tax | Q99: =E71 -> 100 | R99: =Q99/(I107-D67) -> 2184.653124 | S99: =E88 -> 639.0110373 | T99: =#REF! ->  | U99: =S99-T99 -> 
C100: Net of Tax Debt Value | D100: =D99*(1-D98) -> 917.554312 | P100: Gross | Q100: =Q99 -> 100 | R100: =Q100/(I113-D67) -> -5000
C101: Tax Shield | D101: =D99-D100 -> 393.2375623 | P101: Difference | R101: =R100-R99 -> -7184.653124
B103: Net of Tax Capital Structure
D104: Amount | E104: Percent | F104: Beta | G104: Pre-tax Cost | H104: At-Cost | I104: Ku
C105: Net of Tax Debt | D105: =D100 -> 917.554312 | E105: =D105/D107 -> 0.42 | F105: =F111 -> 0.4 | G105: =D5+D4*F105 -> 0.052 | H105: =G105 -> 0.052 | I105: =H105*E105 -> 0.02184
C106: Net of Tax Equity | D106: =D107-D105 -> 1267.098812 | E106: =D106/D107 -> 0.58 | F106: =(I17-F105*E105)/E106 -> 1.191600985 | H106: =I106/E106 -> 0.07574802956 | I106: =I107-I105 -> 0.04393385714 | O106: Growth | P106: =D67 -> 0.02
C107: Total Net of Tax Capital | D107: =E25 -> 2184.653124 | I107: =I18 -> 0.06577385714
C108: Plus Value of Tax Shield | D108: =D99-D105+D107 -> 2577.890686
D110: Amount | E110: Percent | F110: Beta | G110: Pre-tax Cost | H110: At-Cost | I110: WACC | Q110: Need to Compute
C111: Gross Debt | D111: =D99 -> 1310.791874 | E111: =D111/D113 -> -0.2621583749 | F111: =D32 -> 0.4 | G111: =D5+F111*D4 -> 0.052 | H111: =G111*(1-D98) -> 0.0364 | J111: =G111*(1-D98) -> 0.0364 | M111: =H111/G111 -> 0.7 | N111: =1-M111 -> 0.3 | O111: =D98 -> 0.3 | P111: =1-O111 -> 0.7 | Q111: =M111/P111 -> 1
C112: Gross Equity | D112: =D113-D111 -> -6310.791874 | E112: =D112/D113 -> 1.262158375 | F112: =F106 -> 1.191600985 | G112: =F112*D4+D5 -> 0.07574802956 | H112: =H106 -> 0.07574802956
C113: Total Gross EV | D113: =R100 -> -5000 | F113: =I17 -> 0.8591285714 | K113: =G111 -> 0.052 | L113: =K113*(1-D98)/(1-P106) -> 0.03714285714 | M113: =K113*(1-D98)*Q111 -> 0.0364

Sheet Sheet1
